{"text_format":"1","workbook":"xlsx","n_sheets":18,"sheets":["市区町村","始めに","報告書第一面","報告書第一面別紙(調査者)","報告書第二面","報告書第二面別紙(床面積表)","報告書第三面","報告書第四面","報告書(注意書き)","調査結果表","別添1(図面)","別添2(写真)","概要書第一面","概要書第一面別紙(調査者)","概要書第一面別紙(不具合等)","概要書第二面","概要書第二面別紙(床面積表)","市町村.txt"],"not_rendered":{"charts":0,"images":2,"macros":1,"external_links":1,"defined_names":17,"comments":4,"pivot_tables":0},"unopened":[],"bounds":{"document_bytes":16777216,"sheet_cells":100000,"rows_first":2000,"rows_last":500,"rows_between":2000,"halvings":0,"cell_chars":16384,"cell_head_chars":4096},"cells_cut":0,"cells_raw":0,"read":"whole","date_system":"1904"}

{"sheet":"市区町村","index":0,"n_rows":73,"n_cols":5,"rows_kept":73,"cut":false,"hidden":true,"merged":[]}
["このセルをクリック","　","　"," "," "]
["上尾市","上尾市長","　","08","19"]
["朝霞市","川越建築安全センター所長","　","01","27"]
["入間郡越生町","川越建築安全センター所長","　","01","46"]
["入間郡三芳町","川越建築安全センター所長","　","01","44"]
["入間郡毛呂山町","川越建築安全センター所長","　","01","45"]
["入間市","川越建築安全センター所長","　","01","25"]
["大里郡寄居町","熊谷建築安全センター所長","　","01","78"]
["桶川市","越谷建築安全センター所長","　","01","31"]
["春日部市","春日部市長","　","10","14"]
["加須市","熊谷建築安全センター所長","　","01","10"]
["川口市","川口市長","　","02","03"]
["川越市","川越市長","　","05","01"]
["北足立郡伊奈町","越谷建築安全センター所長","　","01","41"]
["北葛飾郡杉戸町","越谷建築安全センター所長","　","01","89"]
["北葛飾郡松伏町","越谷建築安全センター所長","　","01","90"]
["北本市","越谷建築安全センター所長","　","01","33"]
["行田市","熊谷建築安全センター所長","　","01","06"]
["久喜市","久喜市長","　","14","32"]
["熊谷市","熊谷市長","　","13","02"]
["鴻巣市","越谷建築安全センター所長","　","01","17"]
["越谷市","越谷市長","　","07","22"]
["児玉郡神川町","熊谷建築安全センター所長","　","01","69"]
["児玉郡上里町","熊谷建築安全センター所長","　","01","71"]
["児玉郡美里町","熊谷建築安全センター所長","　","01","67"]
["さいたま市岩槻区","さいたま市長","　","03","13"]
["さいたま市浦和区","さいたま市長","　","03","04"]
["さいたま市大宮区","さいたま市長","　","03","05"]
["さいたま市北区","さいたま市長","　","03","05"]
["さいたま市桜区","さいたま市長","　","03","04"]
["さいたま市中央区","さいたま市長","　","03","20"]
["さいたま市西区","さいたま市長","　","03","05"]
["さいたま市緑区","さいたま市長","　","03","04"]
["さいたま市南区","さいたま市長","　","03","04"]
["さいたま市見沼区","さいたま市長","　","03","05"]
["坂戸市","川越建築安全センター所長","　","01","39"]
["幸手市","越谷建築安全センター所長","　","01","40"]
["狭山市","狭山市長","　","11","15"]
["志木市","川越建築安全センター所長","　","01","28"]
["白岡市","越谷建築安全センター所長","　","01","85"]
["草加市","草加市長","　","09","21"]
["秩父郡小鹿野町","熊谷建築安全センター所長","(秩父駐在)","01","62"]
["秩父郡長瀞町","熊谷建築安全センター所長","(秩父駐在)","01","60"]
["秩父郡東秩父村","川越建築安全センター所長","　","01","66"]
["秩父郡皆野町","熊谷建築安全センター所長","(秩父駐在)","01","59"]
["秩父郡横瀬町","熊谷建築安全センター所長","(秩父駐在)","01","58"]
["秩父市","熊谷建築安全センター所長","(秩父駐在)","01","07"]
["鶴ヶ島市","川越建築安全センター所長","　","01","47"]
["所沢市","所沢市長","　","06","08"]
["戸田市","越谷建築安全センター所長","　","01","24"]
["新座市","新座市長","　","12","30"]
["蓮田市","越谷建築安全センター所長","　","01","38"]
["羽生市","熊谷建築安全センター所長","　","01","16"]
["飯能市","川越建築安全センター所長","　","01","09"]
["東松山市","川越建築安全センター所長","　","01","12"]
["比企郡小川町","川越建築安全センター所長","　","01","52"]
["比企郡川島町","川越建築安全センター所長","　","01","55"]
["比企郡ときがわ町","川越建築安全センター所長","　","01","53"]
["比企郡滑川町","川越建築安全センター所長","　","01","50"]
["比企郡鳩山町","川越建築安全センター所長","　","01","57"]
["比企郡吉見町","川越建築安全センター所長","　","01","56"]
["比企郡嵐山町","川越建築安全センター所長","　","01","51"]
["日高市","川越建築安全センター所長","　","01","48"]
["深谷市","熊谷建築安全センター所長","　","01","18"]
["富士見市","川越建築安全センター所長","　","01","35"]
["ふじみ野市","川越建築安全センター所長","　","01","36"]
["本庄市","熊谷建築安全センター所長","　","01","11"]
["三郷市","越谷建築安全センター所長","　","01","37"]
["南埼玉郡宮代町","越谷建築安全センター所長","　","01","84"]
["八潮市","越谷建築安全センター所長","　","01","34"]
["吉川市","越谷建築安全センター所長","　","01","91"]
["和光市","川越建築安全センター所長","　","01","29"]
["蕨市","越谷建築安全センター所長","　","01","23"]

{"sheet":"始めに","index":1,"n_rows":75,"n_cols":13,"rows_kept":75,"cut":false,"hidden":false,"merged":[]}
[]
[null,"ご利用の際の注意事項"]
[]
[null,"1.マクロに関して"]
[null,null,"このExcelファイルは、マクロが使用されています。"]
[]
[null,null,"セキュリティの警告「マクロが無効にされました。」が表示されている場合、マクロは使用できません。"]
[null,null,"コンテンツの有効化をクリックし、マクロを有効にしてください。"]
[null,null,"お使いのExcelのバージョンによっては、上記の記載と異なる場合があります。"]
[]
[null,"2.　提出時の用紙に関して"]
[null,null,"報告書のご提出は、必ず調査日より３ヶ月以内にご提出ください。３ヶ月を超えた場合は受付出来ません。"]
[]
[]
[]
[]
[]
[]
[]
[]
[]
[]
[]
[]
[]
[]
[]
[]
[]
[]
[]
[]
[]
[]
[]
[]
[]
[null,null,"報告書(両面印刷不可)は正副２部、概要書は１部作成して下さい。綴じ方は左上１点をホチキスで留めて下さい。"]
[]
[null,null,"また、特定建築物報告書の場合、図面(配置図と各階の平面図)の添付は必須となります。"]
[]
[null,null,"※１　第一面(別紙)は、３人以上で調査された場合にのみ添付して下さい。"]
[null,null,"※２　第二面(別紙)床面積は、第二面－【３．階別用途別床面積】で「※　別紙のとおり」とされた場合に添付して下さい。"]
[null,null,"※３　第四面は、不具合があった場合のみ添付して下さい。不具合がなかった場合は添付は不要です。"]
[null,null,"※４　写真は、「要是正」の指摘があった場合は必ず添付して下さい。既存不適格や特記事項の場合は写真添付は任意です。"]
[null,null,"※５　概要書(別紙)調査者は、※１を添付された場合に添付して下さい。"]
[null,null,"※６　概要書(別紙)不具合は、※３を添付された場合に添付して下さい。"]
[null,null,"※７　概要書(２)床面積は、※２を添付された場合に添付して下さい。"]
[]
[]
[null,"3.　事務手数料に関して"]
[null,null,"報告書をご提出頂く際、事務手数料を頂戴しております。"]
[null,null,"報告書等を郵送でご提出いただき、受付完了後に請求書をお送り致します。"]
[null,null,"金額は、次のとおりです。"]
[]
[null,null,null,null,null,null,null,null,"特定建築物定期報告事務手数料"]
[]
[]
[]
[]
[]
[]
[]
[]
[]
[]
[null,null,null,null,null,null,null,null,null,null,null,"金額は、いずれも消費税込みです。"]
[]
[]
[null,null,null,null,null,null,null,null,null,null,null,null,"金額は、いずれも消費税込みです。"]
[]
[null,null,"報告書は、郵送にてご提出してください。"]
[null,null,"送付明細書をダウンロードし、必要事項を記載のうえ、報告書に同封して郵送してください。"]
[null,null,"報告書の控えが必要な方は、提出書類の他に控えの報告書（及び切手を貼付した返信用封筒）を同封してください。"]
[null,null,"控えの報告書に受付印を押印したものをご返却します。"]

{"sheet":"報告書第一面","index":2,"n_rows":62,"n_cols":49,"rows_kept":62,"cut":false,"hidden":false,"merged":[[61,0,62,4],[61,5,62,10],[9,13,9,28],[59,10,60,10],[53,20,53,22],[53,24,53,26],[56,11,56,32],[57,11,62,32],[55,0,55,30],[54,11,54,43],[21,11,21,43],[57,2,58,3],[51,37,51,43],[51,15,51,25],[59,2,60,9],[59,0,60,1],[57,7,58,7],[57,0,58,1],[57,4,58,4],[55,40,55,42],[33,11,33,43],[32,35,32,42],[13,30,13,41],[30,0,30,10],[1,0,1,43],[2,0,2,43],[3,0,3,43],[4,0,4,43],[51,11,51,13],[13,25,13,29],[11,25,11,29],[36,29,36,31],[30,11,30,43],[31,11,31,43],[9,42,9,43],[9,35,9,37],[9,39,9,41],[9,31,9,33],[28,25,28,34],[38,11,38,43],[41,24,41,28],[41,35,41,42],[41,15,41,16],[41,17,41,22],[36,0,36,10],[36,11,36,14],[37,11,37,14],[37,25,37,34],[0,0,0,43],[5,41,5,43],[6,41,6,43],[5,3,5,40],[6,3,6,40],[36,35,36,42],[32,17,32,22],[37,15,37,24],[36,15,36,16],[5,0,5,2],[8,13,8,43],[7,0,7,43],[11,30,11,41],[8,1,8,12],[11,42,11,43],[9,1,9,12],[27,35,27,42],[28,35,28,42],[27,17,27,22],[27,32,27,34],[20,0,20,10],[27,11,27,14],[32,24,32,28],[37,0,37,10],[23,0,23,10],[27,29,27,31],[17,11,17,43],[17,0,17,10],[22,11,22,43],[23,11,23,43],[13,0,13,24],[27,15,27,16],[20,11,20,43],[26,11,26,43],[24,0,24,10],[25,0,25,10],[26,5,26,10],[15,11,15,43],[21,0,21,10],[16,11,16,43],[27,24,27,28],[22,0,22,10],[10,0,10,24],[16,0,16,10],[19,11,19,43],[14,11,14,43],[15,0,15,10],[10,25,10,43],[12,25,12,43],[18,11,18,43],[13,42,13,43],[12,0,12,24],[14,0,14,10],[18,0,18,10],[19,0,19,10],[35,11,35,43],[35,0,35,10],[33,0,33,10],[24,11,24,43],[25,11,25,43],[32,29,32,33],[36,17,36,22],[36,24,36,28],[32,15,32,16],[32,0,32,10],[32,11,32,14],[31,0,31,10],[29,0,29,10],[29,11,29,43],[28,0,28,10],[28,15,28,24],[44,11,44,43],[45,11,45,43],[51,28,51,35],[47,0,47,10],[39,0,39,10],[40,11,40,43],[52,0,52,10],[53,37,53,43],[53,15,53,16],[57,10,58,10],[53,27,53,35],[44,0,44,10],[45,0,45,10],[57,33,62,43],[50,0,50,10],[57,5,58,6],[57,8,58,9],[54,0,54,10],[53,11,53,13],[51,0,51,10],[50,11,50,43],[56,33,56,43],[56,0,56,10],[46,11,46,13],[46,14,46,21],[52,11,52,43],[55,37,55,38],[55,34,55,35],[49,11,49,43],[55,31,55,32],[53,18,53,19],[48,11,48,43],[53,0,53,10],[6,0,6,2],[46,0,46,10],[48,0,48,10],[49,0,49,10],[27,0,27,10],[41,29,41,33],[11,0,11,24],[9,29,9,30],[42,0,42,10],[39,11,39,43],[28,11,28,14],[41,0,41,10],[41,11,41,14],[38,0,38,10],[47,11,47,43],[43,11,43,43],[46,22,46,43],[37,35,37,42],[43,0,43,10],[40,0,40,10],[36,32,36,34],[42,11,42,43],[34,0,34,10],[34,11,34,43]]}
[null,null,null,null,null,null,null,null,null,null,null,null,null,null,null,null,null,null,null,null,null,null,null,null,null,null,null,null,null,null,null,null,null,null,null,null,null,null,null,null,null,null,null,null,null,null,null,"建築士登録","都道府県"]
["第三十六号の二様式（第五条関係）（Ａ４）",null,null,null,null,null,null,null,null,null,null,null,null,null,null,null,null,null,null,null,null,null,null,null,null,null,null,null,null,null,null,null,null,null,null,null,null,null,null,null,null,null,null,null,null,null,null,"国土交通大臣","埼玉県"]
["定期調査報告書",null,null,null,null,null,null,null,null,null,null,null,null,null,null,null,null,null,null,null,null,null,null,null,null,null,null,null,null,null,null,null,null,null,null,null,null,null,null,null,null,null,null,null,null,null,null,null,"東京都"]
["（第一面）",null,null,null,null,null,null,null,null,null,null,null,null,null,null,null,null,null,null,null,null,null,null,null,null,null,null,null,null,null,null,null,null,null,null,null,null,null,null,null,null,null,null,null,null,null,null,"埼玉県知事","神奈川県"]
[null,null,null,null,null,null,null,null,null,null,null,null,null,null,null,null,null,null,null,null,null,null,null,null,null,null,null,null,null,null,null,null,null,null,null,null,null,null,null,null,null,null,null,null,null,null,null,"東京都知事","千葉県"]
[null,null,null,"　建築基準法第12条第1項の規定による定期調査の結果を報告します。",null,null,null,null,null,null,null,null,null,null,null,null,null,null,null,null,null,null,null,null,null,null,null,null,null,null,null,null,null,null,null,null,null,null,null,null,null,null,null,null,null,null,null,"神奈川県知事","茨城県"]
[null,null,null,"　この報告書に記載の事項は、事実に相違ありません。□□□□□□□□□",null,null,null,null,null,null,null,null,null,null,null,null,null,null,null,null,null,null,null,null,null,null,null,null,null,null,null,null,null,null,null,null,null,null,null,null,null,null,null,null,null,null,null,"千葉県知事","栃木県"]
["　　特定行政庁",null,null,null,null,null,null,null,null,null,null,null,null,null,null,null,null,null,null,null,null,null,null,null,null,null,null,null,null,null,null,null,null,null,null,null,null,null,null,null,null,null,null,null,null,null,null,"茨城県知事","群馬県"]
[null,{"$f":"VLOOKUP(O47,市区町村!A1:E73,2,0)","v":{"$error":"#N/A"}},null,null,null,null,null,null,null,null,null,null,null,"様",null,null,null,null,null,null,null,null,null,null,null,null,null,null,null,null,null,null,null,null,null,null,null,null,null,null,null,null,null,null,null,null,null,"栃木県知事"]
[null,{"$f":"VLOOKUP(O47,市区町村!A1:E73,3,0)","v":{"$error":"#N/A"}},null,null,null,null,null,null,null,null,null,null,null,null,null,null,null,null,null,null,null,null,null,null,null,null,null,null,null,null,null,null,null,null,"年",null,null,null,"月",null,null,null,"日",null,null,null,null,"群馬県知事","北海道"]
[null,null,null,null,null,null,null,null,null,null,null,null,null,null,null,null,null,null,null,null,null,null,null,null,null,null,null,null,null,null,null,null,null,null,null,null,null,null,null,null,null,null,null,null,null,null,null,null,"青森県"]
[null,null,null,null,null,null,null,null,null,null,null,null,null,null,null,null,null,null,null,null,null,null,null,null,null,"報告者氏名",null,null,null,null,null,null,null,null,null,null,null,null,null,null,null,null,null,null,null,null,null,"北海道知事","岩手県"]
[null,null,null,null,null,null,null,null,null,null,null,null,null,null,null,null,null,null,null,null,null,null,null,null,null,null,null,null,null,null,null,null,null,null,null,null,null,null,null,null,null,null,null,null,null,null,null,"青森県知事","宮城県"]
[null,null,null,null,null,null,null,null,null,null,null,null,null,null,null,null,null,null,null,null,null,null,null,null,null,"調査者氏名",null,null,null,null,null,null,null,null,null,null,null,null,null,null,null,null,null,null,null,null,null,"岩手県知事","秋田県"]
["【1.所有者】",null,null,null,null,null,null,null,null,null,null,null,null,null,null,null,null,null,null,null,null,null,null,null,null,null,null,null,null,null,null,null,null,null,null,null,null,null,null,null,null,null,null,null,null,null,null,"宮城県知事","山形県"]
["【ｲ.氏名のﾌﾘｶﾞﾅ】",null,null,null,null,null,null,null,null,null,null,{"$f":"ASC(PHONETIC(L17:AR17))","v":""},null,null,null,null,null,null,null,null,null,null,null,null,null,null,null,null,null,null,null,null,null,null,null,null,null,null,null,null,null,null,null,null,null,null,null,"秋田県知事","福島県"]
["【ﾛ.氏名】",null,null,null,null,null,null,null,null,null,null,null,null,null,null,null,null,null,null,null,null,null,null,null,null,null,null,null,null,null,null,null,null,null,null,null,null,null,null,null,null,null,null,null,null,null,null,"山形県知事"]
["【ﾊ.郵便番号】",null,null,null,null,null,null,null,null,null,null,null,null,null,null,null,null,null,null,null,null,null,null,null,null,null,null,null,null,null,null,null,null,null,null,null,null,null,null,null,null,null,null,null,null,null,null,"福島県知事","新潟県"]
["【ﾆ.住所】",null,null,null,null,null,null,null,null,null,null,null,null,null,null,null,null,null,null,null,null,null,null,null,null,null,null,null,null,null,null,null,null,null,null,null,null,null,null,null,null,null,null,null,null,null,null,null,"富山県"]
["【ﾎ.電話番号】",null,null,null,null,null,null,null,null,null,null,null,null,null,null,null,null,null,null,null,null,null,null,null,null,null,null,null,null,null,null,null,null,null,null,null,null,null,null,null,null,null,null,null,null,null,null,"新潟県知事","石川県"]
["【2.管理者】",null,null,null,null,null,null,null,null,null,null,null,null,null,null,null,null,null,null,null,null,null,null,null,null,null,null,null,null,null,null,null,null,null,null,null,null,null,null,null,null,null,null,null,null,null,null,"富山県知事","福井県"]
["【ｲ.氏名のﾌﾘｶﾞﾅ】",null,null,null,null,null,null,null,null,null,null,{"$f":"ASC(PHONETIC(L23:AR23))","v":""},null,null,null,null,null,null,null,null,null,null,null,null,null,null,null,null,null,null,null,null,null,null,null,null,null,null,null,null,null,null,null,null,null,null,null,"石川県知事"]
["【ﾛ.氏名】",null,null,null,null,null,null,null,null,null,null,null,null,null,null,null,null,null,null,null,null,null,null,null,null,null,null,null,null,null,null,null,null,null,null,null,null,null,null,null,null,null,null,null,null,null,null,"福井県知事","山梨県"]
["【ﾊ.郵便番号】",null,null,null,null,null,null,null,null,null,null,null,null,null,null,null,null,null,null,null,null,null,null,null,null,null,null,null,null,null,null,null,null,null,null,null,null,null,null,null,null,null,null,null,null,null,null,null,"長野県"]
["【ﾆ.住所】",null,null,null,null,null,null,null,null,null,null,null,null,null,null,null,null,null,null,null,null,null,null,null,null,null,null,null,null,null,null,null,null,null,null,null,null,null,null,null,null,null,null,null,null,null,null,"山梨県知事","岐阜県"]
["【ﾎ.電話番号】",null,null,null,null,null,null,null,null,null,null,null,null,null,null,null,null,null,null,null,null,null,null,null,null,null,null,null,null,null,null,null,null,null,null,null,null,null,null,null,null,null,null,null,null,null,null,"長野県知事","静岡県"]
["【3.調査者】",null,null,null,null,null,null,null,null,null,null,null,null,null,null,null,null,null,null,null,null,null,null,null,null,null,null,null,null,null,null,null,null,null,null,null,null,null,null,null,null,null,null,null,null,null,null,"岐阜県知事","愛知県"]
["　(代表となる調査者)",null,null,null,null,null,null,null,null,null,null,"(",null,null,null,null,null,")建築士",null,null,null,null,null,"(",null,null,null,null,null,")登録",null,null,"第",null,null,null,null,null,null,null,null,null,null,"号",null,null,null,"静岡県知事","三重県"]
["【ｲ.資格】",null,null,null,null,null,null,null,null,null,null,null,null,null,null,"特定建築物調査員",null,null,null,null,null,null,null,null,null,"第",null,null,null,null,null,null,null,null,null,null,null,null,null,null,null,null,null,"号",null,null,null,"愛知県知事"]
["【ﾛ.氏名のﾌﾘｶﾞﾅ】",null,null,null,null,null,null,null,null,null,null,{"$f":"ASC(PHONETIC(L31:AR31))","v":""},null,null,null,null,null,null,null,null,null,null,null,null,null,null,null,null,null,null,null,null,null,null,null,null,null,null,null,null,null,null,null,null,null,null,null,null,"京都府"]
["【ﾊ.氏名】",null,null,null,null,null,null,null,null,null,null,null,null,null,null,null,null,null,null,null,null,null,null,null,null,null,null,null,null,null,null,null,null,null,null,null,null,null,null,null,null,null,null,null,null,null,null,"滋賀県知事","大阪府"]
["【ﾆ.勤務先】",null,null,null,null,null,null,null,null,null,null,null,null,null,null,null,null,null,null,null,null,null,null,null,null,null,null,null,null,null,null,null,null,null,null,null,null,null,null,null,null,null,null,null,null,null,null,"京都府知事","兵庫県"]
[null,null,null,null,null,null,null,null,null,null,null,"(",null,null,null,null,null,")建築士事務所",null,null,null,null,null,"(",null,null,null,null,null,")知事登録",null,null,null,null,"第",null,null,null,null,null,null,null,null,"号",null,null,null,"大阪府知事","奈良県"]
["【ﾎ.郵便番号】",null,null,null,null,null,null,null,null,null,null,null,null,null,null,null,null,null,null,null,null,null,null,null,null,null,null,null,null,null,null,null,null,null,null,null,null,null,null,null,null,null,null,null,null,null,null,"兵庫県知事","和歌山県"]
["【ﾍ.所在地】",null,null,null,null,null,null,null,null,null,null,null,null,null,null,null,null,null,null,null,null,null,null,null,null,null,null,null,null,null,null,null,null,null,null,null,null,null,null,null,null,null,null,null,null,null,null,"奈良県知事"]
["【ﾄ.電話番号】",null,null,null,null,null,null,null,null,null,null,null,null,null,null,null,null,null,null,null,null,null,null,null,null,null,null,null,null,null,null,null,null,null,null,null,null,null,null,null,null,null,null,null,null,null,null,"和歌山県知事","鳥取県"]
["　(その他の調査者)",null,null,null,null,null,null,null,null,null,null,"(",null,null,null,null,null,")建築士",null,null,null,null,null,"(",null,null,null,null,null,")登録",null,null,"第",null,null,null,null,null,null,null,null,null,null,"号",null,null,null,null,"島根県"]
["【ｲ.資格】",null,null,null,null,null,null,null,null,null,null,null,null,null,null,"特定建築物調査員",null,null,null,null,null,null,null,null,null,"第",null,null,null,null,null,null,null,null,null,null,null,null,null,null,null,null,null,"号",null,null,null,"鳥取県知事","岡山県"]
["【ﾛ.氏名のﾌﾘｶﾞﾅ】",null,null,null,null,null,null,null,null,null,null,{"$f":"ASC(PHONETIC(L40:AR40))","v":""},null,null,null,null,null,null,null,null,null,null,null,null,null,null,null,null,null,null,null,null,null,null,null,null,null,null,null,null,null,null,null,null,null,null,null,"岡山県知事","山口県"]
["【ﾊ.氏名】",null,null,null,null,null,null,null,null,null,null,null,null,null,null,null,null,null,null,null,null,null,null,null,null,null,null,null,null,null,null,null,null,null,null,null,null,null,null,null,null,null,null,null,null,null,null,"広島県知事"]
["【ﾆ.勤務先】",null,null,null,null,null,null,null,null,null,null,null,null,null,null,null,null,null,null,null,null,null,null,null,null,null,null,null,null,null,null,null,null,null,null,null,null,null,null,null,null,null,null,null,null,null,null,"山口県知事","徳島県"]
[null,null,null,null,null,null,null,null,null,null,null,"(",null,null,null,null,null,")建築士事務所",null,null,null,null,null,"(",null,null,null,null,null,")知事登録",null,null,null,null,"第",null,null,null,null,null,null,null,null,"号",null,null,null,null,"香川県"]
["【ﾎ.郵便番号】",null,null,null,null,null,null,null,null,null,null,null,null,null,null,null,null,null,null,null,null,null,null,null,null,null,null,null,null,null,null,null,null,null,null,null,null,null,null,null,null,null,null,null,null,null,null,"徳島県知事","愛媛県"]
["【ﾍ.所在地】",null,null,null,null,null,null,null,null,null,null,null,null,null,null,null,null,null,null,null,null,null,null,null,null,null,null,null,null,null,null,null,null,null,null,null,null,null,null,null,null,null,null,null,null,null,null,"香川県知事","高知県"]
["【ﾄ.電話番号】",null,null,null,null,null,null,null,null,null,null,null,null,null,null,null,null,null,null,null,null,null,null,null,null,null,null,null,null,null,null,null,null,null,null,null,null,null,null,null,null,null,null,null,null,null,null,"愛媛県知事"]
["【4.報告対象建築物】",null,null,null,null,null,null,null,null,null,null,null,null,null,null,null,null,null,null,null,null,null,null,null,null,null,null,null,null,null,null,null,null,null,null,null,null,null,null,null,null,null,null,null,null,null,null,"高知県知事","福岡県"]
["【ｲ.所在地】",null,null,null,null,null,null,null,null,null,null,"埼玉県",null,null,null,null,null,null,null,null,null,null,null,null,null,null,null,null,null,null,null,null,null,null,null,null,null,null,null,null,null,null,null,null,null,null,{"$f":"L47&O47&W47","v":"埼玉県"},null,"佐賀県"]
["【ﾛ.名称のﾌﾘｶﾞﾅ】",null,null,null,null,null,null,null,null,null,null,{"$f":"ASC(PHONETIC(L49:AR49))","v":""},null,null,null,null,null,null,null,null,null,null,null,null,null,null,null,null,null,null,null,null,null,null,null,null,null,null,null,null,null,null,null,null,null,null,null,"福岡県知事","長崎県"]
["【ﾊ.名称】",null,null,null,null,null,null,null,null,null,null,null,null,null,null,null,null,null,null,null,null,null,null,null,null,null,null,null,null,null,null,null,null,null,null,null,null,null,null,null,null,null,null,null,null,null,{"$f":"L47&O47&W47","v":"埼玉県"},"佐賀県知事","熊本県"]
["【ﾆ.用途】",null,null,null,null,null,null,null,null,null,null,null,null,null,null,null,null,null,null,null,null,null,null,null,null,null,null,null,null,null,null,null,null,null,null,null,null,null,null,null,null,null,null,null,null,null,null,"長崎県知事","大分県"]
["【5.調査による指摘の概要】",null,null,null,null,null,null,null,null,null,null,null,null,null,null,null,null,null,null,null,null,null,null,null,null,null,null,null,null,null,null,null,null,null,null,null,null,null,null,null,null,null,null,null,null,null,null,"熊本県知事","宮崎県"]
["【ｲ.指摘の内容】",null,null,null,null,null,null,null,null,null,null,null,null,null,null,"要是正の指摘あり",null,null,null,null,null,null,null,null,null,null,"(",null,"既存不適格)",null,null,null,null,null,null,null,null,"指摘なし",null,null,null,null,null,null,null,null,null,"大分県知事","鹿児島県"]
["【ﾛ.指摘の概要】",null,null,null,null,null,null,null,null,null,null,null,null,null,null,null,null,null,null,null,null,null,null,null,null,null,null,null,null,null,null,null,null,null,null,null,null,null,null,null,null,null,null,null,null,null,null,"宮崎県知事","沖縄県"]
["【ﾊ.改善予定の有無】",null,null,null,null,null,null,null,null,null,null,null,null,null,null,"有",null,"(",null,null,null,null,null,"年",null,null,null,"月に改善予定",null,null,null,null,null,null,null,null,null,"無",null,null,null,null,null,null,null,null,null,"鹿児島県知事"]
["【ﾆ.その他特記事項】",null,null,null,null,null,null,null,null,null,null,null,null,null,null,null,null,null,null,null,null,null,null,null,null,null,null,null,null,null,null,null,null,null,null,null,null,null,null,null,null,null,null,null,null,null,null,"沖縄県知事"]
["(台帳番号：",null,null,null,null,null,null,null,null,null,null,null,null,null,null,null,null,null,null,null,null,null,null,null,null,null,null,null,null,null,null,null,null,"－",{"$f":"VLOOKUP(O47,市区町村!A1:E73,4,0)","v":{"$error":"#N/A"}},null,"－",{"$f":"VLOOKUP(O47,市区町村!A1:E73,5,0)","v":{"$error":"#N/A"}},null,"－",null,null,null,")"]
["※受付欄",null,null,null,null,null,null,null,null,null,null,"※特記欄",null,null,null,null,null,null,null,null,null,null,null,null,null,null,null,null,null,null,null,null,null,"※整理番号欄",null,null,null,null,null,null,null,null,null,null,null,null,null,"令和"]
[null,null,null,null,"年",null,null,"月",null,null,"日"]
[]
["第",null,null,null,null,null,null,null,null,null,"号"]
[]
["係員氏名"]

{"sheet":"報告書第一面別紙(調査者)","index":3,"n_rows":76,"n_cols":51,"rows_kept":76,"cut":false,"hidden":false,"merged":[[26,0,26,43],[23,0,23,10],[37,17,37,22],[42,15,42,16],[22,15,22,16],[37,0,37,10],[37,11,37,14],[37,15,37,16],[37,24,37,28],[38,0,38,10],[38,11,38,14],[38,25,38,34],[38,15,38,24],[33,11,33,43],[31,11,31,43],[32,35,32,42],[32,24,32,28],[32,29,32,33],[32,15,32,16],[32,17,32,22],[42,29,42,33],[39,0,39,10],[40,0,40,10],[39,11,39,43],[9,0,9,10],[14,11,14,43],[15,11,15,43],[17,29,17,31],[17,32,17,34],[48,35,48,42],[47,29,47,31],[47,32,47,34],[47,15,47,16],[47,17,47,22],[28,11,28,14],[28,15,28,24],[27,24,27,28],[29,11,29,43],[30,11,30,43],[29,0,29,10],[28,35,28,42],[28,25,28,34],[30,0,30,10],[31,0,31,10],[38,35,38,42],[37,29,37,31],[37,32,37,34],[37,35,37,42],[8,15,8,24],[9,11,9,43],[8,35,8,42],[18,15,18,24],[22,29,22,33],[22,17,22,22],[22,24,22,28],[10,11,10,43],[17,11,17,14],[17,15,17,16],[18,35,18,42],[22,11,22,14],[22,35,22,42],[6,0,6,43],[7,29,7,31],[7,32,7,34],[7,11,7,14],[7,15,7,16],[7,35,7,42],[7,17,7,22],[7,24,7,28],[7,0,7,10],[57,0,57,43],[12,24,12,28],[12,29,12,33],[13,0,13,10],[12,0,12,10],[12,11,12,14],[12,15,12,16],[17,24,17,28],[23,11,23,43],[27,35,27,42],[24,11,24,43],[27,15,27,16],[27,17,27,22],[27,29,27,31],[18,0,18,10],[18,11,18,14],[18,25,18,34],[19,11,19,43],[20,11,20,43],[21,0,21,10],[27,0,27,10],[21,11,21,43],[19,0,19,10],[28,0,28,10],[59,0,59,43],[8,0,8,10],[8,11,8,14],[8,25,8,34],[58,0,58,43],[14,0,14,10],[10,0,10,10],[11,0,11,10],[17,17,17,22],[13,11,13,43],[11,11,11,43],[17,0,17,10],[15,0,15,10],[16,0,16,43],[12,35,12,42],[12,17,12,22],[17,35,17,42],[24,0,24,10],[22,0,22,10],[25,0,25,10],[27,32,27,34],[20,0,20,10],[27,11,27,14],[25,11,25,43],[40,11,40,43],[41,0,41,10],[42,0,42,10],[42,11,42,14],[41,11,41,43],[42,35,42,42],[34,11,34,43],[35,11,35,43],[42,17,42,22],[42,24,42,28],[46,0,46,43],[43,11,43,43],[44,11,44,43],[45,11,45,43],[47,35,47,42],[47,11,47,14],[44,0,44,10],[45,0,45,10],[47,24,47,28],[50,0,50,10],[52,35,52,42],[52,24,52,28],[52,29,52,33],[48,0,48,10],[48,11,48,14],[48,25,48,34],[48,15,48,24],[52,11,52,14],[52,15,52,16],[52,17,52,22],[51,0,51,10],[49,11,49,43],[50,11,50,43],[0,0,0,43],[1,0,1,43],[32,0,32,10],[32,11,32,14],[2,0,2,43],[3,0,3,43],[43,0,43,10],[47,0,47,10],[56,0,56,43],[55,0,55,10],[53,0,53,10],[54,0,54,10],[53,11,53,43],[54,11,54,43],[5,0,5,43],[4,0,4,43],[51,11,51,43],[52,0,52,10],[55,11,55,43],[36,0,36,43],[35,0,35,10],[33,0,33,10],[34,0,34,10],[49,0,49,10]]}
[null,null,null,null,null,null,null,null,null,null,null,null,null,null,null,null,null,null,null,null,null,null,null,null,null,null,null,null,null,null,null,null,null,null,null,null,null,null,null,null,null,null,null,null,null,null,null,null,"市区町村","建築士登録","都道府県"]
[null,null,null,null,null,null,null,null,null,null,null,null,null,null,null,null,null,null,null,null,null,null,null,null,null,null,null,null,null,null,null,null,null,null,null,null,null,null,null,null,null,null,null,null,null,null,null,null,"　","国土交通大臣","埼玉県"]
[null,null,null,null,null,null,null,null,null,null,null,null,null,null,null,null,null,null,null,null,null,null,null,null,null,null,null,null,null,null,null,null,null,null,null,null,null,null,null,null,null,null,null,null,null,null,null,null,"あ　上尾市",null,"東京都"]
["定期調査報告書の別紙",null,null,null,null,null,null,null,null,null,null,null,null,null,null,null,null,null,null,null,null,null,null,null,null,null,null,null,null,null,null,null,null,null,null,null,null,null,null,null,null,null,null,null,null,null,null,null,"　　朝霞市","埼玉県知事","神奈川県"]
[null,null,null,null,null,null,null,null,null,null,null,null,null,null,null,null,null,null,null,null,null,null,null,null,null,null,null,null,null,null,null,null,null,null,null,null,null,null,null,null,null,null,null,null,null,null,null,null,"い　北足立郡伊奈町","東京都知事","千葉県"]
["(第一面【3.調査者】欄の別紙)",null,null,null,null,null,null,null,null,null,null,null,null,null,null,null,null,null,null,null,null,null,null,null,null,null,null,null,null,null,null,null,null,null,null,null,null,null,null,null,null,null,null,null,null,null,null,null,"　　入間市","神奈川県知事","茨城県"]
[null,null,null,null,null,null,null,null,null,null,null,null,null,null,null,null,null,null,null,null,null,null,null,null,null,null,null,null,null,null,null,null,null,null,null,null,null,null,null,null,null,null,null,null,null,null,null,null,"お　北埼玉郡大利根町","千葉県知事","栃木県"]
["　(その他の調査者)",null,null,null,null,null,null,null,null,null,null,"(",null,null,null,null,null,")建築士",null,null,null,null,null,"(",null,null,null,null,null,")登録",null,null,"第",null,null,null,null,null,null,null,null,null,null,"号",null,null,null,null,"　　秩父郡小鹿野町","茨城県知事","群馬県"]
["【ｲ.資格】",null,null,null,null,null,null,null,null,null,null,null,null,null,null,"特定建築物調査員",null,null,null,null,null,null,null,null,null,"第",null,null,null,null,null,null,null,null,null,null,null,null,null,null,null,null,null,"号",null,null,null,null,"　　比企郡小川町","栃木県知事"]
["【ﾛ.氏名のﾌﾘｶﾞﾅ】",null,null,null,null,null,null,null,null,null,null,{"$f":"ASC(PHONETIC(L11:AR11))","v":""},null,null,null,null,null,null,null,null,null,null,null,null,null,null,null,null,null,null,null,null,null,null,null,null,null,null,null,null,null,null,null,null,null,null,null,null,"　　入間郡越生町",null,"青森県"]
["【ﾊ.氏名】",null,null,null,null,null,null,null,null,null,null,null,null,null,null,null,null,null,null,null,null,null,null,null,null,null,null,null,null,null,null,null,null,null,null,null,null,null,null,null,null,null,null,null,null,null,null,null,"か　春日部市","北海道知事","岩手県"]
["【ﾆ.勤務先】",null,null,null,null,null,null,null,null,null,null,null,null,null,null,null,null,null,null,null,null,null,null,null,null,null,null,null,null,null,null,null,null,null,null,null,null,null,null,null,null,null,null,null,null,null,null,null,"　　加須市","青森県知事","宮城県"]
[null,null,null,null,null,null,null,null,null,null,null,"(",null,null,null,null,null,")建築士事務所",null,null,null,null,null,"(",null,null,null,null,null,")知事登録",null,null,null,null,"第",null,null,null,null,null,null,null,null,"号",null,null,null,null,"　　児玉郡神川町","岩手県知事","秋田県"]
["【ﾎ.郵便番号】",null,null,null,null,null,null,null,null,null,null,null,null,null,null,null,null,null,null,null,null,null,null,null,null,null,null,null,null,null,null,null,null,null,null,null,null,null,null,null,null,null,null,null,null,null,null,null,"　　児玉郡上里町","宮城県知事","山形県"]
["【ﾍ.所在地】",null,null,null,null,null,null,null,null,null,null,null,null,null,null,null,null,null,null,null,null,null,null,null,null,null,null,null,null,null,null,null,null,null,null,null,null,null,null,null,null,null,null,null,null,null,null,null,"　　川口市","秋田県知事","福島県"]
["【ﾄ.電話番号】",null,null,null,null,null,null,null,null,null,null,null,null,null,null,null,null,null,null,null,null,null,null,null,null,null,null,null,null,null,null,null,null,null,null,null,null,null,null,null,null,null,null,null,null,null,null,null,"　　川越市","山形県知事"]
[null,null,null,null,null,null,null,null,null,null,null,null,null,null,null,null,null,null,null,null,null,null,null,null,null,null,null,null,null,null,null,null,null,null,null,null,null,null,null,null,null,null,null,null,null,null,null,null,"　　比企郡川島町","福島県知事","新潟県"]
["　(その他の調査者)",null,null,null,null,null,null,null,null,null,null,"(",null,null,null,null,null,")建築士",null,null,null,null,null,"(",null,null,null,null,null,")登録",null,null,"第",null,null,null,null,null,null,null,null,null,null,"号",null,null,null,null,"き　北埼玉郡騎西町",null,"富山県"]
["【ｲ.資格】",null,null,null,null,null,null,null,null,null,null,null,null,null,null,"特定建築物調査員",null,null,null,null,null,null,null,null,null,"第",null,null,null,null,null,null,null,null,null,null,null,null,null,null,null,null,null,"号",null,null,null,null,"　　北埼玉郡北川辺町","新潟県知事","石川県"]
["【ﾛ.氏名のﾌﾘｶﾞﾅ】",null,null,null,null,null,null,null,null,null,null,{"$f":"ASC(PHONETIC(L21:AR21))","v":""},null,null,null,null,null,null,null,null,null,null,null,null,null,null,null,null,null,null,null,null,null,null,null,null,null,null,null,null,null,null,null,null,null,null,null,null,"　　行田市","石川県知事"]
["【ﾊ.氏名】",null,null,null,null,null,null,null,null,null,null,null,null,null,null,null,null,null,null,null,null,null,null,null,null,null,null,null,null,null,null,null,null,null,null,null,null,null,null,null,null,null,null,null,null,null,null,null,"く　久喜市","福井県知事","山梨県"]
["【ﾆ.勤務先】",null,null,null,null,null,null,null,null,null,null,null,null,null,null,null,null,null,null,null,null,null,null,null,null,null,null,null,null,null,null,null,null,null,null,null,null,null,null,null,null,null,null,null,null,null,null,null,"　　熊谷市",null,"長野県"]
[null,null,null,null,null,null,null,null,null,null,null,"(",null,null,null,null,null,")建築士事務所",null,null,null,null,null,"(",null,null,null,null,null,")知事登録",null,null,null,null,"第",null,null,null,null,null,null,null,null,"号",null,null,null,null,"　　北葛飾郡栗橋町","山梨県知事","岐阜県"]
["【ﾎ.郵便番号】",null,null,null,null,null,null,null,null,null,null,null,null,null,null,null,null,null,null,null,null,null,null,null,null,null,null,null,null,null,null,null,null,null,null,null,null,null,null,null,null,null,null,null,null,null,null,null,"こ　鴻巣市","長野県知事","静岡県"]
["【ﾍ.所在地】",null,null,null,null,null,null,null,null,null,null,null,null,null,null,null,null,null,null,null,null,null,null,null,null,null,null,null,null,null,null,null,null,null,null,null,null,null,null,null,null,null,null,null,null,null,null,null,"　　越谷市","岐阜県知事","愛知県"]
["【ﾄ.電話番号】",null,null,null,null,null,null,null,null,null,null,null,null,null,null,null,null,null,null,null,null,null,null,null,null,null,null,null,null,null,null,null,null,null,null,null,null,null,null,null,null,null,null,null,null,null,null,null,"さ　さいたま市岩槻区","静岡県知事","三重県"]
[null,null,null,null,null,null,null,null,null,null,null,null,null,null,null,null,null,null,null,null,null,null,null,null,null,null,null,null,null,null,null,null,null,null,null,null,null,null,null,null,null,null,null,null,null,null,null,null,"　　さいたま市浦和区","愛知県知事"]
["　(その他の調査者)",null,null,null,null,null,null,null,null,null,null,"(",null,null,null,null,null,")建築士",null,null,null,null,null,"(",null,null,null,null,null,")登録",null,null,"第",null,null,null,null,null,null,null,null,null,null,"号",null,null,null,null,"　　さいたま市大宮区","三重県知事","滋賀県"]
["【ｲ.資格】",null,null,null,null,null,null,null,null,null,null,null,null,null,null,"特定建築物調査員",null,null,null,null,null,null,null,null,null,"第",null,null,null,null,null,null,null,null,null,null,null,null,null,null,null,null,null,"号",null,null,null,null,"　　さいたま市北区",null,"京都府"]
["【ﾛ.氏名のﾌﾘｶﾞﾅ】",null,null,null,null,null,null,null,null,null,null,{"$f":"ASC(PHONETIC(L31:AR31))","v":""},null,null,null,null,null,null,null,null,null,null,null,null,null,null,null,null,null,null,null,null,null,null,null,null,null,null,null,null,null,null,null,null,null,null,null,null,"　　さいたま市中央区","京都府知事","兵庫県"]
["【ﾊ.氏名】",null,null,null,null,null,null,null,null,null,null,null,null,null,null,null,null,null,null,null,null,null,null,null,null,null,null,null,null,null,null,null,null,null,null,null,null,null,null,null,null,null,null,null,null,null,null,null,"　　さいたま市西区","大阪府知事","奈良県"]
["【ﾆ.勤務先】",null,null,null,null,null,null,null,null,null,null,null,null,null,null,null,null,null,null,null,null,null,null,null,null,null,null,null,null,null,null,null,null,null,null,null,null,null,null,null,null,null,null,null,null,null,null,null,"　　さいたま市緑区","兵庫県知事","和歌山県"]
[null,null,null,null,null,null,null,null,null,null,null,"(",null,null,null,null,null,")建築士事務所",null,null,null,null,null,"(",null,null,null,null,null,")知事登録",null,null,null,null,"第",null,null,null,null,null,null,null,null,"号",null,null,null,null,"　　さいたま市南区","奈良県知事"]
["【ﾎ.郵便番号】",null,null,null,null,null,null,null,null,null,null,null,null,null,null,null,null,null,null,null,null,null,null,null,null,null,null,null,null,null,null,null,null,null,null,null,null,null,null,null,null,null,null,null,null,null,null,null,"　　さいたま市見沼区","和歌山県知事","鳥取県"]
["【ﾍ.所在地】",null,null,null,null,null,null,null,null,null,null,null,null,null,null,null,null,null,null,null,null,null,null,null,null,null,null,null,null,null,null,null,null,null,null,null,null,null,null,null,null,null,null,null,null,null,null,null,"　　坂戸市",null,"島根県"]
["【ﾄ.電話番号】",null,null,null,null,null,null,null,null,null,null,null,null,null,null,null,null,null,null,null,null,null,null,null,null,null,null,null,null,null,null,null,null,null,null,null,null,null,null,null,null,null,null,null,null,null,null,null,"　　幸手市","鳥取県知事","岡山県"]
[null,null,null,null,null,null,null,null,null,null,null,null,null,null,null,null,null,null,null,null,null,null,null,null,null,null,null,null,null,null,null,null,null,null,null,null,null,null,null,null,null,null,null,null,null,null,null,null,"　　狭山市","島根県知事","広島県"]
["　(その他の調査者)",null,null,null,null,null,null,null,null,null,null,"(",null,null,null,null,null,")建築士",null,null,null,null,null,"(",null,null,null,null,null,")登録",null,null,"第",null,null,null,null,null,null,null,null,null,null,"号",null,null,null,null,"し　志木市","岡山県知事","山口県"]
["【ｲ.資格】",null,null,null,null,null,null,null,null,null,null,null,null,null,null,"特定建築物調査員",null,null,null,null,null,null,null,null,null,"第",null,null,null,null,null,null,null,null,null,null,null,null,null,null,null,null,null,"号",null,null,null,null,"　　南埼玉郡菖蒲町","広島県知事"]
["【ﾛ.氏名のﾌﾘｶﾞﾅ】",null,null,null,null,null,null,null,null,null,null,{"$f":"ASC(PHONETIC(L41:AR41))","v":""},null,null,null,null,null,null,null,null,null,null,null,null,null,null,null,null,null,null,null,null,null,null,null,null,null,null,null,null,null,null,null,null,null,null,null,null,"す　北葛飾郡杉戸町",null,"香川県"]
["【ﾊ.氏名】",null,null,null,null,null,null,null,null,null,null,null,null,null,null,null,null,null,null,null,null,null,null,null,null,null,null,null,null,null,null,null,null,null,null,null,null,null,null,null,null,null,null,null,null,null,null,null,"そ　草加市","徳島県知事","愛媛県"]
["【ﾆ.勤務先】",null,null,null,null,null,null,null,null,null,null,null,null,null,null,null,null,null,null,null,null,null,null,null,null,null,null,null,null,null,null,null,null,null,null,null,null,null,null,null,null,null,null,null,null,null,null,null,"ち　秩父市","香川県知事","高知県"]
[null,null,null,null,null,null,null,null,null,null,null,"(",null,null,null,null,null,")建築士事務所",null,null,null,null,null,"(",null,null,null,null,null,")知事登録",null,null,null,null,"第",null,null,null,null,null,null,null,null,"号",null,null,null,null,"つ　鶴ヶ島市","愛媛県知事"]
["【ﾎ.郵便番号】",null,null,null,null,null,null,null,null,null,null,null,null,null,null,null,null,null,null,null,null,null,null,null,null,null,null,null,null,null,null,null,null,null,null,null,null,null,null,null,null,null,null,null,null,null,null,null,"と　比企郡ときがわ町","高知県知事","福岡県"]
["【ﾍ.所在地】",null,null,null,null,null,null,null,null,null,null,null,null,null,null,null,null,null,null,null,null,null,null,null,null,null,null,null,null,null,null,null,null,null,null,null,null,null,null,null,null,null,null,null,null,null,null,null,"　　所沢市",null,"佐賀県"]
["【ﾄ.電話番号】",null,null,null,null,null,null,null,null,null,null,null,null,null,null,null,null,null,null,null,null,null,null,null,null,null,null,null,null,null,null,null,null,null,null,null,null,null,null,null,null,null,null,null,null,null,null,null,"　　戸田市","福岡県知事","長崎県"]
[null,null,null,null,null,null,null,null,null,null,null,null,null,null,null,null,null,null,null,null,null,null,null,null,null,null,null,null,null,null,null,null,null,null,null,null,null,null,null,null,null,null,null,null,null,null,null,null,"な　秩父郡長瀞町","佐賀県知事","熊本県"]
["　(その他の調査者)",null,null,null,null,null,null,null,null,null,null,"(",null,null,null,null,null,")建築士",null,null,null,null,null,"(",null,null,null,null,null,")登録",null,null,"第",null,null,null,null,null,null,null,null,null,null,"号",null,null,null,null,"　　比企郡滑川町","長崎県知事","大分県"]
["【ｲ.資格】",null,null,null,null,null,null,null,null,null,null,null,null,null,null,"特定建築物調査員",null,null,null,null,null,null,null,null,null,"第",null,null,null,null,null,null,null,null,null,null,null,null,null,null,null,null,null,"号",null,null,null,null,"に　新座市","熊本県知事","宮崎県"]
["【ﾛ.氏名のﾌﾘｶﾞﾅ】",null,null,null,null,null,null,null,null,null,null,{"$f":"ASC(PHONETIC(L51:AR51))","v":""},null,null,null,null,null,null,null,null,null,null,null,null,null,null,null,null,null,null,null,null,null,null,null,null,null,null,null,null,null,null,null,null,null,null,null,null,"　　鳩ヶ谷市","宮崎県知事","沖縄県"]
["【ﾊ.氏名】",null,null,null,null,null,null,null,null,null,null,null,null,null,null,null,null,null,null,null,null,null,null,null,null,null,null,null,null,null,null,null,null,null,null,null,null,null,null,null,null,null,null,null,null,null,null,null,"　　比企郡鳩山町","鹿児島県知事"]
["【ﾆ.勤務先】",null,null,null,null,null,null,null,null,null,null,null,null,null,null,null,null,null,null,null,null,null,null,null,null,null,null,null,null,null,null,null,null,null,null,null,null,null,null,null,null,null,null,null,null,null,null,null,"　　羽生市","沖縄県知事"]
[null,null,null,null,null,null,null,null,null,null,null,"(",null,null,null,null,null,")建築士事務所",null,null,null,null,null,"(",null,null,null,null,null,")知事登録",null,null,null,null,"第",null,null,null,null,null,null,null,null,"号",null,null,null,null,"　　飯能市"]
["【ﾎ.郵便番号】",null,null,null,null,null,null,null,null,null,null,null,null,null,null,null,null,null,null,null,null,null,null,null,null,null,null,null,null,null,null,null,null,null,null,null,null,null,null,null,null,null,null,null,null,null,null,null,"ひ　秩父郡東秩父村"]
["【ﾍ.所在地】",null,null,null,null,null,null,null,null,null,null,null,null,null,null,null,null,null,null,null,null,null,null,null,null,null,null,null,null,null,null,null,null,null,null,null,null,null,null,null,null,null,null,null,null,null,null,null,"　　東松山市"]
["【ﾄ.電話番号】",null,null,null,null,null,null,null,null,null,null,null,null,null,null,null,null,null,null,null,null,null,null,null,null,null,null,null,null,null,null,null,null,null,null,null,null,null,null,null,null,null,null,null,null,null,null,null,"　　日高市"]
[null,null,null,null,null,null,null,null,null,null,null,null,null,null,null,null,null,null,null,null,null,null,null,null,null,null,null,null,null,null,null,null,null,null,null,null,null,null,null,null,null,null,null,null,null,null,null,null,"ふ　深谷市"]
[null,null,null,null,null,null,null,null,null,null,null,null,null,null,null,null,null,null,null,null,null,null,null,null,null,null,null,null,null,null,null,null,null,null,null,null,null,null,null,null,null,null,null,null,null,null,null,null,"　　富士見市"]
["この用紙は、第一面【3.調査者】欄が不足した場合にご利用ください。",null,null,null,null,null,null,null,null,null,null,null,null,null,null,null,null,null,null,null,null,null,null,null,null,null,null,null,null,null,null,null,null,null,null,null,null,null,null,null,null,null,null,null,null,null,null,null,"　　ふじみ野市"]
[null,null,null,null,null,null,null,null,null,null,null,null,null,null,null,null,null,null,null,null,null,null,null,null,null,null,null,null,null,null,null,null,null,null,null,null,null,null,null,null,null,null,null,null,null,null,null,null,"ほ　本庄市"]
[null,null,null,null,null,null,null,null,null,null,null,null,null,null,null,null,null,null,null,null,null,null,null,null,null,null,null,null,null,null,null,null,null,null,null,null,null,null,null,null,null,null,null,null,null,null,null,null,"ま　北葛飾郡松伏町"]
[null,null,null,null,null,null,null,null,null,null,null,null,null,null,null,null,null,null,null,null,null,null,null,null,null,null,null,null,null,null,null,null,null,null,null,null,null,null,null,null,null,null,null,null,null,null,null,null,"み　三郷市"]
[null,null,null,null,null,null,null,null,null,null,null,null,null,null,null,null,null,null,null,null,null,null,null,null,null,null,null,null,null,null,null,null,null,null,null,null,null,null,null,null,null,null,null,null,null,null,null,null,"　　児玉郡美里町"]
[null,null,null,null,null,null,null,null,null,null,null,null,null,null,null,null,null,null,null,null,null,null,null,null,null,null,null,null,null,null,null,null,null,null,null,null,null,null,null,null,null,null,null,null,null,null,null,null,"　　秩父郡皆野町"]
[null,null,null,null,null,null,null,null,null,null,null,null,null,null,null,null,null,null,null,null,null,null,null,null,null,null,null,null,null,null,null,null,null,null,null,null,null,null,null,null,null,null,null,null,null,null,null,null,"　　南埼玉郡宮代町"]
[null,null,null,null,null,null,null,null,null,null,null,null,null,null,null,null,null,null,null,null,null,null,null,null,null,null,null,null,null,null,null,null,null,null,null,null,null,null,null,null,null,null,null,null,null,null,null,null,"　　入間郡三芳町"]
[null,null,null,null,null,null,null,null,null,null,null,null,null,null,null,null,null,null,null,null,null,null,null,null,null,null,null,null,null,null,null,null,null,null,null,null,null,null,null,null,null,null,null,null,null,null,null,null,"も　入間郡毛呂山町"]
[null,null,null,null,null,null,null,null,null,null,null,null,null,null,null,null,null,null,null,null,null,null,null,null,null,null,null,null,null,null,null,null,null,null,null,null,null,null,null,null,null,null,null,null,null,null,null,null,"や　八潮市"]
[null,null,null,null,null,null,null,null,null,null,null,null,null,null,null,null,null,null,null,null,null,null,null,null,null,null,null,null,null,null,null,null,null,null,null,null,null,null,null,null,null,null,null,null,null,null,null,null,"よ　秩父郡横瀬町"]
[null,null,null,null,null,null,null,null,null,null,null,null,null,null,null,null,null,null,null,null,null,null,null,null,null,null,null,null,null,null,null,null,null,null,null,null,null,null,null,null,null,null,null,null,null,null,null,null,"　　吉川市"]
[null,null,null,null,null,null,null,null,null,null,null,null,null,null,null,null,null,null,null,null,null,null,null,null,null,null,null,null,null,null,null,null,null,null,null,null,null,null,null,null,null,null,null,null,null,null,null,null,"　　比企郡吉見町"]
[null,null,null,null,null,null,null,null,null,null,null,null,null,null,null,null,null,null,null,null,null,null,null,null,null,null,null,null,null,null,null,null,null,null,null,null,null,null,null,null,null,null,null,null,null,null,null,null,"　　大里郡寄居町"]
[null,null,null,null,null,null,null,null,null,null,null,null,null,null,null,null,null,null,null,null,null,null,null,null,null,null,null,null,null,null,null,null,null,null,null,null,null,null,null,null,null,null,null,null,null,null,null,null,"ら　比企郡嵐山町"]
[null,null,null,null,null,null,null,null,null,null,null,null,null,null,null,null,null,null,null,null,null,null,null,null,null,null,null,null,null,null,null,null,null,null,null,null,null,null,null,null,null,null,null,null,null,null,null,null,"わ　和光市"]
[null,null,null,null,null,null,null,null,null,null,null,null,null,null,null,null,null,null,null,null,null,null,null,null,null,null,null,null,null,null,null,null,null,null,null,null,null,null,null,null,null,null,null,null,null,null,null,null,"　　北葛飾郡鷲宮町"]
[null,null,null,null,null,null,null,null,null,null,null,null,null,null,null,null,null,null,null,null,null,null,null,null,null,null,null,null,null,null,null,null,null,null,null,null,null,null,null,null,null,null,null,null,null,null,null,null,"　　蕨市"]

{"sheet":"報告書第二面","index":4,"n_rows":56,"n_cols":47,"rows_kept":56,"cut":false,"hidden":false,"merged":[[28,34,28,41],[2,0,2,43],[49,26,49,29],[49,20,49,25],[43,30,43,31],[40,33,40,42],[41,33,41,42],[41,23,41,24],[31,21,31,23],[31,34,31,41],[24,24,24,31],[24,21,24,23],[23,21,23,23],[25,24,25,31],[43,33,43,42],[43,20,43,21],[28,24,28,31],[32,34,32,41],[42,26,42,27],[40,26,40,27],[43,15,43,19],[43,26,43,27],[44,15,44,43],[43,23,43,24],[64,0,64,43],[54,24,54,43],[59,0,59,43],[60,0,60,43],[61,0,61,43],[55,0,55,43],[63,0,63,43],[62,0,62,43],[54,20,54,22],[54,0,54,14],[56,0,58,43],[53,0,53,14],[54,16,54,18],[52,30,53,30],[52,20,52,24],[53,16,53,18],[52,15,52,18],[52,0,52,14],[53,20,53,25],[52,26,52,29],[45,20,45,25],[46,16,46,18],[53,26,53,29],[52,43,53,43],[52,31,53,42],[47,19,47,23],[49,16,49,18],[50,20,50,43],[46,20,46,43],[48,43,49,43],[47,24,47,25],[47,35,47,42],[50,16,50,18],[48,15,48,18],[45,16,45,17],[45,31,45,43],[45,26,45,29],[51,19,51,23],[48,20,48,24],[41,20,41,21],[41,26,41,27],[9,0,9,14],[10,0,10,14],[11,0,11,14],[13,27,13,29],[9,16,9,18],[13,16,13,25],[9,27,9,43],[11,15,11,43],[12,27,12,43],[13,31,13,42],[20,34,20,41],[22,34,22,41],[14,35,14,43],[18,34,18,42],[18,24,18,31],[15,22,15,43],[17,22,17,43],[16,22,16,43],[19,34,19,41],[21,34,21,41],[20,15,20,20],[33,21,33,23],[35,21,35,23],[31,19,31,20],[32,15,32,20],[36,0,36,14],[37,0,37,14],[3,0,3,43],[4,0,4,43],[5,0,5,43],[6,0,6,43],[13,0,13,14],[8,16,8,25],[9,20,9,23],[7,15,7,43],[8,27,8,43],[12,16,12,25],[9,24,9,25],[10,15,10,23],[7,0,7,14],[8,0,8,14],[10,25,10,33],[10,35,10,43],[29,34,29,41],[30,34,30,41],[29,21,29,23],[28,21,28,23],[28,16,28,18],[26,21,26,23],[25,21,25,23],[20,24,20,31],[65,0,65,42],[36,24,36,31],[23,34,23,41],[34,21,34,23],[34,24,34,31],[25,34,25,41],[26,34,26,41],[27,34,27,41],[51,27,51,28],[38,0,38,14],[24,34,24,41],[23,24,23,31],[35,34,35,41],[24,15,24,20],[23,15,23,20],[40,20,40,21],[36,15,36,20],[36,21,36,23],[40,15,40,19],[35,15,35,20],[32,0,32,14],[39,0,39,14],[34,15,34,20],[35,0,35,14],[25,19,25,20],[30,0,30,14],[30,15,30,20],[29,15,29,20],[26,0,26,14],[27,0,27,14],[28,0,28,14],[29,0,29,14],[28,19,28,20],[26,15,26,20],[27,15,27,20],[33,15,33,20],[25,16,25,18],[46,0,46,14],[33,24,33,31],[27,21,27,23],[27,24,27,31],[26,24,26,31],[32,21,32,23],[30,24,30,31],[32,24,32,31],[31,16,31,18],[29,24,29,31],[30,21,30,23],[42,30,42,31],[41,15,41,19],[42,15,42,19],[35,24,35,31],[42,23,42,24],[37,30,37,43],[42,33,42,42],[36,34,36,41],[41,30,41,31],[42,20,42,21],[40,30,40,31],[40,23,40,24],[37,16,37,28],[51,0,51,14],[51,24,51,25],[47,27,47,28],[47,30,47,31],[48,30,49,30],[48,26,48,29],[48,31,49,42],[51,15,51,18],[50,0,50,14],[47,0,47,14],[48,0,48,14],[49,0,49,14],[47,15,47,18],[51,30,51,31],[51,35,51,42],[0,0,0,43],[1,0,1,43],[19,0,19,14],[20,0,20,14],[12,0,12,14],[14,17,14,19],[14,15,14,16],[43,0,43,14],[45,0,45,14],[23,0,23,14],[31,0,31,14],[44,0,44,14],[24,0,24,14],[33,0,33,14],[34,0,34,14],[40,0,40,14],[25,0,25,14],[41,0,41,14],[42,0,42,14],[22,0,22,14],[14,22,14,23],[14,24,14,26],[16,0,16,14],[14,0,14,14],[15,0,15,14],[17,0,17,14],[14,29,14,30],[14,31,14,33],[14,27,14,28],[14,20,14,21],[15,15,15,21],[18,15,18,23],[16,15,16,21],[17,15,17,21],[21,0,21,14],[18,0,18,14],[19,21,19,23],[19,24,19,31],[19,16,19,18],[21,24,21,31],[19,19,19,20],[38,30,38,38],[39,30,39,32],[39,34,39,42],[39,16,39,28],[38,16,38,23],[38,25,38,26],[38,40,38,41],[34,34,34,41],[31,24,31,31],[33,34,33,41],[21,21,21,23],[22,16,22,18],[22,19,22,20],[20,21,20,23],[22,21,22,23],[22,24,22,31],[21,15,21,20]]}
[null,null,null,null,null,null,null,null,null,null,null,null,null,null,null,null,null,null,null,null,null,null,null,null,null,null,null,null,null,null,null,null,null,null,null,null,null,null,null,null,null,null,null,null,null,"用途地域","指定確認検査機関名称"]
[null,null,null,null,null,null,null,null,null,null,null,null,null,null,null,null,null,null,null,null,null,null,null,null,null,null,null,null,null,null,null,null,null,null,null,null,null,null,null,null,null,null,null,null,null,"第一種低層住居専用"]
[null,null,null,null,null,null,null,null,null,null,null,null,null,null,null,null,null,null,null,null,null,null,null,null,null,null,null,null,null,null,null,null,null,null,null,null,null,null,null,null,null,null,null,null,null,"第二種低層住居専用","(財)さいたま住宅検査ｾﾝﾀｰ"]
["定期調査報告書",null,null,null,null,null,null,null,null,null,null,null,null,null,null,null,null,null,null,null,null,null,null,null,null,null,null,null,null,null,null,null,null,null,null,null,null,null,null,null,null,null,null,null,null,"第一種中高層住居専用","(一財)さいたま住宅検査ｾﾝﾀｰ"]
["(第二面)",null,null,null,null,null,null,null,null,null,null,null,null,null,null,null,null,null,null,null,null,null,null,null,null,null,null,null,null,null,null,null,null,null,null,null,null,null,null,null,null,null,null,null,null,"第二種中高層住居専用","(財)日本建築ｾﾝﾀｰ"]
[null,null,null,null,null,null,null,null,null,null,null,null,null,null,null,null,null,null,null,null,null,null,null,null,null,null,null,null,null,null,null,null,null,null,null,null,null,null,null,null,null,null,null,null,null,"第一種低層住居専用","(一財)日本建築ｾﾝﾀｰ"]
["建築物及びその敷地に関する事項",null,null,null,null,null,null,null,null,null,null,null,null,null,null,null,null,null,null,null,null,null,null,null,null,null,null,null,null,null,null,null,null,null,null,null,null,null,null,null,null,null,null,null,null,"第一種住居","(財)日本建築設備･昇降機ｾﾝﾀｰ"]
["【1.敷地の位置】",null,null,null,null,null,null,null,null,null,null,null,null,null,null,null,null,null,null,null,null,null,null,null,null,null,null,null,null,null,null,null,null,null,null,null,null,null,null,null,null,null,null,null,null,"第二種住居","日本E.R.I(株)"]
["【ｲ.防火地域等】",null,null,null,null,null,null,null,null,null,null,null,null,null,null,null,"防火地域",null,null,null,null,null,null,null,null,null,null,"準防火地域",null,null,null,null,null,null,null,null,null,null,null,null,null,null,null,null,null,"準住居","(財)住宅金融普及協会"]
[null,null,null,null,null,null,null,null,null,null,null,null,null,null,null,null,"その他",null,null,"(",null,null,null,null,")",null,null,"指定なし",null,null,null,null,null,null,null,null,null,null,null,null,null,null,null,null,null,"近隣商業","(株)東日本住宅評価ｾﾝﾀｰ"]
["【ﾛ.用途地域】",null,null,null,null,null,null,null,null,null,null,null,null,null,null,null,null,null,null,null,null,null,null,null,null,null,null,null,null,null,null,null,null,null,null,null,null,null,null,null,null,null,null,null,null,"商業","(株)東京建築検査機構"]
["【2.建築物及びその敷地の概要】",null,null,null,null,null,null,null,null,null,null,null,null,null,null,null,null,null,null,null,null,null,null,null,null,null,null,null,null,null,null,null,null,null,null,null,null,null,null,null,null,null,null,null,null,"準工業","ﾊｳｽﾌﾟﾗｽ確認検査(株)"]
["【ｲ.構造】",null,null,null,null,null,null,null,null,null,null,null,null,null,null,null,"鉄筋コンクリート造",null,null,null,null,null,null,null,null,null,null,"鉄骨鉄筋コンクリート造",null,null,null,null,null,null,null,null,null,null,null,null,null,null,null,null,null,"第一種低層住居専用","(株)住宅性能評価ｾﾝﾀｰ"]
[null,null,null,null,null,null,null,null,null,null,null,null,null,null,null,null,"鉄骨造",null,null,null,null,null,null,null,null,null,null,"その他",null,null,"(",null,null,null,null,null,null,null,null,null,null,null,null,")",null,"工業","ﾋﾞｭｰﾛｰﾍﾞﾘﾀｽｼﾞｬﾊﾟﾝ(株)"]
["【ﾛ.階数】",null,null,null,null,null,null,null,null,null,null,null,null,null,null,"地上",null,null,null,null,"階",null,"地下",null,null,null,null,"階",null,"塔屋",null,null,null,null,"階",null,null,null,null,null,null,null,null,null,null,"工業専用専用","(株)都市居住評価ｾﾝﾀｰ"]
["【ﾊ.敷地面積】",null,null,null,null,null,null,null,null,null,null,null,null,null,null,null,null,null,null,null,null,null,"㎡",null,null,null,null,null,null,null,null,null,null,null,null,null,null,null,null,null,null,null,null,null,null,"用途地域指定無し","(財)ﾍﾞﾀｰﾘﾋﾞﾝｸﾞ"]
["【ﾆ.建築面積】",null,null,null,null,null,null,null,null,null,null,null,null,null,null,null,null,null,null,null,null,null,"㎡",null,null,null,null,null,null,null,null,null,null,null,null,null,null,null,null,null,null,null,null,null,null,null,"(株)ﾋﾞﾙﾃﾞｨﾝｸﾞ･ﾅﾋﾞｹﾞｰｼｮﾝ確認評価機構"]
["【ﾎ.延べ面積】",null,null,null,null,null,null,null,null,null,null,null,null,null,null,null,null,null,null,null,null,null,"㎡",null,null,null,null,null,null,null,null,null,null,null,null,null,null,null,null,null,null,null,null,null,null,null,"富士建築ｺﾝｻﾙﾃｨﾝｸﾞ(株)"]
["【3.階別用途別床面積】",null,null,null,null,null,null,null,null,null,null,null,null,null,null,"(",null,null,null,null,null,null,null,null,"用途",null,null,null,null,null,null,null,")","(","床面積",null,null,null,null,null,null,null,null,")",null,null,"富士建築ｾﾝﾀｰ(株)"]
["【ｲ.階別用途別】",null,null,null,null,null,null,null,null,null,null,null,null,null,null,"(",null,null,null,"階)",null,"(",null,null,null,null,null,null,null,null,null,null,")","(",null,null,null,null,null,null,null,null,"㎡",")",null,null,"ﾕｰﾃﾞｨｰｱｲ確認検査(株)"]
[null,null,null,null,null,null,null,null,null,null,null,null,null,null,null,null,null,null,null,null,null,"(",null,null,null,null,null,null,null,null,null,null,")","(",null,null,null,null,null,null,null,null,"㎡",")",null,null,"ｲｰﾊｳｽ建築ｾﾝﾀｰ(株)"]
[null,null,null,null,null,null,null,null,null,null,null,null,null,null,null,null,null,null,null,null,null,"(",null,null,null,null,null,null,null,null,null,null,")","(",null,null,null,null,null,null,null,null,"㎡",")",null,null,"日本住宅性能評価機構"]
[null,null,null,null,null,null,null,null,null,null,null,null,null,null,null,"(",null,null,null,"階)",null,"(",null,null,null,null,null,null,null,null,null,null,")","(",null,null,null,null,null,null,null,null,"㎡",")",null,null,"(一社)日本住宅性能評価機構"]
[{"$f":"IF(R15+Y15>5,\"※　別紙のとおり\",\"\")","v":""},null,null,null,null,null,null,null,null,null,null,null,null,null,null,null,null,null,null,null,null,"(",null,null,null,null,null,null,null,null,null,null,")","(",null,null,null,null,null,null,null,null,"㎡",")",null,null,"(株)ｶﾞｲｱ"]
[null,null,null,null,null,null,null,null,null,null,null,null,null,null,null,null,null,null,null,null,null,"(",null,null,null,null,null,null,null,null,null,null,")","(",null,null,null,null,null,null,null,null,"㎡",")",null,null,"(株)ｸﾞｯﾄﾞ･ｱｲｽﾞ建築検査機構"]
[null,null,null,null,null,null,null,null,null,null,null,null,null,null,null,"(",null,null,null,"階)",null,"(",null,null,null,null,null,null,null,null,null,null,")","(",null,null,null,null,null,null,null,null,"㎡",")",null,null,"(株)ｼﾞｪｲ･ｲｰ･ｻﾎﾟｰﾄ"]
[null,null,null,null,null,null,null,null,null,null,null,null,null,null,null,null,null,null,null,null,null,"(",null,null,null,null,null,null,null,null,null,null,")","(",null,null,null,null,null,null,null,null,"㎡",")",null,null,"日本建築検査協会(株)"]
[null,null,null,null,null,null,null,null,null,null,null,null,null,null,null,null,null,null,null,null,null,"(",null,null,null,null,null,null,null,null,null,null,")","(",null,null,null,null,null,null,null,null,"㎡",")",null,null,"(株)国際確認検査ｾﾝﾀｰ"]
[null,null,null,null,null,null,null,null,null,null,null,null,null,null,null,"(",null,null,null,"階)",null,"(",null,null,null,null,null,null,null,null,null,null,")","(",null,null,null,null,null,null,null,null,"㎡",")",null,null,"日本確認ｾﾝﾀｰ(株)"]
[null,null,null,null,null,null,null,null,null,null,null,null,null,null,null,null,null,null,null,null,null,"(",null,null,null,null,null,null,null,null,null,null,")","(",null,null,null,null,null,null,null,null,"㎡",")",null,null,"(株)J建築検査ｾﾝﾀｰ"]
[null,null,null,null,null,null,null,null,null,null,null,null,null,null,null,null,null,null,null,null,null,"(",null,null,null,null,null,null,null,null,null,null,")","(",null,null,null,null,null,null,null,null,"㎡",")",null,null,"多摩確認検査(株)"]
[null,null,null,null,null,null,null,null,null,null,null,null,null,null,null,"(",null,null,null,"階)",null,"(",null,null,null,null,null,null,null,null,null,null,")","(",null,null,null,null,null,null,null,null,"㎡",")",null,null,"ｱｳｪｲ建築評価ﾈｯﾄ(株)"]
[null,null,null,null,null,null,null,null,null,null,null,null,null,null,null,null,null,null,null,null,null,"(",null,null,null,null,null,null,null,null,null,null,")","(",null,null,null,null,null,null,null,null,"㎡",")",null,null,"(株)EMI確認検査機構"]
[null,null,null,null,null,null,null,null,null,null,null,null,null,null,null,null,null,null,null,null,null,"(",null,null,null,null,null,null,null,null,null,null,")","(",null,null,null,null,null,null,null,null,"㎡",")",null,null,"(株)確認ｻｰﾋﾞｽ"]
["【ﾛ.用途別】",null,null,null,null,null,null,null,null,null,null,null,null,null,null,null,null,null,null,null,null,"(",null,null,null,null,null,null,null,null,null,null,")","(",null,null,null,null,null,null,null,null,"㎡",")",null,null,"SBIｱｰｷｸｵﾘﾃｨ(株)"]
[null,null,null,null,null,null,null,null,null,null,null,null,null,null,null,null,null,null,null,null,null,"(",null,null,null,null,null,null,null,null,null,null,")","(",null,null,null,null,null,null,null,null,"㎡",")",null,null,"SGSｼﾞｬﾊﾟﾝ(株)"]
[null,null,null,null,null,null,null,null,null,null,null,null,null,null,null,null,null,null,null,null,null,"(",null,null,null,null,null,null,null,null,null,null,")","(",null,null,null,null,null,null,null,null,"㎡",")",null,null,"日本建物評価機構(株)"]
["【4.性能検証法等の適用】",null,null,null,null,null,null,null,null,null,null,null,null,null,null,null,"耐火性能検証法",null,null,null,null,null,null,null,null,null,null,null,null,null,"防火区画検証法",null,null,null,null,null,null,null,null,null,null,null,null,null,null,null,"(株)神奈川建築確認検査機関"]
[null,null,null,null,null,null,null,null,null,null,null,null,null,null,null,null,"区画避難安全検証法",null,null,null,null,null,null,null,"(",null,null,"階",")",null,"階避難安全検証法",null,null,null,null,null,null,null,null,"(",null,null,"階",")",null,"平成","(株)埼玉建築確認検査機構"]
[null,null,null,null,null,null,null,null,null,null,null,null,null,null,null,null,"全館避難安全検証法",null,null,null,null,null,null,null,null,null,null,null,null,null,"その他",null,null,"(",null,null,null,null,null,null,null,null,null,")",null,"昭和","(財)住宅保証機構"]
["【5.増築、改築、用途変更等の経過】",null,null,null,null,null,null,null,null,null,null,null,null,null,null,null,null,null,null,null,null,null,"年",null,null,"月",null,null,"日",null,"概要",null,"(",null,null,null,null,null,null,null,null,null,null,")",null,"令和","(株)日本住宅保証検査機構"]
[null,null,null,null,null,null,null,null,null,null,null,null,null,null,null,null,null,null,null,null,null,null,"年",null,null,"月",null,null,"日",null,"概要",null,"(",null,null,null,null,null,null,null,null,null,null,")",null,"不明","ｲｰﾎｰﾑｽﾞ(株)"]
[null,null,null,null,null,null,null,null,null,null,null,null,null,null,null,null,null,null,null,null,null,null,"年",null,null,"月",null,null,"日",null,"概要",null,"(",null,null,null,null,null,null,null,null,null,null,")",null,null,"(株)北関東建築検査機構"]
[null,null,null,null,null,null,null,null,null,null,null,null,null,null,null,null,null,null,null,null,null,null,"年",null,null,"月",null,null,"日",null,"概要",null,"(",null,null,null,null,null,null,null,null,null,null,")",null,null,"(株)高良GUT"]
["【6.関連図書の整備状況】",null,null,null,null,null,null,null,null,null,null,null,null,null,null,null,null,null,null,null,null,null,null,null,null,null,null,null,null,null,null,null,null,null,null,null,null,null,null,null,null,null,null,null,null,null,"(株)都市建築確認ｾﾝﾀｰ"]
["【ｲ.確認に要した図書】",null,null,null,null,null,null,null,null,null,null,null,null,null,null,null,"有",null,"(",null,"各階平面図あり",null,null,null,null,null,")",null,null,null,null,"無",null,null,null,null,null,null,null,null,null,null,null,null,null,null,"(株)確認検査機構ﾄﾗｽﾄ"]
["【ﾛ.確認済証】",null,null,null,null,null,null,null,null,null,null,null,null,null,null,null,"有",null,null,null,"無",null,null,null,null,null,null,null,null,null,null,null,null,null,null,null,null,null,null,null,null,null,null,null,null,null,"(株)TSK建築確認安全ｾﾝﾀｰ"]
[null,null,null,null,null,null,null,null,null,null,null,null,null,null,null,"交付番号",null,null,null,null,null,null,null,null,null,null,"年",null,null,"月",null,null,"日",null,"第",null,null,null,null,null,null,null,null,"号",null,null,"ｼｰ･ｱｲ･ｼﾞｬﾊﾟﾝ(株)"]
[null,null,null,null,null,null,null,null,null,null,null,null,null,null,null,"交付者",null,null,null,null,"建築主事",null,null,null,null,null,"指定確認",null,null,null,"(",null,null,null,null,null,null,null,null,null,null,null,null,")",null,null,"AI確認検査ｾﾝﾀｰ(株)"]
["【ﾊ.完了検査に要した図書】",null,null,null,null,null,null,null,null,null,null,null,null,null,null,null,"有",null,null,null,"無",null,null,null,null,null,"検査機関",null,null,null,null,null,null,null,null,null,null,null,null,null,null,null,null,null,null,null,"日本ﾀﾘｱｾﾝ(株)"]
["【ﾆ.検査済証】",null,null,null,null,null,null,null,null,null,null,null,null,null,null,null,"有",null,null,null,"無",null,null,null,null,null,null,null,null,null,null,null,null,null,null,null,null,null,null,null,null,null,null,null,null,null,"ﾊｳｽﾌﾟﾗｽ住宅保証(株)"]
[null,null,null,null,null,null,null,null,null,null,null,null,null,null,null,"交付番号",null,null,null,null,null,null,null,null,null,null,"年",null,null,"月",null,null,"日",null,"第",null,null,null,null,null,null,null,null,"号",null,null,"(一財)ﾍﾞﾀｰﾘﾋﾞﾝｸﾞ"]
[null,null,null,null,null,null,null,null,null,null,null,null,null,null,null,"交付者",null,null,null,null,"建築主事",null,null,null,null,null,"指定確認",null,null,null,"(",null,null,null,null,null,null,null,null,null,null,null,null,")",null,null,"(一財)住宅金融普及協会"]
["【ﾎ.維持保全に関する準則又は計画】",null,null,null,null,null,null,null,null,null,null,null,null,null,null,null,"有",null,null,null,"無",null,null,null,null,null,"検査機関",null,null,null,null,null,null,null,null,null,null,null,null,null,null,null,null,null,null,null,"(一財)日本建築設備・昇降機ｾﾝﾀｰ"]
["【ﾍ.前回の調査に関する書類の写し】",null,null,null,null,null,null,null,null,null,null,null,null,null,null,null,"有",null,null,null,"無",null,null,null,"対象外",null,null,null,null,null,null,null,null,null,null,null,null,null,null,null,null,null,null,null,null,null,"ｼｰ・ｱｲ建築認証機構(株)"]
["【7.備考】",null,null,null,null,null,null,null,null,null,null,null,null,null,null,null,null,null,null,null,null,null,null,null,null,null,null,null,null,null,null,null,null,null,null,null,null,null,null,null,null,null,null,null,null,null,"(株)YKS確認検査機構"]

{"sheet":"報告書第二面別紙(床面積表)","index":5,"n_rows":65,"n_cols":44,"rows_kept":65,"cut":false,"hidden":false,"merged":[[0,0,0,43],[5,20,5,35],[9,0,9,2],[9,4,9,11],[6,20,6,27],[1,0,1,43],[6,28,6,35],[2,0,2,43],[3,0,3,43],[4,0,4,43],[5,36,6,43],[7,0,7,2],[7,4,7,11],[7,12,7,18],[7,20,7,27],[6,12,6,19],[5,0,6,3],[6,4,6,11],[8,0,8,2],[8,4,8,11],[8,12,8,18],[8,20,8,27],[5,4,5,19],[7,28,7,34],[75,0,75,43],[76,0,76,43],[81,0,81,43],[77,0,77,43],[78,0,78,43],[79,0,79,43],[80,0,80,43],[69,0,69,43],[70,0,70,43],[73,0,73,43],[74,0,74,43],[71,0,71,43],[72,0,72,43],[65,0,65,43],[66,0,66,43],[67,0,67,43],[68,0,68,43],[10,0,10,2],[10,4,10,11],[64,0,64,43],[61,0,61,43],[12,28,12,34],[12,36,12,42],[13,20,13,27],[13,28,13,34],[13,36,13,42],[14,28,14,34],[62,0,62,43],[63,0,63,43],[13,12,13,18],[14,0,14,2],[14,4,14,11],[14,12,14,18],[13,0,13,2],[13,4,13,11],[17,12,17,18],[17,20,17,27],[10,12,10,18],[10,20,10,27],[9,12,9,18],[9,20,9,27],[7,36,7,42],[8,28,8,34],[8,36,8,42],[10,28,10,34],[10,36,10,42],[9,28,9,34],[9,36,9,42],[12,0,12,2],[12,4,12,11],[12,12,12,18],[12,20,12,27],[11,0,11,2],[11,4,11,11],[11,12,11,18],[11,20,11,27],[14,36,14,42],[11,28,11,34],[11,36,11,42],[14,20,14,27],[19,28,19,34],[19,36,19,42],[16,0,16,2],[16,4,16,11],[16,12,16,18],[16,20,16,27],[18,28,18,34],[18,36,18,42],[17,0,17,2],[17,4,17,11],[18,0,18,2],[18,4,18,11],[19,0,19,2],[19,4,19,11],[16,28,16,34],[16,36,16,42],[17,28,17,34],[17,36,17,42],[19,12,19,18],[19,20,19,27],[18,12,18,18],[18,20,18,27],[15,0,15,2],[15,4,15,11],[15,12,15,18],[15,20,15,27],[15,28,15,34],[15,36,15,42],[23,36,23,42],[20,0,20,2],[20,4,20,11],[20,12,20,18],[20,20,20,27],[22,28,22,34],[22,36,22,42],[21,0,21,2],[21,4,21,11],[21,12,21,18],[21,20,21,27],[20,28,20,34],[20,36,20,42],[21,28,21,34],[21,36,21,42],[22,0,22,2],[22,4,22,11],[23,0,23,2],[23,4,23,11],[23,12,23,18],[23,20,23,27],[22,12,22,18],[22,20,22,27],[23,28,23,34],[24,0,24,2],[24,4,24,11],[24,12,24,18],[24,20,24,27],[26,28,26,34],[26,36,26,42],[25,0,25,2],[25,4,25,11],[24,28,24,34],[24,36,24,42],[25,12,25,18],[25,20,25,27],[26,12,26,18],[26,20,26,27],[26,0,26,2],[26,4,26,11],[27,0,27,2],[27,4,27,11],[27,28,27,34],[27,36,27,42],[25,28,25,34],[25,36,25,42],[27,12,27,18],[27,20,27,27],[31,28,31,34],[31,36,31,42],[28,0,28,2],[28,4,28,11],[28,12,28,18],[28,20,28,27],[30,28,30,34],[30,36,30,42],[29,0,29,2],[29,4,29,11],[30,0,30,2],[30,4,30,11],[31,0,31,2],[31,4,31,11],[31,12,31,18],[31,20,31,27],[30,12,30,18],[30,20,30,27],[29,12,29,18],[29,20,29,27],[28,28,28,34],[28,36,28,42],[29,28,29,34],[29,36,29,42],[32,0,32,2],[32,4,32,11],[32,12,32,18],[32,20,32,27],[33,0,33,2],[33,4,33,11],[33,12,33,18],[33,20,33,27],[34,0,34,2],[34,4,34,11],[32,28,32,34],[32,36,32,42],[33,28,33,34],[33,36,33,42],[34,12,34,18],[34,20,34,27],[34,28,34,34],[34,36,34,42],[35,28,35,34],[35,36,35,42],[39,28,39,34],[39,36,39,42],[36,0,36,2],[36,4,36,11],[36,12,36,18],[36,20,36,27],[38,28,38,34],[38,36,38,42],[37,0,37,2],[37,4,37,11],[37,12,37,18],[37,20,37,27],[36,28,36,34],[36,36,36,42],[37,28,37,34],[37,36,37,42],[38,0,38,2],[38,4,38,11],[39,0,39,2],[39,4,39,11],[39,12,39,18],[39,20,39,27],[38,12,38,18],[38,20,38,27],[35,0,35,2],[35,4,35,11],[40,0,40,2],[40,4,40,11],[40,12,40,18],[40,20,40,27],[35,12,35,18],[35,20,35,27],[42,28,42,34],[42,36,42,42],[41,0,41,2],[41,4,41,11],[40,28,40,34],[40,36,40,42],[41,12,41,18],[41,20,41,27],[42,12,42,18],[42,20,42,27],[42,0,42,2],[42,4,42,11],[43,0,43,2],[43,4,43,11],[43,28,43,34],[43,36,43,42],[41,28,41,34],[41,36,41,42],[43,12,43,18],[43,20,43,27],[47,28,47,34],[47,36,47,42],[44,0,44,2],[44,4,44,11],[44,12,44,18],[44,20,44,27],[46,28,46,34],[46,36,46,42],[45,0,45,2],[45,4,45,11],[46,0,46,2],[46,4,46,11],[47,0,47,2],[47,4,47,11],[47,12,47,18],[47,20,47,27],[46,12,46,18],[46,20,46,27],[45,12,45,18],[45,20,45,27],[44,28,44,34],[44,36,44,42],[45,28,45,34],[45,36,45,42],[51,36,51,42],[48,28,48,34],[48,36,48,42],[49,28,49,34],[49,36,49,42],[51,12,51,18],[51,20,51,27],[48,0,48,2],[48,4,48,11],[48,12,48,18],[48,20,48,27],[50,28,50,34],[50,36,50,42],[49,0,49,2],[49,4,49,11],[49,12,49,18],[49,20,49,27],[50,12,50,18],[50,20,50,27],[50,0,50,2],[50,4,50,11],[51,0,51,2],[51,4,51,11],[55,28,55,34],[52,28,52,34],[53,28,53,34],[51,28,51,34],[55,36,55,42],[52,0,52,2],[52,4,52,11],[52,12,52,18],[52,20,52,27],[54,28,54,34],[54,36,54,42],[53,0,53,2],[53,4,53,11],[54,0,54,2],[54,4,54,11],[53,12,53,18],[53,20,53,27],[55,0,55,2],[55,4,55,11],[55,12,55,18],[55,20,55,27],[54,12,54,18],[54,20,54,27],[52,36,52,42],[53,36,53,42],[56,0,56,2],[56,4,56,11],[56,12,56,18],[56,20,56,27],[58,28,58,34],[58,36,58,42],[57,0,57,2],[57,4,57,11],[57,12,57,18],[57,20,57,27],[56,28,56,34],[56,36,56,42],[57,28,57,34],[57,36,57,42],[59,36,59,42],[59,20,59,27],[59,28,59,34],[58,20,58,27],[59,4,59,11],[58,0,58,2],[58,4,58,11],[59,0,59,3],[59,12,59,18],[58,12,58,18]]}
[]
[]
[]
["定期調査報告書の別紙"]
["(第二面【3.階別用途別床面積】欄の別紙)"]
["階",null,null,null,"指定用途部分",null,null,null,null,null,null,null,null,null,null,null,null,null,null,null,"指定用途以外の部分",null,null,null,null,null,null,null,null,null,null,null,null,null,null,null,"面積の合計"]
[null,null,null,null,"用　　途",null,null,null,null,null,null,null,"面　　積",null,null,null,null,null,null,null,"用　　途",null,null,null,null,null,null,null,"面　　積"]
[null,null,null,"階",null,null,null,null,null,null,null,null,null,null,null,null,null,null,null,"㎡",null,null,null,null,null,null,null,null,null,null,null,null,null,null,null,"㎡",{"$f":"M8+AC8","v":0},null,null,null,null,null,null,"㎡"]
[null,null,null,"階",null,null,null,null,null,null,null,null,null,null,null,null,null,null,null,"㎡",null,null,null,null,null,null,null,null,null,null,null,null,null,null,null,"㎡",{"$f":"M9+AC9","v":0},null,null,null,null,null,null,"㎡"]
[null,null,null,"階",null,null,null,null,null,null,null,null,null,null,null,null,null,null,null,"㎡",null,null,null,null,null,null,null,null,null,null,null,null,null,null,null,"㎡",0,null,null,null,null,null,null,"㎡"]
[null,null,null,"階",null,null,null,null,null,null,null,null,null,null,null,null,null,null,null,"㎡",null,null,null,null,null,null,null,null,null,null,null,null,null,null,null,"㎡",0,null,null,null,null,null,null,"㎡"]
[null,null,null,"階",null,null,null,null,null,null,null,null,null,null,null,null,null,null,null,"㎡",null,null,null,null,null,null,null,null,null,null,null,null,null,null,null,"㎡",0,null,null,null,null,null,null,"㎡"]
[null,null,null,"階",null,null,null,null,null,null,null,null,null,null,null,null,null,null,null,"㎡",null,null,null,null,null,null,null,null,null,null,null,null,null,null,null,"㎡",0,null,null,null,null,null,null,"㎡"]
[null,null,null,"階",null,null,null,null,null,null,null,null,null,null,null,null,null,null,null,"㎡",null,null,null,null,null,null,null,null,null,null,null,null,null,null,null,"㎡",0,null,null,null,null,null,null,"㎡"]
[null,null,null,"階",null,null,null,null,null,null,null,null,null,null,null,null,null,null,null,"㎡",null,null,null,null,null,null,null,null,null,null,null,null,null,null,null,"㎡",0,null,null,null,null,null,null,"㎡"]
[null,null,null,"階",null,null,null,null,null,null,null,null,null,null,null,null,null,null,null,"㎡",null,null,null,null,null,null,null,null,null,null,null,null,null,null,null,"㎡",0,null,null,null,null,null,null,"㎡"]
[null,null,null,"階",null,null,null,null,null,null,null,null,null,null,null,null,null,null,null,"㎡",null,null,null,null,null,null,null,null,null,null,null,null,null,null,null,"㎡",0,null,null,null,null,null,null,"㎡"]
[null,null,null,"階",null,null,null,null,null,null,null,null,null,null,null,null,null,null,null,"㎡",null,null,null,null,null,null,null,null,null,null,null,null,null,null,null,"㎡",0,null,null,null,null,null,null,"㎡"]
[null,null,null,"階",null,null,null,null,null,null,null,null,null,null,null,null,null,null,null,"㎡",null,null,null,null,null,null,null,null,null,null,null,null,null,null,null,"㎡",0,null,null,null,null,null,null,"㎡"]
[null,null,null,"階",null,null,null,null,null,null,null,null,null,null,null,null,null,null,null,"㎡",null,null,null,null,null,null,null,null,null,null,null,null,null,null,null,"㎡",0,null,null,null,null,null,null,"㎡"]
[null,null,null,"階",null,null,null,null,null,null,null,null,null,null,null,null,null,null,null,"㎡",null,null,null,null,null,null,null,null,null,null,null,null,null,null,null,"㎡",0,null,null,null,null,null,null,"㎡"]
[null,null,null,"階",null,null,null,null,null,null,null,null,null,null,null,null,null,null,null,"㎡",null,null,null,null,null,null,null,null,null,null,null,null,null,null,null,"㎡",0,null,null,null,null,null,null,"㎡"]
[null,null,null,"階",null,null,null,null,null,null,null,null,null,null,null,null,null,null,null,"㎡",null,null,null,null,null,null,null,null,null,null,null,null,null,null,null,"㎡",0,null,null,null,null,null,null,"㎡"]
[null,null,null,"階",null,null,null,null,null,null,null,null,null,null,null,null,null,null,null,"㎡",null,null,null,null,null,null,null,null,null,null,null,null,null,null,null,"㎡",0,null,null,null,null,null,null,"㎡"]
[null,null,null,"階",null,null,null,null,null,null,null,null,null,null,null,null,null,null,null,"㎡",null,null,null,null,null,null,null,null,null,null,null,null,null,null,null,"㎡",0,null,null,null,null,null,null,"㎡"]
[null,null,null,"階",null,null,null,null,null,null,null,null,null,null,null,null,null,null,null,"㎡",null,null,null,null,null,null,null,null,null,null,null,null,null,null,null,"㎡",0,null,null,null,null,null,null,"㎡"]
[null,null,null,"階",null,null,null,null,null,null,null,null,null,null,null,null,null,null,null,"㎡",null,null,null,null,null,null,null,null,null,null,null,null,null,null,null,"㎡",0,null,null,null,null,null,null,"㎡"]
[null,null,null,"階",null,null,null,null,null,null,null,null,null,null,null,null,null,null,null,"㎡",null,null,null,null,null,null,null,null,null,null,null,null,null,null,null,"㎡",0,null,null,null,null,null,null,"㎡"]
[null,null,null,"階",null,null,null,null,null,null,null,null,null,null,null,null,null,null,null,"㎡",null,null,null,null,null,null,null,null,null,null,null,null,null,null,null,"㎡",0,null,null,null,null,null,null,"㎡"]
[null,null,null,"階",null,null,null,null,null,null,null,null,null,null,null,null,null,null,null,"㎡",null,null,null,null,null,null,null,null,null,null,null,null,null,null,null,"㎡",0,null,null,null,null,null,null,"㎡"]
[null,null,null,"階",null,null,null,null,null,null,null,null,null,null,null,null,null,null,null,"㎡",null,null,null,null,null,null,null,null,null,null,null,null,null,null,null,"㎡",0,null,null,null,null,null,null,"㎡"]
[null,null,null,"階",null,null,null,null,null,null,null,null,null,null,null,null,null,null,null,"㎡",null,null,null,null,null,null,null,null,null,null,null,null,null,null,null,"㎡",0,null,null,null,null,null,null,"㎡"]
[null,null,null,"階",null,null,null,null,null,null,null,null,null,null,null,null,null,null,null,"㎡",null,null,null,null,null,null,null,null,null,null,null,null,null,null,null,"㎡",0,null,null,null,null,null,null,"㎡"]
[null,null,null,"階",null,null,null,null,null,null,null,null,null,null,null,null,null,null,null,"㎡",null,null,null,null,null,null,null,null,null,null,null,null,null,null,null,"㎡",0,null,null,null,null,null,null,"㎡"]
[null,null,null,"階",null,null,null,null,null,null,null,null,null,null,null,null,null,null,null,"㎡",null,null,null,null,null,null,null,null,null,null,null,null,null,null,null,"㎡",0,null,null,null,null,null,null,"㎡"]
[null,null,null,"階",null,null,null,null,null,null,null,null,null,null,null,null,null,null,null,"㎡",null,null,null,null,null,null,null,null,null,null,null,null,null,null,null,"㎡",0,null,null,null,null,null,null,"㎡"]
[null,null,null,"階",null,null,null,null,null,null,null,null,null,null,null,null,null,null,null,"㎡",null,null,null,null,null,null,null,null,null,null,null,null,null,null,null,"㎡",0,null,null,null,null,null,null,"㎡"]
[null,null,null,"階",null,null,null,null,null,null,null,null,null,null,null,null,null,null,null,"㎡",null,null,null,null,null,null,null,null,null,null,null,null,null,null,null,"㎡",0,null,null,null,null,null,null,"㎡"]
[null,null,null,"階",null,null,null,null,null,null,null,null,null,null,null,null,null,null,null,"㎡",null,null,null,null,null,null,null,null,null,null,null,null,null,null,null,"㎡",0,null,null,null,null,null,null,"㎡"]
[null,null,null,"階",null,null,null,null,null,null,null,null,null,null,null,null,null,null,null,"㎡",null,null,null,null,null,null,null,null,null,null,null,null,null,null,null,"㎡",0,null,null,null,null,null,null,"㎡"]
[null,null,null,"階",null,null,null,null,null,null,null,null,null,null,null,null,null,null,null,"㎡",null,null,null,null,null,null,null,null,null,null,null,null,null,null,null,"㎡",0,null,null,null,null,null,null,"㎡"]
[null,null,null,"階",null,null,null,null,null,null,null,null,null,null,null,null,null,null,null,"㎡",null,null,null,null,null,null,null,null,null,null,null,null,null,null,null,"㎡",0,null,null,null,null,null,null,"㎡"]
[null,null,null,"階",null,null,null,null,null,null,null,null,null,null,null,null,null,null,null,"㎡",null,null,null,null,null,null,null,null,null,null,null,null,null,null,null,"㎡",0,null,null,null,null,null,null,"㎡"]
[null,null,null,"階",null,null,null,null,null,null,null,null,null,null,null,null,null,null,null,"㎡",null,null,null,null,null,null,null,null,null,null,null,null,null,null,null,"㎡",0,null,null,null,null,null,null,"㎡"]
[null,null,null,"階",null,null,null,null,null,null,null,null,null,null,null,null,null,null,null,"㎡",null,null,null,null,null,null,null,null,null,null,null,null,null,null,null,"㎡",0,null,null,null,null,null,null,"㎡"]
[null,null,null,"階",null,null,null,null,null,null,null,null,null,null,null,null,null,null,null,"㎡",null,null,null,null,null,null,null,null,null,null,null,null,null,null,null,"㎡",0,null,null,null,null,null,null,"㎡"]
[null,null,null,"階",null,null,null,null,null,null,null,null,null,null,null,null,null,null,null,"㎡",null,null,null,null,null,null,null,null,null,null,null,null,null,null,null,"㎡",0,null,null,null,null,null,null,"㎡"]
[null,null,null,"階",null,null,null,null,null,null,null,null,null,null,null,null,null,null,null,"㎡",null,null,null,null,null,null,null,null,null,null,null,null,null,null,null,"㎡",0,null,null,null,null,null,null,"㎡"]
[null,null,null,"階",null,null,null,null,null,null,null,null,null,null,null,null,null,null,null,"㎡",null,null,null,null,null,null,null,null,null,null,null,null,null,null,null,"㎡",0,null,null,null,null,null,null,"㎡"]
[null,null,null,"階",null,null,null,null,null,null,null,null,null,null,null,null,null,null,null,"㎡",null,null,null,null,null,null,null,null,null,null,null,null,null,null,null,"㎡",0,null,null,null,null,null,null,"㎡"]
[null,null,null,"階",null,null,null,null,null,null,null,null,null,null,null,null,null,null,null,"㎡",null,null,null,null,null,null,null,null,null,null,null,null,null,null,null,"㎡",0,null,null,null,null,null,null,"㎡"]
[null,null,null,"階",null,null,null,null,null,null,null,null,null,null,null,null,null,null,null,"㎡",null,null,null,null,null,null,null,null,null,null,null,null,null,null,null,"㎡",0,null,null,null,null,null,null,"㎡"]
[null,null,null,"階",null,null,null,null,null,null,null,null,null,null,null,null,null,null,null,"㎡",null,null,null,null,null,null,null,null,null,null,null,null,null,null,null,"㎡",0,null,null,null,null,null,null,"㎡"]
[null,null,null,"階",null,null,null,null,null,null,null,null,null,null,null,null,null,null,null,"㎡",null,null,null,null,null,null,null,null,null,null,null,null,null,null,null,"㎡",0,null,null,null,null,null,null,"㎡"]
[null,null,null,"階",null,null,null,null,null,null,null,null,null,null,null,null,null,null,null,"㎡",null,null,null,null,null,null,null,null,null,null,null,null,null,null,null,"㎡",0,null,null,null,null,null,null,"㎡"]
[null,null,null,"階",null,null,null,null,null,null,null,null,null,null,null,null,null,null,null,"㎡",null,null,null,null,null,null,null,null,null,null,null,null,null,null,null,"㎡",0,null,null,null,null,null,null,"㎡"]
[null,null,null,"階",null,null,null,null,null,null,null,null,null,null,null,null,null,null,null,"㎡",null,null,null,null,null,null,null,null,null,null,null,null,null,null,null,"㎡",0,null,null,null,null,null,null,"㎡"]
[null,null,null,"階",null,null,null,null,null,null,null,null,null,null,null,null,null,null,null,"㎡",null,null,null,null,null,null,null,null,null,null,null,null,null,null,null,"㎡",0,null,null,null,null,null,null,"㎡"]
[null,null,null,"階",null,null,null,null,null,null,null,null,null,null,null,null,null,null,null,"㎡",null,null,null,null,null,null,null,null,null,null,null,null,null,null,null,"㎡",0,null,null,null,null,null,null,"㎡"]
["合計",null,null,null,null,null,null,null,null,null,null,null,{"$f":"SUM(M8:S59)","v":0},null,null,null,null,null,null,"㎡",null,null,null,null,null,null,null,null,{"$f":"SUM(AC8:AI59)","v":0},null,null,null,null,null,null,"㎡",{"$f":"M60+AC60","v":0},null,null,null,null,null,null,"㎡"]
[]
[]
["1.この用紙は、第二面【3.階別用途別床面積】欄の【ｲ.階別用途別】欄が不足した場合にご利用ください。"]
["2.用途はなるべく具体的に記入してください。"]
["3.上詰めで上の階から順に記入してください。"]

{"sheet":"報告書第三面","index":6,"n_rows":62,"n_cols":47,"rows_kept":62,"cut":false,"hidden":false,"merged":[[8,19,8,20],[8,0,8,14],[60,15,60,43],[28,25,28,27],[50,37,50,43],[50,19,50,20],[49,16,49,43],[45,15,45,43],[46,16,46,25],[59,39,59,43],[46,0,46,14],[30,15,30,43],[31,37,31,43],[35,0,35,14],[33,19,33,20],[36,26,36,30],[37,15,37,43],[33,28,33,33],[33,34,33,35],[33,0,33,14],[34,0,34,14],[53,0,53,14],[52,0,52,14],[47,16,47,17],[65,0,65,43],[43,37,43,43],[44,15,44,43],[46,26,46,42],[47,26,47,42],[50,21,50,23],[8,35,8,36],[9,35,9,36],[8,25,8,27],[8,38,8,43],[8,32,8,34],[33,37,33,43],[33,16,33,17],[41,16,41,23],[41,26,41,30],[43,21,43,23],[11,38,11,43],[11,16,11,17],[11,35,11,36],[11,19,11,20],[11,21,11,23],[11,25,11,27],[11,29,11,31],[11,32,11,34],[33,21,33,23],[34,15,34,43],[35,15,35,43],[66,0,66,43],[61,0,61,43],[60,0,60,14],[62,0,64,43],[48,26,48,42],[50,34,50,35],[51,0,51,14],[48,18,48,24],[49,0,49,14],[50,0,50,14],[54,39,54,43],[58,20,58,43],[55,15,55,43],[56,15,56,43],[57,20,57,43],[54,31,54,36],[54,19,54,20],[54,24,54,26],[59,0,59,14],[59,27,59,28],[59,30,59,31],[25,15,25,43],[22,15,22,43],[23,21,23,23],[21,37,21,43],[23,34,23,35],[18,37,18,43],[28,34,28,35],[21,31,21,35],[21,26,21,30],[23,28,23,33],[24,15,24,43],[28,28,28,33],[33,25,33,27],[47,0,47,14],[48,16,48,17],[38,34,38,35],[38,25,38,27],[38,19,38,20],[38,21,38,23],[38,0,38,14],[43,0,43,14],[39,0,39,14],[36,0,36,14],[40,0,40,14],[42,0,42,14],[37,0,37,14],[41,0,41,14],[44,0,44,14],[45,0,45,14],[41,31,41,35],[43,25,43,27],[43,34,43,35],[47,18,47,24],[48,0,48,14],[38,16,38,17],[36,31,36,35],[36,37,36,43],[50,25,50,27],[53,16,53,17],[53,19,53,20],[53,24,53,26],[43,19,43,20],[39,15,39,43],[40,15,40,43],[41,37,41,43],[36,16,36,23],[38,28,38,33],[53,31,53,36],[50,28,50,33],[52,15,52,43],[53,28,53,30],[51,15,51,43],[53,22,53,23],[53,39,53,43],[50,16,50,17],[43,28,43,33],[38,37,38,43],[42,15,42,43],[43,16,43,17],[59,32,59,36],[58,0,58,14],[54,0,54,14],[57,16,57,18],[56,0,56,14],[57,0,57,14],[54,28,54,30],[54,22,54,23],[55,0,55,14],[54,16,54,17],[58,16,58,18],[59,20,59,23],[59,16,59,18],[59,25,59,26],[0,0,0,43],[1,0,1,43],[10,25,10,27],[7,32,7,34],[9,25,9,27],[3,0,3,43],[9,0,9,14],[9,19,9,20],[6,0,6,14],[6,15,6,43],[10,0,10,14],[10,16,10,17],[9,29,9,31],[10,29,10,31],[7,21,7,23],[7,15,7,18],[8,16,8,17],[2,0,2,43],[4,0,4,43],[5,0,5,43],[8,29,8,31],[7,35,7,43],[7,0,7,14],[7,19,7,20],[14,15,14,43],[16,16,16,23],[9,16,9,17],[9,38,9,43],[12,0,12,43],[9,21,9,23],[9,32,9,34],[14,0,14,14],[13,0,13,14],[10,19,10,20],[13,15,13,43],[10,21,10,23],[10,35,10,36],[10,38,10,43],[10,32,10,34],[15,0,15,14],[15,15,15,43],[16,37,16,43],[11,0,11,14],[16,26,16,30],[16,0,16,14],[7,29,7,31],[7,25,7,27],[8,21,8,23],[32,0,32,14],[31,26,31,30],[29,0,29,14],[31,16,31,23],[29,15,29,43],[24,0,24,14],[32,15,32,43],[27,0,27,14],[25,0,25,14],[26,0,26,14],[28,0,28,14],[26,37,26,43],[28,37,28,43],[26,16,26,23],[26,26,26,30],[26,31,26,35],[28,19,28,20],[28,21,28,23],[17,0,17,14],[18,0,18,14],[16,31,16,35],[17,15,17,43],[31,0,31,14],[23,37,23,43],[28,16,28,17],[23,16,23,17],[23,19,23,20],[30,0,30,14],[31,31,31,35],[27,15,27,43],[21,0,21,14],[23,0,23,14],[22,0,22,14],[19,15,19,43],[20,15,20,43],[18,34,18,35],[18,21,18,23],[18,25,18,27],[18,28,18,33],[23,25,23,27],[20,0,20,14],[18,19,18,20],[18,16,18,17],[19,0,19,14],[21,16,21,23]]}
[]
[]
[]
["定期調査報告書"]
["(第三面)"]
["調査等の概要"]
["【1.調査及び検査の状況】"]
["【ｲ.今回の調査】",null,null,null,null,null,null,null,null,null,null,null,null,null,null,null,null,null,null,null,null,null,null,null,"年",null,null,null,"月",null,null,null,"日実施"]
["【ﾛ.前回の調査】",null,null,null,null,null,null,null,null,null,null,null,null,null,null,null,"実施",null,"(",null,null,null,null,null,"年",null,null,null,"月",null,null,null,"日報告",null,null,")",null,null,"未実施"]
["【ﾊ.建築設備の検査】",null,null,null,null,null,null,null,null,null,null,null,null,null,null,null,"実施",null,"(",null,null,null,null,null,"年",null,null,null,"月",null,null,null,"日報告",null,null,")",null,null,"未実施"]
["【ﾆ.昇降機等の検査】",null,null,null,null,null,null,null,null,null,null,null,null,null,null,null,"実施",null,"(",null,null,null,null,null,"年",null,null,null,"月",null,null,null,"日報告",null,null,")",null,null,"未実施"]
["【ﾎ.防火設備の検査】",null,null,null,null,null,null,null,null,null,null,null,null,null,null,null,"実施",null,"(",null,null,null,null,null,"年",null,null,null,"月",null,null,null,"日報告",null,null,")",null,null,"未実施"]
[]
["【2.調査の状況】"]
[]
["(敷地及び地盤)"]
["【ｲ.指摘の内容】",null,null,null,null,null,null,null,null,null,null,null,null,null,null,null,"要是正の指摘あり",null,null,null,null,null,null,null,"(",null,"既存不適格",null,null,null,null,")",null,null,null,null,null,"指摘なし"]
["【ﾛ.指摘の概要】"]
["【ﾊ.改善予定の有無】",null,null,null,null,null,null,null,null,null,null,null,null,null,null,null,"有",null,"(",null,null,null,null,null,"年",null,null,null,"月に改善予定",null,null,null,null,null,")",null,null,"無",null,null,null,null,null,null,null,null,"平成"]
[null,null,null,null,null,null,null,null,null,null,null,null,null,null,null,null,null,null,null,null,null,null,null,null,null,null,null,null,null,null,null,null,null,null,null,null,null,null,null,null,null,null,null,null,null,null,"令和"]
["(建築物の外部)"]
["【ｲ.指摘の内容】",null,null,null,null,null,null,null,null,null,null,null,null,null,null,null,"要是正の指摘あり",null,null,null,null,null,null,null,"(",null,"既存不適格",null,null,null,null,")",null,null,null,null,null,"指摘なし",null,null,null,null,null,null,null,null,"令和"]
["【ﾛ.指摘の概要】"]
["【ﾊ.改善予定の有無】",null,null,null,null,null,null,null,null,null,null,null,null,null,null,null,"有",null,"(",null,null,null,null,null,"年",null,null,null,"月に改善予定",null,null,null,null,null,")",null,null,"無"]
[]
["(屋上及び屋根)"]
["【ｲ.指摘の内容】",null,null,null,null,null,null,null,null,null,null,null,null,null,null,null,"要是正の指摘あり",null,null,null,null,null,null,null,"(",null,"既存不適格",null,null,null,null,")",null,null,null,null,null,"指摘なし"]
["【ﾛ.指摘の概要】"]
["【ﾊ.改善予定の有無】",null,null,null,null,null,null,null,null,null,null,null,null,null,null,null,"有",null,"(",null,null,null,null,null,"年",null,null,null,"月に改善予定",null,null,null,null,null,")",null,null,"無"]
[]
["(建築物の内部)"]
["【ｲ.指摘の内容】",null,null,null,null,null,null,null,null,null,null,null,null,null,null,null,"要是正の指摘あり",null,null,null,null,null,null,null,"(",null,"既存不適格",null,null,null,null,")",null,null,null,null,null,"指摘なし"]
["【ﾛ.指摘の概要】"]
["【ﾊ.改善予定の有無】",null,null,null,null,null,null,null,null,null,null,null,null,null,null,null,"有",null,"(",null,null,null,null,null,"年",null,null,null,"月に改善予定",null,null,null,null,null,")",null,null,"無"]
[]
["(避難施設等)"]
["【ｲ.指摘の内容】",null,null,null,null,null,null,null,null,null,null,null,null,null,null,null,"要是正の指摘あり",null,null,null,null,null,null,null,"(",null,"既存不適格",null,null,null,null,")",null,null,null,null,null,"指摘なし"]
["【ﾛ.指摘の概要】"]
["【ﾊ.改善予定の有無】",null,null,null,null,null,null,null,null,null,null,null,null,null,null,null,"有",null,"(",null,null,null,null,null,"年",null,null,null,"月に改善予定",null,null,null,null,null,")",null,null,"無"]
[]
["(その他)"]
["【ｲ.指摘の内容】",null,null,null,null,null,null,null,null,null,null,null,null,null,null,null,"要是正の指摘あり",null,null,null,null,null,null,null,"(",null,"既存不適格",null,null,null,null,")",null,null,null,null,null,"指摘なし"]
["【ﾛ.指摘の概要】"]
["【ﾊ.改善予定の有無】",null,null,null,null,null,null,null,null,null,null,null,null,null,null,null,"有",null,"(",null,null,null,null,null,"年",null,null,null,"月に改善予定",null,null,null,null,null,")",null,null,"無"]
[]
["【3.石綿を添加した建築材料の調査状況】"]
[null,null,null,null,null,null,null,null,null,null,null,null,null,null,null,null,"(",null,null,null,null,null,null,null,null,null,"該当する室",null,null,null,null,null,null,null,null,null,null,null,null,null,null,null,null,")"]
["【ｲ.該当建築材料の有無】",null,null,null,null,null,null,null,null,null,null,null,null,null,null,null,"有",null,"(飛散防止措置無)",null,null,null,null,null,null,"(",null,null,null,null,null,null,null,null,null,null,null,null,null,null,null,null,null,")"]
[null,null,null,null,null,null,null,null,null,null,null,null,null,null,null,null,"有",null,"(飛散防止措置有)",null,null,null,null,null,null,"(",null,null,null,null,null,null,null,null,null,null,null,null,null,null,null,null,null,")"]
[null,null,null,null,null,null,null,null,null,null,null,null,null,null,null,null,"無"]
["【ﾛ.措置予定の有無】",null,null,null,null,null,null,null,null,null,null,null,null,null,null,null,"有",null,"(",null,null,null,null,null,"年",null,null,null,"月に改善予定",null,null,null,null,null,")",null,null,"無"]
[]
["【4.耐震診断及び耐震改修の調査状況】"]
["【ｲ.耐震診断の実施の有無】",null,null,null,null,null,null,null,null,null,null,null,null,null,null,null,"有",null,null,"無",null,"(",null,null,null,null,null,"年",null,null,null,"月に実施予定",null,null,null,null,null,")",null,"対象外"]
["【ﾛ.耐震改修の実施の有無】",null,null,null,null,null,null,null,null,null,null,null,null,null,null,null,"有",null,null,"無",null,"(",null,null,null,null,null,"年",null,null,null,"月に実施予定",null,null,null,null,null,")",null,"対象外"]
[]
["【5.建築物等に係る不具合等の状況】"]
["【ｲ.不具合等】",null,null,null,null,null,null,null,null,null,null,null,null,null,null,null,"有",null,null,null,"無"]
["【ﾛ.不具合等の記録】",null,null,null,null,null,null,null,null,null,null,null,null,null,null,null,"有",null,null,null,"無"]
["【ﾊ.改善の状況】",null,null,null,null,null,null,null,null,null,null,null,null,null,null,null,"実施済",null,null,null,"改善予定",null,null,null,"(",null,null,null,null,"年",null,null,"月に改善予定",null,null,null,null,")",null,"予定なし"]
[]
["【6.備考】"]

{"sheet":"報告書第四面","index":7,"n_rows":36,"n_cols":48,"rows_kept":36,"cut":false,"hidden":false,"merged":[[33,28,33,35],[0,0,0,43],[1,0,1,43],[7,1,8,8],[7,9,8,17],[7,18,8,27],[3,0,3,43],[4,0,4,43],[5,1,5,44],[6,0,6,43],[7,28,8,35],[25,1,25,2],[25,3,25,4],[19,6,19,7],[14,28,14,35],[17,1,17,2],[17,3,17,4],[2,0,2,43],[9,28,9,35],[10,28,10,35],[11,28,11,35],[7,36,8,44],[9,36,9,44],[10,1,10,2],[10,3,10,4],[65,0,65,43],[63,0,63,43],[23,9,23,17],[26,6,26,7],[26,9,26,17],[32,1,32,2],[32,3,32,4],[23,3,23,4],[64,0,64,43],[23,1,23,2],[19,9,19,17],[22,1,22,2],[22,3,22,4],[22,6,22,7],[22,9,22,17],[23,6,23,7],[21,1,21,2],[20,36,20,44],[28,28,28,35],[29,28,29,35],[19,36,19,44],[20,1,20,2],[20,3,20,4],[20,6,20,7],[20,9,20,17],[20,18,20,27],[19,18,19,27],[12,28,12,35],[13,28,13,35],[17,18,17,27],[17,6,17,7],[17,9,17,17],[14,6,14,7],[10,6,10,7],[10,9,10,17],[10,18,10,27],[13,9,13,17],[13,18,13,27],[19,1,19,2],[19,3,19,4],[10,36,10,44],[9,1,9,2],[9,3,9,4],[9,18,9,27],[9,6,9,7],[9,9,9,17],[12,9,12,17],[12,18,12,27],[12,36,12,44],[11,18,11,27],[11,9,11,17],[11,36,11,44],[11,1,11,2],[11,6,11,7],[11,3,11,4],[14,1,14,2],[14,3,14,4],[12,1,12,2],[12,3,12,4],[12,6,12,7],[13,6,13,7],[14,9,14,17],[13,36,13,44],[14,18,14,27],[14,36,14,44],[13,1,13,2],[13,3,13,4],[16,36,16,44],[15,36,15,44],[15,28,15,35],[16,28,16,35],[15,18,15,27],[16,18,16,27],[15,1,15,2],[15,3,15,4],[16,1,16,2],[16,3,16,4],[16,6,16,7],[16,9,16,17],[15,6,15,7],[15,9,15,17],[17,36,17,44],[18,1,18,2],[18,3,18,4],[18,6,18,7],[18,9,18,17],[18,36,18,44],[18,18,18,27],[17,28,17,35],[24,1,24,2],[24,3,24,4],[24,6,24,7],[24,9,24,17],[21,3,21,4],[21,6,21,7],[21,9,21,17],[24,18,24,27],[24,36,24,44],[21,36,21,44],[22,18,22,27],[22,36,22,44],[21,18,21,27],[23,18,23,27],[23,36,23,44],[21,28,21,35],[22,28,22,35],[24,28,24,35],[25,6,25,7],[25,9,25,17],[25,18,25,27],[25,36,25,44],[25,28,25,35],[29,6,29,7],[29,9,29,17],[26,18,26,27],[26,36,26,44],[29,18,29,27],[26,28,26,35],[27,36,27,44],[28,18,28,27],[28,36,28,44],[27,18,27,27],[27,28,27,35],[29,36,29,44],[29,3,29,4],[27,1,27,2],[27,3,27,4],[29,1,29,2],[27,6,27,7],[27,9,27,17],[28,1,28,2],[28,3,28,4],[26,1,26,2],[26,3,26,4],[28,6,28,7],[28,9,28,17],[32,36,32,44],[31,18,31,27],[31,1,31,2],[31,3,31,4],[31,6,31,7],[31,9,31,17],[30,18,30,27],[30,36,30,44],[31,28,31,35],[32,28,32,35],[30,28,30,35],[33,18,33,27],[31,36,31,44],[34,28,34,35],[35,28,35,35],[18,28,18,35],[19,28,19,35],[20,28,20,35],[23,28,23,35],[34,1,34,2],[34,3,34,4],[34,6,34,7],[34,9,34,17],[33,36,33,44],[32,6,32,7],[32,9,32,17],[32,18,32,27],[33,1,33,2],[33,3,33,4],[33,6,33,7],[33,9,33,17],[30,1,30,2],[30,3,30,4],[30,6,30,7],[30,9,30,17],[36,1,36,44],[37,1,37,44],[34,36,34,44],[35,1,35,2],[35,3,35,4],[35,6,35,7],[35,9,35,17],[35,18,35,27],[35,36,35,44],[34,18,34,27]]}
[]
[]
[]
["定期調査報告書"]
["(第四面)"]
[null,"建築物等に係る不具合等の状況"]
[]
[null,"不具合等を\n把握した年月",null,null,null,null,null,null,null,"不具合等の概要",null,null,null,null,null,null,null,null,"考えられる原因",null,null,null,null,null,null,null,null,null,"改善(予定)\n年月",null,null,null,null,null,null,null,"改善措置の概要等"]
[]
[null,null,null,null,null,"年",null,null,"月",null,null,null,null,null,null,null,null,null,null,null,null,null,null,null,null,null,null,null,null,null,null,null,null,null,null,null,null,null,null,null,null,null,null,null,null,null,null,"平成"]
[null,null,null,null,null,"年",null,null,"月",null,null,null,null,null,null,null,null,null,null,null,null,null,null,null,null,null,null,null,null,null,null,null,null,null,null,null,null,null,null,null,null,null,null,null,null,null,null,"令和"]
[null,null,null,null,null,"年",null,null,"月"]
[null,null,null,null,null,"年",null,null,"月"]
[null,null,null,null,null,"年",null,null,"月"]
[null,null,null,null,null,"年",null,null,"月"]
[null,null,null,null,null,"年",null,null,"月"]
[null,null,null,null,null,"年",null,null,"月"]
[null,null,null,null,null,"年",null,null,"月"]
[null,null,null,null,null,"年",null,null,"月"]
[null,null,null,null,null,"年",null,null,"月"]
[null,null,null,null,null,"年",null,null,"月"]
[null,null,null,null,null,"年",null,null,"月"]
[null,null,null,null,null,"年",null,null,"月"]
[null,null,null,null,null,"年",null,null,"月"]
[null,null,null,null,null,"年",null,null,"月"]
[null,null,null,null,null,"年",null,null,"月"]
[null,null,null,null,null,"年",null,null,"月"]
[null,null,null,null,null,"年",null,null,"月"]
[null,null,null,null,null,"年",null,null,"月"]
[null,null,null,null,null,"年",null,null,"月"]
[null,null,null,null,null,"年",null,null,"月"]
[null,null,null,null,null,"年",null,null,"月"]
[null,null,null,null,null,"年",null,null,"月"]
[null,null,null,null,null,"年",null,null,"月"]
[null,null,null,null,null,"年",null,null,"月"]
[null,null,null,null,null,"年",null,null,"月"]

{"sheet":"報告書(注意書き)","index":8,"n_rows":123,"n_cols":1,"rows_kept":123,"cut":false,"hidden":false,"merged":[[106,0,106,43],[107,0,107,43],[115,0,115,43],[116,0,116,43],[91,0,91,43],[100,0,100,43],[126,0,126,43],[124,0,124,43],[125,0,125,43],[121,0,121,43],[122,0,122,43],[120,0,120,43],[118,0,118,43],[119,0,119,43],[117,0,117,43],[123,0,123,43],[44,0,44,43],[50,0,50,43],[78,0,78,43],[71,0,71,43],[63,0,63,43],[72,0,72,43],[79,0,79,43],[80,0,80,43],[74,0,74,43],[73,0,73,43],[76,0,76,43],[57,0,57,43],[58,0,58,43],[45,0,45,43],[46,0,46,43],[51,0,51,43],[55,0,55,43],[7,0,7,43],[8,0,8,43],[114,0,114,43],[112,0,112,43],[105,0,105,43],[109,0,109,43],[110,0,110,43],[111,0,111,43],[113,0,113,43],[108,0,108,43],[92,0,92,43],[97,0,97,43],[98,0,98,43],[85,0,85,43],[86,0,86,43],[77,0,77,43],[70,0,70,43],[103,0,103,43],[104,0,104,43],[99,0,99,43],[101,0,101,43],[102,0,102,43],[87,0,87,43],[90,0,90,43],[81,0,81,43],[82,0,82,43],[83,0,83,43],[84,0,84,43],[75,0,75,43],[93,0,93,43],[94,0,94,43],[96,0,96,43],[59,0,59,43],[69,0,69,43],[95,0,95,43],[88,0,88,43],[89,0,89,43],[0,0,0,43],[1,0,1,43],[2,0,2,43],[3,0,3,43],[4,0,4,43],[5,0,5,43],[56,0,56,43],[6,0,6,43],[53,0,53,43],[54,0,54,43],[33,0,33,43],[34,0,34,43],[43,0,43,43],[35,0,35,43],[47,0,47,43],[48,0,48,43],[40,0,40,43],[41,0,41,43],[42,0,42,43],[36,0,36,43],[37,0,37,43],[38,0,38,43],[39,0,39,43],[17,0,17,43],[32,0,32,43],[18,0,18,43],[19,0,19,43],[20,0,20,43],[26,0,26,43],[27,0,27,43],[28,0,28,43],[29,0,29,43],[30,0,30,43],[14,0,14,43],[15,0,15,43],[9,0,9,43],[10,0,10,43],[11,0,11,43],[12,0,12,43],[13,0,13,43],[68,0,68,43],[64,0,64,43],[65,0,65,43],[49,0,49,43],[66,0,66,43],[67,0,67,43],[52,0,52,43],[60,0,60,43],[61,0,61,43],[62,0,62,43],[16,0,16,43],[23,0,23,43],[24,0,24,43],[21,0,21,43],[22,0,22,43],[25,0,25,43],[31,0,31,43]]}
[]
[]
[]
["（注意）"]
["１．各面共通関係"]
["　①　※印のある欄は記入しないでください。"]
["　②　数字は算用数字を、単位はメートル法を用いてください。"]
["　③　記入欄が不足する場合は、枠を拡大、行を追加して記入するか、別紙に必要な事項を記入し添えてください。"]
["２．第一面関係"]
["　①　調査者が２人以上のときは、代表となる調査者を調査者氏名欄に記入してください。"]
["　②　１欄及び２欄は、所有者又は管理者が法人のときは、「ロ」はそれぞれ法人の名称及び代表者氏名を、「ニ」はそれぞれ法人"]
["　　　の所在地を記入してください。"]
["　③　３欄は、代表となる調査者及び当該建築物の調査を行ったすべての調査者について記入してください。当該建築物の調査を行"]
["　　　った調査者が１人の場合は、その他の調査者欄は削除して構いません。"]
["　④　３欄の「イ」は、調査者の有する資格について記入してください。調査者が特定建築物調査員である場合は、"]
["　　　特定建築物調査員資格者証の交付番号を「特定建築物調査員」の番号欄に記入してください。"]
["　⑤　３欄の「ニ」は、調査者が法人に勤務している場合は、調査者の勤務先について記入し、勤務先が建築士事務所のときは、事"]
["　　　務所登録番号を併せて記入してください。"]
["　⑥　３欄の「ホ」から「ト」までは、調査者が法人に勤務している場合は、調査者の勤務先について記入し、調査者が法人に勤務"]
["　　　していない場合は、調査者の住所について記入してください。"]
["　⑦　第三面の２欄のいずれかの「イ」において「要是正の指摘あり」のチェックボックスに「レ」マークを入れたときは、５欄の"]
["　　　「イ」の「要是正の指摘あり」のチェックボックスに「レ」マークを入れ、それ以外のときは、「指摘なし」のチェックボッ"]
["　　　クスに「レ」マークを入れてください。また、第三面の２欄の「イ」の「要是正の指摘あり」のチェックボックスに「レ」マ"]
["　　　ークを入れたものの全てにおいて、「既存不適格」のチェックボックスに「レ」マークを入れたときは、併せて５欄の「イ」"]
["　　　の「既存不適格」のチェックボックスに「レ」マークを入れてください。"]
["　⑧　５欄の「ロ」は、指摘された事項のうち特に報告すべき事項があれば記入してください。"]
["　⑨　５欄の「ハ」は、第三面の２欄のいずれかの「ハ」において改善予定があるとしているときは「有」のチェックボックスに"]
["　　　「レ」マークを入れ、第三面の２欄の「ハ」に記入された改善予定年月のうち最も早いものを併せて記入してください。"]
["　⑩　５欄の「ニ」は、指摘された事項以外に特に報告すべき事項があれば記入してください。"]
["３．第二面関係"]
["　①　この書類は、建築物ごとに作成してください。"]
["　②　敷地が複数の地域にまたがるときは、１欄の「イ」は、該当するすべてのチェックボックスに「レ」マークを入れてください。"]
["　　　建築基準法第２２条第１項の規定により地域指定がされている場合、災害危険区域に指定されている場合その他建築基準法又"]
["　　　はそれに基づく命令により地域等の指定がされている場合は、「その他」のチェックボックスに「レ」マークを入れ、併せて"]
["　　　その内容を記入して下さい。"]
["　③　１欄の「ロ」は、該当する用途地域名を全て記入してください。"]
["　④　２欄の「イ」は、該当する全てのチェックボックスに「レ」マークを入れてください。なお、その他の構造からなる場合には、"]
["　　　「その他」のチェックボックスに「レ」マークを入れ、併せて具体的な構造を記入してください。"]
["　⑤　３欄の「イ」は、建築基準法別表第一欄に掲げる用途に供する部分について、最上階から順に（い）記入し、当該用途に供す"]
["　　　る部分の床面積を記入してください。ただし、特定行政庁が報告の必要がある用途を定めている場合には、その用途について"]
["　　　記入して下さい。該当する用途が複数あるときは、それらを全て記入してください。"]
["　⑥　３欄の「ロ」は、「イ」の用途ごとに床面積の合計を記入してください。"]
["　⑦　４欄は、建築基準法施行令第１０８条の３第２項に規定する耐火性能検証法により耐火に関する性能が検証されたときは「耐"]
["　　　火性能検証法」のチェックボックスに、同令第１０８条の３第５項に規定する防火区画検証法により遮炎に関する性能が検証"]
["　　　されたときは「防火区画検証法」のチェックボックスに、同令第１２８条の６第３項に規定する区画避難安全検証法により"]
["　　　区画避難安全性能が検証されたときは「区画避難安全検証法」のチェックボックスに、同令第１２９条第３項に規定する階避"]
["　　　難安全検証法により階避難安全性能が検証されたときは「階避難安全検証法」のチェックボックスに、同令第１２９条の２第"]
["　　　４項に規定する全館避難安全検証法により全館避難安全性能が検証されたときは「全館避難安全検証法」のチェックボックス"]
["　　　に、それぞれ「レ」マークを入れ、「区画避難安全検証法」の場合は区画避難安全性能を検証した階を、「階避難安全検証法」"]
["　　　の場合は階避難安全性能を検証した階を、併わせて記入してください。建築基準法第３８条（同法第６６条、第６７条の２"]
["　　　及び第８８条第１項において準用する場合を含む。）の規定による特殊構造方法等認定、同法第６８条の２５第１項の規定に"]
["　　　よる構造方法等の認定又は建築基準法の一部を改正する法律（平成１０年法律第１００号）による改正前の建築基準法第３８"]
["　　　条の規定による認定を受けている建築物のうち、当該適用について特に報告が必要なものについては「その他」のチェック"]
["　　　ボックスに「レ」マークを入れ、その概要を記入してください。"]
["　⑧　５欄は、前回調査時以降の建築（新築を除く。）、模様替え、修繕又は用途の変更（以下「増築、改築、用途変更等」とい"]
["　　　う。）について、古いものから順に記入し、確認（建築基準法第６条第１項に規定する確認。以下同じ。）を受けている場合"]
["　　　は建築確認済証交付年月日を、受けていない場合は増築、改築、用途変更等が完了した年月日を、併せて記入し、それぞれ増"]
["　　　築、改築、用途変更等の概要を記入してください。"]
["　　　マークを入れ、そのうち各階平面図のみがあるときは併せて「各階平面図あり」のチェックボックスに「レ」マークを入れて"]
["　　　ください。"]
[]
[]
[]
[]
[]
[]
["　⑨　６欄の「イ」は、最近の確認について、当該確認に要した図書の全部又は一部があるときは「有」のチェックボックスに「レ」"]
["　　　マークを入れ、そのうち各階平面図のみがあるときは併せて「各階平面図あり」のチェックボックスに「レ」マークを入れて"]
["　　　ください。"]
["　⑩　６欄の「ロ」は、最近の確認に係る確認済証について、該当するチェックボックスに「レ」マークを入れてください。「有」"]
["　　　の場合は、確認済証の交付年月日を記入し、交付者に関するチェックボックスに「レ」マークを入れ、「指定確認検査機関」"]
["　　　の場合は、併せてその名称を記入してください。"]
["　⑪　６欄の「ハ」は、直近の完了検査について、当該完了検査に要した図書の全部又は一部があるときは「有」のチェックボック"]
["　　　スに「レ」マークを入れてください。"]
["　⑫　６欄の「ニ」は、（注意）１０に準じて記入してください。"]
["　⑬　６欄の「ホ」は、建築基準法第８条第２項に規定する維持保全に関する準則又は計画について記入してください。"]
["　⑭　６欄の「へ」は、前回の定期調査の結果を記録した書類の保存の有無について記入してください。"]
["　⑮　建築基準法第８６条の８又は同法第８７条の２の規定の適用を受けている場合において、７欄にその旨を記載してください。"]
["　⑯　ここに書き表せない事項で特に報告すべき事項は、７欄又は別紙に記載して添えてください。"]
["４．第三面関係"]
["　①　この書類は、建築物ごとに、当該建築物の敷地、構造及び建築設備の状況（別途建築設備の検査を行っている場合は建築設備"]
["　　　の設置の状況に係るものに限る。）に関する調査の結果について作成してください。"]
["　②　１欄の「イ」は、調査が終了した年月日を記入してください。"]
["　③　１欄の「ロ」から「ホ」までは、報告の対象となっていない場合には「未実施」のチェックボックスに「レ」マークを入れて"]
["　　　ください。"]
["　④　１欄の「ハ」から「ホ」までは、直前の報告について、それぞれ記入してください。"]
["　⑤　２欄の「イ」は、調査結果において、是正が必要と認められるときは「要是正の指摘あり」のチェックボックスに「レ」マー"]
["　　　クを入れ、建築基準法第３条第２項（同法第８６条の９第１項において準用する場合を含む。）の規定の適用を受けているも"]
["　　　のであることが確認されたときは併せて「既存不適格」のチェックボックスに「レ」マークを入れてください。"]
["　⑥　２欄の「イ」の「要是正の指摘あり」のチェックボックスに「レ」マークを入れたとき（「既存不適格」のチェックボックス"]
["　　　に「レ」マークを入れたときを除く。）は、「ロ」に指摘の概要を記入して下さい。"]
["　⑦　２欄の「イ」の「要是正の指摘あり」のチェックボックスに「レ」マークを入れた当該指摘をうけた項目について改善予定が"]
["　　　あるときは「ハ」の「有」のチェックボックスに「レ」マークを入れ、併せて改善予定年月を記入してください。改善予定が"]
["　　　ないときは「ハ」の「無」のチェックボックスに「レ」マークを入れてください。"]
["　⑧　３欄は、建築基準法第２８条の２の規定の適用を受ける石綿を添加した建築材料について記入してください。「イ」の"]
["　　　「有（飛散防止措置無）」又は「有（飛散防止措置有）」のチェックボックスに「レ」マークを入れたときは、当該建築材料"]
["　　　が確認された室を記入してください。当該建築材料について飛散防止措置を行う予定があるときは、「ロ」の「有」のチェッ"]
["　　　クボックスに「レ」マークを入れ、併せて措置予定年月を記入してください。措置を行う予定がないときは、「ロ」の「無」"]
["　　　のチェックボックスに「レ」マークを入れてください。"]
["　⑨　４欄は、建築物の耐震改修の促進に関する法律（平成７年法律第１２３号）第２条第１項又は第２項に規定する耐震診断又は"]
["　　　耐震改修の実施の有無について記入してください。耐震診断又は耐震改修の実施の予定があるときは、実施予定年月を記入し、"]
["　　　具体的な耐震改修の内容を定めている場合は別紙に記入し添えてください。"]
["　⑩　前回調査時以降に把握した屋根ふき材、内装材、外装材等及び広告塔、装飾塔その他建築物の屋外に取り付けられたものの脱"]
["　　　落、バルコニー、屋上等の手すりその他建築物の部分の脱落等、（以下、「不具合等」という。）について第四面の"]
["　　　「不具合等の概要」欄に記入したときは、５欄の「イ」の「有」のチェックボックスに「レ」マークを入れ、当該"]
["　　　不具合等について記録が有るときは「ロ」の「有」のチェックボックスに「レ」マークを入れ、記録が無いときは「ロ」の"]
["　　　「無」のチェックボックスに「レ」マークを入れてください。また、第四面に記入された不具合等のうち当該不具合等を受け"]
["　　　既に改善を実施しているものがあり、かつ、改善を行う予定があるものがない場合には「ハ」の「実施済」のチェックボック"]
["　　　スに「レ」マークを入れ、第四面に記入された不具合等のうち改善を行う予定があるものがある場合には「改善予定」のチェ"]
["　　　ックボックスに「レ」マークを入れ、第四面の「改善（予定）年月」欄に記入された改善予定年月のうち最も早いものを併せ"]
["　　　て記入し、これら以外の場合には「予定なし」のチェックボックスに「レ」マークを入れてください。"]
["　⑪　各欄に掲げられている項目以外で特に報告すべき事項は、６欄又は別紙に記入して添えてください。"]
["５．第四面関係"]
["　①　第四面は、前回調査時以降に把握した建築物等に係る不具合等のうち第三面の２欄において指摘されるもの以外のものについ"]
["　　　て、把握できる範囲において記入してください。前回調査時以降の不具合等を把握していない場合は、第四面を省略すること"]
["　　　ができます。"]
["　②　「不具合等を把握した年月」欄は、当該不具合等を把握した年月を記入してください。"]
["　③　「不具合等の概要」欄は、当該不具合等の概要を記入してください。"]
["　④　「考えられる原因」欄は、当該不具合等が生じた原因として考えられるものを記入してください。"]
["　⑤　「改善（予定）年月」欄は、既に改善を実施している場合には実施年月を、改善を行う予定がある場合には改善予定年月を記"]
["　　　入し、改善を行う予定がない場合には「─」マークを記入してください。"]
["　⑥　「改善措置の概要等」欄は、既に改善を実施している場合又は改善を行う予定がある場合に、具体的措置の概要を記入してく"]
["　　　ださい。改善を行う予定がない場合には、その理由を記入してください。"]

{"sheet":"調査結果表","index":9,"n_rows":323,"n_cols":49,"rows_kept":323,"cut":false,"hidden":false,"merged":[[310,1,310,2],[310,3,310,47],[311,1,311,2],[311,3,311,47],[312,1,312,2],[312,3,312,47],[317,1,317,2],[321,3,321,47],[321,1,321,2],[322,3,322,47],[323,1,323,2],[323,3,323,47],[318,1,318,2],[318,3,318,47],[319,1,319,2],[319,3,319,47],[320,1,320,2],[320,3,320,47],[313,1,313,2],[313,3,313,47],[314,1,314,2],[314,3,314,47],[315,1,315,2],[317,3,317,47],[316,1,316,2],[315,3,315,47],[316,3,316,47],[322,1,322,2],[307,1,307,2],[307,3,307,47],[308,1,308,2],[308,3,308,47],[309,1,309,2],[309,3,309,47],[304,1,304,2],[304,3,304,47],[305,1,305,2],[305,3,305,47],[306,1,306,2],[306,3,306,47],[302,1,302,2],[302,3,302,47],[303,1,303,2],[303,3,303,47],[298,1,299,2],[298,3,299,9],[298,10,299,25],[298,26,299,41],[298,42,299,47],[300,1,300,47],[301,1,301,2],[301,3,301,47],[294,1,295,2],[294,3,295,9],[294,10,295,25],[294,26,295,41],[294,42,295,47],[296,1,297,2],[296,3,297,9],[296,10,297,25],[296,26,297,41],[296,42,297,47],[292,1,293,2],[292,3,293,9],[292,10,293,25],[292,26,293,41],[292,42,293,47],[286,1,287,2],[286,3,287,9],[286,10,287,25],[286,26,287,41],[286,42,287,47],[288,1,289,2],[288,3,289,9],[288,10,289,25],[288,26,289,41],[288,42,289,47],[284,1,285,2],[284,3,285,9],[284,10,285,25],[284,26,285,41],[284,42,285,47],[278,1,279,2],[278,3,279,9],[278,10,279,25],[278,26,279,41],[278,42,279,47],[280,1,281,2],[280,3,281,9],[280,10,281,25],[280,26,281,41],[280,42,281,47],[290,1,291,2],[290,3,291,9],[290,10,291,25],[290,26,291,41],[290,42,291,47],[276,1,277,2],[276,3,277,9],[276,10,277,25],[276,26,277,41],[276,42,277,47],[270,1,271,2],[270,3,271,9],[270,10,271,25],[270,26,271,41],[270,42,271,47],[272,1,273,2],[272,3,273,9],[272,10,273,25],[272,26,273,41],[272,42,273,47],[282,1,283,2],[282,3,283,9],[282,10,283,25],[282,26,283,41],[282,42,283,47],[268,1,269,2],[268,3,269,9],[268,10,269,25],[268,26,269,41],[268,42,269,47],[262,1,263,2],[262,3,263,9],[262,10,263,25],[262,26,263,41],[262,42,263,47],[264,1,265,2],[264,3,265,9],[264,10,265,25],[264,26,265,41],[264,42,265,47],[274,1,275,2],[274,3,275,9],[274,10,275,25],[274,26,275,41],[274,42,275,47],[258,1,258,47],[259,1,259,47],[260,1,261,2],[260,3,261,9],[260,10,261,25],[260,26,261,41],[260,42,261,47],[256,1,257,2],[256,3,257,9],[256,10,257,25],[256,26,257,41],[256,42,257,47],[266,1,267,2],[266,3,267,9],[266,10,267,25],[266,26,267,41],[266,42,267,47],[252,1,253,2],[252,3,253,9],[252,10,253,25],[252,26,253,41],[252,42,253,47],[254,1,255,2],[254,3,255,9],[254,10,255,25],[254,26,255,41],[254,42,255,47],[248,1,249,2],[248,3,249,9],[248,10,249,25],[248,26,249,41],[248,42,249,47],[250,1,251,2],[250,3,251,9],[250,10,251,25],[250,26,251,41],[250,42,251,47],[244,1,245,2],[244,3,245,9],[244,10,245,25],[244,26,245,41],[244,42,245,47],[246,1,247,2],[246,3,247,9],[246,10,247,25],[246,26,247,41],[246,42,247,47],[240,1,241,2],[240,3,241,9],[240,10,241,25],[240,26,241,41],[240,42,241,47],[242,1,243,2],[242,3,243,9],[242,10,243,25],[242,26,243,41],[242,42,243,47],[232,45,232,47],[232,48,232,50],[237,1,237,47],[238,1,239,2],[238,3,239,9],[238,10,239,25],[238,26,239,41],[238,42,239,47],[231,43,231,44],[231,45,231,47],[231,48,231,50],[232,1,232,2],[232,3,232,4],[232,5,232,20],[232,21,232,38],[232,39,232,40],[232,41,232,42],[232,43,232,44],[231,1,231,2],[231,3,231,4],[231,5,231,20],[231,21,231,38],[231,39,231,40],[231,41,231,42],[233,1,233,47],[235,3,235,5],[235,12,235,13],[236,1,236,47],[234,1,234,47],[235,6,235,11],[235,17,235,47],[235,14,235,15],[229,48,229,50],[230,1,230,2],[230,3,230,4],[230,5,230,20],[230,21,230,38],[230,39,230,40],[230,41,230,42],[230,43,230,44],[230,45,230,47],[230,48,230,50],[228,45,228,47],[228,48,228,50],[229,1,229,2],[229,3,229,4],[229,5,229,20],[229,21,229,38],[229,39,229,40],[229,41,229,42],[229,43,229,44],[229,45,229,47],[227,43,227,44],[227,45,227,47],[227,48,227,50],[228,1,228,2],[228,3,228,4],[228,5,228,20],[228,21,228,38],[228,39,228,40],[228,41,228,42],[228,43,228,44],[227,1,227,2],[227,3,227,4],[227,5,227,20],[227,21,227,38],[227,39,227,40],[227,41,227,42],[225,48,225,50],[226,1,226,2],[226,3,226,4],[226,5,226,20],[226,21,226,38],[226,39,226,40],[226,41,226,42],[226,43,226,44],[226,45,226,47],[226,48,226,50],[224,45,224,47],[224,48,224,50],[225,1,225,2],[225,3,225,4],[225,5,225,20],[225,21,225,38],[225,39,225,40],[225,41,225,42],[225,43,225,44],[225,45,225,47],[223,43,223,44],[223,45,223,47],[223,48,223,50],[224,1,224,2],[224,3,224,4],[224,5,224,20],[224,21,224,38],[224,39,224,40],[224,41,224,42],[224,43,224,44],[222,1,222,2],[222,3,222,47],[222,48,222,50],[223,1,223,2],[223,3,223,4],[223,5,223,20],[223,21,223,38],[223,39,223,40],[223,41,223,42],[221,1,221,2],[221,21,221,38],[221,39,221,40],[221,41,221,42],[221,43,221,44],[221,45,221,47],[220,5,221,20],[220,21,220,38],[220,39,220,40],[220,41,220,42],[220,43,220,44],[219,48,219,50],[220,45,220,47],[220,48,220,50],[221,48,221,50],[219,1,219,2],[219,21,219,38],[219,39,219,40],[219,41,219,42],[219,43,219,44],[219,45,219,47],[216,45,216,47],[216,48,216,50],[217,1,218,2],[217,3,221,4],[217,5,219,20],[217,21,218,38],[217,39,218,40],[217,41,218,42],[217,43,218,44],[217,45,218,47],[216,1,216,2],[216,3,216,20],[216,21,216,38],[216,39,216,40],[216,41,216,42],[216,43,216,44],[220,1,220,2],[213,1,214,2],[213,5,215,20],[213,21,214,38],[213,39,214,40],[213,41,214,42],[213,43,214,44],[211,43,211,44],[211,45,211,47],[211,48,211,50],[212,1,212,2],[212,21,212,38],[212,39,212,40],[212,41,212,42],[212,43,212,44],[212,45,212,47],[212,48,212,50],[217,48,218,50],[210,1,210,2],[210,3,210,47],[210,48,210,50],[211,1,211,2],[211,3,215,4],[211,5,212,20],[211,21,211,38],[211,39,211,40],[211,41,211,42],[209,1,209,2],[209,21,209,38],[209,39,209,40],[209,41,209,42],[209,43,209,44],[209,45,209,47],[207,48,207,50],[208,1,208,2],[208,21,208,38],[208,39,208,40],[208,41,208,42],[208,43,208,44],[208,45,208,47],[208,48,208,50],[213,45,214,47],[213,48,214,50],[215,1,215,2],[215,21,215,38],[215,39,215,40],[215,41,215,42],[215,43,215,44],[215,45,215,47],[215,48,215,50],[190,5,192,20],[196,41,198,42],[197,43,198,44],[199,1,199,2],[199,3,199,47],[199,48,199,50],[207,1,207,2],[207,5,209,20],[207,21,207,38],[207,39,207,40],[207,41,207,42],[193,1,193,47],[193,48,193,50],[194,1,194,47],[194,48,194,50],[195,1,198,2],[195,3,198,38],[195,39,195,44],[195,45,198,47],[195,48,198,50],[196,39,198,40],[202,48,202,50],[200,1,201,2],[200,21,201,38],[200,39,201,40],[200,41,201,42],[200,43,201,44],[200,45,201,47],[200,48,201,50],[202,1,202,2],[202,21,202,38],[202,39,202,40],[186,45,186,47],[186,48,186,50],[185,1,185,2],[185,5,187,20],[185,21,185,38],[185,39,185,40],[185,41,185,42],[185,43,185,44],[187,1,187,2],[187,21,187,38],[187,39,187,40],[187,41,187,42],[187,43,187,44],[188,48,188,50],[189,1,189,2],[189,21,189,38],[189,39,189,40],[189,41,189,42],[189,43,189,44],[189,45,189,47],[189,48,189,50],[187,45,187,47],[187,48,187,50],[188,1,188,2],[188,3,192,4],[188,5,189,20],[188,21,188,38],[188,39,188,40],[188,41,188,42],[188,43,188,44],[188,45,188,47],[190,1,192,2],[184,41,184,42],[184,43,184,44],[184,45,184,47],[184,48,184,50],[183,1,183,2],[183,21,183,38],[181,48,181,50],[182,1,182,2],[182,3,187,4],[182,5,184,20],[182,21,182,38],[182,39,182,40],[183,48,183,50],[184,1,184,2],[184,21,184,38],[184,39,184,40],[181,21,181,38],[181,39,181,40],[181,41,181,42],[181,43,181,44],[181,45,181,47],[183,39,183,40],[183,41,183,42],[183,43,183,44],[183,45,183,47],[185,45,185,47],[185,48,185,50],[186,1,186,2],[186,21,186,38],[186,39,186,40],[186,41,186,42],[186,43,186,44],[179,43,180,44],[179,45,180,47],[179,48,180,50],[178,1,178,2],[178,21,178,38],[182,41,182,42],[182,43,182,44],[182,45,182,47],[182,48,182,50],[181,1,181,2],[172,45,175,47],[172,48,175,50],[178,39,178,40],[178,41,178,42],[178,43,178,44],[178,45,178,47],[178,48,178,50],[172,1,175,2],[172,5,181,20],[172,21,175,38],[172,39,175,40],[172,41,175,42],[172,43,175,44],[179,1,180,2],[179,21,180,38],[179,39,180,40],[179,41,180,42],[167,43,167,44],[167,45,167,47],[165,48,165,50],[166,1,166,2],[166,21,166,38],[166,39,166,40],[166,41,166,42],[166,43,166,44],[171,1,171,2],[171,21,171,38],[171,39,171,40],[171,41,171,42],[171,43,171,44],[171,48,171,50],[171,45,171,47],[169,45,169,47],[169,48,169,50],[170,1,170,2],[170,5,171,20],[170,21,170,38],[170,39,170,40],[170,41,170,42],[170,43,170,44],[170,45,170,47],[170,48,170,50],[169,1,169,2],[169,5,169,20],[169,21,169,38],[169,39,169,40],[169,41,169,42],[169,43,169,44],[164,45,164,47],[164,48,164,50],[166,45,166,47],[166,48,166,50],[165,1,165,2],[165,21,165,38],[165,39,165,40],[165,41,165,42],[165,43,165,44],[165,45,165,47],[163,43,163,44],[163,45,163,47],[163,48,163,50],[164,1,164,2],[164,3,181,4],[164,5,168,20],[164,21,164,38],[164,39,164,40],[164,41,164,42],[164,43,164,44],[167,48,167,50],[168,1,168,2],[168,21,168,38],[168,39,168,40],[168,41,168,42],[168,43,168,44],[168,45,168,47],[168,48,168,50],[167,1,167,2],[167,21,167,38],[167,39,167,40],[167,41,167,42],[161,1,161,2],[161,21,161,38],[163,1,163,2],[163,21,163,38],[163,39,163,40],[163,41,163,42],[162,21,162,38],[162,39,162,40],[162,41,162,42],[162,43,162,44],[162,45,162,47],[162,48,162,50],[161,45,161,47],[159,45,159,47],[159,48,159,50],[160,45,160,47],[160,48,160,50],[161,48,161,50],[160,1,160,2],[160,3,163,20],[160,21,160,38],[160,39,160,40],[160,41,160,42],[160,43,160,44],[161,39,161,40],[161,41,161,42],[161,43,161,44],[162,1,162,2],[159,1,159,2],[159,3,159,20],[159,21,159,38],[159,39,159,40],[159,41,159,42],[159,43,159,44],[157,45,157,47],[157,48,157,50],[158,1,158,2],[158,21,158,38],[158,39,158,40],[158,41,158,42],[158,43,158,44],[158,45,158,47],[158,48,158,50],[157,1,157,2],[157,3,158,20],[157,21,157,38],[157,39,157,40],[157,41,157,42],[157,43,157,44],[156,21,156,38],[156,39,156,40],[156,41,156,42],[156,43,156,44],[156,45,156,47],[156,48,156,50],[154,48,154,50],[155,1,155,2],[155,3,156,20],[155,21,155,38],[155,39,155,40],[155,41,155,42],[155,43,155,44],[155,45,155,47],[155,48,155,50],[156,1,156,2],[153,1,153,2],[153,3,153,47],[153,48,153,50],[154,1,154,2],[154,3,154,20],[154,21,154,38],[154,39,154,40],[154,41,154,42],[154,43,154,44],[154,45,154,47],[149,43,150,44],[149,45,150,47],[149,48,150,50],[151,1,152,2],[151,21,152,38],[151,39,152,40],[151,41,152,42],[151,43,152,44],[151,45,152,47],[151,48,152,50],[144,45,147,47],[144,48,147,50],[148,1,148,2],[148,21,148,38],[148,39,148,40],[148,41,148,42],[148,43,148,44],[148,45,148,47],[148,48,148,50],[144,1,147,2],[144,3,152,20],[144,21,147,38],[144,39,147,40],[144,41,147,42],[144,43,147,44],[149,1,150,2],[149,21,150,38],[149,39,150,40],[149,41,150,42],[127,48,127,50],[128,1,131,2],[128,3,131,38],[128,39,128,44],[128,45,131,47],[128,48,131,50],[129,39,131,40],[129,41,131,42],[134,41,135,42],[134,43,135,44],[142,48,142,50],[143,1,143,2],[143,21,143,38],[143,39,143,40],[143,41,143,42],[143,43,143,44],[143,45,143,47],[143,48,143,50],[142,1,142,2],[142,21,142,38],[142,39,142,40],[142,41,142,42],[142,43,142,44],[142,45,142,47],[140,48,140,50],[141,48,141,50],[141,1,141,2],[141,21,141,38],[141,39,141,40],[141,41,141,42],[132,48,132,50],[138,1,138,2],[138,39,138,40],[138,41,138,42],[138,43,138,44],[138,45,138,47],[138,48,138,50],[139,1,139,2],[141,43,141,44],[141,45,141,47],[140,1,140,2],[140,21,140,38],[140,39,140,40],[140,41,140,42],[140,43,140,44],[140,45,140,47],[133,39,133,40],[133,41,133,42],[133,43,133,44],[136,1,136,2],[137,1,137,2],[136,21,136,38],[136,39,136,40],[136,41,136,42],[136,43,136,44],[136,45,136,47],[136,48,136,50],[137,21,137,38],[137,39,137,40],[137,41,137,42],[137,43,137,44],[137,45,137,47],[137,48,137,50],[136,3,137,20],[122,48,122,50],[127,1,127,47],[190,21,192,38],[190,39,192,40],[190,41,192,42],[190,43,192,44],[190,45,192,47],[130,43,131,44],[132,1,132,2],[132,3,132,47],[176,1,177,2],[176,21,177,38],[123,45,124,47],[123,48,124,50],[125,1,125,2],[133,45,133,47],[133,48,133,50],[134,1,135,2],[112,3,125,20],[119,39,121,40],[119,41,121,42],[134,21,135,38],[134,39,135,40],[139,21,139,38],[139,39,139,40],[139,41,139,42],[139,43,139,44],[139,45,139,47],[119,43,121,44],[119,45,121,47],[138,3,143,20],[138,21,138,38],[110,41,111,42],[110,43,111,44],[110,45,111,47],[108,43,109,44],[108,45,109,47],[203,48,204,50],[176,39,177,40],[176,41,177,42],[176,43,177,44],[176,45,177,47],[176,48,177,50],[203,1,204,2],[203,21,204,38],[203,39,204,40],[203,41,204,42],[203,43,204,44],[203,45,204,47],[116,48,117,50],[118,1,118,2],[118,21,118,38],[118,39,118,40],[118,41,118,42],[118,43,118,44],[118,45,118,47],[118,48,118,50],[116,43,117,44],[116,45,117,47],[134,45,135,47],[134,48,135,50],[133,1,133,2],[133,3,135,20],[133,21,133,38],[103,5,106,20],[103,21,103,38],[103,39,103,40],[103,41,103,42],[103,43,103,44],[103,45,103,47],[105,48,106,50],[107,43,107,44],[107,45,107,47],[107,48,107,50],[108,48,109,50],[107,1,107,2],[107,3,111,4],[107,5,109,20],[107,21,107,38],[107,39,107,40],[107,41,107,42],[108,21,109,38],[108,39,109,40],[108,41,109,42],[110,1,111,2],[105,1,106,2],[105,21,106,38],[105,39,106,40],[105,41,106,42],[105,43,106,44],[105,45,106,47],[110,48,111,50],[108,1,109,2],[110,5,111,20],[110,21,111,38],[110,39,111,40],[99,43,99,44],[99,45,99,47],[99,48,99,50],[100,1,100,2],[100,21,100,38],[100,39,100,40],[100,41,100,42],[100,43,100,44],[100,45,100,47],[100,48,100,50],[99,1,99,2],[99,3,106,4],[99,5,102,20],[99,21,99,38],[99,39,99,40],[99,41,99,42],[101,1,102,2],[101,21,102,38],[101,39,102,40],[101,41,102,42],[103,48,103,50],[104,1,104,2],[104,21,104,38],[104,39,104,40],[104,41,104,42],[104,43,104,44],[104,45,104,47],[104,48,104,50],[101,43,102,44],[101,45,102,47],[101,48,102,50],[103,1,103,2],[95,45,96,47],[95,48,96,50],[97,1,98,2],[97,5,98,20],[97,21,98,38],[97,39,98,40],[97,41,98,42],[97,43,98,44],[97,45,98,47],[97,48,98,50],[95,1,96,2],[95,5,96,20],[95,21,96,38],[95,39,96,40],[95,41,96,42],[95,43,96,44],[92,48,92,50],[93,1,94,2],[93,21,94,38],[93,39,94,40],[93,41,94,42],[93,43,94,44],[93,45,94,47],[93,48,94,50],[92,1,92,2],[92,21,92,38],[92,39,92,40],[92,41,92,42],[92,43,92,44],[92,45,92,47],[79,21,80,38],[79,39,80,40],[79,41,80,42],[83,1,84,2],[83,21,84,38],[83,39,84,40],[83,41,84,42],[91,21,91,38],[91,39,91,40],[91,41,91,42],[91,43,91,44],[91,45,91,47],[91,48,91,50],[87,48,89,50],[90,1,90,2],[90,5,94,20],[90,21,90,38],[90,39,90,40],[90,41,90,42],[90,43,90,44],[90,45,90,47],[90,48,90,50],[91,1,91,2],[87,1,89,2],[87,21,89,38],[87,39,89,40],[87,41,89,42],[87,43,89,44],[87,45,89,47],[75,45,76,47],[75,48,76,50],[73,45,73,47],[77,1,78,2],[74,1,74,2],[74,5,74,38],[74,39,74,40],[74,41,74,42],[74,43,74,44],[83,43,84,44],[83,45,84,47],[83,48,84,50],[85,1,86,2],[85,21,86,38],[85,39,86,40],[85,41,86,42],[85,43,86,44],[85,45,86,47],[85,48,86,50],[79,43,80,44],[79,45,80,47],[79,48,80,50],[81,1,82,2],[81,21,82,38],[81,39,82,40],[81,41,82,42],[81,43,82,44],[81,45,82,47],[81,48,82,50],[79,1,80,2],[79,3,98,4],[79,5,89,20],[74,45,74,47],[72,43,72,44],[72,45,72,47],[72,48,72,50],[73,1,73,2],[73,5,73,38],[73,39,73,40],[73,41,73,42],[73,43,73,44],[67,48,70,50],[73,48,73,50],[68,41,70,42],[69,43,70,44],[71,1,71,2],[71,3,71,47],[71,48,71,50],[72,1,72,2],[72,3,78,4],[72,5,72,38],[77,21,78,38],[77,39,78,40],[77,41,78,42],[77,43,78,44],[77,45,78,47],[77,48,78,50],[74,48,74,50],[75,1,76,2],[75,5,78,20],[75,21,76,38],[75,39,76,40],[75,41,76,42],[75,43,76,44],[64,48,64,50],[72,41,72,42],[65,1,65,47],[65,48,65,50],[66,1,66,47],[66,48,66,50],[67,1,70,2]],"merged_total":1371,"flags":["merged_cut"]}
[]
[""]
[null,"別記（Ａ４)　",null,null,null,null,null,"調査結果表"]
[null,"当該調査に関与した調査者",null,null,null,null,null,null,null,null,null,null,null,null,"氏　名",null,null,null,null,null,null,null,null,null,null,null,null,null,null,null,null,null,null,null,null,null,null,null,null,"調査者番号"]
[null,null,null,null,null,null,null,"代表となる調査者"]
[]
[null,null,null,null,null,null,null,"その他の調査者"]
[]
[]
[]
[]
[null,"番号",null,"調査項目",null,null,null,null,null,null,null,null,null,null,null,null,null,null,null,null,null,null,null,null,null,null,null,null,null,null,null,null,null,null,null,null,null,null,null,"調査結果",null,null,null,null,null,"担当\n調査者\n番号",null,null,"該当\nしない\n項目"]
[null,null,null,null,null,null,null,null,null,null,null,null,null,null,null,null,null,null,null,null,null,null,null,null,null,null,null,null,null,null,null,null,null,null,null,null,null,null,null,"指摘\nなし",null,"要是正"]
[null,null,null,null,null,null,null,null,null,null,null,null,null,null,null,null,null,null,null,null,null,null,null,null,null,null,null,null,null,null,null,null,null,null,null,null,null,null,null,null,null,null,null,"既存\n不適格"]
[]
[null,"1",null,"敷地及び地盤"]
[null,"(1)",null,"地盤",null,null,null,null,null,null,null,null,null,null,null,null,null,null,null,null,null,"地盤沈下等による不陸、傾斜等の状況",null,null,null,null,null,null,null,null,null,null,null,null,null,null,null,null,null,"",null,"",null,"",null,"",null,null,""]
[null,"(2)",null,"敷地",null,null,null,null,null,null,null,null,null,null,null,null,null,null,null,null,null,"敷地内の排水の状況",null,null,null,null,null,null,null,null,null,null,null,null,null,null,null,null,null,"",null,"",null,"",null,"",null,null,""]
[null,"(3)",null,"令第128条に規定する通路（以下「敷地内の通路」という。）",null,null,null,null,null,null,null,null,null,null,null,null,null,null,null,null,null,"敷地内の通路の確保の状況",null,null,null,null,null,null,null,null,null,null,null,null,null,null,null,null,null,"",null,"",null,"",null,"",null,null,""]
[null,"(4)",null,null,null,null,null,null,null,null,null,null,null,null,null,null,null,null,null,null,null,"有効幅員の確保の状況",null,null,null,null,null,null,null,null,null,null,null,null,null,null,null,null,null,"",null,"",null,"",null,"",null,null,""]
[null,"(5)",null,null,null,null,null,null,null,null,null,null,null,null,null,null,null,null,null,null,null,"敷地内の通路の支障物の状況",null,null,null,null,null,null,null,null,null,null,null,null,null,null,null,null,null,"",null,"",null,"",null,"",null,null,""]
[null,"(6)",null,"塀",null,null,null,null,null,null,null,null,null,null,null,null,null,null,null,null,null,"組積造の塀又は補強コンクリートブロック造の塀等の耐震対策の状況",null,null,null,null,null,null,null,null,null,null,null,null,null,null,null,null,null,"",null,"",null,"",null,"",null,null,""]
[]
[null,"(7)",null,null,null,null,null,null,null,null,null,null,null,null,null,null,null,null,null,null,null,"組積造の塀又は補強コンクリートブロック造の塀等の劣化及び損傷の状況",null,null,null,null,null,null,null,null,null,null,null,null,null,null,null,null,null,"",null,"",null,"",null,"",null,null,""]
[]
[null,"(8)",null,"擁壁",null,null,null,null,null,null,null,null,null,null,null,null,null,null,null,null,null,"擁壁の劣化及び損傷の状況",null,null,null,null,null,null,null,null,null,null,null,null,null,null,null,null,null,"",null,"",null,"",null,"",null,null,""]
[null,"(9)",null,null,null,null,null,null,null,null,null,null,null,null,null,null,null,null,null,null,null,"擁壁の水抜きパイプの維持保全の状況",null,null,null,null,null,null,null,null,null,null,null,null,null,null,null,null,null,"",null,"",null,"",null,"",null,null,""]
[null,2,null,"建築物の外部"]
[null,"(1)",null,"基礎",null,null,null,null,null,null,null,null,null,null,null,null,null,null,null,null,null,"基礎の沈下等の状況",null,null,null,null,null,null,null,null,null,null,null,null,null,null,null,null,null,"",null,"",null,"",null,"",null,null,""]
[null,"(2)",null,null,null,null,null,null,null,null,null,null,null,null,null,null,null,null,null,null,null,"基礎の劣化及び損傷の状況",null,null,null,null,null,null,null,null,null,null,null,null,null,null,null,null,null,"",null,"",null,"",null,"",null,null,""]
[null,"(3)",null,"土台（木造に限る。）",null,null,null,null,null,null,null,null,null,null,null,null,null,null,null,null,null,"土台の沈下等の状況",null,null,null,null,null,null,null,null,null,null,null,null,null,null,null,null,null,"",null,"",null,"",null,"",null,null,""]
[null,"(4)",null,null,null,null,null,null,null,null,null,null,null,null,null,null,null,null,null,null,null,"土台の劣化及び損傷の状況",null,null,null,null,null,null,null,null,null,null,null,null,null,null,null,null,null,"",null,"",null,"",null,"",null,null,""]
[null,"(5)",null,"外壁",null,"躯体等",null,null,null,null,null,null,null,null,null,null,null,null,null,null,null,"外壁、軒裏及び外壁の開口部で延焼のおそれのある部分の防火対策の状況",null,null,null,null,null,null,null,null,null,null,null,null,null,null,null,null,null,"",null,"",null,"",null,"",null,null,""]
[]
[null,"(6)",null,null,null,null,null,null,null,null,null,null,null,null,null,null,null,null,null,null,null,"木造の外壁躯体の劣化及び損傷の状況",null,null,null,null,null,null,null,null,null,null,null,null,null,null,null,null,null,"",null,"",null,"",null,"",null,null,""]
[null,"(7)",null,null,null,null,null,null,null,null,null,null,null,null,null,null,null,null,null,null,null,"組積造の外壁躯体の劣化及び損傷の状況",null,null,null,null,null,null,null,null,null,null,null,null,null,null,null,null,null,"",null,"",null,"",null,"",null,null,""]
[null,"(8)",null,null,null,null,null,null,null,null,null,null,null,null,null,null,null,null,null,null,null,"補強コンクリートブロック造の外壁躯体の劣化及び損傷の状況",null,null,null,null,null,null,null,null,null,null,null,null,null,null,null,null,null,"",null,"",null,"",null,"",null,null,""]
[]
[null,"(9)",null,null,null,null,null,null,null,null,null,null,null,null,null,null,null,null,null,null,null,"鉄骨造の外壁躯体の劣化及び損傷の状況",null,null,null,null,null,null,null,null,null,null,null,null,null,null,null,null,null,"",null,"",null,"",null,"",null,null,""]
[null,"(10)",null,null,null,null,null,null,null,null,null,null,null,null,null,null,null,null,null,null,null,"鉄筋コンクリート造及び鉄骨鉄筋コンクリート造の外壁躯体の劣化及び損傷の状況",null,null,null,null,null,null,null,null,null,null,null,null,null,null,null,null,null,"",null,"",null,"",null,"",null,null,""]
[]
[null,"(11)",null,null,null,"外装仕上げ材等",null,null,null,null,null,null,null,null,null,null,null,null,null,null,null,"タイル、石貼り等（乾式工法によるものを除く。）、モルタル等の劣化及び損傷の状況",null,null,null,null,null,null,null,null,null,null,null,null,null,null,null,null,null,"",null,"",null,"",null,"",null,null,""]
[]
[null,"(12)",null,null,null,null,null,null,null,null,null,null,null,null,null,null,null,null,null,null,null,"乾式工法によるタイル、石貼り等の劣化及び損傷の状況",null,null,null,null,null,null,null,null,null,null,null,null,null,null,null,null,null,"",null,"",null,"",null,"",null,null,""]
[]
[null,"(13)",null,null,null,null,null,null,null,null,null,null,null,null,null,null,null,null,null,null,null,"金属系パネル（帳壁を含む。）の劣化及び損傷の状況",null,null,null,null,null,null,null,null,null,null,null,null,null,null,null,null,null,"",null,"",null,"",null,"",null,null,""]
[]
[null,"(14)",null,null,null,null,null,null,null,null,null,null,null,null,null,null,null,null,null,null,null,"コンクリート系パネル（帳壁を含む。）の劣化及び損傷の状況",null,null,null,null,null,null,null,null,null,null,null,null,null,null,null,null,null,"",null,"",null,"",null,"",null,null,""]
[]
[null,"(15)",null,null,null,"窓サッシ等",null,null,null,null,null,null,null,null,null,null,null,null,null,null,null,"サッシ等の劣化及び損傷の状況",null,null,null,null,null,null,null,null,null,null,null,null,null,null,null,null,null,"",null,"",null,"",null,"",null,null,""]
[null,"(16)",null,null,null,null,null,null,null,null,null,null,null,null,null,null,null,null,null,null,null,"はめ殺し窓のガラスの固定の状況",null,null,null,null,null,null,null,null,null,null,null,null,null,null,null,null,null,"",null,"",null,"",null,"",null,null,""]
[null,"(17)",null,null,null,"外壁に緊結された広告板、空調室外機等",null,null,null,null,null,null,null,null,null,null,null,null,null,null,null,"機器本体の劣化及び損傷の状況",null,null,null,null,null,null,null,null,null,null,null,null,null,null,null,null,null,"",null,"",null,"",null,"",null,null,""]
[null,"(18)",null,null,null,null,null,null,null,null,null,null,null,null,null,null,null,null,null,null,null,"支持部分等の劣化及び損傷の状況",null,null,null,null,null,null,null,null,null,null,null,null,null,null,null,null,null,"",null,"",null,"",null,"",null,null,""]
[null,3,null,"屋上及び屋根"]
[null,"(1)",null,"屋上面",null,null,null,null,null,null,null,null,null,null,null,null,null,null,null,null,null,"屋上面の劣化及び損傷の状況",null,null,null,null,null,null,null,null,null,null,null,null,null,null,null,null,null,"",null,"",null,"",null,"",null,null,""]
[null,"(2)",null,"屋上回り（屋上面を除く。）",null,null,null,null,null,null,null,null,null,null,null,null,null,null,null,null,null,"パラペットの立ち上り面の劣化及び損傷の状況",null,null,null,null,null,null,null,null,null,null,null,null,null,null,null,null,null,"",null,"",null,"",null,"",null,null,""]
[null,"(3)",null,null,null,null,null,null,null,null,null,null,null,null,null,null,null,null,null,null,null,"笠木モルタル等の劣化及び損傷の状況",null,null,null,null,null,null,null,null,null,null,null,null,null,null,null,null,null,"",null,"",null,"",null,"",null,null,""]
[null,"(4)",null,null,null,null,null,null,null,null,null,null,null,null,null,null,null,null,null,null,null,"金属笠木の劣化及び損傷の状況",null,null,null,null,null,null,null,null,null,null,null,null,null,null,null,null,null,"",null,"",null,"",null,"",null,null,""]
[null,"(5)",null,null,null,null,null,null,null,null,null,null,null,null,null,null,null,null,null,null,null,"排水溝（ドレーンを含む。）の劣化及び損傷の状況",null,null,null,null,null,null,null,null,null,null,null,null,null,null,null,null,null,"",null,"",null,"",null,"",null,null,""]
[]
[null,"(6)",null,"屋根",null,null,null,null,null,null,null,null,null,null,null,null,null,null,null,null,null,"屋根の防火対策の状況",null,null,null,null,null,null,null,null,null,null,null,null,null,null,null,null,null,"",null,"",null,"",null,"",null,null,""]
[null,"(7)",null,null,null,null,null,null,null,null,null,null,null,null,null,null,null,null,null,null,null,"屋根の劣化及び損傷の状況",null,null,null,null,null,null,null,null,null,null,null,null,null,null,null,null,null,"",null,"",null,"",null,"",null,null,""]
[null,"(8)",null,"機器及び工作物（冷却塔設備、広告塔等）",null,null,null,null,null,null,null,null,null,null,null,null,null,null,null,null,null,"機器、工作物本体及び接合部の劣化及び損傷の状況",null,null,null,null,null,null,null,null,null,null,null,null,null,null,null,null,null,"",null,"",null,"",null,"",null,null,""]
[]
[null,"(9)",null,null,null,null,null,null,null,null,null,null,null,null,null,null,null,null,null,null,null,"支持部分等の劣化及び損傷の状況",null,null,null,null,null,null,null,null,null,null,null,null,null,null,null,null,null,"",null,"",null,"",null,"",null,null,""]
[]
[]
[null,"番号",null,"調査項目",null,null,null,null,null,null,null,null,null,null,null,null,null,null,null,null,null,null,null,null,null,null,null,null,null,null,null,null,null,null,null,null,null,null,null,"調査結果",null,null,null,null,null,"担当\n調査者\n番号",null,null,"該当\nしない\n項目"]
[null,null,null,null,null,null,null,null,null,null,null,null,null,null,null,null,null,null,null,null,null,null,null,null,null,null,null,null,null,null,null,null,null,null,null,null,null,null,null,"指摘\nなし",null,"要是正"]
[null,null,null,null,null,null,null,null,null,null,null,null,null,null,null,null,null,null,null,null,null,null,null,null,null,null,null,null,null,null,null,null,null,null,null,null,null,null,null,null,null,null,null,"既存\n不適格"]
[]
[null,4,null,"建築物の内部"]
[null,"(1)",null,"防火区画",null,"令第112条第11項から第13項までに規定する区画の状況",null,null,null,null,null,null,null,null,null,null,null,null,null,null,null,null,null,null,null,null,null,null,null,null,null,null,null,null,null,null,null,null,null,"",null,"",null,"",null,"",null,null,""]
[null,"(2)",null,null,null,"令第112条第1項、第4項、第5項又は第7項から第10項までの各項に規定する区画の状況",null,null,null,null,null,null,null,null,null,null,null,null,null,null,null,null,null,null,null,null,null,null,null,null,null,null,null,null,null,null,null,null,null,"",null,"",null,"",null,"",null,null,""]
[null,"(3)",null,null,null,"令第112条第18項に規定する区画の状況",null,null,null,null,null,null,null,null,null,null,null,null,null,null,null,null,null,null,null,null,null,null,null,null,null,null,null,null,null,null,null,null,null,"",null,"",null,"",null,"",null,null,""]
[null,"(4)",null,null,null,"防火区画の外周部",null,null,null,null,null,null,null,null,null,null,null,null,null,null,null,"令第112条第16項に規定する外壁等及び同条第17項に規定する防火設備の処置の状況",null,null,null,null,null,null,null,null,null,null,null,null,null,null,null,null,null,"",null,"",null,"",null,"",null,null,""]
[]
[null,"(5)",null,null,null,null,null,null,null,null,null,null,null,null,null,null,null,null,null,null,null,"令第112条第16項に規定する外壁等及び同条第17項に規定する防火設備の劣化及び損傷の状況",null,null,null,null,null,null,null,null,null,null,null,null,null,null,null,null,null,"",null,"",null,"",null,"",null,null,""]
[]
[null,"(6)",null,"壁の室内に面する部分",null,"躯体等",null,null,null,null,null,null,null,null,null,null,null,null,null,null,null,"木造の壁の室内に面する部分の躯体の劣化及び損傷の状況",null,null,null,null,null,null,null,null,null,null,null,null,null,null,null,null,null,"",null,"",null,"",null,"",null,null,""]
[]
[null,"(7)",null,null,null,null,null,null,null,null,null,null,null,null,null,null,null,null,null,null,null,"組積造の壁の室内に面する部分の躯体の劣化及び損傷の状況",null,null,null,null,null,null,null,null,null,null,null,null,null,null,null,null,null,"",null,"",null,"",null,"",null,null,""]
[]
[null,"(8)",null,null,null,null,null,null,null,null,null,null,null,null,null,null,null,null,null,null,null,"補強コンクリートブロック造の壁の室内に面する部分の躯体の劣化及び損傷の状況",null,null,null,null,null,null,null,null,null,null,null,null,null,null,null,null,null,"",null,"",null,"",null,"",null,null,""]
[]
[null,"(9)",null,null,null,null,null,null,null,null,null,null,null,null,null,null,null,null,null,null,null,"鉄骨造の壁の室内に面する部分の躯体の劣化及び損傷の状況",null,null,null,null,null,null,null,null,null,null,null,null,null,null,null,null,null,"",null,"",null,"",null,"",null,null,""]
[]
[null,"(10)",null,null,null,null,null,null,null,null,null,null,null,null,null,null,null,null,null,null,null,"鉄筋コンクリート造及び鉄骨鉄筋コンクリート造の壁の室内に面する部分の躯体の劣化及び損傷の状況",null,null,null,null,null,null,null,null,null,null,null,null,null,null,null,null,null,"",null,"",null,"",null,"",null,null,""]
[]
[]
[null,"(11)",null,null,null,"耐火構造の壁又は準耐火構造の壁（防火区画を構成する壁に限る。）\n",null,null,null,null,null,null,null,null,null,null,null,null,null,null,null,"準耐火性能等の確保の状況",null,null,null,null,null,null,null,null,null,null,null,null,null,null,null,null,null,"",null,"",null,"",null,"",null,null,""]
[null,"(12)",null,null,null,null,null,null,null,null,null,null,null,null,null,null,null,null,null,null,null,"部材の劣化及び損傷の状況",null,null,null,null,null,null,null,null,null,null,null,null,null,null,null,null,null,"",null,"",null,"",null,"",null,null,""]
[null,"(13)",null,null,null,null,null,null,null,null,null,null,null,null,null,null,null,null,null,null,null,"鉄骨の耐火被覆の劣化及び損傷の状況",null,null,null,null,null,null,null,null,null,null,null,null,null,null,null,null,null,"",null,"",null,"",null,"",null,null,""]
[null,"(14)",null,null,null,null,null,null,null,null,null,null,null,null,null,null,null,null,null,null,null,"給水管、配電管その他の管又は風道の区画\n貫通部の充填等の処理の状況",null,null,null,null,null,null,null,null,null,null,null,null,null,null,null,null,null,"",null,"",null,"",null,"",null,null,""]
[]
[null,"(15)",null,null,null,"令第114条に規定する界壁、間仕切壁及び隔壁",null,null,null,null,null,null,null,null,null,null,null,null,null,null,null,"令第114条に規定する界壁、間仕切壁及び\n隔壁の状況",null,null,null,null,null,null,null,null,null,null,null,null,null,null,null,null,null,"",null,"",null,"",null,"",null,null,""]
[]
[null,"(16)",null,null,null,"令第128条の5各項に規定する建築物の壁の室内に面する部分",null,null,null,null,null,null,null,null,null,null,null,null,null,null,null,"室内に面する部分の仕上げの維持保全の状況",null,null,null,null,null,null,null,null,null,null,null,null,null,null,null,null,null,"",null,"",null,"",null,"",null,null,""]
[]
[null,"(17)",null,"床",null,"躯体等",null,null,null,null,null,null,null,null,null,null,null,null,null,null,null,"木造の床躯体の劣化及び損傷の状況",null,null,null,null,null,null,null,null,null,null,null,null,null,null,null,null,null,"",null,"",null,"",null,"",null,null,""]
[null,"(18)",null,null,null,null,null,null,null,null,null,null,null,null,null,null,null,null,null,null,null,"鉄骨造の床躯体の劣化及び損傷の状況",null,null,null,null,null,null,null,null,null,null,null,null,null,null,null,null,null,"",null,"",null,"",null,"",null,null,""]
[null,"(19)",null,null,null,null,null,null,null,null,null,null,null,null,null,null,null,null,null,null,null,"鉄筋コンクリート造及び鉄骨鉄筋コンクリート造の床躯体の劣化及び損傷の状況",null,null,null,null,null,null,null,null,null,null,null,null,null,null,null,null,null,"",null,"",null,"",null,"",null,null,""]
[]
[null,"(20)",null,null,null,"耐火構造の床又は準耐火構造の床（防火区画を構成する床に限る。）",null,null,null,null,null,null,null,null,null,null,null,null,null,null,null,"準耐火性能等の確保の状況",null,null,null,null,null,null,null,null,null,null,null,null,null,null,null,null,null,"",null,"",null,"",null,"",null,null,""]
[null,"(21)",null,null,null,null,null,null,null,null,null,null,null,null,null,null,null,null,null,null,null,"部材の劣化及び損傷の状況",null,null,null,null,null,null,null,null,null,null,null,null,null,null,null,null,null,"",null,"",null,"",null,"",null,null,""]
[null,"(22)",null,null,null,null,null,null,null,null,null,null,null,null,null,null,null,null,null,null,null,"給水管、配電管その他の管又は風道の区画貫通部の充填等の処理の状況",null,null,null,null,null,null,null,null,null,null,null,null,null,null,null,null,null,"",null,"",null,"",null,"",null,null,""]
[]
[null,"(23)",null,"天井",null,"令第128条の5各項に規定する建築物の天井の室内に面する部分",null,null,null,null,null,null,null,null,null,null,null,null,null,null,null,"室内に面する部分の仕上げの維持保全の状況",null,null,null,null,null,null,null,null,null,null,null,null,null,null,null,null,null,"",null,"",null,"",null,"",null,null,""]
[null,"(24)",null,null,null,null,null,null,null,null,null,null,null,null,null,null,null,null,null,null,null,"室内に面する部分の仕上げの劣化及び損傷の状況",null,null,null,null,null,null,null,null,null,null,null,null,null,null,null,null,null,"",null,"",null,"",null,"",null,null,""]
[]
[null,"(25)",null,null,null,"特定天井",null,null,null,null,null,null,null,null,null,null,null,null,null,null,null,"特定天井の天井材の劣化及び損傷の状況",null,null,null,null,null,null,null,null,null,null,null,null,null,null,null,null,null,"",null,"",null,"",null,"",null,null,""]
[]
[null,"(26)",null,"防火設備（防火扉、防火シャッターその他これらに類するものに限る。以下同じ。）又は戸",null,null,null,null,null,null,null,null,null,null,null,null,null,null,null,null,null,"区画に対応した防火設備又は戸の設置の状況",null,null,null,null,null,null,null,null,null,null,null,null,null,null,null,null,null,"",null,"",null,"",null,"",null,null,""]
[null,"(27)",null,null,null,null,null,null,null,null,null,null,null,null,null,null,null,null,null,null,null,"居室から地上へ通じる主たる廊下、階段その他の通路に設置された防火設備又は戸におけるくぐり戸の設置の状況",null,null,null,null,null,null,null,null,null,null,null,null,null,null,null,null,null,"",null,"",null,"",null,"",null,null,""]
[]
[]
[null,"(28)",null,null,null,null,null,null,null,null,null,null,null,null,null,null,null,null,null,null,null,"昭和48年建設省告示第2563号第1第一号ロに規定する基準についての適合の状況",null,null,null,null,null,null,null,null,null,null,null,null,null,null,null,null,null,"",null,"",null,"",null,"",null,null,""]
[]
[null,"(29)",null,null,null,null,null,null,null,null,null,null,null,null,null,null,null,null,null,null,null,"防火扉又は戸の開放方向",null,null,null,null,null,null,null,null,null,null,null,null,null,null,null,null,null,"",null,"",null,"",null,"",null,null,""]
[null,"(30)",null,null,null,null,null,null,null,null,null,null,null,null,null,null,null,null,null,null,null,"常時閉鎖又は作動した状態にある防火設備又は戸（以下「常閉防火設備等」という。)の本体と枠の劣化及び損傷の状況",null,null,null,null,null,null,null,null,null,null,null,null,null,null,null,null,null,"",null,"",null,"",null,"",null,null,""]
[]
[]
[null,"(31)",null,null,null,null,null,null,null,null,null,null,null,null,null,null,null,null,null,null,null,"常閉防火設備等の閉鎖又は作動の状況",null,null,null,null,null,null,null,null,null,null,null,null,null,null,null,null,null,"",null,"",null,"",null,"",null,null,""]
[null,"(32)",null,null,null,null,null,null,null,null,null,null,null,null,null,null,null,null,null,null,null,"常閉防火設備等の閉鎖又は作動の障害となる物品の放置の状況",null,null,null,null,null,null,null,null,null,null,null,null,null,null,null,null,null,"",null,"",null,"",null,"",null,null,""]
[]
[null,"(33)",null,null,null,null,null,null,null,null,null,null,null,null,null,null,null,null,null,null,null,"常閉防火扉等の固定の状況",null,null,null,null,null,null,null,null,null,null,null,null,null,null,null,null,null,"",null,"",null,"",null,"",null,null,""]
[]
[]
[null,"番号",null,"調査項目",null,null,null,null,null,null,null,null,null,null,null,null,null,null,null,null,null,null,null,null,null,null,null,null,null,null,null,null,null,null,null,null,null,null,null,"調査結果",null,null,null,null,null,"担当\n調査者\n番号",null,null,"該当\nしない\n項目"]
[null,null,null,null,null,null,null,null,null,null,null,null,null,null,null,null,null,null,null,null,null,null,null,null,null,null,null,null,null,null,null,null,null,null,null,null,null,null,null,"指摘\nなし",null,"要是正"]
[null,null,null,null,null,null,null,null,null,null,null,null,null,null,null,null,null,null,null,null,null,null,null,null,null,null,null,null,null,null,null,null,null,null,null,null,null,null,null,null,null,null,null,"既存\n不適格"]
[]
[null,4,null,"建築物の内部"]
[null,"(34)",null,"照明器具、懸垂物等",null,null,null,null,null,null,null,null,null,null,null,null,null,null,null,null,null,"照明器具、懸垂物等の落下防止対策の状況　",null,null,null,null,null,null,null,null,null,null,null,null,null,null,null,null,null,"",null,"",null,"",null,"",null,null,""]
[null,"(35)",null,null,null,null,null,null,null,null,null,null,null,null,null,null,null,null,null,null,null,"防火設備又は戸の閉鎖の障害となる照明器具、懸垂物等の状況",null,null,null,null,null,null,null,null,null,null,null,null,null,null,null,null,null,"",null,"",null,"",null,"",null,null,""]
[]
[null,"(36)",null,"警報設備",null,null,null,null,null,null,null,null,null,null,null,null,null,null,null,null,null,"警報設備の設置の状況",null,null,null,null,null,null,null,null,null,null,null,null,null,null,null,null,null,"",null,"",null,"",null,"",null,null,""]
[null,"(37)",null,null,null,null,null,null,null,null,null,null,null,null,null,null,null,null,null,null,null,"警報設備の劣化及び損傷の状況",null,null,null,null,null,null,null,null,null,null,null,null,null,null,null,null,null,"",null,"",null,"",null,"",null,null,""]
[null,"(38)",null,"居室の採光及び換気",null,null,null,null,null,null,null,null,null,null,null,null,null,null,null,null,null,"採光のための開口部の面積の確保の状況",null,null,null,null,null,null,null,null,null,null,null,null,null,null,null,null,null,"",null,"",null,"",null,"",null,null,""]
[null,"(39)",null,null,null,null,null,null,null,null,null,null,null,null,null,null,null,null,null,null,null,"採光の妨げとなる物品の放置の状況",null,null,null,null,null,null,null,null,null,null,null,null,null,null,null,null,null,"",null,"",null,"",null,"",null,null,""]
[null,"(40)",null,null,null,null,null,null,null,null,null,null,null,null,null,null,null,null,null,null,null,"換気のための開口部の面積の確保の状況",null,null,null,null,null,null,null,null,null,null,null,null,null,null,null,null,null,"",null,"",null,"",null,"",null,null,""]
[null,"(41)",null,null,null,null,null,null,null,null,null,null,null,null,null,null,null,null,null,null,null,"換気設備の設置の状況",null,null,null,null,null,null,null,null,null,null,null,null,null,null,null,null,null,"",null,"",null,"",null,"",null,null,""]
[null,"(42)",null,null,null,null,null,null,null,null,null,null,null,null,null,null,null,null,null,null,null,"換気設備の作動の状況",null,null,null,null,null,null,null,null,null,null,null,null,null,null,null,null,null,"",null,"",null,"",null,"",null,null,""]
[null,"(43)",null,null,null,null,null,null,null,null,null,null,null,null,null,null,null,null,null,null,null,"換気の妨げとなる物品の放置の状況",null,null,null,null,null,null,null,null,null,null,null,null,null,null,null,null,null,"",null,"",null,"",null,"",null,null,""]
[null,"(44)",null,"石綿等を添加した建築材料　",null,null,null,null,null,null,null,null,null,null,null,null,null,null,null,null,null,"吹付け石綿及び吹付けロックウールでその含有する石綿の重量が当該建築材料の重量の0.1パーセントを超えるもの（以下「吹付け石綿等」という。）の使用の状況",null,null,null,null,null,null,null,null,null,null,null,null,null,null,null,null,null,"",null,"",null,"",null,"",null,null,""]
[]
[]
[]
[null,"(45)",null,null,null,null,null,null,null,null,null,null,null,null,null,null,null,null,null,null,null,"吹付け石綿等の劣化の状況　",null,null,null,null,null,null,null,null,null,null,null,null,null,null,null,null,null,"",null,"",null,"",null,"",null,null,""]
[null,"(46)",null,null,null,null,null,null,null,null,null,null,null,null,null,null,null,null,null,null,null,"除去又は囲い込み若しくは封じ込めによる飛散防止措置の実施の状況　",null,null,null,null,null,null,null,null,null,null,null,null,null,null,null,null,null,"",null,"",null,"",null,"",null,null,""]
[]
[null,"(47)",null,null,null,null,null,null,null,null,null,null,null,null,null,null,null,null,null,null,null,"囲い込み又は封じ込めによる飛散防止措置の劣化及び損傷の状況　",null,null,null,null,null,null,null,null,null,null,null,null,null,null,null,null,null,"",null,"",null,"",null,"",null,null,""]
[]
[null,5,null,"避難施設等"]
[null,"(1)",null,"令第120条第2項に規定する通路",null,null,null,null,null,null,null,null,null,null,null,null,null,null,null,null,null,"令第120条第2項に規定する通路の確保の状況",null,null,null,null,null,null,null,null,null,null,null,null,null,null,null,null,null,"",null,"",null,"",null,"",null,null,""]
[null,"(2)",null,"廊下",null,null,null,null,null,null,null,null,null,null,null,null,null,null,null,null,null,"幅の確保の状況",null,null,null,null,null,null,null,null,null,null,null,null,null,null,null,null,null,"",null,"",null,"",null,"",null,null,""]
[null,"(3)",null,null,null,null,null,null,null,null,null,null,null,null,null,null,null,null,null,null,null,"物品の放置の状況",null,null,null,null,null,null,null,null,null,null,null,null,null,null,null,null,null,"",null,"",null,"",null,"",null,null,""]
[null,"(4)",null,"出入口",null,null,null,null,null,null,null,null,null,null,null,null,null,null,null,null,null,"出入口の確保の状況",null,null,null,null,null,null,null,null,null,null,null,null,null,null,null,null,null,"",null,"",null,"",null,"",null,null,""]
[null,"(5)",null,null,null,null,null,null,null,null,null,null,null,null,null,null,null,null,null,null,null,"物品の放置の状況",null,null,null,null,null,null,null,null,null,null,null,null,null,null,null,null,null,"",null,"",null,"",null,"",null,null,""]
[null,"(6)",null,"屋上広場",null,null,null,null,null,null,null,null,null,null,null,null,null,null,null,null,null,"屋上広場の確保の状況",null,null,null,null,null,null,null,null,null,null,null,null,null,null,null,null,null,"",null,"",null,"",null,"",null,null,""]
[null,"(7)",null,"避難上有効なバルコニー",null,null,null,null,null,null,null,null,null,null,null,null,null,null,null,null,null,"避難上有効なバルコニーの確保の状況",null,null,null,null,null,null,null,null,null,null,null,null,null,null,null,null,null,"",null,"",null,"",null,"",null,null,""]
[null,"(8)",null,null,null,null,null,null,null,null,null,null,null,null,null,null,null,null,null,null,null,"手すり等の劣化及び損傷の状況",null,null,null,null,null,null,null,null,null,null,null,null,null,null,null,null,null,"",null,"",null,"",null,"",null,null,""]
[null,"(9)",null,null,null,null,null,null,null,null,null,null,null,null,null,null,null,null,null,null,null,"物品の放置の状況",null,null,null,null,null,null,null,null,null,null,null,null,null,null,null,null,null,"",null,"",null,"",null,"",null,null,""]
[null,"(10)",null,null,null,null,null,null,null,null,null,null,null,null,null,null,null,null,null,null,null,"避難器具の操作性の確保の状況",null,null,null,null,null,null,null,null,null,null,null,null,null,null,null,null,null,"",null,"",null,"",null,"",null,null,""]
[null,"(11)",null,"階段",null,"階段",null,null,null,null,null,null,null,null,null,null,null,null,null,null,null,"直通階段の設置の状況",null,null,null,null,null,null,null,null,null,null,null,null,null,null,null,null,null,"",null,"",null,"",null,"",null,null,""]
[null,"(12)",null,null,null,null,null,null,null,null,null,null,null,null,null,null,null,null,null,null,null,"幅の確保の状況",null,null,null,null,null,null,null,null,null,null,null,null,null,null,null,null,null,"",null,"",null,"",null,"",null,null,""]
[null,"(13)",null,null,null,null,null,null,null,null,null,null,null,null,null,null,null,null,null,null,null,"手すりの設置の状況",null,null,null,null,null,null,null,null,null,null,null,null,null,null,null,null,null,"",null,"",null,"",null,"",null,null,""]
[null,"(14)",null,null,null,null,null,null,null,null,null,null,null,null,null,null,null,null,null,null,null,"物品の放置の状況",null,null,null,null,null,null,null,null,null,null,null,null,null,null,null,null,null,"",null,"",null,"",null,"",null,null,""]
[null,"(15)",null,null,null,null,null,null,null,null,null,null,null,null,null,null,null,null,null,null,null,"階段各部の劣化及び損傷の状況",null,null,null,null,null,null,null,null,null,null,null,null,null,null,null,null,null,"",null,"",null,"",null,"",null,null,""]
[null,"(16)",null,null,null,"屋内に設けられた避難階段",null,null,null,null,null,null,null,null,null,null,null,null,null,null,null,"階段室の構造の状況",null,null,null,null,null,null,null,null,null,null,null,null,null,null,null,null,null,"",null,"",null,"",null,"",null,null,""]
[null,"(17)",null,null,null,"屋外に設けられた避難階段",null,null,null,null,null,null,null,null,null,null,null,null,null,null,null,"屋内と階段との間の防火区画の確保の状況",null,null,null,null,null,null,null,null,null,null,null,null,null,null,null,null,null,"",null,"",null,"",null,"",null,null,""]
[null,"(18)",null,null,null,null,null,null,null,null,null,null,null,null,null,null,null,null,null,null,null,"開放性の確保の状況",null,null,null,null,null,null,null,null,null,null,null,null,null,null,null,null,null,"",null,"",null,"",null,"",null,null,""]
[null,"(19)",null,null,null,"特別避難階段",null,null,null,null,null,null,null,null,null,null,null,null,null,null,null,"令第123条第3項第一号に規定するバルコニー（以下単に「バルコニー」という。）又は付室（以下単に「付室」という。）の構造及び面積の確保の状況",null,null,null,null,null,null,null,null,null,null,null,null,null,null,null,null,null,"",null,"",null,"",null,"",null,null,""]
[]
[]
[]
[null,"(20)",null,null,null,null,null,null,null,null,null,null,null,null,null,null,null,null,null,null,null,"階段室又は付室（以下「付室等」という。）の排煙設備の設置の状況",null,null,null,null,null,null,null,null,null,null,null,null,null,null,null,null,null,"",null,"",null,"",null,""]
[]
[null,"(21)",null,null,null,null,null,null,null,null,null,null,null,null,null,null,null,null,null,null,null,"付室等の排煙設備の作動の状況",null,null,null,null,null,null,null,null,null,null,null,null,null,null,null,null,null,"",null,"",null,"",null,"",null,null,""]
[null,"(22)",null,null,null,null,null,null,null,null,null,null,null,null,null,null,null,null,null,null,null,"付室等の外気に向かって開くことができる窓の状況",null,null,null,null,null,null,null,null,null,null,null,null,null,null,null,null,null,"",null,"",null,"",null,"",null,null,""]
[]
[null,"(23)",null,null,null,null,null,null,null,null,null,null,null,null,null,null,null,null,null,null,null,"物品の放置の状況",null,null,null,null,null,null,null,null,null,null,null,null,null,null,null,null,null,"",null,"",null,"",null,"",null,null,""]
[null,"(24)",null,"排煙設備等",null,"防煙壁",null,null,null,null,null,null,null,null,null,null,null,null,null,null,null,"防煙区画の設置の状況",null,null,null,null,null,null,null,null,null,null,null,null,null,null,null,null,null,"",null,"",null,"",null,"",null,null,""]
[null,"(25)",null,null,null,null,null,null,null,null,null,null,null,null,null,null,null,null,null,null,null,"防煙壁の劣化及び損傷の状況",null,null,null,null,null,null,null,null,null,null,null,null,null,null,null,null,null,"",null,"",null,"",null,"",null,null,""]
[null,"(26)",null,null,null,null,null,null,null,null,null,null,null,null,null,null,null,null,null,null,null,"可動式防煙壁の作動の状況",null,null,null,null,null,null,null,null,null,null,null,null,null,null,null,null,null,"",null,"",null,"",null,"",null,null,""]
[null,"(27)",null,null,null,"排煙設備",null,null,null,null,null,null,null,null,null,null,null,null,null,null,null,"排煙設備の設置の状況",null,null,null,null,null,null,null,null,null,null,null,null,null,null,null,null,null,"",null,"",null,"",null,"",null,null,""]
[null,"(28)",null,null,null,null,null,null,null,null,null,null,null,null,null,null,null,null,null,null,null,"排煙設備の作動の状況",null,null,null,null,null,null,null,null,null,null,null,null,null,null,null,null,null,"",null,"",null,"",null,"",null,null,""]
[null,"(29)",null,null,null,null,null,null,null,null,null,null,null,null,null,null,null,null,null,null,null,"排煙口の維持保全の状況",null,null,null,null,null,null,null,null,null,null,null,null,null,null,null,null,null,"",null,"",null,"",null,"",null,null,""]
[null,"(30)",null,"その他の設備等",null,"非常用の進入口等",null,null,null,null,null,null,null,null,null,null,null,null,null,null,null,"非常用の進入口等の設置の状況",null,null,null,null,null,null,null,null,null,null,null,null,null,null,null,null,null,"",null,"",null,"",null,"",null,null,""]
[null,"(31)",null,null,null,null,null,null,null,null,null,null,null,null,null,null,null,null,null,null,null,"非常用の進入口等の維持保全の状況",null,null,null,null,null,null,null,null,null,null,null,null,null,null,null,null,null,"",null,"",null,"",null,"",null,null,""]
[null,"(32)",null,null,null,"非常用エレベーター",null,null,null,null,null,null,null,null,null,null,null,null,null,null,null,"令第129条の13の3第3項に規定する乗降ロビー（以下単に「乗降ロビー」という。）の構造及び面積の確保の状況",null,null,null,null,null,null,null,null,null,null,null,null,null,null,null,null,null,"",null,"",null,"",null,"",null,null,""]
[]
[]
[]
[""]
[null,"番号",null,"調査項目",null,null,null,null,null,null,null,null,null,null,null,null,null,null,null,null,null,null,null,null,null,null,null,null,null,null,null,null,null,null,null,null,null,null,null,"調査結果",null,null,null,null,null,"担当\n調査者\n番号",null,null,"該当\nしない\n項目"]
[null,null,null,null,null,null,null,null,null,null,null,null,null,null,null,null,null,null,null,null,null,null,null,null,null,null,null,null,null,null,null,null,null,null,null,null,null,null,null,"指摘\nなし",null,"要是正"]
[null,null,null,null,null,null,null,null,null,null,null,null,null,null,null,null,null,null,null,null,null,null,null,null,null,null,null,null,null,null,null,null,null,null,null,null,null,null,null,null,null,null,null,"既存\n不適格"]
[]
[null,5,null,"避難施設等"]
[null,"(33)",null,"その他の設備等",null,"非常用エレベーター",null,null,null,null,null,null,null,null,null,null,null,null,null,null,null,"昇降路又は乗降ロビー（以下「乗降ロビー等」という。）の排煙設備の設置の状況",null,null,null,null,null,null,null,null,null,null,null,null,null,null,null,null,null,"",null,"",null,"",null,"",null,null,""]
[]
[null,"(34)",null,null,null,null,null,null,null,null,null,null,null,null,null,null,null,null,null,null,null,"乗降ロビー等の排煙設備の作動の状況",null,null,null,null,null,null,null,null,null,null,null,null,null,null,null,null,null,"",null,"",null,"",null,"",null,null,""]
[null,"(35)",null,null,null,null,null,null,null,null,null,null,null,null,null,null,null,null,null,null,null,"乗降ロビー等の外気に向かって開くことができる窓の状況",null,null,null,null,null,null,null,null,null,null,null,null,null,null,null,null,null,"",null,"",null,"",null,"",null,null,""]
[]
[null,"(36)",null,null,null,null,null,null,null,null,null,null,null,null,null,null,null,null,null,null,null,"物品の放置の状況",null,null,null,null,null,null,null,null,null,null,null,null,null,null,null,null,null,"",null,"",null,"",null,"",null,null,""]
[null,"(37)",null,null,null,null,null,null,null,null,null,null,null,null,null,null,null,null,null,null,null,"非常用エレベーターの作動の状況",null,null,null,null,null,null,null,null,null,null,null,null,null,null,null,null,null,"",null,"",null,"",null,"",null,null,""]
[null,"(38)",null,null,null,"非常用の照明装置",null,null,null,null,null,null,null,null,null,null,null,null,null,null,null,"非常用の照明装置の設置の状況",null,null,null,null,null,null,null,null,null,null,null,null,null,null,null,null,null,"",null,"",null,"",null,"",null,null,""]
[null,"(39)",null,null,null,null,null,null,null,null,null,null,null,null,null,null,null,null,null,null,null,"非常用の照明装置の作動の状況",null,null,null,null,null,null,null,null,null,null,null,null,null,null,null,null,null,"",null,"",null,"",null,"",null,null,""]
[null,"(40)",null,null,null,null,null,null,null,null,null,null,null,null,null,null,null,null,null,null,null,"照明の妨げとなる物品の放置の状況",null,null,null,null,null,null,null,null,null,null,null,null,null,null,null,null,null,"",null,"",null,"",null,"",null,null,""]
[null,6,null,"その他"]
[null,"(1)",null,"特殊な構造等",null,"膜構造建築物の膜体、取付部材等",null,null,null,null,null,null,null,null,null,null,null,null,null,null,null,"膜体及び取付部材の劣化及び損傷の状況",null,null,null,null,null,null,null,null,null,null,null,null,null,null,null,null,null,"",null,"",null,"",null,"",null,null,""]
[null,"(2)",null,null,null,null,null,null,null,null,null,null,null,null,null,null,null,null,null,null,null,"膜張力及びケーブル張力の状況",null,null,null,null,null,null,null,null,null,null,null,null,null,null,null,null,null,"",null,"",null,"",null,"",null,null,""]
[null,"(3)",null,null,null,"免震構造建築物の免震層及び免震装置",null,null,null,null,null,null,null,null,null,null,null,null,null,null,null,"免震装置の劣化及び損傷の状況（免震装置が可視状態にある場合に限る。）",null,null,null,null,null,null,null,null,null,null,null,null,null,null,null,null,null,"",null,"",null,"",null,"",null,null,""]
[]
[null,"(4)",null,null,null,null,null,null,null,null,null,null,null,null,null,null,null,null,null,null,null,"上部構造の可動の状況",null,null,null,null,null,null,null,null,null,null,null,null,null,null,null,null,null,"",null,"",null,"",null,"",null,null,""]
[null,"(5)",null,"避雷設備",null,null,null,null,null,null,null,null,null,null,null,null,null,null,null,null,null,"避雷針、避雷導線等の劣化及び損傷の状況",null,null,null,null,null,null,null,null,null,null,null,null,null,null,null,null,null,"",null,"",null,"",null,"",null,null,""]
[null,"(6)",null,"煙突",null,"建築物に設ける煙突",null,null,null,null,null,null,null,null,null,null,null,null,null,null,null,"煙突本体及び建築物との接合部の劣化及び損傷の状況",null,null,null,null,null,null,null,null,null,null,null,null,null,null,null,null,null,"",null,"",null,"",null,"",null,null,""]
[]
[null,"(7)",null,null,null,null,null,null,null,null,null,null,null,null,null,null,null,null,null,null,null,"付帯金物の劣化及び損傷の状況",null,null,null,null,null,null,null,null,null,null,null,null,null,null,null,null,null,"",null,"",null,"",null,"",null,null,""]
[null,"(8)",null,null,null,"令第138条第1項第一号に掲げる煙突",null,null,null,null,null,null,null,null,null,null,null,null,null,null,null,"煙突本体の劣化及び損傷の状況",null,null,null,null,null,null,null,null,null,null,null,null,null,null,null,null,null,"",null,"",null,"",null,"",null,null,""]
[null,"(9)",null,null,null,null,null,null,null,null,null,null,null,null,null,null,null,null,null,null,null,"付帯金物の劣化及び損傷の状況",null,null,null,null,null,null,null,null,null,null,null,null,null,null,null,null,null,"",null,"",null,"",null,"",null,null,""]
[null,"7",null,"上記以外の調査項目"]
[null,null,null,null,null,null,null,null,null,null,null,null,null,null,null,null,null,null,null,null,null,null,null,null,null,null,null,null,null,null,null,null,null,null,null,null,null,null,null,null,null,null,null,null,null,""]
[null,null,null,null,null,null,null,null,null,null,null,null,null,null,null,null,null,null,null,null,null,null,null,null,null,null,null,null,null,null,null,null,null,null,null,null,null,null,null,"",null,"",null,""]
[null,null,null,null,null,null,null,null,null,null,null,null,null,null,null,null,null,null,null,null,null,null,null,null,null,null,null,null,null,null,null,null,null,null,null,null,null,null,null,"",null,"",null,""]
[null,null,null,null,null,null,null,null,null,null,null,null,null,null,null,null,null,null,null,null,null,null,null,null,null,null,null,null,null,null,null,null,null,null,null,null,null,null,null,"",null,"",null,""]
[null,null,null,null,null,null,null,null,null,null,null,null,null,null,null,null,null,null,null,null,null,null,null,null,null,null,null,null,null,null,null,null,null,null,null,null,null,null,null,"",null,"",null,""]
[null,null,null,null,null,null,null,null,null,null,null,null,null,null,null,null,null,null,null,null,null,null,null,null,null,null,null,null,null,null,null,null,null,null,null,null,null,null,null,"",null,"",null,""]
[null,null,null,null,null,null,null,null,null,null,null,null,null,null,null,null,null,null,null,null,null,null,null,null,null,null,null,null,null,null,null,null,null,null,null,null,null,null,null,"",null,"",null,""]
[null,null,null,null,null,null,null,null,null,null,null,null,null,null,null,null,null,null,null,null,null,null,null,null,null,null,null,null,null,null,null,null,null,null,null,null,null,null,null,"",null,"",null,""]
[null,null,null,null,null,null,null,null,null,null,null,null,null,null,null,null,null,null,null,null,null,null,null,null,null,null,null,null,null,null,null,null,null,null,null,null,null,null,null,"",null,"",null,""]
[null,null,null,null,null,null,null,null,null,null,null,null,null,null,null,null,null,null,null,null,null,null,null,null,null,null,null,null,null,null,null,null,null,null,null,null,null,null,null,"",null,""]
[null,"その他確認事項"]
[null,"　法第12条第3項の規定による検査を要する防火設備の有無"]
[null,null,null,"有（",null,null,null,null,null,null,null,null,"階）",null,null,null,null,"無"]
[]
[null,"特記事項"]
[null,"番号",null,"調査項目",null,null,null,null,null,null,"指摘の具体的内容等",null,null,null,null,null,null,null,null,null,null,null,null,null,null,null,"改善策の具体的内容等",null,null,null,null,null,null,null,null,null,null,null,null,null,null,null,"改善（予定）\n年月"]
[]
[]
[]
[]
[]
[]
[]
[]
[]
[]
[]
[]
[]
[]
[]
[]
[]
[]
[]
[]
[null,"特記事項"]
[null,"番号",null,"調査項目",null,null,null,null,null,null,"指摘の具体的内容等",null,null,null,null,null,null,null,null,null,null,null,null,null,null,null,"改善策の具体的内容等",null,null,null,null,null,null,null,null,null,null,null,null,null,null,null,"改善（予定）\n年月"]
[]
[]
[]
[]
[]
[]
[]
[]
[]
[]
[]
[]
[]
[]
[]
[]
[]
[]
[]
[]
[]
[]
[]
[]
[]
[]
[]
[]
[]
[]
[]
[]
[]
[]
[]
[]
[]
[]
[]
[null,"（注意）"]
[null,"①",null,"この書類は、特殊建築物等ごとに作成してください。"]
[null,"②",null,"記入欄が不足する場合は、枠を拡大、行を追加して記入するか、別紙に必要な事項を記入して添えてください。"]
[null,"③",null,"「当該調査に関与した調査者」欄は、建築基準法施行規則別記第36号の２様式第一面３欄に記入した調査者について記入し、「調査者番号」欄に調査"]
[null,null,null,"者を特定できる番号、記号等を記入してください。当該建築物の調査を行った調査者が１人の場合は、その他の調査者欄は削除して構いません。"]
[null,"④",null,"該当しない調査項目がある場合は、当該項目の「番号」欄から「担当調査者番号」欄までを取消線で抹消してください。"]
[null,"⑤",null,"「調査結果」欄は、別表（い）欄に掲げる各調査項目ごとに記入してください。"]
[null,"⑥",null,"「調査結果」欄のうち「要是正」欄は、別表（い）欄に掲げる調査項目について（は）欄に掲げる判定基準に該当する場合に○印を記入してください。"]
[null,"⑦",null,"「調査結果」欄のうち「指摘なし」欄は、⑥に該当しない場合に○印を記入してください。"]
[null,"⑧",null,"「既存不適格」欄は、「要是正」欄に○印を記入した場合で、建築基準法第３条第２項の規定の適用を受けているものであることが確認されたときは、"]
[null,null,null,"○印を記入してください。"]
[null,"⑨",null,"「担当調査者番号」欄は、「調査に関与した調査者」欄で記入した番号、記号等を記入してください。ただし、当該建築物の調査を行った調査者が１人"]
[null,null,null,"の場合は、記入しなくても構いません。"]
[null,"⑩",null,"７「上記以外の調査項目」欄は、第一ただし書の規定により特定行政庁が調査項目を追加したときに、特定行政庁が追加した調査項目を追加し、⑤から"]
[null,null,null,"⑧に準じて調査結果等を記入してください。なお、これらの項目がない場合は、７は削除して構いません。"]
[null,"⑪",null,"「その他確認事項」は、法第12条第3項の規定による検査を要する随時閉鎖又は作動ができる防火設備の設置の有無を確認し、該当するチェックボックス"]
[null,null,null,"に「レ」マークを入れてください。「有」の場合は、当該防火設備が設置されている階を記入してください。"]
[null,"⑫",null,"「特記事項」は、調査の結果、要是正の指摘があった場合のほか、指摘がない場合にあっても特記すべき事項がある場合に、該当する調査項目の番号、"]
[null,null,null,"調査項目を記入し、「指摘の具体的内容等」欄に指摘又は特記すべき事項の具体的内容を記入するとともに、改善済みの場合及び改善策が明らかになっ"]
[null,null,null,"ている場合は「改善策の具体的内容等」欄にその内容を記入し、改善した場合は「改善（予定）年月」欄に当該年月を記入し、改善予定年月が明らかに"]
[null,null,null,"なっている場合は「改善（予定）年月」欄に当該年月を（　）書きで記入してください。"]
[null,"⑬",null,"配置図及び各階平面図を別添１の様式に従い添付し、指摘(特記すべき事項を含む）のあった箇所や撮影した写真の位置等を明記してください。"]
[null,"⑭",null,"要是正とされた調査項目（既存不適格の場合を除く。）については、要是正とされた部分を撮影した写真を別添２の様式に従い添付してください。"]

{"sheet":"別添1(図面)","index":10,"n_rows":63,"n_cols":154,"rows_kept":63,"cut":false,"hidden":false,"merged":[[31,146,31,152],[31,153,31,167],[0,1,0,83],[62,62,62,68],[62,69,62,83],[62,1,62,61],[49,69,49,83],[50,69,50,83],[51,69,51,83],[52,69,52,83],[61,69,61,83],[53,69,53,83],[45,69,45,83],[46,69,46,83],[47,69,47,83],[48,69,48,83],[39,69,39,83],[42,69,42,83],[43,69,43,83],[44,69,44,83],[40,69,40,83],[61,62,61,68],[5,69,5,83],[6,69,6,83],[7,69,7,83],[12,69,12,83],[19,69,19,83],[14,69,14,83],[41,69,41,83],[36,69,36,83],[37,69,37,83],[26,69,26,83],[20,62,20,68],[21,62,21,68],[36,62,36,68],[28,69,28,83],[17,62,17,68],[18,62,18,68],[33,62,33,68],[27,69,27,83],[34,69,34,83],[31,62,31,68],[31,69,31,83],[8,62,8,68],[16,69,16,83],[17,69,17,83],[18,69,18,83],[14,62,14,68],[54,62,54,68],[55,62,55,68],[56,62,56,68],[56,69,56,83],[35,69,35,83],[47,62,47,68],[48,62,48,68],[43,62,43,68],[44,62,44,68],[45,62,45,68],[46,62,46,68],[41,62,41,68],[42,62,42,68],[39,62,39,68],[40,62,40,68],[19,62,19,68],[28,62,28,68],[29,62,29,68],[30,62,30,68],[38,62,38,68],[37,62,37,68],[34,62,34,68],[15,62,15,68],[15,69,15,83],[16,62,16,68],[8,69,8,83],[9,69,9,83],[10,69,10,83],[11,69,11,83],[13,69,13,83],[1,1,1,83],[5,1,61,61],[24,62,24,68],[25,62,25,68],[26,62,26,68],[27,62,27,68],[20,69,20,83],[32,62,32,68],[21,69,21,83],[25,69,25,83],[2,1,2,83],[3,1,3,83],[4,1,4,83],[13,62,13,68],[9,62,9,68],[10,62,10,68],[11,62,11,68],[12,62,12,68],[5,62,5,68],[6,62,6,68],[51,62,51,68],[52,62,52,68],[53,62,53,68],[7,62,7,68],[63,1,63,83],[22,69,22,83],[23,69,23,83],[49,62,49,68],[50,62,50,68],[24,69,24,83],[30,69,30,83],[22,62,22,68],[23,62,23,68],[35,62,35,68],[29,69,29,83],[38,69,38,83],[32,69,32,83],[33,69,33,83],[60,62,60,68],[60,69,60,83],[58,62,58,68],[57,69,57,83],[58,69,58,83],[57,62,57,68],[54,69,54,83],[55,69,55,83],[59,62,59,68],[59,69,59,83],[64,1,64,83],[0,85,0,167],[1,85,1,167],[2,85,2,167],[3,85,3,167],[4,85,4,167],[5,85,61,145],[5,146,5,152],[5,153,5,167],[6,146,6,152],[12,146,12,152],[12,153,12,167],[6,153,6,167],[7,146,7,152],[7,153,7,167],[8,146,8,152],[8,153,8,167],[9,146,9,152],[9,153,9,167],[10,146,10,152],[10,153,10,167],[11,146,11,152],[11,153,11,167],[18,146,18,152],[18,153,18,167],[13,146,13,152],[13,153,13,167],[14,146,14,152],[14,153,14,167],[15,146,15,152],[15,153,15,167],[16,146,16,152],[16,153,16,167],[17,146,17,152],[17,153,17,167],[24,146,24,152],[24,153,24,167],[19,146,19,152],[19,153,19,167],[20,146,20,152],[23,146,23,152],[23,153,23,167],[20,153,20,167],[21,146,21,152],[21,153,21,167],[22,146,22,152],[22,153,22,167],[30,146,30,152],[30,153,30,167],[25,146,25,152],[25,153,25,167],[26,146,26,152],[26,153,26,167],[27,146,27,152],[27,153,27,167],[28,146,28,152],[28,153,28,167],[29,146,29,152],[29,153,29,167],[34,146,34,152],[34,153,34,167],[35,146,35,152],[35,153,35,167],[32,146,32,152],[32,153,32,167],[33,146,33,152],[33,153,33,167],[43,146,43,152],[43,153,43,167],[38,146,38,152],[38,153,38,167],[39,146,39,152],[39,153,39,167],[42,146,42,152],[42,153,42,167],[41,146,41,152],[41,153,41,167],[36,146,36,152],[36,153,36,167],[40,146,40,152],[40,153,40,167],[37,146,37,152],[37,153,37,167],[44,146,44,152],[44,153,44,167],[45,146,45,152],[45,153,45,167],[46,146,46,152],[46,153,46,167],[47,146,47,152],[47,153,47,167],[48,146,48,152],[48,153,48,167],[50,146,50,152],[50,153,50,167],[51,146,51,152],[51,153,51,167],[52,146,52,152],[52,153,52,167],[55,153,55,167],[49,146,49,152],[49,153,49,167],[56,146,56,152],[56,153,56,167],[55,146,55,152],[53,146,53,152],[53,153,53,167],[59,153,59,167],[59,146,59,152],[57,146,57,152],[57,153,57,167],[58,146,58,152],[58,153,58,167],[54,146,54,152],[54,153,54,167],[60,146,60,152],[60,153,60,167],[63,85,63,167],[64,85,64,167],[61,146,61,152],[61,153,61,167],[62,85,62,145],[62,146,62,152],[62,153,62,167]]}
[]
[]
[null,"別添１様式（Ａ３）",null,null,null,null,null,null,null,null,null,null,null,null,null,null,null,null,null,null,null,null,null,null,null,null,null,null,null,null,null,null,null,null,null,null,null,null,null,null,null,null,null,null,null,null,null,null,null,null,null,null,null,null,null,null,null,null,null,null,null,null,null,null,null,null,null,null,null,null,null,null,null,null,null,null,null,null,null,null,null,null,null,null,null,"別添１様式（Ａ３）"]
[null,"調査結果図",null,null,null,null,null,null,null,null,null,null,null,null,null,null,null,null,null,null,null,null,null,null,null,null,null,null,null,null,null,null,null,null,null,null,null,null,null,null,null,null,null,null,null,null,null,null,null,null,null,null,null,null,null,null,null,null,null,null,null,null,null,null,null,null,null,null,null,null,null,null,null,null,null,null,null,null,null,null,null,null,null,null,null,"調査結果図"]
[]
[null,null,null,null,null,null,null,null,null,null,null,null,null,null,null,null,null,null,null,null,null,null,null,null,null,null,null,null,null,null,null,null,null,null,null,null,null,null,null,null,null,null,null,null,null,null,null,null,null,null,null,null,null,null,null,null,null,null,null,null,null,null,"番号",null,null,null,null,null,null,"調査項目",null,null,null,null,null,null,null,null,null,null,null,null,null,null,null,null,null,null,null,null,null,null,null,null,null,null,null,null,null,null,null,null,null,null,null,null,null,null,null,null,null,null,null,null,null,null,null,null,null,null,null,null,null,null,null,null,null,null,null,null,null,null,null,null,null,null,null,null,null,null,null,null,null,null,null,null,"番号",null,null,null,null,null,null,"調査項目"]
[null,null,null,null,null,null,null,null,null,null,null,null,null,null,null,null,null,null,null,null,null,null,null,null,null,null,null,null,null,null,null,null,null,null,null,null,null,null,null,null,null,null,null,null,null,null,null,null,null,null,null,null,null,null,null,null,null,null,null,null,null,null,1,null,null,null,null,null,null,"敷地及び地盤",null,null,null,null,null,null,null,null,null,null,null,null,null,null,null,null,null,null,null,null,null,null,null,null,null,null,null,null,null,null,null,null,null,null,null,null,null,null,null,null,null,null,null,null,null,null,null,null,null,null,null,null,null,null,null,null,null,null,null,null,null,null,null,null,null,null,null,null,null,null,null,null,null,null,null,null,1,null,null,null,null,null,null,"敷地及び地盤"]
[null,null,null,null,null,null,null,null,null,null,null,null,null,null,null,null,null,null,null,null,null,null,null,null,null,null,null,null,null,null,null,null,null,null,null,null,null,null,null,null,null,null,null,null,null,null,null,null,null,null,null,null,null,null,null,null,null,null,null,null,null,null,"(1)",null,null,null,null,null,null,"地盤",null,null,null,null,null,null,null,null,null,null,null,null,null,null,null,null,null,null,null,null,null,null,null,null,null,null,null,null,null,null,null,null,null,null,null,null,null,null,null,null,null,null,null,null,null,null,null,null,null,null,null,null,null,null,null,null,null,null,null,null,null,null,null,null,null,null,null,null,null,null,null,null,null,null,null,null,"(1)",null,null,null,null,null,null,"地盤"]
[null,null,null,null,null,null,null,null,null,null,null,null,null,null,null,null,null,null,null,null,null,null,null,null,null,null,null,null,null,null,null,null,null,null,null,null,null,null,null,null,null,null,null,null,null,null,null,null,null,null,null,null,null,null,null,null,null,null,null,null,null,null,"(2)",null,null,null,null,null,null,"敷地",null,null,null,null,null,null,null,null,null,null,null,null,null,null,null,null,null,null,null,null,null,null,null,null,null,null,null,null,null,null,null,null,null,null,null,null,null,null,null,null,null,null,null,null,null,null,null,null,null,null,null,null,null,null,null,null,null,null,null,null,null,null,null,null,null,null,null,null,null,null,null,null,null,null,null,null,"(2)",null,null,null,null,null,null,"敷地"]
[null,null,null,null,null,null,null,null,null,null,null,null,null,null,null,null,null,null,null,null,null,null,null,null,null,null,null,null,null,null,null,null,null,null,null,null,null,null,null,null,null,null,null,null,null,null,null,null,null,null,null,null,null,null,null,null,null,null,null,null,null,null,"(3)から(5)",null,null,null,null,null,null,"敷地内の通路",null,null,null,null,null,null,null,null,null,null,null,null,null,null,null,null,null,null,null,null,null,null,null,null,null,null,null,null,null,null,null,null,null,null,null,null,null,null,null,null,null,null,null,null,null,null,null,null,null,null,null,null,null,null,null,null,null,null,null,null,null,null,null,null,null,null,null,null,null,null,null,null,null,null,null,null,"(3)から(5)",null,null,null,null,null,null,"敷地内の通路"]
[null,null,null,null,null,null,null,null,null,null,null,null,null,null,null,null,null,null,null,null,null,null,null,null,null,null,null,null,null,null,null,null,null,null,null,null,null,null,null,null,null,null,null,null,null,null,null,null,null,null,null,null,null,null,null,null,null,null,null,null,null,null,"(6)から(7)",null,null,null,null,null,null,"塀等　",null,null,null,null,null,null,null,null,null,null,null,null,null,null,null,null,null,null,null,null,null,null,null,null,null,null,null,null,null,null,null,null,null,null,null,null,null,null,null,null,null,null,null,null,null,null,null,null,null,null,null,null,null,null,null,null,null,null,null,null,null,null,null,null,null,null,null,null,null,null,null,null,null,null,null,null,"(6)から(7)",null,null,null,null,null,null,"塀等　"]
[null,null,null,null,null,null,null,null,null,null,null,null,null,null,null,null,null,null,null,null,null,null,null,null,null,null,null,null,null,null,null,null,null,null,null,null,null,null,null,null,null,null,null,null,null,null,null,null,null,null,null,null,null,null,null,null,null,null,null,null,null,null,"(8)から(9)",null,null,null,null,null,null,"擁壁",null,null,null,null,null,null,null,null,null,null,null,null,null,null,null,null,null,null,null,null,null,null,null,null,null,null,null,null,null,null,null,null,null,null,null,null,null,null,null,null,null,null,null,null,null,null,null,null,null,null,null,null,null,null,null,null,null,null,null,null,null,null,null,null,null,null,null,null,null,null,null,null,null,null,null,null,"(8)から(9)",null,null,null,null,null,null,"擁壁"]
[]
[null,null,null,null,null,null,null,null,null,null,null,null,null,null,null,null,null,null,null,null,null,null,null,null,null,null,null,null,null,null,null,null,null,null,null,null,null,null,null,null,null,null,null,null,null,null,null,null,null,null,null,null,null,null,null,null,null,null,null,null,null,null,2,null,null,null,null,null,null,"建築物の外部",null,null,null,null,null,null,null,null,null,null,null,null,null,null,null,null,null,null,null,null,null,null,null,null,null,null,null,null,null,null,null,null,null,null,null,null,null,null,null,null,null,null,null,null,null,null,null,null,null,null,null,null,null,null,null,null,null,null,null,null,null,null,null,null,null,null,null,null,null,null,null,null,null,null,null,null,2,null,null,null,null,null,null,"建築物の外部"]
[null,null,null,null,null,null,null,null,null,null,null,null,null,null,null,null,null,null,null,null,null,null,null,null,null,null,null,null,null,null,null,null,null,null,null,null,null,null,null,null,null,null,null,null,null,null,null,null,null,null,null,null,null,null,null,null,null,null,null,null,null,null,"(1)から(2)",null,null,null,null,null,null,"基礎",null,null,null,null,null,null,null,null,null,null,null,null,null,null,null,null,null,null,null,null,null,null,null,null,null,null,null,null,null,null,null,null,null,null,null,null,null,null,null,null,null,null,null,null,null,null,null,null,null,null,null,null,null,null,null,null,null,null,null,null,null,null,null,null,null,null,null,null,null,null,null,null,null,null,null,null,"(1)から(2)",null,null,null,null,null,null,"基礎"]
[null,null,null,null,null,null,null,null,null,null,null,null,null,null,null,null,null,null,null,null,null,null,null,null,null,null,null,null,null,null,null,null,null,null,null,null,null,null,null,null,null,null,null,null,null,null,null,null,null,null,null,null,null,null,null,null,null,null,null,null,null,null,"(3)から(4)",null,null,null,null,null,null,"土台（木造に限る。）",null,null,null,null,null,null,null,null,null,null,null,null,null,null,null,null,null,null,null,null,null,null,null,null,null,null,null,null,null,null,null,null,null,null,null,null,null,null,null,null,null,null,null,null,null,null,null,null,null,null,null,null,null,null,null,null,null,null,null,null,null,null,null,null,null,null,null,null,null,null,null,null,null,null,null,null,"(3)から(4)",null,null,null,null,null,null,"土台（木造に限る。）"]
[null,null,null,null,null,null,null,null,null,null,null,null,null,null,null,null,null,null,null,null,null,null,null,null,null,null,null,null,null,null,null,null,null,null,null,null,null,null,null,null,null,null,null,null,null,null,null,null,null,null,null,null,null,null,null,null,null,null,null,null,null,null,"(5)から(18)",null,null,null,null,null,null,"外壁",null,null,null,null,null,null,null,null,null,null,null,null,null,null,null,null,null,null,null,null,null,null,null,null,null,null,null,null,null,null,null,null,null,null,null,null,null,null,null,null,null,null,null,null,null,null,null,null,null,null,null,null,null,null,null,null,null,null,null,null,null,null,null,null,null,null,null,null,null,null,null,null,null,null,null,null,"(5)から(18)",null,null,null,null,null,null,"外壁"]
[]
[null,null,null,null,null,null,null,null,null,null,null,null,null,null,null,null,null,null,null,null,null,null,null,null,null,null,null,null,null,null,null,null,null,null,null,null,null,null,null,null,null,null,null,null,null,null,null,null,null,null,null,null,null,null,null,null,null,null,null,null,null,null,3,null,null,null,null,null,null,"屋上及び屋根",null,null,null,null,null,null,null,null,null,null,null,null,null,null,null,null,null,null,null,null,null,null,null,null,null,null,null,null,null,null,null,null,null,null,null,null,null,null,null,null,null,null,null,null,null,null,null,null,null,null,null,null,null,null,null,null,null,null,null,null,null,null,null,null,null,null,null,null,null,null,null,null,null,null,null,null,3,null,null,null,null,null,null,"屋上及び屋根"]
[null,null,null,null,null,null,null,null,null,null,null,null,null,null,null,null,null,null,null,null,null,null,null,null,null,null,null,null,null,null,null,null,null,null,null,null,null,null,null,null,null,null,null,null,null,null,null,null,null,null,null,null,null,null,null,null,null,null,null,null,null,null,"(1)",null,null,null,null,null,null,"屋上面の状況",null,null,null,null,null,null,null,null,null,null,null,null,null,null,null,null,null,null,null,null,null,null,null,null,null,null,null,null,null,null,null,null,null,null,null,null,null,null,null,null,null,null,null,null,null,null,null,null,null,null,null,null,null,null,null,null,null,null,null,null,null,null,null,null,null,null,null,null,null,null,null,null,null,null,null,null,"(1)",null,null,null,null,null,null,"屋上面の状況"]
[null,null,null,null,null,null,null,null,null,null,null,null,null,null,null,null,null,null,null,null,null,null,null,null,null,null,null,null,null,null,null,null,null,null,null,null,null,null,null,null,null,null,null,null,null,null,null,null,null,null,null,null,null,null,null,null,null,null,null,null,null,null,"(2)から(5)",null,null,null,null,null,null,"屋上周りの状況（屋上面を除く。）",null,null,null,null,null,null,null,null,null,null,null,null,null,null,null,null,null,null,null,null,null,null,null,null,null,null,null,null,null,null,null,null,null,null,null,null,null,null,null,null,null,null,null,null,null,null,null,null,null,null,null,null,null,null,null,null,null,null,null,null,null,null,null,null,null,null,null,null,null,null,null,null,null,null,null,null,"(2)から(5)",null,null,null,null,null,null,"屋上周りの状況（屋上面を除く。）"]
[null,null,null,null,null,null,null,null,null,null,null,null,null,null,null,null,null,null,null,null,null,null,null,null,null,null,null,null,null,null,null,null,null,null,null,null,null,null,null,null,null,null,null,null,null,null,null,null,null,null,null,null,null,null,null,null,null,null,null,null,null,null,"(6)から(7)",null,null,null,null,null,null,"屋根（屋上面を除く。）",null,null,null,null,null,null,null,null,null,null,null,null,null,null,null,null,null,null,null,null,null,null,null,null,null,null,null,null,null,null,null,null,null,null,null,null,null,null,null,null,null,null,null,null,null,null,null,null,null,null,null,null,null,null,null,null,null,null,null,null,null,null,null,null,null,null,null,null,null,null,null,null,null,null,null,null,"(6)から(7)",null,null,null,null,null,null,"屋根（屋上面を除く。）"]
[null,null,null,null,null,null,null,null,null,null,null,null,null,null,null,null,null,null,null,null,null,null,null,null,null,null,null,null,null,null,null,null,null,null,null,null,null,null,null,null,null,null,null,null,null,null,null,null,null,null,null,null,null,null,null,null,null,null,null,null,null,null,"(8)から(9)",null,null,null,null,null,null,"機器及び工作物（冷却等設備、等）",null,null,null,null,null,null,null,null,null,null,null,null,null,null,null,null,null,null,null,null,null,null,null,null,null,null,null,null,null,null,null,null,null,null,null,null,null,null,null,null,null,null,null,null,null,null,null,null,null,null,null,null,null,null,null,null,null,null,null,null,null,null,null,null,null,null,null,null,null,null,null,null,null,null,null,null,"(8)から(9)",null,null,null,null,null,null,"機器及び工作物（冷却等設備、等）"]
[]
[null,null,null,null,null,null,null,null,null,null,null,null,null,null,null,null,null,null,null,null,null,null,null,null,null,null,null,null,null,null,null,null,null,null,null,null,null,null,null,null,null,null,null,null,null,null,null,null,null,null,null,null,null,null,null,null,null,null,null,null,null,null,4,null,null,null,null,null,null,"建築物の内部",null,null,null,null,null,null,null,null,null,null,null,null,null,null,null,null,null,null,null,null,null,null,null,null,null,null,null,null,null,null,null,null,null,null,null,null,null,null,null,null,null,null,null,null,null,null,null,null,null,null,null,null,null,null,null,null,null,null,null,null,null,null,null,null,null,null,null,null,null,null,null,null,null,null,null,null,4,null,null,null,null,null,null,"建築物の内部"]
[null,null,null,null,null,null,null,null,null,null,null,null,null,null,null,null,null,null,null,null,null,null,null,null,null,null,null,null,null,null,null,null,null,null,null,null,null,null,null,null,null,null,null,null,null,null,null,null,null,null,null,null,null,null,null,null,null,null,null,null,null,null,"(1)から(5)",null,null,null,null,null,null,"防火区画",null,null,null,null,null,null,null,null,null,null,null,null,null,null,null,null,null,null,null,null,null,null,null,null,null,null,null,null,null,null,null,null,null,null,null,null,null,null,null,null,null,null,null,null,null,null,null,null,null,null,null,null,null,null,null,null,null,null,null,null,null,null,null,null,null,null,null,null,null,null,null,null,null,null,null,null,"(1)から(5)",null,null,null,null,null,null,"防火区画"]
[null,null,null,null,null,null,null,null,null,null,null,null,null,null,null,null,null,null,null,null,null,null,null,null,null,null,null,null,null,null,null,null,null,null,null,null,null,null,null,null,null,null,null,null,null,null,null,null,null,null,null,null,null,null,null,null,null,null,null,null,null,null,"(6)から(16)",null,null,null,null,null,null,"壁の室内に面する部分",null,null,null,null,null,null,null,null,null,null,null,null,null,null,null,null,null,null,null,null,null,null,null,null,null,null,null,null,null,null,null,null,null,null,null,null,null,null,null,null,null,null,null,null,null,null,null,null,null,null,null,null,null,null,null,null,null,null,null,null,null,null,null,null,null,null,null,null,null,null,null,null,null,null,null,null,"(6)から(16)",null,null,null,null,null,null,"壁の室内に面する部分"]
[null,null,null,null,null,null,null,null,null,null,null,null,null,null,null,null,null,null,null,null,null,null,null,null,null,null,null,null,null,null,null,null,null,null,null,null,null,null,null,null,null,null,null,null,null,null,null,null,null,null,null,null,null,null,null,null,null,null,null,null,null,null,"(17)から(22)",null,null,null,null,null,null,"床",null,null,null,null,null,null,null,null,null,null,null,null,null,null,null,null,null,null,null,null,null,null,null,null,null,null,null,null,null,null,null,null,null,null,null,null,null,null,null,null,null,null,null,null,null,null,null,null,null,null,null,null,null,null,null,null,null,null,null,null,null,null,null,null,null,null,null,null,null,null,null,null,null,null,null,null,"(17)から(22)",null,null,null,null,null,null,"床"]
[null,null,null,null,null,null,null,null,null,null,null,null,null,null,null,null,null,null,null,null,null,null,null,null,null,null,null,null,null,null,null,null,null,null,null,null,null,null,null,null,null,null,null,null,null,null,null,null,null,null,null,null,null,null,null,null,null,null,null,null,null,null,"(23)から(25)",null,null,null,null,null,null,"天井",null,null,null,null,null,null,null,null,null,null,null,null,null,null,null,null,null,null,null,null,null,null,null,null,null,null,null,null,null,null,null,null,null,null,null,null,null,null,null,null,null,null,null,null,null,null,null,null,null,null,null,null,null,null,null,null,null,null,null,null,null,null,null,null,null,null,null,null,null,null,null,null,null,null,null,null,"(23)から(25)",null,null,null,null,null,null,"天井"]
[null,null,null,null,null,null,null,null,null,null,null,null,null,null,null,null,null,null,null,null,null,null,null,null,null,null,null,null,null,null,null,null,null,null,null,null,null,null,null,null,null,null,null,null,null,null,null,null,null,null,null,null,null,null,null,null,null,null,null,null,null,null,"(26)から(33)",null,null,null,null,null,null,"防火設備又は戸",null,null,null,null,null,null,null,null,null,null,null,null,null,null,null,null,null,null,null,null,null,null,null,null,null,null,null,null,null,null,null,null,null,null,null,null,null,null,null,null,null,null,null,null,null,null,null,null,null,null,null,null,null,null,null,null,null,null,null,null,null,null,null,null,null,null,null,null,null,null,null,null,null,null,null,null,"(26)から(33)",null,null,null,null,null,null,"防火設備"]
[null,null,null,null,null,null,null,null,null,null,null,null,null,null,null,null,null,null,null,null,null,null,null,null,null,null,null,null,null,null,null,null,null,null,null,null,null,null,null,null,null,null,null,null,null,null,null,null,null,null,null,null,null,null,null,null,null,null,null,null,null,null,"(34)から(35)",null,null,null,null,null,null,"照明器具、懸垂物等",null,null,null,null,null,null,null,null,null,null,null,null,null,null,null,null,null,null,null,null,null,null,null,null,null,null,null,null,null,null,null,null,null,null,null,null,null,null,null,null,null,null,null,null,null,null,null,null,null,null,null,null,null,null,null,null,null,null,null,null,null,null,null,null,null,null,null,null,null,null,null,null,null,null,null,null,"(34)から(35)",null,null,null,null,null,null,"照明器具、懸垂物等"]
[null,null,null,null,null,null,null,null,null,null,null,null,null,null,null,null,null,null,null,null,null,null,null,null,null,null,null,null,null,null,null,null,null,null,null,null,null,null,null,null,null,null,null,null,null,null,null,null,null,null,null,null,null,null,null,null,null,null,null,null,null,null,"(36)から(37)",null,null,null,null,null,null,"警報設備",null,null,null,null,null,null,null,null,null,null,null,null,null,null,null,null,null,null,null,null,null,null,null,null,null,null,null,null,null,null,null,null,null,null,null,null,null,null,null,null,null,null,null,null,null,null,null,null,null,null,null,null,null,null,null,null,null,null,null,null,null,null,null,null,null,null,null,null,null,null,null,null,null,null,null,null,"(36)から(37)",null,null,null,null,null,null,"警報設備"]
[null,null,null,null,null,null,null,null,null,null,null,null,null,null,null,null,null,null,null,null,null,null,null,null,null,null,null,null,null,null,null,null,null,null,null,null,null,null,null,null,null,null,null,null,null,null,null,null,null,null,null,null,null,null,null,null,null,null,null,null,null,null,"(38)から(43)",null,null,null,null,null,null,"居室の採光及び換気",null,null,null,null,null,null,null,null,null,null,null,null,null,null,null,null,null,null,null,null,null,null,null,null,null,null,null,null,null,null,null,null,null,null,null,null,null,null,null,null,null,null,null,null,null,null,null,null,null,null,null,null,null,null,null,null,null,null,null,null,null,null,null,null,null,null,null,null,null,null,null,null,null,null,null,null,"(38)から(43)",null,null,null,null,null,null,"居室の採光及び換気"]
[null,null,null,null,null,null,null,null,null,null,null,null,null,null,null,null,null,null,null,null,null,null,null,null,null,null,null,null,null,null,null,null,null,null,null,null,null,null,null,null,null,null,null,null,null,null,null,null,null,null,null,null,null,null,null,null,null,null,null,null,null,null,"(44)から(47)",null,null,null,null,null,null,"石綿等を添加した建築材料",null,null,null,null,null,null,null,null,null,null,null,null,null,null,null,null,null,null,null,null,null,null,null,null,null,null,null,null,null,null,null,null,null,null,null,null,null,null,null,null,null,null,null,null,null,null,null,null,null,null,null,null,null,null,null,null,null,null,null,null,null,null,null,null,null,null,null,null,null,null,null,null,null,null,null,null,"(44)から(47)",null,null,null,null,null,null,"石綿等を添加した建築材料"]
[]
[null,null,null,null,null,null,null,null,null,null,null,null,null,null,null,null,null,null,null,null,null,null,null,null,null,null,null,null,null,null,null,null,null,null,null,null,null,null,null,null,null,null,null,null,null,null,null,null,null,null,null,null,null,null,null,null,null,null,null,null,null,null,5,null,null,null,null,null,null,"避難施設等",null,null,null,null,null,null,null,null,null,null,null,null,null,null,null,null,null,null,null,null,null,null,null,null,null,null,null,null,null,null,null,null,null,null,null,null,null,null,null,null,null,null,null,null,null,null,null,null,null,null,null,null,null,null,null,null,null,null,null,null,null,null,null,null,null,null,null,null,null,null,null,null,null,null,null,null,5,null,null,null,null,null,null,"避難施設等"]
[null,null,null,null,null,null,null,null,null,null,null,null,null,null,null,null,null,null,null,null,null,null,null,null,null,null,null,null,null,null,null,null,null,null,null,null,null,null,null,null,null,null,null,null,null,null,null,null,null,null,null,null,null,null,null,null,null,null,null,null,null,null,"(1)",null,null,null,null,null,null,"令第120条第２項に規定する通路",null,null,null,null,null,null,null,null,null,null,null,null,null,null,null,null,null,null,null,null,null,null,null,null,null,null,null,null,null,null,null,null,null,null,null,null,null,null,null,null,null,null,null,null,null,null,null,null,null,null,null,null,null,null,null,null,null,null,null,null,null,null,null,null,null,null,null,null,null,null,null,null,null,null,null,null,"(1)",null,null,null,null,null,null,"令第120条第２項に規定する通路"]
[null,null,null,null,null,null,null,null,null,null,null,null,null,null,null,null,null,null,null,null,null,null,null,null,null,null,null,null,null,null,null,null,null,null,null,null,null,null,null,null,null,null,null,null,null,null,null,null,null,null,null,null,null,null,null,null,null,null,null,null,null,null,"(2)から(3)",null,null,null,null,null,null,"廊下",null,null,null,null,null,null,null,null,null,null,null,null,null,null,null,null,null,null,null,null,null,null,null,null,null,null,null,null,null,null,null,null,null,null,null,null,null,null,null,null,null,null,null,null,null,null,null,null,null,null,null,null,null,null,null,null,null,null,null,null,null,null,null,null,null,null,null,null,null,null,null,null,null,null,null,null,"(2)から(3)",null,null,null,null,null,null,"廊下"]
[null,null,null,null,null,null,null,null,null,null,null,null,null,null,null,null,null,null,null,null,null,null,null,null,null,null,null,null,null,null,null,null,null,null,null,null,null,null,null,null,null,null,null,null,null,null,null,null,null,null,null,null,null,null,null,null,null,null,null,null,null,null,"(4)から(5)",null,null,null,null,null,null,"出入口",null,null,null,null,null,null,null,null,null,null,null,null,null,null,null,null,null,null,null,null,null,null,null,null,null,null,null,null,null,null,null,null,null,null,null,null,null,null,null,null,null,null,null,null,null,null,null,null,null,null,null,null,null,null,null,null,null,null,null,null,null,null,null,null,null,null,null,null,null,null,null,null,null,null,null,null,"(4)から(5)",null,null,null,null,null,null,"出入口"]
[null,null,null,null,null,null,null,null,null,null,null,null,null,null,null,null,null,null,null,null,null,null,null,null,null,null,null,null,null,null,null,null,null,null,null,null,null,null,null,null,null,null,null,null,null,null,null,null,null,null,null,null,null,null,null,null,null,null,null,null,null,null,"(6)",null,null,null,null,null,null,"屋上広場",null,null,null,null,null,null,null,null,null,null,null,null,null,null,null,null,null,null,null,null,null,null,null,null,null,null,null,null,null,null,null,null,null,null,null,null,null,null,null,null,null,null,null,null,null,null,null,null,null,null,null,null,null,null,null,null,null,null,null,null,null,null,null,null,null,null,null,null,null,null,null,null,null,null,null,null,"(6)",null,null,null,null,null,null,"屋上広場"]
[null,null,null,null,null,null,null,null,null,null,null,null,null,null,null,null,null,null,null,null,null,null,null,null,null,null,null,null,null,null,null,null,null,null,null,null,null,null,null,null,null,null,null,null,null,null,null,null,null,null,null,null,null,null,null,null,null,null,null,null,null,null,"(7)から(10)",null,null,null,null,null,null,"避難上有効なバルコニー",null,null,null,null,null,null,null,null,null,null,null,null,null,null,null,null,null,null,null,null,null,null,null,null,null,null,null,null,null,null,null,null,null,null,null,null,null,null,null,null,null,null,null,null,null,null,null,null,null,null,null,null,null,null,null,null,null,null,null,null,null,null,null,null,null,null,null,null,null,null,null,null,null,null,null,null,"(7)から(10)",null,null,null,null,null,null,"避難上有効なバルコニー"]
[null,null,null,null,null,null,null,null,null,null,null,null,null,null,null,null,null,null,null,null,null,null,null,null,null,null,null,null,null,null,null,null,null,null,null,null,null,null,null,null,null,null,null,null,null,null,null,null,null,null,null,null,null,null,null,null,null,null,null,null,null,null,"(11)から(23)",null,null,null,null,null,null,"階段",null,null,null,null,null,null,null,null,null,null,null,null,null,null,null,null,null,null,null,null,null,null,null,null,null,null,null,null,null,null,null,null,null,null,null,null,null,null,null,null,null,null,null,null,null,null,null,null,null,null,null,null,null,null,null,null,null,null,null,null,null,null,null,null,null,null,null,null,null,null,null,null,null,null,null,null,"(11)から(23)",null,null,null,null,null,null,"階段"]
[null,null,null,null,null,null,null,null,null,null,null,null,null,null,null,null,null,null,null,null,null,null,null,null,null,null,null,null,null,null,null,null,null,null,null,null,null,null,null,null,null,null,null,null,null,null,null,null,null,null,null,null,null,null,null,null,null,null,null,null,null,null,"(24)から(29)",null,null,null,null,null,null,"排煙設備等",null,null,null,null,null,null,null,null,null,null,null,null,null,null,null,null,null,null,null,null,null,null,null,null,null,null,null,null,null,null,null,null,null,null,null,null,null,null,null,null,null,null,null,null,null,null,null,null,null,null,null,null,null,null,null,null,null,null,null,null,null,null,null,null,null,null,null,null,null,null,null,null,null,null,null,null,"(24)から(29)",null,null,null,null,null,null,"排煙設備等"]
[null,null,null,null,null,null,null,null,null,null,null,null,null,null,null,null,null,null,null,null,null,null,null,null,null,null,null,null,null,null,null,null,null,null,null,null,null,null,null,null,null,null,null,null,null,null,null,null,null,null,null,null,null,null,null,null,null,null,null,null,null,null,"(30)から(40)",null,null,null,null,null,null,"その他の設備等　",null,null,null,null,null,null,null,null,null,null,null,null,null,null,null,null,null,null,null,null,null,null,null,null,null,null,null,null,null,null,null,null,null,null,null,null,null,null,null,null,null,null,null,null,null,null,null,null,null,null,null,null,null,null,null,null,null,null,null,null,null,null,null,null,null,null,null,null,null,null,null,null,null,null,null,null,"(30)から(40)",null,null,null,null,null,null,"その他の設備等　"]
[]
[null,null,null,null,null,null,null,null,null,null,null,null,null,null,null,null,null,null,null,null,null,null,null,null,null,null,null,null,null,null,null,null,null,null,null,null,null,null,null,null,null,null,null,null,null,null,null,null,null,null,null,null,null,null,null,null,null,null,null,null,null,null,6,null,null,null,null,null,null,"その他",null,null,null,null,null,null,null,null,null,null,null,null,null,null,null,null,null,null,null,null,null,null,null,null,null,null,null,null,null,null,null,null,null,null,null,null,null,null,null,null,null,null,null,null,null,null,null,null,null,null,null,null,null,null,null,null,null,null,null,null,null,null,null,null,null,null,null,null,null,null,null,null,null,null,null,null,6,null,null,null,null,null,null,"その他"]
[null,null,null,null,null,null,null,null,null,null,null,null,null,null,null,null,null,null,null,null,null,null,null,null,null,null,null,null,null,null,null,null,null,null,null,null,null,null,null,null,null,null,null,null,null,null,null,null,null,null,null,null,null,null,null,null,null,null,null,null,null,null,"(1)から(4)",null,null,null,null,null,null,"特殊な構造等",null,null,null,null,null,null,null,null,null,null,null,null,null,null,null,null,null,null,null,null,null,null,null,null,null,null,null,null,null,null,null,null,null,null,null,null,null,null,null,null,null,null,null,null,null,null,null,null,null,null,null,null,null,null,null,null,null,null,null,null,null,null,null,null,null,null,null,null,null,null,null,null,null,null,null,null,"(1)から(4)",null,null,null,null,null,null,"特殊な構造等"]
[null,null,null,null,null,null,null,null,null,null,null,null,null,null,null,null,null,null,null,null,null,null,null,null,null,null,null,null,null,null,null,null,null,null,null,null,null,null,null,null,null,null,null,null,null,null,null,null,null,null,null,null,null,null,null,null,null,null,null,null,null,null,"(5)",null,null,null,null,null,null,"避雷設備",null,null,null,null,null,null,null,null,null,null,null,null,null,null,null,null,null,null,null,null,null,null,null,null,null,null,null,null,null,null,null,null,null,null,null,null,null,null,null,null,null,null,null,null,null,null,null,null,null,null,null,null,null,null,null,null,null,null,null,null,null,null,null,null,null,null,null,null,null,null,null,null,null,null,null,null,"(5)",null,null,null,null,null,null,"避雷設備"]
[null,null,null,null,null,null,null,null,null,null,null,null,null,null,null,null,null,null,null,null,null,null,null,null,null,null,null,null,null,null,null,null,null,null,null,null,null,null,null,null,null,null,null,null,null,null,null,null,null,null,null,null,null,null,null,null,null,null,null,null,null,null,"(6)から(9)",null,null,null,null,null,null,"煙突",null,null,null,null,null,null,null,null,null,null,null,null,null,null,null,null,null,null,null,null,null,null,null,null,null,null,null,null,null,null,null,null,null,null,null,null,null,null,null,null,null,null,null,null,null,null,null,null,null,null,null,null,null,null,null,null,null,null,null,null,null,null,null,null,null,null,null,null,null,null,null,null,null,null,null,null,"(6)から(9)",null,null,null,null,null,null,"煙突"]
[]
[null,null,null,null,null,null,null,null,null,null,null,null,null,null,null,null,null,null,null,null,null,null,null,null,null,null,null,null,null,null,null,null,null,null,null,null,null,null,null,null,null,null,null,null,null,null,null,null,null,null,null,null,null,null,null,null,null,null,null,null,null,null,7,null,null,null,null,null,null,"上記以外の調査項目",null,null,null,null,null,null,null,null,null,null,null,null,null,null,null,null,null,null,null,null,null,null,null,null,null,null,null,null,null,null,null,null,null,null,null,null,null,null,null,null,null,null,null,null,null,null,null,null,null,null,null,null,null,null,null,null,null,null,null,null,null,null,null,null,null,null,null,null,null,null,null,null,null,null,null,null,7,null,null,null,null,null,null,"上記以外の調査項目"]
[]
[]
[]
[]
[]
[]
[]
[]
[]
[]
[]
[null,"注）配置図及び各階平面図を添付し、指摘のあった箇所（特記すべき事項を含む）や撮影した写真の位置等を明記すること。",null,null,null,null,null,null,null,null,null,null,null,null,null,null,null,null,null,null,null,null,null,null,null,null,null,null,null,null,null,null,null,null,null,null,null,null,null,null,null,null,null,null,null,null,null,null,null,null,null,null,null,null,null,null,null,null,null,null,null,null,null,null,null,null,null,null,null,null,null,null,null,null,null,null,null,null,null,null,null,null,null,null,null,"注）配置図及び各階平面図を添付し、指摘のあった箇所（特記すべき事項を含む）や撮影した写真の位置等を明記すること。"]

{"sheet":"別添2(写真)","index":11,"n_rows":63,"n_cols":91,"rows_kept":63,"cut":false,"hidden":false,"merged":[[0,1,0,47],[1,1,1,47],[4,1,4,47],[30,1,30,47],[10,32,10,47],[9,34,9,40],[9,42,9,47],[2,1,2,47],[6,1,10,2],[6,16,7,31],[6,32,7,47],[3,1,3,47],[5,1,5,47],[6,3,7,15],[31,16,32,31],[31,32,32,47],[8,32,8,47],[31,3,32,15],[12,25,29,47],[8,3,10,15],[8,16,10,31],[31,1,35,2],[11,1,29,24],[11,25,11,47],[64,2,64,47],[63,2,63,47],[58,2,58,47],[59,2,59,47],[61,2,61,47],[60,2,60,47],[62,2,62,47],[57,2,57,47],[55,1,55,47],[56,2,56,47],[36,25,36,47],[33,3,35,15],[37,25,54,47],[0,49,0,95],[1,49,1,95],[2,49,2,95],[3,49,3,95],[4,49,4,95],[5,49,5,95],[35,32,35,47],[34,42,34,47],[36,1,54,24],[33,16,35,31],[33,32,33,47],[34,34,34,40],[6,49,10,50],[6,51,7,63],[6,64,7,79],[6,80,7,95],[8,51,10,63],[8,64,10,79],[8,80,8,95],[9,82,9,88],[9,90,9,95],[10,80,10,95],[11,49,29,72],[11,73,11,95],[12,73,29,95],[30,49,30,95],[31,49,35,50],[31,51,32,63],[31,64,32,79],[31,80,32,95],[33,51,35,63],[33,64,35,79],[33,80,33,95],[34,82,34,88],[34,90,34,95],[35,80,35,95],[63,50,63,95],[64,50,64,95],[59,50,59,95],[56,50,56,95],[36,49,54,72],[36,73,36,95],[37,73,54,95],[60,50,60,95],[61,50,61,95],[62,50,62,95],[57,50,57,95],[58,50,58,95],[55,49,55,95]]}
[]
[]
[]
[null,"別添２様式（Ａ４）",null,null,null,null,null,null,null,null,null,null,null,null,null,null,null,null,null,null,null,null,null,null,null,null,null,null,null,null,null,null,null,null,null,null,null,null,null,null,null,null,null,null,null,null,null,null,null,"別添２様式（Ａ４）"]
[null,"関係写真",null,null,null,null,null,null,null,null,null,null,null,null,null,null,null,null,null,null,null,null,null,null,null,null,null,null,null,null,null,null,null,null,null,null,null,null,null,null,null,null,null,null,null,null,null,null,null,"関係写真"]
[]
[null,"部位",null,"番号",null,null,null,null,null,null,null,null,null,null,null,null,"調査項目",null,null,null,null,null,null,null,null,null,null,null,null,null,null,null,"調査結果",null,null,null,null,null,null,null,null,null,null,null,null,null,null,null,null,"部位",null,"番号",null,null,null,null,null,null,null,null,null,null,null,null,"調査項目",null,null,null,null,null,null,null,null,null,null,null,null,null,null,null,"調査結果"]
[]
[]
[null,null,null,null,null,null,null,null,null,null,null,null,null,null,null,null,null,null,null,null,null,null,null,null,null,null,null,null,null,null,null,null,null,"　","要是正",null,null,null,null,null,null,"　","その他",null,null,null,null,null,null,null,null,null,null,null,null,null,null,null,null,null,null,null,null,null,null,null,null,null,null,null,null,null,null,null,null,null,null,null,null,null,null,"　","要是正",null,null,null,null,null,null,"　","その他"]
[]
[null,"写真貼付",null,null,null,null,null,null,null,null,null,null,null,null,null,null,null,null,null,null,null,null,null,null,null,"特記事項",null,null,null,null,null,null,null,null,null,null,null,null,null,null,null,null,null,null,null,null,null,null,null,"写真貼付",null,null,null,null,null,null,null,null,null,null,null,null,null,null,null,null,null,null,null,null,null,null,null,"特記事項"]
[]
[]
[]
[]
[]
[]
[]
[]
[]
[]
[]
[]
[]
[]
[]
[]
[]
[]
[]
[null,"部位",null,"番号",null,null,null,null,null,null,null,null,null,null,null,null,"調査項目",null,null,null,null,null,null,null,null,null,null,null,null,null,null,null,"調査結果",null,null,null,null,null,null,null,null,null,null,null,null,null,null,null,null,"部位",null,"番号",null,null,null,null,null,null,null,null,null,null,null,null,"調査項目",null,null,null,null,null,null,null,null,null,null,null,null,null,null,null,"調査結果"]
[]
[]
[null,null,null,null,null,null,null,null,null,null,null,null,null,null,null,null,null,null,null,null,null,null,null,null,null,null,null,null,null,null,null,null,null,null,"要是正",null,null,null,null,null,null,null,"その他",null,null,null,null,null,null,null,null,null,null,null,null,null,null,null,null,null,null,null,null,null,null,null,null,null,null,null,null,null,null,null,null,null,null,null,null,null,null,null,"要是正",null,null,null,null,null,null,null,"その他"]
[]
[null,"写真貼付",null,null,null,null,null,null,null,null,null,null,null,null,null,null,null,null,null,null,null,null,null,null,null,"特記事項",null,null,null,null,null,null,null,null,null,null,null,null,null,null,null,null,null,null,null,null,null,null,null,"写真貼付",null,null,null,null,null,null,null,null,null,null,null,null,null,null,null,null,null,null,null,null,null,null,null,"特記事項"]
[]
[]
[]
[]
[]
[]
[]
[]
[]
[]
[]
[]
[]
[]
[]
[]
[]
[]
[null,"（注意）",null,null,null,null,null,null,null,null,null,null,null,null,null,null,null,null,null,null,null,null,null,null,null,null,null,null,null,null,null,null,null,null,null,null,null,null,null,null,null,null,null,null,null,null,null,null,null,"（注意）"]
[null,"①　","この書類は、調査の結果「要是正」かつ「既存不適格」ではない項目について作成してください。また、「既存不適格」及び「指摘なし」の項目に",null,null,null,null,null,null,null,null,null,null,null,null,null,null,null,null,null,null,null,null,null,null,null,null,null,null,null,null,null,null,null,null,null,null,null,null,null,null,null,null,null,null,null,null,null,null,"①　","この書類は、調査の結果「要是正」かつ「既存不適格」ではない項目について作成してください。また、「既存不適格」及び「指摘なし」の項目に"]
[null,null,"ついても、特記すべき事項があれば、必要に応じて作成してください。「要是正」の項目がない場合は、この書類は省略しても構いません。",null,null,null,null,null,null,null,null,null,null,null,null,null,null,null,null,null,null,null,null,null,null,null,null,null,null,null,null,null,null,null,null,null,null,null,null,null,null,null,null,null,null,null,null,null,null,null,"ついても、特記すべき事項があれば、必要に応じて作成してください。「要是正」の項目がない場合は、この書類は省略しても構いません。"]
[null,"②　","記入欄が不足する場合は、枠を拡大、行を追加して記入するか、別紙に必要な事項を記入して添えてください。",null,null,null,null,null,null,null,null,null,null,null,null,null,null,null,null,null,null,null,null,null,null,null,null,null,null,null,null,null,null,null,null,null,null,null,null,null,null,null,null,null,null,null,null,null,null,"②　","記入欄が不足する場合は、枠を拡大、行を追加して記入するか、別紙に必要な事項を記入して添えてください。"]
[null,"③","「部位」欄の「番号」、「調査項目」は、それぞれ別記様式の番号、調査項目に対応したものを記入してください。",null,null,null,null,null,null,null,null,null,null,null,null,null,null,null,null,null,null,null,null,null,null,null,null,null,null,null,null,null,null,null,null,null,null,null,null,null,null,null,null,null,null,null,null,null,null,"③","「部位」欄の「番号」、「調査項目」は、それぞれ別記様式の番号、調査項目に対応したものを記入してください。"]
[null,"④","「調査結果」欄は、調査の結果、要是正の指摘があった場合は「要是正」のチェックボックスに「レ」マークを入れ、それ以外の場合で特記すべき",null,null,null,null,null,null,null,null,null,null,null,null,null,null,null,null,null,null,null,null,null,null,null,null,null,null,null,null,null,null,null,null,null,null,null,null,null,null,null,null,null,null,null,null,null,null,"④","「調査結果」欄は、調査の結果、要是正の指摘があった場合は「要是正」のチェックボックスに「レ」マークを入れ、それ以外の場合で特記すべき"]
[null,null,"事項がある場合は「その他」のチェックボックスに「レ」マークを入れてください。",null,null,null,null,null,null,null,null,null,null,null,null,null,null,null,null,null,null,null,null,null,null,null,null,null,null,null,null,null,null,null,null,null,null,null,null,null,null,null,null,null,null,null,null,null,null,null,"事項がある場合は「その他」のチェックボックスに「レ」マークを入れてください。"]
[null,"⑤　","写真は、当該部位の外観の状況が確認できるように撮影したものを添付してください。",null,null,null,null,null,null,null,null,null,null,null,null,null,null,null,null,null,null,null,null,null,null,null,null,null,null,null,null,null,null,null,null,null,null,null,null,null,null,null,null,null,null,null,null,null,null,"⑤　","写真は、当該部位の外観の状況が確認できるように撮影したものを添付してください。"]

{"sheet":"概要書第一面","index":12,"n_rows":61,"n_cols":44,"rows_kept":61,"cut":false,"hidden":false,"merged":[[53,0,53,10],[53,11,53,13],[53,15,53,16],[53,18,53,19],[53,20,53,22],[19,5,19,10],[50,37,50,43],[51,37,51,43],[52,37,52,43],[50,20,50,22],[50,18,50,19],[43,11,43,43],[44,37,44,43],[44,15,44,25],[27,11,27,43],[49,28,49,30],[46,15,46,16],[46,24,46,26],[49,11,49,17],[49,20,49,22],[49,24,49,26],[30,0,30,10],[21,15,21,24],[30,15,30,24],[25,17,25,22],[25,24,25,28],[63,0,63,43],[59,0,59,43],[61,0,61,43],[62,0,62,43],[60,0,60,30],[60,31,60,32],[60,34,60,35],[60,37,60,38],[60,40,60,42],[25,11,25,14],[28,11,28,43],[25,29,25,33],[47,0,47,10],[47,11,47,43],[48,11,48,43],[49,34,49,43],[49,31,49,33],[48,0,48,10],[50,24,50,26],[44,0,44,10],[44,11,44,13],[46,0,46,10],[22,0,22,10],[21,25,21,34],[30,25,30,34],[26,11,26,43],[29,35,29,42],[30,35,30,42],[29,32,29,34],[53,31,53,33],[29,0,29,10],[29,11,29,14],[29,15,29,16],[29,17,29,22],[30,11,30,14],[29,24,29,28],[29,29,29,31],[24,0,24,10],[25,0,25,10],[26,0,26,10],[27,0,27,10],[28,0,28,10],[43,0,43,10],[50,11,50,13],[49,0,49,10],[50,0,50,10],[46,11,46,13],[45,11,45,43],[46,37,46,43],[46,27,46,35],[45,0,45,10],[44,28,44,35],[46,20,46,22],[49,18,49,19],[46,18,46,19],[50,15,50,16],[51,18,51,19],[51,15,51,16],[51,20,51,22],[50,34,50,35],[51,28,51,30],[51,31,51,33],[51,34,51,35],[50,31,50,33],[50,28,50,30],[54,0,54,14],[55,11,55,13],[55,0,55,10],[56,11,56,13],[52,0,52,10],[55,19,55,43],[57,24,57,25],[51,24,51,26],[52,31,52,33],[56,19,56,43],[52,18,52,19],[52,28,52,30],[54,15,54,43],[52,24,52,26],[52,20,52,22],[52,15,52,16],[55,15,55,17],[51,0,51,10],[51,11,51,13],[52,34,52,35],[53,24,53,26],[53,28,53,30],[53,34,53,35],[53,37,53,43],[40,0,40,10],[40,11,40,43],[39,11,39,13],[39,14,39,21],[41,0,41,10],[42,0,42,10],[41,11,41,43],[42,11,42,43],[58,15,58,18],[58,20,58,22],[58,23,58,42],[57,37,57,43],[57,31,57,35],[57,26,57,27],[57,29,57,30],[57,19,57,22],[56,15,56,17],[57,15,57,17],[58,0,58,10],[52,11,52,13],[56,0,56,10],[57,11,57,13],[58,11,58,13],[57,0,57,10],[37,0,37,10],[38,0,38,10],[37,11,37,43],[38,11,38,43],[39,22,39,43],[36,0,36,10],[35,11,35,43],[36,11,36,43],[31,0,31,10],[32,0,32,10],[33,0,33,10],[34,0,34,10],[34,11,34,14],[34,15,34,16],[32,11,32,43],[33,11,33,43],[35,0,35,10],[34,17,34,22],[34,24,34,28],[34,29,34,33],[34,35,34,42],[31,11,31,43],[39,0,39,10],[4,0,4,43],[14,0,14,10],[15,0,15,10],[14,11,14,43],[15,11,15,43],[25,35,25,42],[17,11,17,43],[11,0,11,10],[9,0,9,10],[23,0,23,10],[22,11,22,43],[23,11,23,43],[21,0,21,10],[21,11,21,14],[19,0,19,4],[19,11,19,42],[21,35,21,42],[17,0,17,10],[18,0,18,10],[18,11,18,43],[16,0,16,10],[20,0,20,10],[25,15,25,16],[24,11,24,43],[0,0,0,43],[1,0,1,43],[2,0,2,43],[3,0,3,43],[20,29,20,31],[8,0,8,43],[5,0,5,43],[6,0,6,43],[7,0,7,43],[16,11,16,43],[20,11,20,14],[20,15,20,16],[12,0,12,10],[9,11,9,43],[10,11,10,43],[20,35,20,42],[11,11,11,43],[10,0,10,10],[20,17,20,22],[20,24,20,28],[13,0,13,10],[12,11,12,43],[13,11,13,43],[20,32,20,34]]}
[]
[]
[]
["第三十六号の三様式(第五条、第六条の三、第十一条の三関係) （Ａ４）"]
[]
["定期調査報告概要書"]
[]
["（第一面）"]
["調査等の概要"]
["【1.所有者】"]
["【ｲ.氏名のﾌﾘｶﾞﾅ】",null,null,null,null,null,null,null,null,null,null,{"$f":"IF(報告書第一面!L16<>\"\",報告書第一面!L16,\"\")","v":""}]
["【ﾛ.氏名】",null,null,null,null,null,null,null,null,null,null,{"$f":"IF(報告書第一面!L17<>\"\",報告書第一面!L17,\"\")","v":""}]
["【ﾊ.郵便番号】",null,null,null,null,null,null,null,null,null,null,{"$f":"IF(報告書第一面!L18<>\"\",報告書第一面!L18,\"\")","v":""}]
["【ﾆ.住所】",null,null,null,null,null,null,null,null,null,null,{"$f":"IF(報告書第一面!L19<>\"\",報告書第一面!L19,\"\")","v":""}]
["【2.管理者】"]
["【ｲ.氏名のﾌﾘｶﾞﾅ】",null,null,null,null,null,null,null,null,null,null,{"$f":"IF(報告書第一面!L22<>\"\",報告書第一面!L22,\"\")","v":""}]
["【ﾛ.氏名】",null,null,null,null,null,null,null,null,null,null,{"$f":"IF(報告書第一面!L23<>\"\",報告書第一面!L23,\"\")","v":""}]
["【ﾊ.郵便番号】",null,null,null,null,null,null,null,null,null,null,{"$f":"IF(報告書第一面!L24<>\"\",報告書第一面!L24,\"\")","v":""}]
["【ﾆ.住所】",null,null,null,null,null,null,null,null,null,null,{"$f":"IF(報告書第一面!L25<>\"\",報告書第一面!L25,\"\")","v":""}]
["【3.調査者】"]
["　(代表となる調査者)",null,null,null,null,null,null,null,null,null,null,"(",null,null,null,{"$f":"IF(報告書第一面!P28<>\"\",報告書第一面!P28,\"\")","v":""},null,")建築士",null,null,null,null,null,"(",{"$f":"IF(報告書第一面!Y28<>\"\",報告書第一面!Y28,\"\")","v":""},null,null,null,null,")登録",null,null,"第",null,null,{"$f":"IF(報告書第一面!AJ28<>\"\",報告書第一面!AJ28,\"\")","v":""},null,null,null,null,null,null,null,"号"]
["【ｲ.資格】",null,null,null,null,null,null,null,null,null,null,null,null,null,null,"特定建築物調査員",null,null,null,null,null,null,null,null,null,"第",null,null,null,null,null,null,null,null,null,{"$f":"IF(報告書第一面!AJ29<>\"\",報告書第一面!AJ29,\"\")","v":""},null,null,null,null,null,null,null,"号"]
["【ﾛ.氏名のﾌﾘｶﾞﾅ】",null,null,null,null,null,null,null,null,null,null,{"$f":"IF(報告書第一面!L30<>\"\",報告書第一面!L30,\"\")","v":""}]
["【ﾊ.氏名】",null,null,null,null,null,null,null,null,null,null,{"$f":"IF(報告書第一面!L31<>\"\",報告書第一面!L31,\"\")","v":""}]
["【ﾆ.勤務先】",null,null,null,null,null,null,null,null,null,null,{"$f":"IF(報告書第一面!L32<>\"\",報告書第一面!L32,\"\")","v":""}]
[null,null,null,null,null,null,null,null,null,null,null,"(",null,null,null,{"$f":"IF(報告書第一面!P33<>\"\",報告書第一面!P33,\"\")","v":""},null,")建築士事務所",null,null,null,null,null,"(",{"$f":"IF(報告書第一面!Y33<>\"\",報告書第一面!Y33,\"\")","v":""},null,null,null,null,")知事登録",null,null,null,null,"第",{"$f":"IF(報告書第一面!AJ33<>\"\",報告書第一面!AJ33,\"\")","v":""},null,null,null,null,null,null,null,"号"]
["【ﾎ.郵便番号】",null,null,null,null,null,null,null,null,null,null,{"$f":"IF(報告書第一面!L34<>\"\",報告書第一面!L34,\"\")","v":""}]
["【ﾍ.所在地】",null,null,null,null,null,null,null,null,null,null,{"$f":"IF(報告書第一面!L35<>\"\",報告書第一面!L35,\"\")","v":""}]
["【ﾄ.電話番号】",null,null,null,null,null,null,null,null,null,null,{"$f":"IF(報告書第一面!L36<>\"\",報告書第一面!L36,\"\")","v":""}]
["　(その他の調査者)",null,null,null,null,null,null,null,null,null,null,"(",null,null,null,{"$f":"IF(報告書第一面!P37<>\"\",報告書第一面!P37,\"\")","v":""},null,")建築士",null,null,null,null,null,"(",{"$f":"IF(報告書第一面!Y37<>\"\",報告書第一面!Y37,\"\")","v":""},null,null,null,null,")登録",null,null,"第",null,null,{"$f":"IF(報告書第一面!AJ37<>\"\",報告書第一面!AJ37,\"\")","v":""},null,null,null,null,null,null,null,"号"]
["【ｲ.資格】",null,null,null,null,null,null,null,null,null,null,null,null,null,null,"特定建築物調査員",null,null,null,null,null,null,null,null,null,"第",null,null,null,null,null,null,null,null,null,{"$f":"IF(報告書第一面!AJ38<>\"\",報告書第一面!AJ38,\"\")","v":""},null,null,null,null,null,null,null,"号"]
["【ﾛ.氏名のﾌﾘｶﾞﾅ】",null,null,null,null,null,null,null,null,null,null,{"$f":"IF(報告書第一面!L39<>\"\",報告書第一面!L39,\"\")","v":""}]
["【ﾊ.氏名】",null,null,null,null,null,null,null,null,null,null,{"$f":"IF(報告書第一面!L40<>\"\",報告書第一面!L40,\"\")","v":""}]
["【ﾆ.勤務先】",null,null,null,null,null,null,null,null,null,null,{"$f":"IF(報告書第一面!L41<>\"\",報告書第一面!L41,\"\")","v":""}]
[null,null,null,null,null,null,null,null,null,null,null,"(",null,null,null,{"$f":"IF(報告書第一面!P42<>\"\",報告書第一面!P42,\"\")","v":""},null,")建築士事務所",null,null,null,null,null,"(",{"$f":"IF(報告書第一面!Y42<>\"\",報告書第一面!Y42,\"\")","v":""},null,null,null,null,")知事登録",null,null,null,null,"第",{"$f":"IF(報告書第一面!AJ42<>\"\",報告書第一面!AJ42,\"\")","v":""},null,null,null,null,null,null,null,"号"]
["【ﾎ.郵便番号】",null,null,null,null,null,null,null,null,null,null,{"$f":"IF(報告書第一面!L43<>\"\",報告書第一面!L43,\"\")","v":""}]
["【ﾍ.所在地】",null,null,null,null,null,null,null,null,null,null,{"$f":"IF(報告書第一面!L44<>\"\",報告書第一面!L44,\"\")","v":""}]
["【ﾄ.電話番号】",null,null,null,null,null,null,null,null,null,null,{"$f":"IF(報告書第一面!L45<>\"\",報告書第一面!L45,\"\")","v":""}]
["【4.報告対象建築物】"]
["【ｲ.所在地】",null,null,null,null,null,null,null,null,null,null,"埼玉県",null,null,{"$f":"IF(報告書第一面!O47<>\"\",報告書第一面!O47,\"\")","v":""},null,null,null,null,null,null,null,{"$f":"IF(報告書第一面!W47<>\"\",報告書第一面!W47,\"\")","v":""}]
["【ﾛ.名称のﾌﾘｶﾞﾅ】",null,null,null,null,null,null,null,null,null,null,{"$f":"IF(報告書第一面!L48<>\"\",報告書第一面!L48,\"\")","v":""}]
["【ﾊ.名称】",null,null,null,null,null,null,null,null,null,null,{"$f":"IF(報告書第一面!L49<>\"\",報告書第一面!L49,\"\")","v":""}]
["【ﾆ.用途】",null,null,null,null,null,null,null,null,null,null,{"$f":"IF(報告書第一面!L50<>\"\",報告書第一面!L50,\"\")","v":""}]
["【5.調査による指摘の概要】"]
["【ｲ.指摘の内容】",null,null,null,null,null,null,null,null,null,null,null,null,null,{"$f":"IF(報告書第一面!O52<>\"\",報告書第一面!O52,\"\")","v":""},"要是正の指摘あり",null,null,null,null,null,null,null,null,null,null,"(",{"$f":"IF(報告書第一面!AB52<>\"\",報告書第一面!AB52,\"\")","v":""},"既存不適格)",null,null,null,null,null,null,null,{"$f":"IF(報告書第一面!AK52<>\"\",報告書第一面!AK52,\"\")","v":""},"指摘なし"]
["【ﾛ.指摘の概要】",null,null,null,null,null,null,null,null,null,null,{"$f":"IF(報告書第一面!L53<>\"\",報告書第一面!L53,\"\")","v":""}]
["【ﾊ.改善予定の有無】",null,null,null,null,null,null,null,null,null,null,null,null,null,{"$f":"IF(報告書第一面!O54<>\"\",報告書第一面!O54,\"\")","v":""},"有",null,"(",{"$f":"IF(報告書第一面!S54<>\"\",報告書第一面!S54,\"\")","v":""},null,{"$f":"IF(報告書第一面!U54<>\"\",報告書第一面!U54,\"\")","v":""},null,null,"年",{"$f":"IF(報告書第一面!Y54<>\"\",報告書第一面!Y54,\"\")","v":""},null,null,"月に改善予定)",null,null,null,null,null,null,null,null,{"$f":"IF(報告書第一面!AK54<>\"\",報告書第一面!AK54,\"\")","v":""},"無"]
["【ﾆ.その他特記事項】",null,null,null,null,null,null,null,null,null,null,{"$f":"IF(報告書第一面!L55<>\"\",報告書第一面!L55,\"\")","v":""}]
["【6.調査及び検査の状況】"]
["【ｲ.今回の調査】",null,null,null,null,null,null,null,null,null,null,null,null,null,null,null,null,null,{"$f":"IF(報告書第三面!T8<>\"\",報告書第三面!T8,\"\")","v":""},null,{"$f":"IF(報告書第三面!V8<>\"\",報告書第三面!V8,\"\")","v":""},null,null,"年",{"$f":"IF(報告書第三面!Z8<>\"\",報告書第三面!Z8,\"\")","v":""},null,null,"月",{"$f":"IF(報告書第三面!AD8<>\"\",報告書第三面!AD8,\"\")","v":""},null,null,"日実施"]
["【ﾛ.前回の調査】",null,null,null,null,null,null,null,null,null,null,null,null,null,{"$f":"IF(報告書第三面!P9<>\"\",報告書第三面!P9,\"\")","v":""},"実施",null,"(",{"$f":"IF(報告書第三面!T9<>\"\",報告書第三面!T9,\"\")","v":""},null,{"$f":"IF(報告書第三面!V9<>\"\",報告書第三面!V9,\"\")","v":""},null,null,"年",{"$f":"IF(報告書第三面!Z9<>\"\",報告書第三面!Z9,\"\")","v":""},null,null,"月",{"$f":"IF(報告書第三面!AD9<>\"\",報告書第三面!AD9,\"\")","v":""},null,null,"日報告",null,null,")",null,{"$f":"IF(報告書第三面!AL9<>\"\",報告書第三面!AL9,\"\")","v":""},"未実施"]
["【ﾊ.建築設備の検査】",null,null,null,null,null,null,null,null,null,null,null,null,null,{"$f":"IF(報告書第三面!P10<>\"\",報告書第三面!P10,\"\")","v":""},"実施",null,"(",{"$f":"IF(報告書第三面!T10<>\"\",報告書第三面!T10,\"\")","v":""},null,{"$f":"IF(報告書第三面!V10<>\"\",報告書第三面!V10,\"\")","v":""},null,null,"年",{"$f":"IF(報告書第三面!Z10<>\"\",報告書第三面!Z10,\"\")","v":""},null,null,"月",{"$f":"IF(報告書第三面!AD10<>\"\",報告書第三面!AD10,\"\")","v":""},null,null,"日報告",null,null,")",null,{"$f":"IF(報告書第三面!AL10<>\"\",報告書第三面!AL10,\"\")","v":""},"未実施"]
["【ﾆ.昇降機等の検査】",null,null,null,null,null,null,null,null,null,null,null,null,null,{"$f":"IF(報告書第三面!P11<>\"\",報告書第三面!P11,\"\")","v":""},"実施",null,"(",{"$f":"IF(報告書第三面!T11<>\"\",報告書第三面!T11,\"\")","v":""},null,{"$f":"IF(報告書第三面!V11<>\"\",報告書第三面!V11,\"\")","v":""},null,null,"年",{"$f":"IF(報告書第三面!Z11<>\"\",報告書第三面!Z11,\"\")","v":""},null,null,"月",{"$f":"IF(報告書第三面!AD11<>\"\",報告書第三面!AD11,\"\")","v":""},null,null,"日報告",null,null,")",null,{"$f":"IF(報告書第三面!AL11<>\"\",報告書第三面!AL11,\"\")","v":""},"未実施"]
["【ﾎ.防火設備の検査】",null,null,null,null,null,null,null,null,null,null,null,null,null,{"$f":"IF(報告書第三面!P12<>\"\",報告書第三面!P12,\"\")","v":""},"実施",null,"(",{"$f":"IF(報告書第三面!T12<>\"\",報告書第三面!T12,\"\")","v":""},null,{"$f":"IF(報告書第三面!V12<>\"\",報告書第三面!V12,\"\")","v":""},null,null,"年",{"$f":"IF(報告書第三面!Z12<>\"\",報告書第三面!Z12,\"\")","v":""},null,null,"月",{"$f":"IF(報告書第三面!AD12<>\"\",報告書第三面!AD12,\"\")","v":""},null,null,"日報告",null,null,")",null,{"$f":"IF(報告書第三面!AL12<>\"\",報告書第三面!AL12,\"\")","v":""},"未実施"]
["【7.建築物等に係る不具合等の状況】"]
["【ｲ.不具合等】",null,null,null,null,null,null,null,null,null,null,null,null,null,{"$f":"IF(報告書第三面!P58<>\"\",報告書第三面!P58,\"\")","v":""},"有",null,null,{"$f":"IF(報告書第三面!T58<>\"\",報告書第三面!T58,\"\")","v":""},"無"]
["【ﾛ.不具合等の記録】",null,null,null,null,null,null,null,null,null,null,null,null,null,{"$f":"IF(報告書第三面!P59<>\"\",報告書第三面!P59,\"\")","v":""},"有",null,null,{"$f":"IF(報告書第三面!T59<>\"\",報告書第三面!T59,\"\")","v":""},"無"]
["【ﾊ.改善の状況】",null,null,null,null,null,null,null,null,null,null,null,null,null,{"$f":"IF(報告書第三面!P60<>\"\",報告書第三面!P60,\"\")","v":""},"実施済",null,null,{"$f":"IF(報告書第三面!T60<>\"\",報告書第三面!T60,\"\")","v":""},"改善予定",null,null,null,"(",{"$f":"IF(報告書第三面!Z60<>\"\",報告書第三面!Z60,\"\")","v":""},null,{"$f":"IF(報告書第三面!AB60<>\"\",報告書第三面!AB60,\"\")","v":""},null,"年",{"$f":"IF(報告書第三面!AE60<>\"\",報告書第三面!AE60,\"\")","v":""},null,"月に改善予定",null,null,null,null,")"]
[null,null,null,null,null,null,null,null,null,null,null,null,null,null,{"$f":"IF(報告書第三面!AM60<>\"\",報告書第三面!AM60,\"\")","v":""},"予定なし",null,null,null,"（","理由：",null,null,{"$f":"IF(報告書第三面!Y61<>\"\",報告書第三面!Y61,\"\")","v":""},null,null,null,null,null,null,null,null,null,null,null,null,null,null,null,null,null,null,null,"）"]
[]
["(台帳番号：",null,null,null,null,null,null,null,null,null,null,null,null,null,null,null,null,null,null,null,null,null,null,null,null,null,null,null,null,null,null,{"$f":"IF(報告書第一面!AF56<>\"\",報告書第一面!AF56,\"\")","v":""},null,"－",{"$f":"IF(報告書第一面!AI56<>\"\",報告書第一面!AI56,\"\")","v":{"$error":"#N/A"}},null,"－",{"$f":"IF(報告書第一面!AL56<>\"\",報告書第一面!AL56,\"\")","v":{"$error":"#N/A"}},null,"－",{"$f":"IF(報告書第一面!AO56<>\"\",報告書第一面!AO56,\"\")","v":""},null,null,")"]

{"sheet":"概要書第一面別紙(調査者)","index":13,"n_rows":59,"n_cols":44,"rows_kept":59,"cut":false,"hidden":false,"merged":[[23,11,23,43],[28,15,28,24],[40,0,40,10],[47,24,47,28],[47,29,47,31],[40,11,40,43],[47,32,47,34],[43,0,43,10],[42,11,42,14],[42,15,42,16],[47,35,47,42],[44,0,44,10],[29,0,29,10],[32,35,32,42],[32,17,32,22],[32,24,32,28],[30,0,30,10],[31,0,31,10],[29,11,29,43],[30,11,30,43],[31,11,31,43],[42,17,42,22],[34,11,34,43],[37,29,37,31],[42,35,42,42],[47,15,47,16],[48,35,48,42],[57,0,57,43],[55,0,55,10],[53,0,53,10],[54,0,54,10],[53,11,53,43],[54,11,54,43],[56,0,56,43],[55,11,55,43],[52,15,52,16],[52,29,52,33],[51,11,51,43],[52,35,52,42],[52,17,52,22],[51,0,51,10],[52,0,52,10],[52,11,52,14],[49,0,49,10],[50,0,50,10],[49,11,49,43],[52,24,52,28],[50,11,50,43],[43,11,43,43],[44,11,44,43],[45,11,45,43],[48,0,48,10],[48,11,48,14],[48,25,48,34],[48,15,48,24],[38,15,38,24],[41,0,41,10],[39,11,39,43],[38,35,38,42],[38,0,38,10],[38,11,38,14],[38,25,38,34],[42,0,42,10],[47,17,47,22],[42,24,42,28],[42,29,42,33],[46,0,46,43],[47,0,47,10],[47,11,47,14],[39,0,39,10],[41,11,41,43],[45,0,45,10],[32,29,32,33],[37,17,37,22],[32,0,32,10],[37,35,37,42],[37,15,37,16],[32,11,32,14],[35,0,35,10],[33,0,33,10],[34,0,34,10],[33,11,33,43],[32,15,32,16],[37,32,37,34],[37,24,37,28],[36,0,36,43],[37,0,37,10],[37,11,37,14],[35,11,35,43],[24,11,24,43],[28,11,28,14],[28,35,28,42],[28,25,28,34],[26,0,26,43],[25,11,25,43],[27,35,27,42],[27,29,27,31],[27,24,27,28],[9,11,9,43],[11,0,11,10],[10,11,10,43],[11,11,11,43],[22,17,22,22],[25,0,25,10],[22,11,22,14],[22,15,22,16],[7,29,7,31],[7,32,7,34],[9,0,9,10],[19,0,19,10],[20,0,20,10],[21,0,21,10],[22,0,22,10],[14,0,14,10],[15,0,15,10],[17,0,17,10],[7,0,7,10],[12,15,12,16],[7,15,7,16],[23,0,23,10],[18,0,18,10],[24,0,24,10],[10,0,10,10],[19,11,19,43],[20,11,20,43],[22,24,22,28],[22,29,22,33],[22,35,22,42],[21,11,21,43],[13,11,13,43],[18,25,18,34],[18,15,18,24],[18,35,18,42],[17,11,17,14],[17,15,17,16],[17,17,17,22],[8,0,8,10],[8,11,8,14],[8,25,8,34],[0,40,0,42],[1,5,1,13],[0,0,0,4],[1,0,1,4],[0,5,0,30],[0,31,0,32],[0,34,0,35],[0,37,0,38],[7,11,7,14],[3,0,3,43],[5,0,5,43],[4,0,4,43],[6,0,6,43],[2,0,2,43],[1,14,1,43],[7,35,7,42],[8,15,8,24],[8,35,8,42],[7,17,7,22],[7,24,7,28],[60,0,60,43],[17,35,17,42],[17,24,17,28],[16,0,16,43],[17,29,17,31],[17,32,17,34],[27,32,27,34],[58,0,58,43],[12,17,12,22],[59,0,59,43],[12,35,12,42],[12,24,12,28],[14,11,14,43],[15,11,15,43],[12,29,12,33],[12,11,12,14],[18,11,18,14],[13,0,13,10],[12,0,12,10],[27,0,27,10],[27,11,27,14],[27,15,27,16],[27,17,27,22],[28,0,28,10]]}
[null,null,null,null,null,"(台帳番号：",null,null,null,null,null,null,null,null,null,null,null,null,null,null,null,null,null,null,null,null,null,null,null,null,null,{"$f":"IF(報告書第一面!AF56<>\"\",報告書第一面!AF56,\"\")","v":""},null,"−",{"$f":"IF(報告書第一面!AI56<>\"\",報告書第一面!AI56,\"\")","v":{"$error":"#N/A"}},null,"−",{"$f":"IF(報告書第一面!AL56<>\"\",報告書第一面!AL56,\"\")","v":{"$error":"#N/A"}},null,"−",{"$f":"IF(報告書第一面!AO56<>\"\",報告書第一面!AO56,\"\")","v":""},null,null,")"]
[null,null,null,null,null,"報告対象建築物の名称：",null,null,null,null,null,null,null,null,{"$f":"IF(報告書第一面!L49<>\"\",報告書第一面!L49,\"\")","v":""}]
[]
["定期調査報告概要書の別紙"]
[]
["(第一面【3.調査者】欄の別紙)"]
[]
["　(その他の調査者)",null,null,null,null,null,null,null,null,null,null,"(",null,null,null,{"$f":"IF('報告書第一面別紙(調査者)'!P8:Q8<>\"\",'報告書第一面別紙(調査者)'!P8:Q8,\"\")","v":""},null,")建築士",null,null,null,null,null,"(",{"$f":"IF('報告書第一面別紙(調査者)'!Y8:AC8<>\"\",'報告書第一面別紙(調査者)'!Y8:AC8,\"\")","v":""},null,null,null,null,")登録",null,null,"第",null,null,{"$f":"IF('報告書第一面別紙(調査者)'!AJ8:AQ8<>\"\",'報告書第一面別紙(調査者)'!AJ8:AQ8,\"\")","v":""},null,null,null,null,null,null,null,"号"]
["【ｲ.資格等】",null,null,null,null,null,null,null,null,null,null,null,null,null,null,"特定建築物調査員",null,null,null,null,null,null,null,null,null,"第",null,null,null,null,null,null,null,null,null,{"$f":"IF('報告書第一面別紙(調査者)'!AJ9:AQ9<>\"\",'報告書第一面別紙(調査者)'!AJ9:AQ9,\"\")","v":""},null,null,null,null,null,null,null,"号"]
["【ﾛ.氏名のﾌﾘｶﾞﾅ】",null,null,null,null,null,null,null,null,null,null,{"$f":"IF('報告書第一面別紙(調査者)'!L10:AR10<>\"\",'報告書第一面別紙(調査者)'!L10:AR10,\"\")","v":""}]
["【ﾊ.氏名】",null,null,null,null,null,null,null,null,null,null,{"$f":"IF('報告書第一面別紙(調査者)'!L11:AR11<>\"\",'報告書第一面別紙(調査者)'!L11:AR11,\"\")","v":""}]
["【ﾆ.勤務先】",null,null,null,null,null,null,null,null,null,null,{"$f":"IF('報告書第一面別紙(調査者)'!L12:AR12<>\"\",'報告書第一面別紙(調査者)'!L12:AR12,\"\")","v":""}]
[null,null,null,null,null,null,null,null,null,null,null,"(",null,null,null,{"$f":"IF('報告書第一面別紙(調査者)'!P13:Q13<>\"\",'報告書第一面別紙(調査者)'!P13:Q13,\"\")","v":""},null,")建築士事務所",null,null,null,null,null,"(",{"$f":"IF('報告書第一面別紙(調査者)'!Y13:AC13<>\"\",'報告書第一面別紙(調査者)'!Y13:AC13,\"\")","v":""},null,null,null,null,")知事登録",null,null,null,null,"第",{"$f":"IF('報告書第一面別紙(調査者)'!AJ13:AQ13<>\"\",'報告書第一面別紙(調査者)'!AJ13:AQ13,\"\")","v":""},null,null,null,null,null,null,null,"号"]
["【ﾎ.郵便番号】",null,null,null,null,null,null,null,null,null,null,{"$f":"IF('報告書第一面別紙(調査者)'!L14:AR14<>\"\",'報告書第一面別紙(調査者)'!L14:AR14,\"\")","v":""}]
["【ﾍ.所在地】",null,null,null,null,null,null,null,null,null,null,{"$f":"IF('報告書第一面別紙(調査者)'!L15:AR15<>\"\",'報告書第一面別紙(調査者)'!L15:AR15,\"\")","v":""}]
["【ﾄ.電話番号】",null,null,null,null,null,null,null,null,null,null,{"$f":"IF('報告書第一面別紙(調査者)'!L16:AR16<>\"\",'報告書第一面別紙(調査者)'!L16:AR16,\"\")","v":""}]
[]
["　(その他の調査者)",null,null,null,null,null,null,null,null,null,null,"(",null,null,null,{"$f":"IF('報告書第一面別紙(調査者)'!P18:Q18<>\"\",'報告書第一面別紙(調査者)'!P18:Q18,\"\")","v":""},null,")建築士",null,null,null,null,null,"(",{"$f":"IF('報告書第一面別紙(調査者)'!Y18:AC18<>\"\",'報告書第一面別紙(調査者)'!Y18:AC18,\"\")","v":""},null,null,null,null,")登録",null,null,"第",null,null,{"$f":"IF('報告書第一面別紙(調査者)'!AJ18:AQ18<>\"\",'報告書第一面別紙(調査者)'!AJ18:AQ18,\"\")","v":""},null,null,null,null,null,null,null,"号"]
["【ｲ.資格等】",null,null,null,null,null,null,null,null,null,null,null,null,null,null,"特定建築物調査員",null,null,null,null,null,null,null,null,null,"第",null,null,null,null,null,null,null,null,null,{"$f":"IF('報告書第一面別紙(調査者)'!AJ19:AQ19<>\"\",'報告書第一面別紙(調査者)'!AJ19:AQ19,\"\")","v":""},null,null,null,null,null,null,null,"号"]
["【ﾛ.氏名のﾌﾘｶﾞﾅ】",null,null,null,null,null,null,null,null,null,null,{"$f":"IF('報告書第一面別紙(調査者)'!L20:AR20<>\"\",'報告書第一面別紙(調査者)'!L20:AR20,\"\")","v":""}]
["【ﾊ.氏名】",null,null,null,null,null,null,null,null,null,null,{"$f":"IF('報告書第一面別紙(調査者)'!L21:AR21<>\"\",'報告書第一面別紙(調査者)'!L21:AR21,\"\")","v":""}]
["【ﾆ.勤務先】",null,null,null,null,null,null,null,null,null,null,{"$f":"IF('報告書第一面別紙(調査者)'!L22:AR22<>\"\",'報告書第一面別紙(調査者)'!L22:AR22,\"\")","v":""}]
[null,null,null,null,null,null,null,null,null,null,null,"(",null,null,null,{"$f":"IF('報告書第一面別紙(調査者)'!P23:Q23<>\"\",'報告書第一面別紙(調査者)'!P23:Q23,\"\")","v":""},null,")建築士事務所",null,null,null,null,null,"(",{"$f":"IF('報告書第一面別紙(調査者)'!Y23:AC23<>\"\",'報告書第一面別紙(調査者)'!Y23:AC23,\"\")","v":""},null,null,null,null,")知事登録",null,null,null,null,"第",{"$f":"IF('報告書第一面別紙(調査者)'!AJ23:AQ23<>\"\",'報告書第一面別紙(調査者)'!AJ23:AQ23,\"\")","v":""},null,null,null,null,null,null,null,"号"]
["【ﾎ.郵便番号】",null,null,null,null,null,null,null,null,null,null,{"$f":"IF('報告書第一面別紙(調査者)'!L24:AR24<>\"\",'報告書第一面別紙(調査者)'!L24:AR24,\"\")","v":""}]
["【ﾍ.所在地】",null,null,null,null,null,null,null,null,null,null,{"$f":"IF('報告書第一面別紙(調査者)'!L25:AR25<>\"\",'報告書第一面別紙(調査者)'!L25:AR25,\"\")","v":""}]
["【ﾄ.電話番号】",null,null,null,null,null,null,null,null,null,null,{"$f":"IF('報告書第一面別紙(調査者)'!L26:AR26<>\"\",'報告書第一面別紙(調査者)'!L26:AR26,\"\")","v":""}]
[]
["　(その他の調査者)",null,null,null,null,null,null,null,null,null,null,"(",null,null,null,{"$f":"IF('報告書第一面別紙(調査者)'!P28:Q28<>\"\",'報告書第一面別紙(調査者)'!P28:Q28,\"\")","v":""},null,")建築士",null,null,null,null,null,"(",{"$f":"IF('報告書第一面別紙(調査者)'!Y28:AC28<>\"\",'報告書第一面別紙(調査者)'!Y28:AC28,\"\")","v":""},null,null,null,null,")登録",null,null,"第",null,null,{"$f":"IF('報告書第一面別紙(調査者)'!AJ28:AQ28<>\"\",'報告書第一面別紙(調査者)'!AJ28:AQ28,\"\")","v":""},null,null,null,null,null,null,null,"号"]
["【ｲ.資格等】",null,null,null,null,null,null,null,null,null,null,null,null,null,null,"特定建築物調査員",null,null,null,null,null,null,null,null,null,"第",null,null,null,null,null,null,null,null,null,{"$f":"IF('報告書第一面別紙(調査者)'!AJ29:AQ29<>\"\",'報告書第一面別紙(調査者)'!AJ29:AQ29,\"\")","v":""},null,null,null,null,null,null,null,"号"]
["【ﾛ.氏名のﾌﾘｶﾞﾅ】",null,null,null,null,null,null,null,null,null,null,{"$f":"IF('報告書第一面別紙(調査者)'!L30:AR30<>\"\",'報告書第一面別紙(調査者)'!L30:AR30,\"\")","v":""}]
["【ﾊ.氏名】",null,null,null,null,null,null,null,null,null,null,{"$f":"IF('報告書第一面別紙(調査者)'!L31:AR31<>\"\",'報告書第一面別紙(調査者)'!L31:AR31,\"\")","v":""}]
["【ﾆ.勤務先】",null,null,null,null,null,null,null,null,null,null,{"$f":"IF('報告書第一面別紙(調査者)'!L32:AR32<>\"\",'報告書第一面別紙(調査者)'!L32:AR32,\"\")","v":""}]
[null,null,null,null,null,null,null,null,null,null,null,"(",null,null,null,{"$f":"IF('報告書第一面別紙(調査者)'!P33:Q33<>\"\",'報告書第一面別紙(調査者)'!P33:Q33,\"\")","v":""},null,")建築士事務所",null,null,null,null,null,"(",{"$f":"IF('報告書第一面別紙(調査者)'!Y33:AC33<>\"\",'報告書第一面別紙(調査者)'!Y33:AC33,\"\")","v":""},null,null,null,null,")知事登録",null,null,null,null,"第",{"$f":"IF('報告書第一面別紙(調査者)'!AJ33:AQ33<>\"\",'報告書第一面別紙(調査者)'!AJ33:AQ33,\"\")","v":""},null,null,null,null,null,null,null,"号"]
["【ﾎ.郵便番号】",null,null,null,null,null,null,null,null,null,null,{"$f":"IF('報告書第一面別紙(調査者)'!L34:AR34<>\"\",'報告書第一面別紙(調査者)'!L34:AR34,\"\")","v":""}]
["【ﾍ.所在地】",null,null,null,null,null,null,null,null,null,null,{"$f":"IF('報告書第一面別紙(調査者)'!L35:AR35<>\"\",'報告書第一面別紙(調査者)'!L35:AR35,\"\")","v":""}]
["【ﾄ.電話番号】",null,null,null,null,null,null,null,null,null,null,{"$f":"IF('報告書第一面別紙(調査者)'!L36:AR36<>\"\",'報告書第一面別紙(調査者)'!L36:AR36,\"\")","v":""}]
[]
["　(その他の調査者)",null,null,null,null,null,null,null,null,null,null,"(",null,null,null,{"$f":"IF('報告書第一面別紙(調査者)'!P38:Q38<>\"\",'報告書第一面別紙(調査者)'!P38:Q38,\"\")","v":""},null,")建築士",null,null,null,null,null,"(",{"$f":"IF('報告書第一面別紙(調査者)'!Y38:AC38<>\"\",'報告書第一面別紙(調査者)'!Y38:AC38,\"\")","v":""},null,null,null,null,")登録",null,null,"第",null,null,{"$f":"IF('報告書第一面別紙(調査者)'!AJ38:AQ38<>\"\",'報告書第一面別紙(調査者)'!AJ38:AQ38,\"\")","v":""},null,null,null,null,null,null,null,"号"]
["【ｲ.資格等】",null,null,null,null,null,null,null,null,null,null,null,null,null,null,"特定建築物調査員",null,null,null,null,null,null,null,null,null,"第",null,null,null,null,null,null,null,null,null,{"$f":"IF('報告書第一面別紙(調査者)'!AJ39:AQ39<>\"\",'報告書第一面別紙(調査者)'!AJ39:AQ39,\"\")","v":""},null,null,null,null,null,null,null,"号"]
["【ﾛ.氏名のﾌﾘｶﾞﾅ】",null,null,null,null,null,null,null,null,null,null,{"$f":"IF('報告書第一面別紙(調査者)'!L40:AR40<>\"\",'報告書第一面別紙(調査者)'!L40:AR40,\"\")","v":""}]
["【ﾊ.氏名】",null,null,null,null,null,null,null,null,null,null,{"$f":"IF('報告書第一面別紙(調査者)'!L41:AR41<>\"\",'報告書第一面別紙(調査者)'!L41:AR41,\"\")","v":""}]
["【ﾆ.勤務先】",null,null,null,null,null,null,null,null,null,null,{"$f":"IF('報告書第一面別紙(調査者)'!L42:AR42<>\"\",'報告書第一面別紙(調査者)'!L42:AR42,\"\")","v":""}]
[null,null,null,null,null,null,null,null,null,null,null,"(",null,null,null,{"$f":"IF('報告書第一面別紙(調査者)'!P43:Q43<>\"\",'報告書第一面別紙(調査者)'!P43:Q43,\"\")","v":""},null,")建築士事務所",null,null,null,null,null,"(",{"$f":"IF('報告書第一面別紙(調査者)'!Y43:AC43<>\"\",'報告書第一面別紙(調査者)'!Y43:AC43,\"\")","v":""},null,null,null,null,")知事登録",null,null,null,null,"第",{"$f":"IF('報告書第一面別紙(調査者)'!AJ43:AQ43<>\"\",'報告書第一面別紙(調査者)'!AJ43:AQ43,\"\")","v":""},null,null,null,null,null,null,null,"号"]
["【ﾎ.郵便番号】",null,null,null,null,null,null,null,null,null,null,{"$f":"IF('報告書第一面別紙(調査者)'!L44:AR44<>\"\",'報告書第一面別紙(調査者)'!L44:AR44,\"\")","v":""}]
["【ﾍ.所在地】",null,null,null,null,null,null,null,null,null,null,{"$f":"IF('報告書第一面別紙(調査者)'!L45:AR45<>\"\",'報告書第一面別紙(調査者)'!L45:AR45,\"\")","v":""}]
["【ﾄ.電話番号】",null,null,null,null,null,null,null,null,null,null,{"$f":"IF('報告書第一面別紙(調査者)'!L46:AR46<>\"\",'報告書第一面別紙(調査者)'!L46:AR46,\"\")","v":""}]
[]
["　(その他の調査者)",null,null,null,null,null,null,null,null,null,null,"(",null,null,null,{"$f":"IF('報告書第一面別紙(調査者)'!P48:Q48<>\"\",'報告書第一面別紙(調査者)'!P48:Q48,\"\")","v":""},null,")建築士",null,null,null,null,null,"(",{"$f":"IF('報告書第一面別紙(調査者)'!Y48:AC48<>\"\",'報告書第一面別紙(調査者)'!Y48:AC48,\"\")","v":""},null,null,null,null,")登録",null,null,"第",null,null,{"$f":"IF('報告書第一面別紙(調査者)'!AJ48:AQ48<>\"\",'報告書第一面別紙(調査者)'!AJ48:AQ48,\"\")","v":""},null,null,null,null,null,null,null,"号"]
["【ｲ.資格等】",null,null,null,null,null,null,null,null,null,null,null,null,null,null,"特定建築物調査員",null,null,null,null,null,null,null,null,null,"第",null,null,null,null,null,null,null,null,null,{"$f":"IF('報告書第一面別紙(調査者)'!AJ49:AQ49<>\"\",'報告書第一面別紙(調査者)'!AJ49:AQ49,\"\")","v":""},null,null,null,null,null,null,null,"号"]
["【ﾛ.氏名のﾌﾘｶﾞﾅ】",null,null,null,null,null,null,null,null,null,null,{"$f":"IF('報告書第一面別紙(調査者)'!L50:AR50<>\"\",'報告書第一面別紙(調査者)'!L50:AR50,\"\")","v":""}]
["【ﾊ.氏名】",null,null,null,null,null,null,null,null,null,null,{"$f":"IF('報告書第一面別紙(調査者)'!L51:AR51<>\"\",'報告書第一面別紙(調査者)'!L51:AR51,\"\")","v":""}]
["【ﾆ.勤務先】",null,null,null,null,null,null,null,null,null,null,{"$f":"IF('報告書第一面別紙(調査者)'!L52:AR52<>\"\",'報告書第一面別紙(調査者)'!L52:AR52,\"\")","v":""}]
[null,null,null,null,null,null,null,null,null,null,null,"(",null,null,null,{"$f":"IF('報告書第一面別紙(調査者)'!P53:Q53<>\"\",'報告書第一面別紙(調査者)'!P53:Q53,\"\")","v":""},null,")建築士事務所",null,null,null,null,null,"(",{"$f":"IF('報告書第一面別紙(調査者)'!Y53:AC53<>\"\",'報告書第一面別紙(調査者)'!Y53:AC53,\"\")","v":""},null,null,null,null,")知事登録",null,null,null,null,"第",{"$f":"IF('報告書第一面別紙(調査者)'!AJ53:AQ53<>\"\",'報告書第一面別紙(調査者)'!AJ53:AQ53,\"\")","v":""},null,null,null,null,null,null,null,"号"]
["【ﾎ.郵便番号】",null,null,null,null,null,null,null,null,null,null,{"$f":"IF('報告書第一面別紙(調査者)'!L54:AR54<>\"\",'報告書第一面別紙(調査者)'!L54:AR54,\"\")","v":""}]
["【ﾍ.所在地】",null,null,null,null,null,null,null,null,null,null,{"$f":"IF('報告書第一面別紙(調査者)'!L55:AR55<>\"\",'報告書第一面別紙(調査者)'!L55:AR55,\"\")","v":""}]
["【ﾄ.電話番号】",null,null,null,null,null,null,null,null,null,null,{"$f":"IF('報告書第一面別紙(調査者)'!L56:AR56<>\"\",'報告書第一面別紙(調査者)'!L56:AR56,\"\")","v":""}]
[]
[]
["この用紙は、第一面【3.調査者】欄が不足した場合にご利用ください。"]

{"sheet":"概要書第一面別紙(不具合等)","index":14,"n_rows":36,"n_cols":44,"rows_kept":36,"cut":false,"hidden":false,"merged":[[1,14,1,43],[1,5,1,13],[10,6,10,7],[10,9,10,17],[9,6,9,7],[0,37,0,38],[0,40,0,42],[7,28,8,35],[4,0,4,44],[2,0,2,43],[1,0,1,4],[0,0,0,4],[0,5,0,30],[0,31,0,32],[0,34,0,35],[9,9,9,17],[6,0,6,43],[7,1,8,8],[7,9,8,17],[7,18,8,27],[3,0,3,43],[10,18,10,27],[11,18,11,27],[11,1,11,2],[11,6,11,7],[11,9,11,17],[10,1,10,2],[10,3,10,4],[7,36,8,44],[9,36,9,44],[9,1,9,2],[9,3,9,4],[10,36,10,44],[9,18,9,27],[11,36,11,44],[14,1,14,2],[14,3,14,4],[14,6,14,7],[14,9,14,17],[13,6,13,7],[11,3,11,4],[13,3,13,4],[13,1,13,2],[16,36,16,44],[15,18,15,27],[15,28,15,35],[13,9,13,17],[15,1,15,2],[15,3,15,4],[15,6,15,7],[16,1,16,2],[16,3,16,4],[16,6,16,7],[12,1,12,2],[12,3,12,4],[12,6,12,7],[12,9,12,17],[12,18,12,27],[12,36,12,44],[17,28,17,35],[13,36,13,44],[14,18,14,27],[14,36,14,44],[13,18,13,27],[15,36,15,44],[17,36,17,44],[16,18,16,27],[18,9,18,17],[15,9,15,17],[16,9,16,17],[18,18,18,27],[18,36,18,44],[17,18,17,27],[18,28,18,35],[17,1,17,2],[17,3,17,4],[17,6,17,7],[17,9,17,17],[18,1,18,2],[18,3,18,4],[18,6,18,7],[21,9,21,17],[19,6,19,7],[19,9,19,17],[21,3,21,4],[19,36,19,44],[19,18,19,27],[20,1,20,2],[20,3,20,4],[20,6,20,7],[20,9,20,17],[20,18,20,27],[20,36,20,44],[19,1,19,2],[19,3,19,4],[19,28,19,35],[20,28,20,35],[21,36,21,44],[22,1,22,2],[22,3,22,4],[22,6,22,7],[22,9,22,17],[22,18,22,27],[22,36,22,44],[21,18,21,27],[21,1,21,2],[21,6,21,7],[22,28,22,35],[21,28,21,35],[24,1,24,2],[24,3,24,4],[24,6,24,7],[24,9,24,17],[24,18,24,27],[23,18,23,27],[23,1,23,2],[24,36,24,44],[23,6,23,7],[23,9,23,17],[26,36,26,44],[25,18,25,27],[27,18,27,27],[25,36,25,44],[25,9,25,17],[23,3,23,4],[29,9,29,17],[27,3,27,4],[27,6,27,7],[27,36,27,44],[28,36,28,44],[28,28,28,35],[24,28,24,35],[23,36,23,44],[27,1,27,2],[25,6,25,7],[25,3,25,4],[26,9,26,17],[26,1,26,2],[29,18,29,27],[29,1,29,2],[29,6,29,7],[25,1,25,2],[29,3,29,4],[26,3,26,4],[26,6,26,7],[28,1,28,2],[28,3,28,4],[28,6,28,7],[28,9,28,17],[28,18,28,27],[27,9,27,17],[26,18,26,27],[31,18,31,27],[31,1,31,2],[29,36,29,44],[30,1,30,2],[30,3,30,4],[30,6,30,7],[30,9,30,17],[30,18,30,27],[30,36,30,44],[31,3,31,4],[35,36,35,44],[33,36,33,44],[31,36,31,44],[32,1,32,2],[32,3,32,4],[32,6,32,7],[32,9,32,17],[32,18,32,27],[31,6,31,7],[34,6,34,7],[35,18,35,27],[35,1,35,2],[35,3,35,4],[35,6,35,7],[32,36,32,44],[35,9,35,17],[34,18,34,27],[34,36,34,44],[33,18,33,27],[33,1,33,2],[34,9,34,17],[33,3,33,4],[32,28,32,35],[31,9,31,17],[36,1,36,44],[33,28,33,35],[33,6,33,7],[33,9,33,17],[35,28,35,35],[34,1,34,2],[34,3,34,4],[37,1,37,44],[5,0,5,44],[9,28,9,35],[10,28,10,35],[11,28,11,35],[12,28,12,35],[13,28,13,35],[14,28,14,35],[16,28,16,35],[23,28,23,35],[29,28,29,35],[34,28,34,35],[25,28,25,35],[26,28,26,35],[27,28,27,35],[30,28,30,35],[31,28,31,35]]}
[null,null,null,null,null,"(台帳番号：",null,null,null,null,null,null,null,null,null,null,null,null,null,null,null,null,null,null,null,null,null,null,null,null,null,{"$f":"IF(報告書第一面!AF56<>\"\",報告書第一面!AF56,\"\")","v":""},null,"−",{"$f":"IF(報告書第一面!AI56<>\"\",報告書第一面!AI56,\"\")","v":{"$error":"#N/A"}},null,"−",{"$f":"IF(報告書第一面!AL56<>\"\",報告書第一面!AL56,\"\")","v":{"$error":"#N/A"}},null,"−",{"$f":"IF(報告書第一面!AO56<>\"\",報告書第一面!AO56,\"\")","v":""},null,null,")"]
[null,null,null,null,null,"報告対象建築物の名称：",null,null,null,null,null,null,null,null,{"$f":"IF(報告書第一面!L49<>\"\",報告書第一面!L49,\"\")","v":""}]
[]
["定期調査報告概要書の別紙"]
[]
["(第一面【7.建築物等に係る不具合等の状況】の別紙)"]
[]
[null,"不具合等を\n把握した年月",null,null,null,null,null,null,null,"不具合等の概要",null,null,null,null,null,null,null,null,"考えられる原因",null,null,null,null,null,null,null,null,null,"改善(予定)\n年月",null,null,null,null,null,null,null,"改善措置の概要等"]
[]
[null,{"$f":"IF(報告書第四面!B10<>\"\",報告書第四面!B10,\"\")","v":""},null,{"$f":"IF(報告書第四面!D10<>\"\",報告書第四面!D10,\"\")","v":""},null,"年",{"$f":"IF(報告書第四面!G10<>\"\",報告書第四面!G10,\"\")","v":""},null,"月",{"$f":"IF(報告書第四面!J10<>\"\",報告書第四面!J10,\"\")","v":""},null,null,null,null,null,null,null,null,{"$f":"IF(報告書第四面!S10<>\"\",報告書第四面!S10,\"\")","v":""},null,null,null,null,null,null,null,null,null,{"$f":"IF(報告書第四面!AC10<>\"\",報告書第四面!AC10,\"\")","v":""},null,null,null,null,null,null,null,{"$f":"IF(報告書第四面!AK10<>\"\",報告書第四面!AK10,\"\")","v":""}]
[null,{"$f":"IF(報告書第四面!B11<>\"\",報告書第四面!B11,\"\")","v":""},null,{"$f":"IF(報告書第四面!D11<>\"\",報告書第四面!D11,\"\")","v":""},null,"年",{"$f":"IF(報告書第四面!G11<>\"\",報告書第四面!G11,\"\")","v":""},null,"月",{"$f":"IF(報告書第四面!J11<>\"\",報告書第四面!J11,\"\")","v":""},null,null,null,null,null,null,null,null,{"$f":"IF(報告書第四面!S11<>\"\",報告書第四面!S11,\"\")","v":""},null,null,null,null,null,null,null,null,null,{"$f":"IF(報告書第四面!AC11<>\"\",報告書第四面!AC11,\"\")","v":""},null,null,null,null,null,null,null,{"$f":"IF(報告書第四面!AK11<>\"\",報告書第四面!AK11,\"\")","v":""}]
[null,{"$f":"IF(報告書第四面!B12<>\"\",報告書第四面!B12,\"\")","v":""},null,{"$f":"IF(報告書第四面!D12<>\"\",報告書第四面!D12,\"\")","v":""},null,"年",{"$f":"IF(報告書第四面!G12<>\"\",報告書第四面!G12,\"\")","v":""},null,"月",{"$f":"IF(報告書第四面!J12<>\"\",報告書第四面!J12,\"\")","v":""},null,null,null,null,null,null,null,null,{"$f":"IF(報告書第四面!S12<>\"\",報告書第四面!S12,\"\")","v":""},null,null,null,null,null,null,null,null,null,{"$f":"IF(報告書第四面!AC12<>\"\",報告書第四面!AC12,\"\")","v":""},null,null,null,null,null,null,null,{"$f":"IF(報告書第四面!AK12<>\"\",報告書第四面!AK12,\"\")","v":""}]
[null,{"$f":"IF(報告書第四面!B13<>\"\",報告書第四面!B13,\"\")","v":""},null,{"$f":"IF(報告書第四面!D13<>\"\",報告書第四面!D13,\"\")","v":""},null,"年",{"$f":"IF(報告書第四面!G13<>\"\",報告書第四面!G13,\"\")","v":""},null,"月",{"$f":"IF(報告書第四面!J13<>\"\",報告書第四面!J13,\"\")","v":""},null,null,null,null,null,null,null,null,{"$f":"IF(報告書第四面!S13<>\"\",報告書第四面!S13,\"\")","v":""},null,null,null,null,null,null,null,null,null,{"$f":"IF(報告書第四面!AC13<>\"\",報告書第四面!AC13,\"\")","v":""},null,null,null,null,null,null,null,{"$f":"IF(報告書第四面!AK13<>\"\",報告書第四面!AK13,\"\")","v":""}]
[null,{"$f":"IF(報告書第四面!B14<>\"\",報告書第四面!B14,\"\")","v":""},null,{"$f":"IF(報告書第四面!D14<>\"\",報告書第四面!D14,\"\")","v":""},null,"年",{"$f":"IF(報告書第四面!G14<>\"\",報告書第四面!G14,\"\")","v":""},null,"月",{"$f":"IF(報告書第四面!J14<>\"\",報告書第四面!J14,\"\")","v":""},null,null,null,null,null,null,null,null,{"$f":"IF(報告書第四面!S14<>\"\",報告書第四面!S14,\"\")","v":""},null,null,null,null,null,null,null,null,null,{"$f":"IF(報告書第四面!AC14<>\"\",報告書第四面!AC14,\"\")","v":""},null,null,null,null,null,null,null,{"$f":"IF(報告書第四面!AK14<>\"\",報告書第四面!AK14,\"\")","v":""}]
[null,{"$f":"IF(報告書第四面!B15<>\"\",報告書第四面!B15,\"\")","v":""},null,{"$f":"IF(報告書第四面!D15<>\"\",報告書第四面!D15,\"\")","v":""},null,"年",{"$f":"IF(報告書第四面!G15<>\"\",報告書第四面!G15,\"\")","v":""},null,"月",{"$f":"IF(報告書第四面!J15<>\"\",報告書第四面!J15,\"\")","v":""},null,null,null,null,null,null,null,null,{"$f":"IF(報告書第四面!S15<>\"\",報告書第四面!S15,\"\")","v":""},null,null,null,null,null,null,null,null,null,{"$f":"IF(報告書第四面!AC15<>\"\",報告書第四面!AC15,\"\")","v":""},null,null,null,null,null,null,null,{"$f":"IF(報告書第四面!AK15<>\"\",報告書第四面!AK15,\"\")","v":""}]
[null,{"$f":"IF(報告書第四面!B16<>\"\",報告書第四面!B16,\"\")","v":""},null,{"$f":"IF(報告書第四面!D16<>\"\",報告書第四面!D16,\"\")","v":""},null,"年",{"$f":"IF(報告書第四面!G16<>\"\",報告書第四面!G16,\"\")","v":""},null,"月",{"$f":"IF(報告書第四面!J16<>\"\",報告書第四面!J16,\"\")","v":""},null,null,null,null,null,null,null,null,{"$f":"IF(報告書第四面!S16<>\"\",報告書第四面!S16,\"\")","v":""},null,null,null,null,null,null,null,null,null,{"$f":"IF(報告書第四面!AC16<>\"\",報告書第四面!AC16,\"\")","v":""},null,null,null,null,null,null,null,{"$f":"IF(報告書第四面!AK16<>\"\",報告書第四面!AK16,\"\")","v":""}]
[null,{"$f":"IF(報告書第四面!B17<>\"\",報告書第四面!B17,\"\")","v":""},null,{"$f":"IF(報告書第四面!D17<>\"\",報告書第四面!D17,\"\")","v":""},null,"年",{"$f":"IF(報告書第四面!G17<>\"\",報告書第四面!G17,\"\")","v":""},null,"月",{"$f":"IF(報告書第四面!J17<>\"\",報告書第四面!J17,\"\")","v":""},null,null,null,null,null,null,null,null,{"$f":"IF(報告書第四面!S17<>\"\",報告書第四面!S17,\"\")","v":""},null,null,null,null,null,null,null,null,null,{"$f":"IF(報告書第四面!AC17<>\"\",報告書第四面!AC17,\"\")","v":""},null,null,null,null,null,null,null,{"$f":"IF(報告書第四面!AK17<>\"\",報告書第四面!AK17,\"\")","v":""}]
[null,{"$f":"IF(報告書第四面!B18<>\"\",報告書第四面!B18,\"\")","v":""},null,{"$f":"IF(報告書第四面!D18<>\"\",報告書第四面!D18,\"\")","v":""},null,"年",{"$f":"IF(報告書第四面!G18<>\"\",報告書第四面!G18,\"\")","v":""},null,"月",{"$f":"IF(報告書第四面!J18<>\"\",報告書第四面!J18,\"\")","v":""},null,null,null,null,null,null,null,null,{"$f":"IF(報告書第四面!S18<>\"\",報告書第四面!S18,\"\")","v":""},null,null,null,null,null,null,null,null,null,{"$f":"IF(報告書第四面!AC18<>\"\",報告書第四面!AC18,\"\")","v":""},null,null,null,null,null,null,null,{"$f":"IF(報告書第四面!AK18<>\"\",報告書第四面!AK18,\"\")","v":""}]
[null,{"$f":"IF(報告書第四面!B19<>\"\",報告書第四面!B19,\"\")","v":""},null,{"$f":"IF(報告書第四面!D19<>\"\",報告書第四面!D19,\"\")","v":""},null,"年",{"$f":"IF(報告書第四面!G19<>\"\",報告書第四面!G19,\"\")","v":""},null,"月",{"$f":"IF(報告書第四面!J19<>\"\",報告書第四面!J19,\"\")","v":""},null,null,null,null,null,null,null,null,{"$f":"IF(報告書第四面!S19<>\"\",報告書第四面!S19,\"\")","v":""},null,null,null,null,null,null,null,null,null,{"$f":"IF(報告書第四面!AC19<>\"\",報告書第四面!AC19,\"\")","v":""},null,null,null,null,null,null,null,{"$f":"IF(報告書第四面!AK19<>\"\",報告書第四面!AK19,\"\")","v":""}]
[null,{"$f":"IF(報告書第四面!B20<>\"\",報告書第四面!B20,\"\")","v":""},null,{"$f":"IF(報告書第四面!D20<>\"\",報告書第四面!D20,\"\")","v":""},null,"年",{"$f":"IF(報告書第四面!G20<>\"\",報告書第四面!G20,\"\")","v":""},null,"月",{"$f":"IF(報告書第四面!J20<>\"\",報告書第四面!J20,\"\")","v":""},null,null,null,null,null,null,null,null,{"$f":"IF(報告書第四面!S20<>\"\",報告書第四面!S20,\"\")","v":""},null,null,null,null,null,null,null,null,null,{"$f":"IF(報告書第四面!AC20<>\"\",報告書第四面!AC20,\"\")","v":""},null,null,null,null,null,null,null,{"$f":"IF(報告書第四面!AK20<>\"\",報告書第四面!AK20,\"\")","v":""}]
[null,{"$f":"IF(報告書第四面!B21<>\"\",報告書第四面!B21,\"\")","v":""},null,{"$f":"IF(報告書第四面!D21<>\"\",報告書第四面!D21,\"\")","v":""},null,"年",{"$f":"IF(報告書第四面!G21<>\"\",報告書第四面!G21,\"\")","v":""},null,"月",{"$f":"IF(報告書第四面!J21<>\"\",報告書第四面!J21,\"\")","v":""},null,null,null,null,null,null,null,null,{"$f":"IF(報告書第四面!S21<>\"\",報告書第四面!S21,\"\")","v":""},null,null,null,null,null,null,null,null,null,{"$f":"IF(報告書第四面!AC21<>\"\",報告書第四面!AC21,\"\")","v":""},null,null,null,null,null,null,null,{"$f":"IF(報告書第四面!AK21<>\"\",報告書第四面!AK21,\"\")","v":""}]
[null,{"$f":"IF(報告書第四面!B22<>\"\",報告書第四面!B22,\"\")","v":""},null,{"$f":"IF(報告書第四面!D22<>\"\",報告書第四面!D22,\"\")","v":""},null,"年",{"$f":"IF(報告書第四面!G22<>\"\",報告書第四面!G22,\"\")","v":""},null,"月",{"$f":"IF(報告書第四面!J22<>\"\",報告書第四面!J22,\"\")","v":""},null,null,null,null,null,null,null,null,{"$f":"IF(報告書第四面!S22<>\"\",報告書第四面!S22,\"\")","v":""},null,null,null,null,null,null,null,null,null,{"$f":"IF(報告書第四面!AC22<>\"\",報告書第四面!AC22,\"\")","v":""},null,null,null,null,null,null,null,{"$f":"IF(報告書第四面!AK22<>\"\",報告書第四面!AK22,\"\")","v":""}]
[null,{"$f":"IF(報告書第四面!B23<>\"\",報告書第四面!B23,\"\")","v":""},null,{"$f":"IF(報告書第四面!D23<>\"\",報告書第四面!D23,\"\")","v":""},null,"年",{"$f":"IF(報告書第四面!G23<>\"\",報告書第四面!G23,\"\")","v":""},null,"月",{"$f":"IF(報告書第四面!J23<>\"\",報告書第四面!J23,\"\")","v":""},null,null,null,null,null,null,null,null,{"$f":"IF(報告書第四面!S23<>\"\",報告書第四面!S23,\"\")","v":""},null,null,null,null,null,null,null,null,null,{"$f":"IF(報告書第四面!AC23<>\"\",報告書第四面!AC23,\"\")","v":""},null,null,null,null,null,null,null,{"$f":"IF(報告書第四面!AK23<>\"\",報告書第四面!AK23,\"\")","v":""}]
[null,{"$f":"IF(報告書第四面!B24<>\"\",報告書第四面!B24,\"\")","v":""},null,{"$f":"IF(報告書第四面!D24<>\"\",報告書第四面!D24,\"\")","v":""},null,"年",{"$f":"IF(報告書第四面!G24<>\"\",報告書第四面!G24,\"\")","v":""},null,"月",{"$f":"IF(報告書第四面!J24<>\"\",報告書第四面!J24,\"\")","v":""},null,null,null,null,null,null,null,null,{"$f":"IF(報告書第四面!S24<>\"\",報告書第四面!S24,\"\")","v":""},null,null,null,null,null,null,null,null,null,{"$f":"IF(報告書第四面!AC24<>\"\",報告書第四面!AC24,\"\")","v":""},null,null,null,null,null,null,null,{"$f":"IF(報告書第四面!AK24<>\"\",報告書第四面!AK24,\"\")","v":""}]
[null,{"$f":"IF(報告書第四面!B25<>\"\",報告書第四面!B25,\"\")","v":""},null,{"$f":"IF(報告書第四面!D25<>\"\",報告書第四面!D25,\"\")","v":""},null,"年",{"$f":"IF(報告書第四面!G25<>\"\",報告書第四面!G25,\"\")","v":""},null,"月",{"$f":"IF(報告書第四面!J25<>\"\",報告書第四面!J25,\"\")","v":""},null,null,null,null,null,null,null,null,{"$f":"IF(報告書第四面!S25<>\"\",報告書第四面!S25,\"\")","v":""},null,null,null,null,null,null,null,null,null,{"$f":"IF(報告書第四面!AC25<>\"\",報告書第四面!AC25,\"\")","v":""},null,null,null,null,null,null,null,{"$f":"IF(報告書第四面!AK25<>\"\",報告書第四面!AK25,\"\")","v":""}]
[null,{"$f":"IF(報告書第四面!B26<>\"\",報告書第四面!B26,\"\")","v":""},null,{"$f":"IF(報告書第四面!D26<>\"\",報告書第四面!D26,\"\")","v":""},null,"年",{"$f":"IF(報告書第四面!G26<>\"\",報告書第四面!G26,\"\")","v":""},null,"月",{"$f":"IF(報告書第四面!J26<>\"\",報告書第四面!J26,\"\")","v":""},null,null,null,null,null,null,null,null,{"$f":"IF(報告書第四面!S26<>\"\",報告書第四面!S26,\"\")","v":""},null,null,null,null,null,null,null,null,null,{"$f":"IF(報告書第四面!AC26<>\"\",報告書第四面!AC26,\"\")","v":""},null,null,null,null,null,null,null,{"$f":"IF(報告書第四面!AK26<>\"\",報告書第四面!AK26,\"\")","v":""}]
[null,{"$f":"IF(報告書第四面!B27<>\"\",報告書第四面!B27,\"\")","v":""},null,{"$f":"IF(報告書第四面!D27<>\"\",報告書第四面!D27,\"\")","v":""},null,"年",{"$f":"IF(報告書第四面!G27<>\"\",報告書第四面!G27,\"\")","v":""},null,"月",{"$f":"IF(報告書第四面!J27<>\"\",報告書第四面!J27,\"\")","v":""},null,null,null,null,null,null,null,null,{"$f":"IF(報告書第四面!S27<>\"\",報告書第四面!S27,\"\")","v":""},null,null,null,null,null,null,null,null,null,{"$f":"IF(報告書第四面!AC27<>\"\",報告書第四面!AC27,\"\")","v":""},null,null,null,null,null,null,null,{"$f":"IF(報告書第四面!AK27<>\"\",報告書第四面!AK27,\"\")","v":""}]
[null,{"$f":"IF(報告書第四面!B28<>\"\",報告書第四面!B28,\"\")","v":""},null,{"$f":"IF(報告書第四面!D28<>\"\",報告書第四面!D28,\"\")","v":""},null,"年",{"$f":"IF(報告書第四面!G28<>\"\",報告書第四面!G28,\"\")","v":""},null,"月",{"$f":"IF(報告書第四面!J28<>\"\",報告書第四面!J28,\"\")","v":""},null,null,null,null,null,null,null,null,{"$f":"IF(報告書第四面!S28<>\"\",報告書第四面!S28,\"\")","v":""},null,null,null,null,null,null,null,null,null,{"$f":"IF(報告書第四面!AC28<>\"\",報告書第四面!AC28,\"\")","v":""},null,null,null,null,null,null,null,{"$f":"IF(報告書第四面!AK28<>\"\",報告書第四面!AK28,\"\")","v":""}]
[null,{"$f":"IF(報告書第四面!B29<>\"\",報告書第四面!B29,\"\")","v":""},null,{"$f":"IF(報告書第四面!D29<>\"\",報告書第四面!D29,\"\")","v":""},null,"年",{"$f":"IF(報告書第四面!G29<>\"\",報告書第四面!G29,\"\")","v":""},null,"月",{"$f":"IF(報告書第四面!J29<>\"\",報告書第四面!J29,\"\")","v":""},null,null,null,null,null,null,null,null,{"$f":"IF(報告書第四面!S29<>\"\",報告書第四面!S29,\"\")","v":""},null,null,null,null,null,null,null,null,null,{"$f":"IF(報告書第四面!AC29<>\"\",報告書第四面!AC29,\"\")","v":""},null,null,null,null,null,null,null,{"$f":"IF(報告書第四面!AK29<>\"\",報告書第四面!AK29,\"\")","v":""}]
[null,{"$f":"IF(報告書第四面!B30<>\"\",報告書第四面!B30,\"\")","v":""},null,{"$f":"IF(報告書第四面!D30<>\"\",報告書第四面!D30,\"\")","v":""},null,"年",{"$f":"IF(報告書第四面!G30<>\"\",報告書第四面!G30,\"\")","v":""},null,"月",{"$f":"IF(報告書第四面!J30<>\"\",報告書第四面!J30,\"\")","v":""},null,null,null,null,null,null,null,null,{"$f":"IF(報告書第四面!S30<>\"\",報告書第四面!S30,\"\")","v":""},null,null,null,null,null,null,null,null,null,{"$f":"IF(報告書第四面!AC30<>\"\",報告書第四面!AC30,\"\")","v":""},null,null,null,null,null,null,null,{"$f":"IF(報告書第四面!AK30<>\"\",報告書第四面!AK30,\"\")","v":""}]
[null,{"$f":"IF(報告書第四面!B31<>\"\",報告書第四面!B31,\"\")","v":""},null,{"$f":"IF(報告書第四面!D31<>\"\",報告書第四面!D31,\"\")","v":""},null,"年",{"$f":"IF(報告書第四面!G31<>\"\",報告書第四面!G31,\"\")","v":""},null,"月",{"$f":"IF(報告書第四面!J31<>\"\",報告書第四面!J31,\"\")","v":""},null,null,null,null,null,null,null,null,{"$f":"IF(報告書第四面!S31<>\"\",報告書第四面!S31,\"\")","v":""},null,null,null,null,null,null,null,null,null,{"$f":"IF(報告書第四面!AC31<>\"\",報告書第四面!AC31,\"\")","v":""},null,null,null,null,null,null,null,{"$f":"IF(報告書第四面!AK31<>\"\",報告書第四面!AK31,\"\")","v":""}]
[null,{"$f":"IF(報告書第四面!B32<>\"\",報告書第四面!B32,\"\")","v":""},null,{"$f":"IF(報告書第四面!D32<>\"\",報告書第四面!D32,\"\")","v":""},null,"年",{"$f":"IF(報告書第四面!G32<>\"\",報告書第四面!G32,\"\")","v":""},null,"月",{"$f":"IF(報告書第四面!J32<>\"\",報告書第四面!J32,\"\")","v":""},null,null,null,null,null,null,null,null,{"$f":"IF(報告書第四面!S32<>\"\",報告書第四面!S32,\"\")","v":""},null,null,null,null,null,null,null,null,null,{"$f":"IF(報告書第四面!AC32<>\"\",報告書第四面!AC32,\"\")","v":""},null,null,null,null,null,null,null,{"$f":"IF(報告書第四面!AK32<>\"\",報告書第四面!AK32,\"\")","v":""}]
[null,{"$f":"IF(報告書第四面!B33<>\"\",報告書第四面!B33,\"\")","v":""},null,{"$f":"IF(報告書第四面!D33<>\"\",報告書第四面!D33,\"\")","v":""},null,"年",{"$f":"IF(報告書第四面!G33<>\"\",報告書第四面!G33,\"\")","v":""},null,"月",{"$f":"IF(報告書第四面!J33<>\"\",報告書第四面!J33,\"\")","v":""},null,null,null,null,null,null,null,null,{"$f":"IF(報告書第四面!S33<>\"\",報告書第四面!S33,\"\")","v":""},null,null,null,null,null,null,null,null,null,{"$f":"IF(報告書第四面!AC33<>\"\",報告書第四面!AC33,\"\")","v":""},null,null,null,null,null,null,null,{"$f":"IF(報告書第四面!AK33<>\"\",報告書第四面!AK33,\"\")","v":""}]
[null,{"$f":"IF(報告書第四面!B34<>\"\",報告書第四面!B34,\"\")","v":""},null,{"$f":"IF(報告書第四面!D34<>\"\",報告書第四面!D34,\"\")","v":""},null,"年",{"$f":"IF(報告書第四面!G34<>\"\",報告書第四面!G34,\"\")","v":""},null,"月",{"$f":"IF(報告書第四面!J34<>\"\",報告書第四面!J34,\"\")","v":""},null,null,null,null,null,null,null,null,{"$f":"IF(報告書第四面!S34<>\"\",報告書第四面!S34,\"\")","v":""},null,null,null,null,null,null,null,null,null,{"$f":"IF(報告書第四面!AC34<>\"\",報告書第四面!AC34,\"\")","v":""},null,null,null,null,null,null,null,{"$f":"IF(報告書第四面!AK34<>\"\",報告書第四面!AK34,\"\")","v":""}]
[null,{"$f":"IF(報告書第四面!B35<>\"\",報告書第四面!B35,\"\")","v":""},null,{"$f":"IF(報告書第四面!D35<>\"\",報告書第四面!D35,\"\")","v":""},null,"年",{"$f":"IF(報告書第四面!G35<>\"\",報告書第四面!G35,\"\")","v":""},null,"月",{"$f":"IF(報告書第四面!J35<>\"\",報告書第四面!J35,\"\")","v":""},null,null,null,null,null,null,null,null,{"$f":"IF(報告書第四面!S35<>\"\",報告書第四面!S35,\"\")","v":""},null,null,null,null,null,null,null,null,null,{"$f":"IF(報告書第四面!AC35<>\"\",報告書第四面!AC35,\"\")","v":""},null,null,null,null,null,null,null,{"$f":"IF(報告書第四面!AK35<>\"\",報告書第四面!AK35,\"\")","v":""}]
[null,{"$f":"IF(報告書第四面!B36<>\"\",報告書第四面!B36,\"\")","v":""},null,{"$f":"IF(報告書第四面!D36<>\"\",報告書第四面!D36,\"\")","v":""},null,"年",{"$f":"IF(報告書第四面!G36<>\"\",報告書第四面!G36,\"\")","v":""},null,"月",{"$f":"IF(報告書第四面!J36<>\"\",報告書第四面!J36,\"\")","v":""},null,null,null,null,null,null,null,null,{"$f":"IF(報告書第四面!S36<>\"\",報告書第四面!S36,\"\")","v":""},null,null,null,null,null,null,null,null,null,{"$f":"IF(報告書第四面!AC36<>\"\",報告書第四面!AC36,\"\")","v":""},null,null,null,null,null,null,null,{"$f":"IF(報告書第四面!AK36<>\"\",報告書第四面!AK36,\"\")","v":""}]

{"sheet":"概要書第二面","index":15,"n_rows":64,"n_cols":44,"rows_kept":64,"cut":false,"hidden":false,"merged":[[48,21,48,25],[51,43,52,43],[52,21,52,25],[52,26,52,29],[40,23,40,24],[40,26,40,27],[40,20,40,21],[45,20,45,43],[46,27,46,28],[46,19,46,23],[47,26,47,29],[41,20,41,21],[40,15,40,19],[51,30,52,30],[44,16,44,17],[44,26,44,29],[41,26,41,27],[42,23,42,24],[42,26,42,27],[29,34,29,41],[26,24,26,31],[36,30,36,43],[19,34,19,41],[17,34,17,41],[27,24,27,31],[35,24,35,31],[50,24,50,25],[50,27,50,28],[40,30,40,31],[47,31,48,42],[46,30,46,31],[46,35,46,42],[42,33,42,42],[31,34,31,41],[41,33,41,42],[41,30,41,31],[42,30,42,31],[47,43,48,43],[44,31,44,43],[47,20,47,24],[47,30,48,30],[40,33,40,42],[46,24,46,25],[30,34,30,41],[34,24,34,31],[20,24,20,31],[17,15,17,23],[16,22,16,43],[13,31,13,33],[13,27,13,28],[13,34,13,43],[12,27,12,29],[33,21,33,23],[33,24,33,31],[28,15,28,20],[28,21,28,23],[28,24,28,31],[24,16,24,18],[24,19,24,20],[24,21,24,23],[18,24,18,31],[24,34,24,41],[12,31,12,42],[25,34,25,41],[26,34,26,41],[27,34,27,41],[28,34,28,41],[61,0,61,43],[59,0,59,43],[20,34,20,41],[21,34,21,41],[22,34,22,41],[23,34,23,41],[52,0,52,14],[53,0,53,14],[53,20,53,22],[54,0,54,43],[58,0,58,43],[60,0,60,43],[55,0,57,43],[53,16,53,18],[53,24,53,43],[48,26,48,29],[49,0,49,14],[49,16,49,18],[49,20,49,42],[41,0,41,14],[41,15,41,19],[43,0,43,14],[43,15,43,42],[44,0,44,14],[66,0,66,42],[63,0,63,43],[64,0,64,43],[48,0,48,14],[48,16,48,18],[45,0,45,14],[45,16,45,18],[46,0,46,14],[46,15,46,18],[47,0,47,14],[47,15,47,18],[65,0,65,42],[51,20,51,24],[52,16,52,18],[50,0,50,14],[50,15,50,18],[50,19,50,23],[51,0,51,14],[51,15,51,18],[62,0,62,43],[51,26,51,29],[50,30,50,31],[50,35,50,42],[51,31,52,42],[42,0,42,14],[42,20,42,21],[42,15,42,19],[41,23,41,24],[44,20,44,25],[40,0,40,14],[36,0,36,14],[36,16,36,28],[37,0,37,14],[38,0,38,14],[39,0,39,14],[39,15,39,19],[37,16,37,23],[37,25,37,26],[39,20,39,21],[34,0,34,14],[34,15,34,20],[39,33,39,42],[39,23,39,24],[39,26,39,27],[35,0,35,14],[31,0,31,14],[31,15,31,20],[31,21,31,23],[34,21,34,23],[35,15,35,20],[32,0,32,14],[32,15,32,20],[32,21,32,23],[33,0,33,14],[33,15,33,20],[35,21,35,23],[32,34,32,41],[33,34,33,41],[34,34,34,41],[35,34,35,41],[39,30,39,31],[38,16,38,28],[37,30,37,38],[30,0,30,14],[30,16,30,18],[30,19,30,20],[30,21,30,23],[30,24,30,31],[28,0,28,14],[32,24,32,31],[27,0,27,14],[27,16,27,18],[27,19,27,20],[27,21,27,23],[31,24,31,31],[29,0,29,14],[29,15,29,20],[29,21,29,23],[29,24,29,31],[26,0,26,14],[26,15,26,20],[26,21,26,23],[23,0,23,14],[23,15,23,20],[23,21,23,23],[23,24,23,31],[24,24,24,31],[25,0,25,14],[25,15,25,20],[25,21,25,23],[25,24,25,31],[24,0,24,14],[20,21,20,23],[22,0,22,14],[22,15,22,20],[22,21,22,23],[22,24,22,31],[21,21,21,23],[20,0,20,14],[21,0,21,14],[20,15,20,20],[0,37,0,38],[0,40,0,42],[13,0,13,14],[19,0,19,14],[19,15,19,20],[19,21,19,23],[21,24,21,31],[18,16,18,18],[18,19,18,20],[18,21,18,23],[19,24,19,31],[0,31,0,32],[8,20,8,23],[6,0,6,14],[7,0,7,14],[5,0,5,43],[8,16,8,18],[15,15,15,21],[14,0,14,14],[13,22,13,23],[14,22,14,43],[15,0,15,14],[13,15,13,16],[13,24,13,26],[37,40,37,41],[38,30,38,32],[38,34,38,42],[0,34,0,35],[17,0,17,14],[16,0,16,14],[21,16,21,18],[21,19,21,20],[1,0,1,4],[17,24,17,31],[15,22,15,43],[18,34,18,41],[11,0,11,14],[11,16,11,25],[16,15,16,21],[18,0,18,14],[10,0,10,14],[0,0,0,4],[0,5,0,30],[2,0,2,43],[3,0,3,43],[1,14,1,43],[1,5,1,13],[10,15,10,43],[7,16,7,25],[9,0,9,14],[4,0,4,43],[7,27,7,43],[8,27,8,43],[13,17,13,19],[14,15,14,21],[9,15,9,23],[9,25,9,33],[8,24,8,25],[12,0,12,14],[12,16,12,25],[11,27,11,43],[13,29,13,30],[8,0,8,14],[6,15,6,43],[9,35,9,43]]}
[null,null,null,null,null,"(台帳番号：",null,null,null,null,null,null,null,null,null,null,null,null,null,null,null,null,null,null,null,null,null,null,null,null,null,{"$f":"IF(報告書第一面!AF56<>\"\",報告書第一面!AF56,\"\")","v":""},null,"−",{"$f":"IF(報告書第一面!AI56<>\"\",報告書第一面!AI56,\"\")","v":{"$error":"#N/A"}},null,"−",{"$f":"IF(報告書第一面!AL56<>\"\",報告書第一面!AL56,\"\")","v":{"$error":"#N/A"}},null,"−",{"$f":"IF(報告書第一面!AO56<>\"\",報告書第一面!AO56,\"\")","v":""},null,null,")"]
[null,null,null,null,null,"報告対象建築物の名称：",null,null,null,null,null,null,null,null,{"$f":"IF(報告書第一面!L49<>\"\",報告書第一面!L49,\"\")","v":""}]
[]
["定期調査報告概要書"]
["(第二面)"]
["建築物及びその敷地に関する事項"]
["【1.敷地の位置】"]
["【ｲ.防火地域等】",null,null,null,null,null,null,null,null,null,null,null,null,null,null,{"$f":"IF(報告書第二面!P9<>\"\",報告書第二面!P9,\"\")","v":""},"防火地域",null,null,null,null,null,null,null,null,null,{"$f":"IF(報告書第二面!AA9<>\"\",報告書第二面!AA9,\"\")","v":""},"準防火地域"]
[null,null,null,null,null,null,null,null,null,null,null,null,null,null,null,{"$f":"IF(報告書第二面!P10<>\"\",報告書第二面!P10,\"\")","v":""},"その他",null,null,"(",{"$f":"IF(報告書第二面!U10<>\"\",報告書第二面!U10,\"\")","v":""},null,null,null,")",null,{"$f":"IF(報告書第二面!AA10<>\"\",報告書第二面!AA10,\"\")","v":""},"指定なし"]
["【ﾛ.用途地域】",null,null,null,null,null,null,null,null,null,null,null,null,null,null,{"$f":"IF(報告書第二面!P11<>\"\",報告書第二面!P11,\"\")","v":""},null,null,null,null,null,null,null,null,null,{"$f":"IF(報告書第二面!Z11<>\"\",報告書第二面!Z11,\"\")","v":""},null,null,null,null,null,null,null,null,null,{"$f":"IF(報告書第二面!AJ11<>\"\",報告書第二面!AJ11,\"\")","v":""}]
["【2.建築物及びその敷地の概要】"]
["【ｲ.構造】",null,null,null,null,null,null,null,null,null,null,null,null,null,null,{"$f":"IF(報告書第二面!P13<>\"\",報告書第二面!P13,\"\")","v":""},"鉄筋コンクリート造",null,null,null,null,null,null,null,null,null,{"$f":"IF(報告書第二面!AA13<>\"\",報告書第二面!AA13,\"\")","v":""},"鉄骨鉄筋コンクリート造"]
[null,null,null,null,null,null,null,null,null,null,null,null,null,null,null,{"$f":"IF(報告書第二面!P14<>\"\",報告書第二面!P14,\"\")","v":""},"鉄骨造",null,null,null,null,null,null,null,null,null,{"$f":"IF(報告書第二面!AA14<>\"\",報告書第二面!AA14,\"\")","v":""},"その他",null,null,"(",{"$f":"IF(報告書第二面!AF14<>\"\",報告書第二面!AF14,\"\")","v":""},null,null,null,null,null,null,null,null,null,null,null,")"]
["【ﾛ.階数】",null,null,null,null,null,null,null,null,null,null,null,null,null,null,"地上",null,{"$f":"IF(報告書第二面!R15<>\"\",報告書第二面!R15,\"\")","v":""},null,null,"階",null,"地下",null,{"$f":"IF(報告書第二面!Y15<>\"\",報告書第二面!Y15,\"\")","v":""},null,null,"階",null,"塔屋",null,{"$f":"IF(報告書第二面!AF15<>\"\",報告書第二面!AF15,\"\")","v":""},null,null,"階"]
["【ﾊ.敷地面積】",null,null,null,null,null,null,null,null,null,null,null,null,null,null,{"$f":"IF(報告書第二面!P16<>\"\",報告書第二面!P16,\"\")","v":""},null,null,null,null,null,null,"㎡"]
["【ﾆ.建築面積】",null,null,null,null,null,null,null,null,null,null,null,null,null,null,{"$f":"IF(報告書第二面!P17<>\"\",報告書第二面!P17,\"\")","v":""},null,null,null,null,null,null,"㎡"]
["【ﾎ.延べ面積】",null,null,null,null,null,null,null,null,null,null,null,null,null,null,{"$f":"IF(報告書第二面!P18<>\"\",報告書第二面!P18,\"\")","v":""},null,null,null,null,null,null,"㎡"]
["【3.階別用途別床面積】",null,null,null,null,null,null,null,null,null,null,null,null,null,null,"(",null,null,null,null,null,null,null,null,"用途",null,null,null,null,null,null,null,")","(","床面積",null,null,null,null,null,null,null,null,")"]
["【ｲ.階別用途別】",null,null,null,null,null,null,null,null,null,null,null,null,null,null,"(",{"$f":"IF(報告書第二面!Q20<>\"\",報告書第二面!Q20,\"\")","v":""},null,null,"階)",null,"(",null,null,{"$f":"IF(報告書第二面!Y20<>\"\",報告書第二面!Y20,\"\")","v":""},null,null,null,null,null,null,null,")","(",{"$f":"IF(報告書第二面!AI20<>\"\",報告書第二面!AI20,\"\")","v":""},null,null,null,null,null,null,null,"㎡",")"]
[null,null,null,null,null,null,null,null,null,null,null,null,null,null,null,null,null,null,null,null,null,"(",null,null,{"$f":"IF(報告書第二面!Y21<>\"\",報告書第二面!Y21,\"\")","v":""},null,null,null,null,null,null,null,")","(",{"$f":"IF(報告書第二面!AI21<>\"\",報告書第二面!AI21,\"\")","v":""},null,null,null,null,null,null,null,"㎡",")"]
[null,null,null,null,null,null,null,null,null,null,null,null,null,null,null,null,null,null,null,null,null,"(",null,null,{"$f":"IF(報告書第二面!Y22<>\"\",報告書第二面!Y22,\"\")","v":""},null,null,null,null,null,null,null,")","(",{"$f":"IF(報告書第二面!AI22<>\"\",報告書第二面!AI22,\"\")","v":""},null,null,null,null,null,null,null,"㎡",")"]
[null,null,null,null,null,null,null,null,null,null,null,null,null,null,null,"(",{"$f":"IF(報告書第二面!Q23<>\"\",報告書第二面!Q23,\"\")","v":""},null,null,"階)",null,"(",null,null,{"$f":"IF(報告書第二面!Y23<>\"\",報告書第二面!Y23,\"\")","v":""},null,null,null,null,null,null,null,")","(",{"$f":"IF(報告書第二面!AI23<>\"\",報告書第二面!AI23,\"\")","v":""},null,null,null,null,null,null,null,"㎡",")"]
[null,null,null,null,null,null,null,null,null,null,null,null,null,null,null,null,null,null,null,null,null,"(",null,null,{"$f":"IF(報告書第二面!Y24<>\"\",報告書第二面!Y24,\"\")","v":""},null,null,null,null,null,null,null,")","(",{"$f":"IF(報告書第二面!AI24<>\"\",報告書第二面!AI24,\"\")","v":""},null,null,null,null,null,null,null,"㎡",")"]
[{"$f":"IF(報告書第二面!A24<>\"\",報告書第二面!A24,\"\")","v":""},null,null,null,null,null,null,null,null,null,null,null,null,null,null,null,null,null,null,null,null,"(",null,null,{"$f":"IF(報告書第二面!Y25<>\"\",報告書第二面!Y25,\"\")","v":""},null,null,null,null,null,null,null,")","(",{"$f":"IF(報告書第二面!AI25<>\"\",報告書第二面!AI25,\"\")","v":""},null,null,null,null,null,null,null,"㎡",")"]
[null,null,null,null,null,null,null,null,null,null,null,null,null,null,null,"(",{"$f":"IF(報告書第二面!Q26<>\"\",報告書第二面!Q26,\"\")","v":""},null,null,"階)",null,"(",null,null,{"$f":"IF(報告書第二面!Y26<>\"\",報告書第二面!Y26,\"\")","v":""},null,null,null,null,null,null,null,")","(",{"$f":"IF(報告書第二面!AI26<>\"\",報告書第二面!AI26,\"\")","v":""},null,null,null,null,null,null,null,"㎡",")"]
[null,null,null,null,null,null,null,null,null,null,null,null,null,null,null,null,null,null,null,null,null,"(",null,null,{"$f":"IF(報告書第二面!Y27<>\"\",報告書第二面!Y27,\"\")","v":""},null,null,null,null,null,null,null,")","(",{"$f":"IF(報告書第二面!AI27<>\"\",報告書第二面!AI27,\"\")","v":""},null,null,null,null,null,null,null,"㎡",")"]
[null,null,null,null,null,null,null,null,null,null,null,null,null,null,null,null,null,null,null,null,null,"(",null,null,{"$f":"IF(報告書第二面!Y28<>\"\",報告書第二面!Y28,\"\")","v":""},null,null,null,null,null,null,null,")","(",{"$f":"IF(報告書第二面!AI28<>\"\",報告書第二面!AI28,\"\")","v":""},null,null,null,null,null,null,null,"㎡",")"]
[null,null,null,null,null,null,null,null,null,null,null,null,null,null,null,"(",{"$f":"IF(報告書第二面!Q29<>\"\",報告書第二面!Q29,\"\")","v":""},null,null,"階)",null,"(",null,null,{"$f":"IF(報告書第二面!Y29<>\"\",報告書第二面!Y29,\"\")","v":""},null,null,null,null,null,null,null,")","(",{"$f":"IF(報告書第二面!AI29<>\"\",報告書第二面!AI29,\"\")","v":""},null,null,null,null,null,null,null,"㎡",")"]
[null,null,null,null,null,null,null,null,null,null,null,null,null,null,null,null,null,null,null,null,null,"(",null,null,{"$f":"IF(報告書第二面!Y30<>\"\",報告書第二面!Y30,\"\")","v":""},null,null,null,null,null,null,null,")","(",{"$f":"IF(報告書第二面!AI30<>\"\",報告書第二面!AI30,\"\")","v":""},null,null,null,null,null,null,null,"㎡",")"]
[null,null,null,null,null,null,null,null,null,null,null,null,null,null,null,null,null,null,null,null,null,"(",null,null,{"$f":"IF(報告書第二面!Y31<>\"\",報告書第二面!Y31,\"\")","v":""},null,null,null,null,null,null,null,")","(",{"$f":"IF(報告書第二面!AI31<>\"\",報告書第二面!AI31,\"\")","v":""},null,null,null,null,null,null,null,"㎡",")"]
[null,null,null,null,null,null,null,null,null,null,null,null,null,null,null,"(",{"$f":"IF(報告書第二面!Q32<>\"\",報告書第二面!Q32,\"\")","v":""},null,null,"階)",null,"(",null,null,{"$f":"IF(報告書第二面!Y32<>\"\",報告書第二面!Y32,\"\")","v":""},null,null,null,null,null,null,null,")","(",{"$f":"IF(報告書第二面!AI32<>\"\",報告書第二面!AI32,\"\")","v":""},null,null,null,null,null,null,null,"㎡",")"]
[null,null,null,null,null,null,null,null,null,null,null,null,null,null,null,null,null,null,null,null,null,"(",null,null,{"$f":"IF(報告書第二面!Y33<>\"\",報告書第二面!Y33,\"\")","v":""},null,null,null,null,null,null,null,")","(",{"$f":"IF(報告書第二面!AI33<>\"\",報告書第二面!AI33,\"\")","v":""},null,null,null,null,null,null,null,"㎡",")"]
[null,null,null,null,null,null,null,null,null,null,null,null,null,null,null,null,null,null,null,null,null,"(",null,null,{"$f":"IF(報告書第二面!Y34<>\"\",報告書第二面!Y34,\"\")","v":""},null,null,null,null,null,null,null,")","(",{"$f":"IF(報告書第二面!AI34<>\"\",報告書第二面!AI34,\"\")","v":""},null,null,null,null,null,null,null,"㎡",")"]
["【ﾛ.用途別】",null,null,null,null,null,null,null,null,null,null,null,null,null,null,null,null,null,null,null,null,"(",null,null,{"$f":"IF(報告書第二面!Y35<>\"\",報告書第二面!Y35,\"\")","v":""},null,null,null,null,null,null,null,")","(",{"$f":"IF(報告書第二面!AI35<>\"\",報告書第二面!AI35,\"\")","v":""},null,null,null,null,null,null,null,"㎡",")"]
[null,null,null,null,null,null,null,null,null,null,null,null,null,null,null,null,null,null,null,null,null,"(",null,null,{"$f":"IF(報告書第二面!Y36<>\"\",報告書第二面!Y36,\"\")","v":""},null,null,null,null,null,null,null,")","(",{"$f":"IF(報告書第二面!AI36<>\"\",報告書第二面!AI36,\"\")","v":""},null,null,null,null,null,null,null,"㎡",")"]
[null,null,null,null,null,null,null,null,null,null,null,null,null,null,null,null,null,null,null,null,null,"(",null,null,{"$f":"IF(報告書第二面!Y37<>\"\",報告書第二面!Y37,\"\")","v":""},null,null,null,null,null,null,null,")","(",{"$f":"IF(報告書第二面!AI37<>\"\",報告書第二面!AI37,\"\")","v":""},null,null,null,null,null,null,null,"㎡",")"]
["【4.性能検証法等の適用】",null,null,null,null,null,null,null,null,null,null,null,null,null,null,{"$f":"IF(報告書第二面!P38<>\"\",報告書第二面!P38,\"\")","v":""},"耐火性能検証法",null,null,null,null,null,null,null,null,null,null,null,null,{"$f":"IF(報告書第二面!AD38<>\"\",報告書第二面!AD38,\"\")","v":""},"防火区画検証法"]
[null,null,null,null,null,null,null,null,null,null,null,null,null,null,null,{"$f":"IF(報告書第二面!P39<>\"\",報告書第二面!P39,\"\")","v":""},"区画避難安全検証法",null,null,null,null,null,null,null,"(",{"$f":"IF(報告書第二面!Z39<>\"\",報告書第二面!Z39,\"\")","v":""},null,"階",")",{"$f":"IF(報告書第二面!AD39<>\"\",報告書第二面!AD39,\"\")","v":""},"階避難安全検証法",null,null,null,null,null,null,null,null,"(",{"$f":"IF(報告書第二面!AO39<>\"\",報告書第二面!AO39,\"\")","v":""},null,"階",")"]
[null,null,null,null,null,null,null,null,null,null,null,null,null,null,null,{"$f":"IF(報告書第二面!P40<>\"\",報告書第二面!P40,\"\")","v":""},"全館避難安全検証法",null,null,null,null,null,null,null,null,null,null,null,null,{"$f":"IF(報告書第二面!AD40<>\"\",報告書第二面!AD40,\"\")","v":""},"その他",null,null,"(",{"$f":"IF(報告書第二面!AI40<>\"\",報告書第二面!AI40,\"\")","v":""},null,null,null,null,null,null,null,null,")"]
["【5.増築、改築、用途変更等の経過】",null,null,null,null,null,null,null,null,null,null,null,null,null,null,{"$f":"IF(報告書第二面!P41<>\"\",報告書第二面!P41,\"\")","v":""},null,null,null,null,{"$f":"IF(報告書第二面!U41<>\"\",報告書第二面!U41,\"\")","v":""},null,"年",{"$f":"IF(報告書第二面!X41<>\"\",報告書第二面!X41,\"\")","v":""},null,"月",{"$f":"IF(報告書第二面!AA41<>\"\",報告書第二面!AA41,\"\")","v":""},null,"日",null,"概要",null,"(",{"$f":"IF(報告書第二面!AH41<>\"\",報告書第二面!AH41,\"\")","v":""},null,null,null,null,null,null,null,null,null,")"]
[null,null,null,null,null,null,null,null,null,null,null,null,null,null,null,{"$f":"IF(報告書第二面!P42<>\"\",報告書第二面!P42,\"\")","v":""},null,null,null,null,{"$f":"IF(報告書第二面!U42<>\"\",報告書第二面!U42,\"\")","v":""},null,"年",{"$f":"IF(報告書第二面!X42<>\"\",報告書第二面!X42,\"\")","v":""},null,"月",{"$f":"IF(報告書第二面!AA42<>\"\",報告書第二面!AA42,\"\")","v":""},null,"日",null,"概要",null,"(",{"$f":"IF(報告書第二面!AH42<>\"\",報告書第二面!AH42,\"\")","v":""},null,null,null,null,null,null,null,null,null,")"]
[null,null,null,null,null,null,null,null,null,null,null,null,null,null,null,{"$f":"IF(報告書第二面!P43<>\"\",報告書第二面!P43,\"\")","v":""},null,null,null,null,{"$f":"IF(報告書第二面!U43<>\"\",報告書第二面!U43,\"\")","v":""},null,"年",{"$f":"IF(報告書第二面!X43<>\"\",報告書第二面!X43,\"\")","v":""},null,"月",{"$f":"IF(報告書第二面!AA43<>\"\",報告書第二面!AA43,\"\")","v":""},null,"日",null,"概要",null,"(",{"$f":"IF(報告書第二面!AH43<>\"\",報告書第二面!AH43,\"\")","v":""},null,null,null,null,null,null,null,null,null,")"]
[null,null,null,null,null,null,null,null,null,null,null,null,null,null,null,{"$f":"IF(報告書第二面!P44<>\"\",報告書第二面!P44,\"\")","v":""},null,null,null,null,{"$f":"IF(報告書第二面!U44<>\"\",報告書第二面!U44,\"\")","v":""},null,"年",{"$f":"IF(報告書第二面!X44<>\"\",報告書第二面!X44,\"\")","v":""},null,"月",{"$f":"IF(報告書第二面!AA44<>\"\",報告書第二面!AA44,\"\")","v":""},null,"日",null,"概要",null,"(",{"$f":"IF(報告書第二面!AH44<>\"\",報告書第二面!AH44,\"\")","v":""},null,null,null,null,null,null,null,null,null,")"]
["【6.関連図書の整備状況】"]
["【ｲ.確認に要した図書】",null,null,null,null,null,null,null,null,null,null,null,null,null,null,{"$f":"IF(報告書第二面!P46<>\"\",報告書第二面!P46,\"\")","v":""},"有",null,"(",{"$f":"IF(報告書第二面!T46<>\"\",報告書第二面!T46,\"\")","v":""},"各階平面図あり",null,null,null,null,null,")",null,null,null,{"$f":"IF(報告書第二面!AE46<>\"\",報告書第二面!AE46,\"\")","v":""},"無"]
["【ﾛ.確認済証】",null,null,null,null,null,null,null,null,null,null,null,null,null,null,{"$f":"IF(報告書第二面!P47<>\"\",報告書第二面!P47,\"\")","v":""},"有",null,null,{"$f":"IF(報告書第二面!T47<>\"\",報告書第二面!T47,\"\")","v":""},"無"]
[null,null,null,null,null,null,null,null,null,null,null,null,null,null,null,"交付番号",null,null,null,{"$f":"IF(報告書第二面!T48<>\"\",報告書第二面!T48,\"\")","v":""},null,null,null,null,{"$f":"IF(報告書第二面!Y48<>\"\",報告書第二面!Y48,\"\")","v":""},null,"年",{"$f":"IF(報告書第二面!AB48<>\"\",報告書第二面!AB48,\"\")","v":""},null,"月",{"$f":"IF(報告書第二面!AE48<>\"\",報告書第二面!AE48,\"\")","v":""},null,"日",null,"第",{"$f":"IF(報告書第二面!AJ48<>\"\",報告書第二面!AJ48,\"\")","v":""},null,null,null,null,null,null,null,"号"]
[null,null,null,null,null,null,null,null,null,null,null,null,null,null,null,"交付者",null,null,null,{"$f":"IF(報告書第二面!T49<>\"\",報告書第二面!T49,\"\")","v":""},"建築主事",null,null,null,null,{"$f":"IF(報告書第二面!Z49<>\"\",報告書第二面!Z49,\"\")","v":""},"指定確認",null,null,null,"(",{"$f":"IF(報告書第二面!AF49<>\"\",報告書第二面!AF49,\"\")","v":""},null,null,null,null,null,null,null,null,null,null,null,")"]
["【ﾊ.完了検査に要した図書】",null,null,null,null,null,null,null,null,null,null,null,null,null,null,{"$f":"IF(報告書第二面!P50<>\"\",報告書第二面!P50,\"\")","v":""},"有",null,null,{"$f":"IF(報告書第二面!T50<>\"\",報告書第二面!T50,\"\")","v":""},"無",null,null,null,null,null,"検査機関"]
["【ﾆ.検査済証】",null,null,null,null,null,null,null,null,null,null,null,null,null,null,{"$f":"IF(報告書第二面!P51<>\"\",報告書第二面!P51,\"\")","v":""},"有",null,null,{"$f":"IF(報告書第二面!T51<>\"\",報告書第二面!T51,\"\")","v":""},"無"]
[null,null,null,null,null,null,null,null,null,null,null,null,null,null,null,"交付番号",null,null,null,{"$f":"IF(報告書第二面!T52<>\"\",報告書第二面!T52,\"\")","v":""},null,null,null,null,{"$f":"IF(報告書第二面!Y52<>\"\",報告書第二面!Y52,\"\")","v":""},null,"年",{"$f":"IF(報告書第二面!AB52<>\"\",報告書第二面!AB52,\"\")","v":""},null,"月",{"$f":"IF(報告書第二面!AE52<>\"\",報告書第二面!AE52,\"\")","v":""},null,"日",null,"第",{"$f":"IF(報告書第二面!AJ52<>\"\",報告書第二面!AJ52,\"\")","v":""},null,null,null,null,null,null,null,"号"]
[null,null,null,null,null,null,null,null,null,null,null,null,null,null,null,"交付者",null,null,null,{"$f":"IF(報告書第二面!T53<>\"\",報告書第二面!T53,\"\")","v":""},"建築主事",null,null,null,null,{"$f":"IF(報告書第二面!Z53<>\"\",報告書第二面!Z53,\"\")","v":""},"指定確認",null,null,null,"(",{"$f":"IF(報告書第二面!AF53<>\"\",報告書第二面!AF53,\"\")","v":""},null,null,null,null,null,null,null,null,null,null,null,")"]
["【ﾎ.維持保全に関する準則又は計画】",null,null,null,null,null,null,null,null,null,null,null,null,null,null,{"$f":"IF(報告書第二面!P54<>\"\",報告書第二面!P54,\"\")","v":""},"有",null,null,{"$f":"IF(報告書第二面!T54<>\"\",報告書第二面!T54,\"\")","v":""},"無",null,null,null,null,null,"検査機関"]
["【ﾍ.前回の調査に関する書類の写し】",null,null,null,null,null,null,null,null,null,null,null,null,null,null,{"$f":"IF(報告書第二面!P55<>\"\",報告書第二面!P55,\"\")","v":""},"有",null,null,{"$f":"IF(報告書第二面!T55<>\"\",報告書第二面!T55,\"\")","v":""},"無",null,null,{"$f":"IF(報告書第二面!X55<>\"\",報告書第二面!X55,\"\")","v":""},"対象外"]
["【7.備考】"]
[{"$f":"IF(報告書第二面!A57<>\"\",報告書第二面!A57,\"\")","v":""}]
[]
[]
[]
[]
["(注意)"]
["この様式には、第三十六号の二様式に記入した内容と同一の内容を記入してください。なお、第一面の５欄の"]
["「ロ」及び「ニ」は同様式第三面の２欄から４欄において指摘があつた項目について、第一面の７欄の「ハ」"]
["は同様式第四面に記入されたものについて、すべて記入してください。"]

{"sheet":"概要書第二面別紙(床面積表)","index":16,"n_rows":65,"n_cols":44,"rows_kept":65,"cut":false,"hidden":false,"merged":[[61,0,61,43],[62,0,62,43],[7,4,7,11],[7,12,7,18],[9,36,9,42],[10,0,10,2],[7,20,7,27],[7,28,7,34],[9,28,9,34],[9,20,9,27],[14,28,14,34],[14,36,14,42],[16,12,16,18],[16,20,16,27],[15,28,15,34],[15,36,15,42],[16,28,16,34],[16,36,16,42],[13,0,13,2],[13,4,13,11],[12,28,12,34],[12,36,12,42],[14,12,14,18],[14,20,14,27],[0,0,0,4],[63,0,63,43],[64,0,64,43],[1,0,1,4],[4,0,4,43],[5,0,6,3],[5,4,5,19],[5,20,5,35],[5,36,6,43],[6,12,6,19],[6,20,6,27],[1,5,1,13],[3,0,3,43],[2,0,2,43],[6,28,6,35],[1,14,1,43],[8,12,8,18],[8,20,8,27],[8,28,8,34],[8,36,8,42],[0,31,0,32],[0,34,0,35],[0,37,0,38],[0,40,0,42],[0,5,0,30],[7,36,7,42],[7,0,7,2],[6,4,6,11],[12,12,12,18],[12,20,12,27],[10,4,10,11],[10,12,10,18],[10,20,10,27],[11,20,11,27],[8,0,8,2],[8,4,8,11],[10,28,10,34],[10,36,10,42],[9,0,9,2],[9,4,9,11],[9,12,9,18],[11,0,11,2],[11,4,11,11],[11,12,11,18],[12,0,12,2],[12,4,12,11],[11,28,11,34],[11,36,11,42],[13,12,13,18],[13,20,13,27],[13,28,13,34],[13,36,13,42],[14,0,14,2],[14,4,14,11],[18,28,18,34],[18,36,18,42],[15,0,15,2],[15,4,15,11],[15,12,15,18],[15,20,15,27],[17,28,17,34],[17,36,17,42],[16,0,16,2],[16,4,16,11],[17,0,17,2],[17,4,17,11],[18,0,18,2],[18,4,18,11],[18,12,18,18],[18,20,18,27],[19,36,19,42],[17,12,17,18],[17,20,17,27],[23,28,23,34],[23,36,23,42],[22,28,22,34],[19,28,19,34],[20,0,20,2],[20,4,20,11],[20,12,20,18],[20,20,20,27],[19,0,19,2],[19,4,19,11],[19,12,19,18],[19,20,19,27],[21,28,21,34],[21,36,21,42],[21,0,21,2],[21,4,21,11],[22,0,22,2],[22,4,22,11],[22,36,22,42],[20,28,20,34],[20,36,20,42],[22,12,22,18],[22,20,22,27],[21,12,21,18],[21,20,21,27],[26,28,26,34],[26,36,26,42],[23,0,23,2],[23,4,23,11],[23,12,23,18],[23,20,23,27],[25,28,25,34],[25,36,25,42],[24,0,24,2],[24,4,24,11],[25,0,25,2],[25,4,25,11],[24,12,24,18],[24,20,24,27],[26,0,26,2],[26,4,26,11],[26,12,26,18],[26,20,26,27],[25,12,25,18],[25,20,25,27],[24,28,24,34],[24,36,24,42],[27,0,27,2],[27,4,27,11],[27,12,27,18],[27,20,27,27],[29,28,29,34],[29,36,29,42],[28,0,28,2],[28,4,28,11],[28,12,28,18],[28,20,28,27],[29,0,29,2],[29,4,29,11],[27,28,27,34],[27,36,27,42],[28,28,28,34],[28,36,28,42],[29,12,29,18],[29,20,29,27],[30,28,30,34],[30,36,30,42],[34,28,34,34],[34,36,34,42],[31,0,31,2],[31,4,31,11],[31,12,31,18],[31,20,31,27],[33,28,33,34],[33,36,33,42],[32,0,32,2],[32,4,32,11],[32,12,32,18],[32,20,32,27],[31,28,31,34],[31,36,31,42],[32,28,32,34],[32,36,32,42],[33,0,33,2],[33,4,33,11],[34,0,34,2],[34,4,34,11],[34,12,34,18],[34,20,34,27],[33,12,33,18],[33,20,33,27],[30,0,30,2],[30,4,30,11],[35,0,35,2],[35,4,35,11],[35,12,35,18],[35,20,35,27],[30,12,30,18],[30,20,30,27],[37,28,37,34],[37,36,37,42],[36,0,36,2],[36,4,36,11],[35,28,35,34],[35,36,35,42],[36,12,36,18],[36,20,36,27],[37,12,37,18],[37,20,37,27],[37,0,37,2],[37,4,37,11],[38,0,38,2],[38,4,38,11],[38,28,38,34],[38,36,38,42],[36,28,36,34],[36,36,36,42],[38,12,38,18],[38,20,38,27],[42,28,42,34],[42,36,42,42],[39,0,39,2],[39,4,39,11],[39,12,39,18],[39,20,39,27],[41,28,41,34],[41,36,41,42],[40,0,40,2],[40,4,40,11],[41,0,41,2],[41,4,41,11],[42,0,42,2],[42,4,42,11],[42,12,42,18],[42,20,42,27],[40,12,40,18],[40,20,40,27],[39,28,39,34],[39,36,39,42],[40,28,40,34],[40,36,40,42],[43,0,43,2],[43,4,43,11],[43,12,43,18],[43,20,43,27],[43,28,43,34],[43,36,43,42],[44,28,44,34],[44,36,44,42],[45,12,45,18],[45,20,45,27],[45,28,45,34],[45,36,45,42],[41,12,41,18],[41,20,41,27],[50,0,50,2],[50,4,50,11],[50,12,50,18],[50,20,50,27],[49,12,49,18],[49,20,49,27],[44,0,44,2],[44,4,44,11],[44,12,44,18],[44,20,44,27],[45,0,45,2],[45,4,45,11],[47,0,47,2],[47,4,47,11],[47,12,47,18],[47,20,47,27],[49,28,49,34],[49,36,49,42],[48,0,48,2],[48,4,48,11],[48,12,48,18],[48,20,48,27],[47,28,47,34],[47,36,47,42],[48,28,48,34],[48,36,48,42],[49,0,49,2],[49,4,49,11],[46,0,46,2],[46,4,46,11],[52,28,52,34],[46,12,46,18],[46,20,46,27],[52,36,52,42],[54,12,54,18],[54,20,54,27],[51,0,51,2],[51,4,51,11],[51,12,51,18],[51,20,51,27],[53,28,53,34],[53,36,53,42],[52,0,52,2],[52,4,52,11],[51,28,51,34],[51,36,51,42],[52,12,52,18],[52,20,52,27],[46,28,46,34],[46,36,46,42],[50,28,50,34],[50,36,50,42],[56,12,56,18],[56,20,56,27],[55,28,55,34],[55,36,55,42],[56,28,56,34],[56,36,56,42],[53,12,53,18],[53,20,53,27],[53,0,53,2],[53,4,53,11],[54,0,54,2],[54,4,54,11],[54,28,54,34],[54,36,54,42],[59,28,59,34],[59,36,59,42],[59,0,59,3],[59,4,59,11],[59,12,59,18],[59,20,59,27],[58,28,58,34],[58,36,58,42],[55,0,55,2],[55,4,55,11],[55,12,55,18],[55,20,55,27],[57,28,57,34],[57,36,57,42],[56,0,56,2],[56,4,56,11],[57,0,57,2],[57,4,57,11],[58,0,58,2],[58,4,58,11],[58,12,58,18],[58,20,58,27],[57,12,57,18],[57,20,57,27]]}
[null,null,null,null,null,"(台帳番号：",null,null,null,null,null,null,null,null,null,null,null,null,null,null,null,null,null,null,null,null,null,null,null,null,null,{"$f":"IF(報告書第一面!AF56<>\"\",報告書第一面!AF56,\"\")","v":""},null,"−",{"$f":"IF(報告書第一面!AI56<>\"\",報告書第一面!AI56,\"\")","v":{"$error":"#N/A"}},null,"−",{"$f":"IF(報告書第一面!AL56<>\"\",報告書第一面!AL56,\"\")","v":{"$error":"#N/A"}},null,"−",{"$f":"IF(報告書第一面!AO56<>\"\",報告書第一面!AO56,\"\")","v":""},null,null,")"]
[null,null,null,null,null,"報告対象建築物の名称：",null,null,null,null,null,null,null,null,{"$f":"IF(報告書第一面!L49<>\"\",報告書第一面!L49,\"\")","v":""}]
[]
["定期調査報告概要書の別紙"]
["(第二面【3.階別用途別床面積】欄の別紙)"]
["階",null,null,null,"指定用途部分",null,null,null,null,null,null,null,null,null,null,null,null,null,null,null,"指定用途以外の部分",null,null,null,null,null,null,null,null,null,null,null,null,null,null,null,"面積の合計"]
[null,null,null,null,"用　　途",null,null,null,null,null,null,null,"面　　積",null,null,null,null,null,null,null,"用　　途",null,null,null,null,null,null,null,"面　　積"]
[{"$f":"IF('報告書第二面別紙(床面積表)'!A8:C8<>\"\",'報告書第二面別紙(床面積表)'!A8:C8,\"\")","v":""},null,null,"階",{"$f":"IF('報告書第二面別紙(床面積表)'!E8:L8<>\"\",'報告書第二面別紙(床面積表)'!E8:L8,\"\")","v":""},null,null,null,null,null,null,null,{"$f":"IF('報告書第二面別紙(床面積表)'!M8:S8<>\"\",'報告書第二面別紙(床面積表)'!M8:S8,\"\")","v":""},null,null,null,null,null,null,"㎡",{"$f":"IF('報告書第二面別紙(床面積表)'!U8:AB8<>\"\",'報告書第二面別紙(床面積表)'!U8:AB8,\"\")","v":""},null,null,null,null,null,null,null,{"$f":"IF('報告書第二面別紙(床面積表)'!AC8:AI8<>\"\",'報告書第二面別紙(床面積表)'!AC8:AI8,\"\")","v":""},null,null,null,null,null,null,"㎡",{"$f":"IF('報告書第二面別紙(床面積表)'!AK8:AQ8<>\"\",'報告書第二面別紙(床面積表)'!AK8:AQ8,\"\")","v":0},null,null,null,null,null,null,"㎡"]
[{"$f":"IF('報告書第二面別紙(床面積表)'!A9:C9<>\"\",'報告書第二面別紙(床面積表)'!A9:C9,\"\")","v":""},null,null,"階",{"$f":"IF('報告書第二面別紙(床面積表)'!E9:L9<>\"\",'報告書第二面別紙(床面積表)'!E9:L9,\"\")","v":""},null,null,null,null,null,null,null,{"$f":"IF('報告書第二面別紙(床面積表)'!M9:S9<>\"\",'報告書第二面別紙(床面積表)'!M9:S9,\"\")","v":""},null,null,null,null,null,null,"㎡",{"$f":"IF('報告書第二面別紙(床面積表)'!U9:AB9<>\"\",'報告書第二面別紙(床面積表)'!U9:AB9,\"\")","v":""},null,null,null,null,null,null,null,{"$f":"IF('報告書第二面別紙(床面積表)'!AC9:AI9<>\"\",'報告書第二面別紙(床面積表)'!AC9:AI9,\"\")","v":""},null,null,null,null,null,null,"㎡",{"$f":"IF('報告書第二面別紙(床面積表)'!AK9:AQ9<>\"\",'報告書第二面別紙(床面積表)'!AK9:AQ9,\"\")","v":0},null,null,null,null,null,null,"㎡"]
[{"$f":"IF('報告書第二面別紙(床面積表)'!A10:C10<>\"\",'報告書第二面別紙(床面積表)'!A10:C10,\"\")","v":""},null,null,"階",{"$f":"IF('報告書第二面別紙(床面積表)'!E10:L10<>\"\",'報告書第二面別紙(床面積表)'!E10:L10,\"\")","v":""},null,null,null,null,null,null,null,{"$f":"IF('報告書第二面別紙(床面積表)'!M10:S10<>\"\",'報告書第二面別紙(床面積表)'!M10:S10,\"\")","v":""},null,null,null,null,null,null,"㎡",{"$f":"IF('報告書第二面別紙(床面積表)'!U10:AB10<>\"\",'報告書第二面別紙(床面積表)'!U10:AB10,\"\")","v":""},null,null,null,null,null,null,null,{"$f":"IF('報告書第二面別紙(床面積表)'!AC10:AI10<>\"\",'報告書第二面別紙(床面積表)'!AC10:AI10,\"\")","v":""},null,null,null,null,null,null,"㎡",{"$f":"IF('報告書第二面別紙(床面積表)'!AK10:AQ10<>\"\",'報告書第二面別紙(床面積表)'!AK10:AQ10,\"\")","v":0},null,null,null,null,null,null,"㎡"]
[{"$f":"IF('報告書第二面別紙(床面積表)'!A11:C11<>\"\",'報告書第二面別紙(床面積表)'!A11:C11,\"\")","v":""},null,null,"階",{"$f":"IF('報告書第二面別紙(床面積表)'!E11:L11<>\"\",'報告書第二面別紙(床面積表)'!E11:L11,\"\")","v":""},null,null,null,null,null,null,null,{"$f":"IF('報告書第二面別紙(床面積表)'!M11:S11<>\"\",'報告書第二面別紙(床面積表)'!M11:S11,\"\")","v":""},null,null,null,null,null,null,"㎡",{"$f":"IF('報告書第二面別紙(床面積表)'!U11:AB11<>\"\",'報告書第二面別紙(床面積表)'!U11:AB11,\"\")","v":""},null,null,null,null,null,null,null,{"$f":"IF('報告書第二面別紙(床面積表)'!AC11:AI11<>\"\",'報告書第二面別紙(床面積表)'!AC11:AI11,\"\")","v":""},null,null,null,null,null,null,"㎡",{"$f":"IF('報告書第二面別紙(床面積表)'!AK11:AQ11<>\"\",'報告書第二面別紙(床面積表)'!AK11:AQ11,\"\")","v":0},null,null,null,null,null,null,"㎡"]
[{"$f":"IF('報告書第二面別紙(床面積表)'!A12:C12<>\"\",'報告書第二面別紙(床面積表)'!A12:C12,\"\")","v":""},null,null,"階",{"$f":"IF('報告書第二面別紙(床面積表)'!E12:L12<>\"\",'報告書第二面別紙(床面積表)'!E12:L12,\"\")","v":""},null,null,null,null,null,null,null,{"$f":"IF('報告書第二面別紙(床面積表)'!M12:S12<>\"\",'報告書第二面別紙(床面積表)'!M12:S12,\"\")","v":""},null,null,null,null,null,null,"㎡",{"$f":"IF('報告書第二面別紙(床面積表)'!U12:AB12<>\"\",'報告書第二面別紙(床面積表)'!U12:AB12,\"\")","v":""},null,null,null,null,null,null,null,{"$f":"IF('報告書第二面別紙(床面積表)'!AC12:AI12<>\"\",'報告書第二面別紙(床面積表)'!AC12:AI12,\"\")","v":""},null,null,null,null,null,null,"㎡",{"$f":"IF('報告書第二面別紙(床面積表)'!AK12:AQ12<>\"\",'報告書第二面別紙(床面積表)'!AK12:AQ12,\"\")","v":0},null,null,null,null,null,null,"㎡"]
[{"$f":"IF('報告書第二面別紙(床面積表)'!A13:C13<>\"\",'報告書第二面別紙(床面積表)'!A13:C13,\"\")","v":""},null,null,"階",{"$f":"IF('報告書第二面別紙(床面積表)'!E13:L13<>\"\",'報告書第二面別紙(床面積表)'!E13:L13,\"\")","v":""},null,null,null,null,null,null,null,{"$f":"IF('報告書第二面別紙(床面積表)'!M13:S13<>\"\",'報告書第二面別紙(床面積表)'!M13:S13,\"\")","v":""},null,null,null,null,null,null,"㎡",{"$f":"IF('報告書第二面別紙(床面積表)'!U13:AB13<>\"\",'報告書第二面別紙(床面積表)'!U13:AB13,\"\")","v":""},null,null,null,null,null,null,null,{"$f":"IF('報告書第二面別紙(床面積表)'!AC13:AI13<>\"\",'報告書第二面別紙(床面積表)'!AC13:AI13,\"\")","v":""},null,null,null,null,null,null,"㎡",{"$f":"IF('報告書第二面別紙(床面積表)'!AK13:AQ13<>\"\",'報告書第二面別紙(床面積表)'!AK13:AQ13,\"\")","v":0},null,null,null,null,null,null,"㎡"]
[{"$f":"IF('報告書第二面別紙(床面積表)'!A14:C14<>\"\",'報告書第二面別紙(床面積表)'!A14:C14,\"\")","v":""},null,null,"階",{"$f":"IF('報告書第二面別紙(床面積表)'!E14:L14<>\"\",'報告書第二面別紙(床面積表)'!E14:L14,\"\")","v":""},null,null,null,null,null,null,null,{"$f":"IF('報告書第二面別紙(床面積表)'!M14:S14<>\"\",'報告書第二面別紙(床面積表)'!M14:S14,\"\")","v":""},null,null,null,null,null,null,"㎡",{"$f":"IF('報告書第二面別紙(床面積表)'!U14:AB14<>\"\",'報告書第二面別紙(床面積表)'!U14:AB14,\"\")","v":""},null,null,null,null,null,null,null,{"$f":"IF('報告書第二面別紙(床面積表)'!AC14:AI14<>\"\",'報告書第二面別紙(床面積表)'!AC14:AI14,\"\")","v":""},null,null,null,null,null,null,"㎡",{"$f":"IF('報告書第二面別紙(床面積表)'!AK14:AQ14<>\"\",'報告書第二面別紙(床面積表)'!AK14:AQ14,\"\")","v":0},null,null,null,null,null,null,"㎡"]
[{"$f":"IF('報告書第二面別紙(床面積表)'!A15:C15<>\"\",'報告書第二面別紙(床面積表)'!A15:C15,\"\")","v":""},null,null,"階",{"$f":"IF('報告書第二面別紙(床面積表)'!E15:L15<>\"\",'報告書第二面別紙(床面積表)'!E15:L15,\"\")","v":""},null,null,null,null,null,null,null,{"$f":"IF('報告書第二面別紙(床面積表)'!M15:S15<>\"\",'報告書第二面別紙(床面積表)'!M15:S15,\"\")","v":""},null,null,null,null,null,null,"㎡",{"$f":"IF('報告書第二面別紙(床面積表)'!U15:AB15<>\"\",'報告書第二面別紙(床面積表)'!U15:AB15,\"\")","v":""},null,null,null,null,null,null,null,{"$f":"IF('報告書第二面別紙(床面積表)'!AC15:AI15<>\"\",'報告書第二面別紙(床面積表)'!AC15:AI15,\"\")","v":""},null,null,null,null,null,null,"㎡",{"$f":"IF('報告書第二面別紙(床面積表)'!AK15:AQ15<>\"\",'報告書第二面別紙(床面積表)'!AK15:AQ15,\"\")","v":0},null,null,null,null,null,null,"㎡"]
[{"$f":"IF('報告書第二面別紙(床面積表)'!A16:C16<>\"\",'報告書第二面別紙(床面積表)'!A16:C16,\"\")","v":""},null,null,"階",{"$f":"IF('報告書第二面別紙(床面積表)'!E16:L16<>\"\",'報告書第二面別紙(床面積表)'!E16:L16,\"\")","v":""},null,null,null,null,null,null,null,{"$f":"IF('報告書第二面別紙(床面積表)'!M16:S16<>\"\",'報告書第二面別紙(床面積表)'!M16:S16,\"\")","v":""},null,null,null,null,null,null,"㎡",{"$f":"IF('報告書第二面別紙(床面積表)'!U16:AB16<>\"\",'報告書第二面別紙(床面積表)'!U16:AB16,\"\")","v":""},null,null,null,null,null,null,null,{"$f":"IF('報告書第二面別紙(床面積表)'!AC16:AI16<>\"\",'報告書第二面別紙(床面積表)'!AC16:AI16,\"\")","v":""},null,null,null,null,null,null,"㎡",{"$f":"IF('報告書第二面別紙(床面積表)'!AK16:AQ16<>\"\",'報告書第二面別紙(床面積表)'!AK16:AQ16,\"\")","v":0},null,null,null,null,null,null,"㎡"]
[{"$f":"IF('報告書第二面別紙(床面積表)'!A17:C17<>\"\",'報告書第二面別紙(床面積表)'!A17:C17,\"\")","v":""},null,null,"階",{"$f":"IF('報告書第二面別紙(床面積表)'!E17:L17<>\"\",'報告書第二面別紙(床面積表)'!E17:L17,\"\")","v":""},null,null,null,null,null,null,null,{"$f":"IF('報告書第二面別紙(床面積表)'!M17:S17<>\"\",'報告書第二面別紙(床面積表)'!M17:S17,\"\")","v":""},null,null,null,null,null,null,"㎡",{"$f":"IF('報告書第二面別紙(床面積表)'!U17:AB17<>\"\",'報告書第二面別紙(床面積表)'!U17:AB17,\"\")","v":""},null,null,null,null,null,null,null,{"$f":"IF('報告書第二面別紙(床面積表)'!AC17:AI17<>\"\",'報告書第二面別紙(床面積表)'!AC17:AI17,\"\")","v":""},null,null,null,null,null,null,"㎡",{"$f":"IF('報告書第二面別紙(床面積表)'!AK17:AQ17<>\"\",'報告書第二面別紙(床面積表)'!AK17:AQ17,\"\")","v":0},null,null,null,null,null,null,"㎡"]
[{"$f":"IF('報告書第二面別紙(床面積表)'!A18:C18<>\"\",'報告書第二面別紙(床面積表)'!A18:C18,\"\")","v":""},null,null,"階",{"$f":"IF('報告書第二面別紙(床面積表)'!E18:L18<>\"\",'報告書第二面別紙(床面積表)'!E18:L18,\"\")","v":""},null,null,null,null,null,null,null,{"$f":"IF('報告書第二面別紙(床面積表)'!M18:S18<>\"\",'報告書第二面別紙(床面積表)'!M18:S18,\"\")","v":""},null,null,null,null,null,null,"㎡",{"$f":"IF('報告書第二面別紙(床面積表)'!U18:AB18<>\"\",'報告書第二面別紙(床面積表)'!U18:AB18,\"\")","v":""},null,null,null,null,null,null,null,{"$f":"IF('報告書第二面別紙(床面積表)'!AC18:AI18<>\"\",'報告書第二面別紙(床面積表)'!AC18:AI18,\"\")","v":""},null,null,null,null,null,null,"㎡",{"$f":"IF('報告書第二面別紙(床面積表)'!AK18:AQ18<>\"\",'報告書第二面別紙(床面積表)'!AK18:AQ18,\"\")","v":0},null,null,null,null,null,null,"㎡"]
[{"$f":"IF('報告書第二面別紙(床面積表)'!A19:C19<>\"\",'報告書第二面別紙(床面積表)'!A19:C19,\"\")","v":""},null,null,"階",{"$f":"IF('報告書第二面別紙(床面積表)'!E19:L19<>\"\",'報告書第二面別紙(床面積表)'!E19:L19,\"\")","v":""},null,null,null,null,null,null,null,{"$f":"IF('報告書第二面別紙(床面積表)'!M19:S19<>\"\",'報告書第二面別紙(床面積表)'!M19:S19,\"\")","v":""},null,null,null,null,null,null,"㎡",{"$f":"IF('報告書第二面別紙(床面積表)'!U19:AB19<>\"\",'報告書第二面別紙(床面積表)'!U19:AB19,\"\")","v":""},null,null,null,null,null,null,null,{"$f":"IF('報告書第二面別紙(床面積表)'!AC19:AI19<>\"\",'報告書第二面別紙(床面積表)'!AC19:AI19,\"\")","v":""},null,null,null,null,null,null,"㎡",{"$f":"IF('報告書第二面別紙(床面積表)'!AK19:AQ19<>\"\",'報告書第二面別紙(床面積表)'!AK19:AQ19,\"\")","v":0},null,null,null,null,null,null,"㎡"]
[{"$f":"IF('報告書第二面別紙(床面積表)'!A20:C20<>\"\",'報告書第二面別紙(床面積表)'!A20:C20,\"\")","v":""},null,null,"階",{"$f":"IF('報告書第二面別紙(床面積表)'!E20:L20<>\"\",'報告書第二面別紙(床面積表)'!E20:L20,\"\")","v":""},null,null,null,null,null,null,null,{"$f":"IF('報告書第二面別紙(床面積表)'!M20:S20<>\"\",'報告書第二面別紙(床面積表)'!M20:S20,\"\")","v":""},null,null,null,null,null,null,"㎡",{"$f":"IF('報告書第二面別紙(床面積表)'!U20:AB20<>\"\",'報告書第二面別紙(床面積表)'!U20:AB20,\"\")","v":""},null,null,null,null,null,null,null,{"$f":"IF('報告書第二面別紙(床面積表)'!AC20:AI20<>\"\",'報告書第二面別紙(床面積表)'!AC20:AI20,\"\")","v":""},null,null,null,null,null,null,"㎡",{"$f":"IF('報告書第二面別紙(床面積表)'!AK20:AQ20<>\"\",'報告書第二面別紙(床面積表)'!AK20:AQ20,\"\")","v":0},null,null,null,null,null,null,"㎡"]
[{"$f":"IF('報告書第二面別紙(床面積表)'!A21:C21<>\"\",'報告書第二面別紙(床面積表)'!A21:C21,\"\")","v":""},null,null,"階",{"$f":"IF('報告書第二面別紙(床面積表)'!E21:L21<>\"\",'報告書第二面別紙(床面積表)'!E21:L21,\"\")","v":""},null,null,null,null,null,null,null,{"$f":"IF('報告書第二面別紙(床面積表)'!M21:S21<>\"\",'報告書第二面別紙(床面積表)'!M21:S21,\"\")","v":""},null,null,null,null,null,null,"㎡",{"$f":"IF('報告書第二面別紙(床面積表)'!U21:AB21<>\"\",'報告書第二面別紙(床面積表)'!U21:AB21,\"\")","v":""},null,null,null,null,null,null,null,{"$f":"IF('報告書第二面別紙(床面積表)'!AC21:AI21<>\"\",'報告書第二面別紙(床面積表)'!AC21:AI21,\"\")","v":""},null,null,null,null,null,null,"㎡",{"$f":"IF('報告書第二面別紙(床面積表)'!AK21:AQ21<>\"\",'報告書第二面別紙(床面積表)'!AK21:AQ21,\"\")","v":0},null,null,null,null,null,null,"㎡"]
[{"$f":"IF('報告書第二面別紙(床面積表)'!A22:C22<>\"\",'報告書第二面別紙(床面積表)'!A22:C22,\"\")","v":""},null,null,"階",{"$f":"IF('報告書第二面別紙(床面積表)'!E22:L22<>\"\",'報告書第二面別紙(床面積表)'!E22:L22,\"\")","v":""},null,null,null,null,null,null,null,{"$f":"IF('報告書第二面別紙(床面積表)'!M22:S22<>\"\",'報告書第二面別紙(床面積表)'!M22:S22,\"\")","v":""},null,null,null,null,null,null,"㎡",{"$f":"IF('報告書第二面別紙(床面積表)'!U22:AB22<>\"\",'報告書第二面別紙(床面積表)'!U22:AB22,\"\")","v":""},null,null,null,null,null,null,null,{"$f":"IF('報告書第二面別紙(床面積表)'!AC22:AI22<>\"\",'報告書第二面別紙(床面積表)'!AC22:AI22,\"\")","v":""},null,null,null,null,null,null,"㎡",{"$f":"IF('報告書第二面別紙(床面積表)'!AK22:AQ22<>\"\",'報告書第二面別紙(床面積表)'!AK22:AQ22,\"\")","v":0},null,null,null,null,null,null,"㎡"]
[{"$f":"IF('報告書第二面別紙(床面積表)'!A23:C23<>\"\",'報告書第二面別紙(床面積表)'!A23:C23,\"\")","v":""},null,null,"階",{"$f":"IF('報告書第二面別紙(床面積表)'!E23:L23<>\"\",'報告書第二面別紙(床面積表)'!E23:L23,\"\")","v":""},null,null,null,null,null,null,null,{"$f":"IF('報告書第二面別紙(床面積表)'!M23:S23<>\"\",'報告書第二面別紙(床面積表)'!M23:S23,\"\")","v":""},null,null,null,null,null,null,"㎡",{"$f":"IF('報告書第二面別紙(床面積表)'!U23:AB23<>\"\",'報告書第二面別紙(床面積表)'!U23:AB23,\"\")","v":""},null,null,null,null,null,null,null,{"$f":"IF('報告書第二面別紙(床面積表)'!AC23:AI23<>\"\",'報告書第二面別紙(床面積表)'!AC23:AI23,\"\")","v":""},null,null,null,null,null,null,"㎡",{"$f":"IF('報告書第二面別紙(床面積表)'!AK23:AQ23<>\"\",'報告書第二面別紙(床面積表)'!AK23:AQ23,\"\")","v":0},null,null,null,null,null,null,"㎡"]
[{"$f":"IF('報告書第二面別紙(床面積表)'!A24:C24<>\"\",'報告書第二面別紙(床面積表)'!A24:C24,\"\")","v":""},null,null,"階",{"$f":"IF('報告書第二面別紙(床面積表)'!E24:L24<>\"\",'報告書第二面別紙(床面積表)'!E24:L24,\"\")","v":""},null,null,null,null,null,null,null,{"$f":"IF('報告書第二面別紙(床面積表)'!M24:S24<>\"\",'報告書第二面別紙(床面積表)'!M24:S24,\"\")","v":""},null,null,null,null,null,null,"㎡",{"$f":"IF('報告書第二面別紙(床面積表)'!U24:AB24<>\"\",'報告書第二面別紙(床面積表)'!U24:AB24,\"\")","v":""},null,null,null,null,null,null,null,{"$f":"IF('報告書第二面別紙(床面積表)'!AC24:AI24<>\"\",'報告書第二面別紙(床面積表)'!AC24:AI24,\"\")","v":""},null,null,null,null,null,null,"㎡",{"$f":"IF('報告書第二面別紙(床面積表)'!AK24:AQ24<>\"\",'報告書第二面別紙(床面積表)'!AK24:AQ24,\"\")","v":0},null,null,null,null,null,null,"㎡"]
[{"$f":"IF('報告書第二面別紙(床面積表)'!A25:C25<>\"\",'報告書第二面別紙(床面積表)'!A25:C25,\"\")","v":""},null,null,"階",{"$f":"IF('報告書第二面別紙(床面積表)'!E25:L25<>\"\",'報告書第二面別紙(床面積表)'!E25:L25,\"\")","v":""},null,null,null,null,null,null,null,{"$f":"IF('報告書第二面別紙(床面積表)'!M25:S25<>\"\",'報告書第二面別紙(床面積表)'!M25:S25,\"\")","v":""},null,null,null,null,null,null,"㎡",{"$f":"IF('報告書第二面別紙(床面積表)'!U25:AB25<>\"\",'報告書第二面別紙(床面積表)'!U25:AB25,\"\")","v":""},null,null,null,null,null,null,null,{"$f":"IF('報告書第二面別紙(床面積表)'!AC25:AI25<>\"\",'報告書第二面別紙(床面積表)'!AC25:AI25,\"\")","v":""},null,null,null,null,null,null,"㎡",{"$f":"IF('報告書第二面別紙(床面積表)'!AK25:AQ25<>\"\",'報告書第二面別紙(床面積表)'!AK25:AQ25,\"\")","v":0},null,null,null,null,null,null,"㎡"]
[{"$f":"IF('報告書第二面別紙(床面積表)'!A26:C26<>\"\",'報告書第二面別紙(床面積表)'!A26:C26,\"\")","v":""},null,null,"階",{"$f":"IF('報告書第二面別紙(床面積表)'!E26:L26<>\"\",'報告書第二面別紙(床面積表)'!E26:L26,\"\")","v":""},null,null,null,null,null,null,null,{"$f":"IF('報告書第二面別紙(床面積表)'!M26:S26<>\"\",'報告書第二面別紙(床面積表)'!M26:S26,\"\")","v":""},null,null,null,null,null,null,"㎡",{"$f":"IF('報告書第二面別紙(床面積表)'!U26:AB26<>\"\",'報告書第二面別紙(床面積表)'!U26:AB26,\"\")","v":""},null,null,null,null,null,null,null,{"$f":"IF('報告書第二面別紙(床面積表)'!AC26:AI26<>\"\",'報告書第二面別紙(床面積表)'!AC26:AI26,\"\")","v":""},null,null,null,null,null,null,"㎡",{"$f":"IF('報告書第二面別紙(床面積表)'!AK26:AQ26<>\"\",'報告書第二面別紙(床面積表)'!AK26:AQ26,\"\")","v":0},null,null,null,null,null,null,"㎡"]
[{"$f":"IF('報告書第二面別紙(床面積表)'!A27:C27<>\"\",'報告書第二面別紙(床面積表)'!A27:C27,\"\")","v":""},null,null,"階",{"$f":"IF('報告書第二面別紙(床面積表)'!E27:L27<>\"\",'報告書第二面別紙(床面積表)'!E27:L27,\"\")","v":""},null,null,null,null,null,null,null,{"$f":"IF('報告書第二面別紙(床面積表)'!M27:S27<>\"\",'報告書第二面別紙(床面積表)'!M27:S27,\"\")","v":""},null,null,null,null,null,null,"㎡",{"$f":"IF('報告書第二面別紙(床面積表)'!U27:AB27<>\"\",'報告書第二面別紙(床面積表)'!U27:AB27,\"\")","v":""},null,null,null,null,null,null,null,{"$f":"IF('報告書第二面別紙(床面積表)'!AC27:AI27<>\"\",'報告書第二面別紙(床面積表)'!AC27:AI27,\"\")","v":""},null,null,null,null,null,null,"㎡",{"$f":"IF('報告書第二面別紙(床面積表)'!AK27:AQ27<>\"\",'報告書第二面別紙(床面積表)'!AK27:AQ27,\"\")","v":0},null,null,null,null,null,null,"㎡"]
[{"$f":"IF('報告書第二面別紙(床面積表)'!A28:C28<>\"\",'報告書第二面別紙(床面積表)'!A28:C28,\"\")","v":""},null,null,"階",{"$f":"IF('報告書第二面別紙(床面積表)'!E28:L28<>\"\",'報告書第二面別紙(床面積表)'!E28:L28,\"\")","v":""},null,null,null,null,null,null,null,{"$f":"IF('報告書第二面別紙(床面積表)'!M28:S28<>\"\",'報告書第二面別紙(床面積表)'!M28:S28,\"\")","v":""},null,null,null,null,null,null,"㎡",{"$f":"IF('報告書第二面別紙(床面積表)'!U28:AB28<>\"\",'報告書第二面別紙(床面積表)'!U28:AB28,\"\")","v":""},null,null,null,null,null,null,null,{"$f":"IF('報告書第二面別紙(床面積表)'!AC28:AI28<>\"\",'報告書第二面別紙(床面積表)'!AC28:AI28,\"\")","v":""},null,null,null,null,null,null,"㎡",{"$f":"IF('報告書第二面別紙(床面積表)'!AK28:AQ28<>\"\",'報告書第二面別紙(床面積表)'!AK28:AQ28,\"\")","v":0},null,null,null,null,null,null,"㎡"]
[{"$f":"IF('報告書第二面別紙(床面積表)'!A29:C29<>\"\",'報告書第二面別紙(床面積表)'!A29:C29,\"\")","v":""},null,null,"階",{"$f":"IF('報告書第二面別紙(床面積表)'!E29:L29<>\"\",'報告書第二面別紙(床面積表)'!E29:L29,\"\")","v":""},null,null,null,null,null,null,null,{"$f":"IF('報告書第二面別紙(床面積表)'!M29:S29<>\"\",'報告書第二面別紙(床面積表)'!M29:S29,\"\")","v":""},null,null,null,null,null,null,"㎡",{"$f":"IF('報告書第二面別紙(床面積表)'!U29:AB29<>\"\",'報告書第二面別紙(床面積表)'!U29:AB29,\"\")","v":""},null,null,null,null,null,null,null,{"$f":"IF('報告書第二面別紙(床面積表)'!AC29:AI29<>\"\",'報告書第二面別紙(床面積表)'!AC29:AI29,\"\")","v":""},null,null,null,null,null,null,"㎡",{"$f":"IF('報告書第二面別紙(床面積表)'!AK29:AQ29<>\"\",'報告書第二面別紙(床面積表)'!AK29:AQ29,\"\")","v":0},null,null,null,null,null,null,"㎡"]
[{"$f":"IF('報告書第二面別紙(床面積表)'!A30:C30<>\"\",'報告書第二面別紙(床面積表)'!A30:C30,\"\")","v":""},null,null,"階",{"$f":"IF('報告書第二面別紙(床面積表)'!E30:L30<>\"\",'報告書第二面別紙(床面積表)'!E30:L30,\"\")","v":""},null,null,null,null,null,null,null,{"$f":"IF('報告書第二面別紙(床面積表)'!M30:S30<>\"\",'報告書第二面別紙(床面積表)'!M30:S30,\"\")","v":""},null,null,null,null,null,null,"㎡",{"$f":"IF('報告書第二面別紙(床面積表)'!U30:AB30<>\"\",'報告書第二面別紙(床面積表)'!U30:AB30,\"\")","v":""},null,null,null,null,null,null,null,{"$f":"IF('報告書第二面別紙(床面積表)'!AC30:AI30<>\"\",'報告書第二面別紙(床面積表)'!AC30:AI30,\"\")","v":""},null,null,null,null,null,null,"㎡",{"$f":"IF('報告書第二面別紙(床面積表)'!AK30:AQ30<>\"\",'報告書第二面別紙(床面積表)'!AK30:AQ30,\"\")","v":0},null,null,null,null,null,null,"㎡"]
[{"$f":"IF('報告書第二面別紙(床面積表)'!A31:C31<>\"\",'報告書第二面別紙(床面積表)'!A31:C31,\"\")","v":""},null,null,"階",{"$f":"IF('報告書第二面別紙(床面積表)'!E31:L31<>\"\",'報告書第二面別紙(床面積表)'!E31:L31,\"\")","v":""},null,null,null,null,null,null,null,{"$f":"IF('報告書第二面別紙(床面積表)'!M31:S31<>\"\",'報告書第二面別紙(床面積表)'!M31:S31,\"\")","v":""},null,null,null,null,null,null,"㎡",{"$f":"IF('報告書第二面別紙(床面積表)'!U31:AB31<>\"\",'報告書第二面別紙(床面積表)'!U31:AB31,\"\")","v":""},null,null,null,null,null,null,null,{"$f":"IF('報告書第二面別紙(床面積表)'!AC31:AI31<>\"\",'報告書第二面別紙(床面積表)'!AC31:AI31,\"\")","v":""},null,null,null,null,null,null,"㎡",{"$f":"IF('報告書第二面別紙(床面積表)'!AK31:AQ31<>\"\",'報告書第二面別紙(床面積表)'!AK31:AQ31,\"\")","v":0},null,null,null,null,null,null,"㎡"]
[{"$f":"IF('報告書第二面別紙(床面積表)'!A32:C32<>\"\",'報告書第二面別紙(床面積表)'!A32:C32,\"\")","v":""},null,null,"階",{"$f":"IF('報告書第二面別紙(床面積表)'!E32:L32<>\"\",'報告書第二面別紙(床面積表)'!E32:L32,\"\")","v":""},null,null,null,null,null,null,null,{"$f":"IF('報告書第二面別紙(床面積表)'!M32:S32<>\"\",'報告書第二面別紙(床面積表)'!M32:S32,\"\")","v":""},null,null,null,null,null,null,"㎡",{"$f":"IF('報告書第二面別紙(床面積表)'!U32:AB32<>\"\",'報告書第二面別紙(床面積表)'!U32:AB32,\"\")","v":""},null,null,null,null,null,null,null,{"$f":"IF('報告書第二面別紙(床面積表)'!AC32:AI32<>\"\",'報告書第二面別紙(床面積表)'!AC32:AI32,\"\")","v":""},null,null,null,null,null,null,"㎡",{"$f":"IF('報告書第二面別紙(床面積表)'!AK32:AQ32<>\"\",'報告書第二面別紙(床面積表)'!AK32:AQ32,\"\")","v":0},null,null,null,null,null,null,"㎡"]
[{"$f":"IF('報告書第二面別紙(床面積表)'!A33:C33<>\"\",'報告書第二面別紙(床面積表)'!A33:C33,\"\")","v":""},null,null,"階",{"$f":"IF('報告書第二面別紙(床面積表)'!E33:L33<>\"\",'報告書第二面別紙(床面積表)'!E33:L33,\"\")","v":""},null,null,null,null,null,null,null,{"$f":"IF('報告書第二面別紙(床面積表)'!M33:S33<>\"\",'報告書第二面別紙(床面積表)'!M33:S33,\"\")","v":""},null,null,null,null,null,null,"㎡",{"$f":"IF('報告書第二面別紙(床面積表)'!U33:AB33<>\"\",'報告書第二面別紙(床面積表)'!U33:AB33,\"\")","v":""},null,null,null,null,null,null,null,{"$f":"IF('報告書第二面別紙(床面積表)'!AC33:AI33<>\"\",'報告書第二面別紙(床面積表)'!AC33:AI33,\"\")","v":""},null,null,null,null,null,null,"㎡",{"$f":"IF('報告書第二面別紙(床面積表)'!AK33:AQ33<>\"\",'報告書第二面別紙(床面積表)'!AK33:AQ33,\"\")","v":0},null,null,null,null,null,null,"㎡"]
[{"$f":"IF('報告書第二面別紙(床面積表)'!A34:C34<>\"\",'報告書第二面別紙(床面積表)'!A34:C34,\"\")","v":""},null,null,"階",{"$f":"IF('報告書第二面別紙(床面積表)'!E34:L34<>\"\",'報告書第二面別紙(床面積表)'!E34:L34,\"\")","v":""},null,null,null,null,null,null,null,{"$f":"IF('報告書第二面別紙(床面積表)'!M34:S34<>\"\",'報告書第二面別紙(床面積表)'!M34:S34,\"\")","v":""},null,null,null,null,null,null,"㎡",{"$f":"IF('報告書第二面別紙(床面積表)'!U34:AB34<>\"\",'報告書第二面別紙(床面積表)'!U34:AB34,\"\")","v":""},null,null,null,null,null,null,null,{"$f":"IF('報告書第二面別紙(床面積表)'!AC34:AI34<>\"\",'報告書第二面別紙(床面積表)'!AC34:AI34,\"\")","v":""},null,null,null,null,null,null,"㎡",{"$f":"IF('報告書第二面別紙(床面積表)'!AK34:AQ34<>\"\",'報告書第二面別紙(床面積表)'!AK34:AQ34,\"\")","v":0},null,null,null,null,null,null,"㎡"]
[{"$f":"IF('報告書第二面別紙(床面積表)'!A35:C35<>\"\",'報告書第二面別紙(床面積表)'!A35:C35,\"\")","v":""},null,null,"階",{"$f":"IF('報告書第二面別紙(床面積表)'!E35:L35<>\"\",'報告書第二面別紙(床面積表)'!E35:L35,\"\")","v":""},null,null,null,null,null,null,null,{"$f":"IF('報告書第二面別紙(床面積表)'!M35:S35<>\"\",'報告書第二面別紙(床面積表)'!M35:S35,\"\")","v":""},null,null,null,null,null,null,"㎡",{"$f":"IF('報告書第二面別紙(床面積表)'!U35:AB35<>\"\",'報告書第二面別紙(床面積表)'!U35:AB35,\"\")","v":""},null,null,null,null,null,null,null,{"$f":"IF('報告書第二面別紙(床面積表)'!AC35:AI35<>\"\",'報告書第二面別紙(床面積表)'!AC35:AI35,\"\")","v":""},null,null,null,null,null,null,"㎡",{"$f":"IF('報告書第二面別紙(床面積表)'!AK35:AQ35<>\"\",'報告書第二面別紙(床面積表)'!AK35:AQ35,\"\")","v":0},null,null,null,null,null,null,"㎡"]
[{"$f":"IF('報告書第二面別紙(床面積表)'!A36:C36<>\"\",'報告書第二面別紙(床面積表)'!A36:C36,\"\")","v":""},null,null,"階",{"$f":"IF('報告書第二面別紙(床面積表)'!E36:L36<>\"\",'報告書第二面別紙(床面積表)'!E36:L36,\"\")","v":""},null,null,null,null,null,null,null,{"$f":"IF('報告書第二面別紙(床面積表)'!M36:S36<>\"\",'報告書第二面別紙(床面積表)'!M36:S36,\"\")","v":""},null,null,null,null,null,null,"㎡",{"$f":"IF('報告書第二面別紙(床面積表)'!U36:AB36<>\"\",'報告書第二面別紙(床面積表)'!U36:AB36,\"\")","v":""},null,null,null,null,null,null,null,{"$f":"IF('報告書第二面別紙(床面積表)'!AC36:AI36<>\"\",'報告書第二面別紙(床面積表)'!AC36:AI36,\"\")","v":""},null,null,null,null,null,null,"㎡",{"$f":"IF('報告書第二面別紙(床面積表)'!AK36:AQ36<>\"\",'報告書第二面別紙(床面積表)'!AK36:AQ36,\"\")","v":0},null,null,null,null,null,null,"㎡"]
[{"$f":"IF('報告書第二面別紙(床面積表)'!A37:C37<>\"\",'報告書第二面別紙(床面積表)'!A37:C37,\"\")","v":""},null,null,"階",{"$f":"IF('報告書第二面別紙(床面積表)'!E37:L37<>\"\",'報告書第二面別紙(床面積表)'!E37:L37,\"\")","v":""},null,null,null,null,null,null,null,{"$f":"IF('報告書第二面別紙(床面積表)'!M37:S37<>\"\",'報告書第二面別紙(床面積表)'!M37:S37,\"\")","v":""},null,null,null,null,null,null,"㎡",{"$f":"IF('報告書第二面別紙(床面積表)'!U37:AB37<>\"\",'報告書第二面別紙(床面積表)'!U37:AB37,\"\")","v":""},null,null,null,null,null,null,null,{"$f":"IF('報告書第二面別紙(床面積表)'!AC37:AI37<>\"\",'報告書第二面別紙(床面積表)'!AC37:AI37,\"\")","v":""},null,null,null,null,null,null,"㎡",{"$f":"IF('報告書第二面別紙(床面積表)'!AK37:AQ37<>\"\",'報告書第二面別紙(床面積表)'!AK37:AQ37,\"\")","v":0},null,null,null,null,null,null,"㎡"]
[{"$f":"IF('報告書第二面別紙(床面積表)'!A38:C38<>\"\",'報告書第二面別紙(床面積表)'!A38:C38,\"\")","v":""},null,null,"階",{"$f":"IF('報告書第二面別紙(床面積表)'!E38:L38<>\"\",'報告書第二面別紙(床面積表)'!E38:L38,\"\")","v":""},null,null,null,null,null,null,null,{"$f":"IF('報告書第二面別紙(床面積表)'!M38:S38<>\"\",'報告書第二面別紙(床面積表)'!M38:S38,\"\")","v":""},null,null,null,null,null,null,"㎡",{"$f":"IF('報告書第二面別紙(床面積表)'!U38:AB38<>\"\",'報告書第二面別紙(床面積表)'!U38:AB38,\"\")","v":""},null,null,null,null,null,null,null,{"$f":"IF('報告書第二面別紙(床面積表)'!AC38:AI38<>\"\",'報告書第二面別紙(床面積表)'!AC38:AI38,\"\")","v":""},null,null,null,null,null,null,"㎡",{"$f":"IF('報告書第二面別紙(床面積表)'!AK38:AQ38<>\"\",'報告書第二面別紙(床面積表)'!AK38:AQ38,\"\")","v":0},null,null,null,null,null,null,"㎡"]
[{"$f":"IF('報告書第二面別紙(床面積表)'!A39:C39<>\"\",'報告書第二面別紙(床面積表)'!A39:C39,\"\")","v":""},null,null,"階",{"$f":"IF('報告書第二面別紙(床面積表)'!E39:L39<>\"\",'報告書第二面別紙(床面積表)'!E39:L39,\"\")","v":""},null,null,null,null,null,null,null,{"$f":"IF('報告書第二面別紙(床面積表)'!M39:S39<>\"\",'報告書第二面別紙(床面積表)'!M39:S39,\"\")","v":""},null,null,null,null,null,null,"㎡",{"$f":"IF('報告書第二面別紙(床面積表)'!U39:AB39<>\"\",'報告書第二面別紙(床面積表)'!U39:AB39,\"\")","v":""},null,null,null,null,null,null,null,{"$f":"IF('報告書第二面別紙(床面積表)'!AC39:AI39<>\"\",'報告書第二面別紙(床面積表)'!AC39:AI39,\"\")","v":""},null,null,null,null,null,null,"㎡",{"$f":"IF('報告書第二面別紙(床面積表)'!AK39:AQ39<>\"\",'報告書第二面別紙(床面積表)'!AK39:AQ39,\"\")","v":0},null,null,null,null,null,null,"㎡"]
[{"$f":"IF('報告書第二面別紙(床面積表)'!A40:C40<>\"\",'報告書第二面別紙(床面積表)'!A40:C40,\"\")","v":""},null,null,"階",{"$f":"IF('報告書第二面別紙(床面積表)'!E40:L40<>\"\",'報告書第二面別紙(床面積表)'!E40:L40,\"\")","v":""},null,null,null,null,null,null,null,{"$f":"IF('報告書第二面別紙(床面積表)'!M40:S40<>\"\",'報告書第二面別紙(床面積表)'!M40:S40,\"\")","v":""},null,null,null,null,null,null,"㎡",{"$f":"IF('報告書第二面別紙(床面積表)'!U40:AB40<>\"\",'報告書第二面別紙(床面積表)'!U40:AB40,\"\")","v":""},null,null,null,null,null,null,null,{"$f":"IF('報告書第二面別紙(床面積表)'!AC40:AI40<>\"\",'報告書第二面別紙(床面積表)'!AC40:AI40,\"\")","v":""},null,null,null,null,null,null,"㎡",{"$f":"IF('報告書第二面別紙(床面積表)'!AK40:AQ40<>\"\",'報告書第二面別紙(床面積表)'!AK40:AQ40,\"\")","v":0},null,null,null,null,null,null,"㎡"]
[{"$f":"IF('報告書第二面別紙(床面積表)'!A41:C41<>\"\",'報告書第二面別紙(床面積表)'!A41:C41,\"\")","v":""},null,null,"階",{"$f":"IF('報告書第二面別紙(床面積表)'!E41:L41<>\"\",'報告書第二面別紙(床面積表)'!E41:L41,\"\")","v":""},null,null,null,null,null,null,null,{"$f":"IF('報告書第二面別紙(床面積表)'!M41:S41<>\"\",'報告書第二面別紙(床面積表)'!M41:S41,\"\")","v":""},null,null,null,null,null,null,"㎡",{"$f":"IF('報告書第二面別紙(床面積表)'!U41:AB41<>\"\",'報告書第二面別紙(床面積表)'!U41:AB41,\"\")","v":""},null,null,null,null,null,null,null,{"$f":"IF('報告書第二面別紙(床面積表)'!AC41:AI41<>\"\",'報告書第二面別紙(床面積表)'!AC41:AI41,\"\")","v":""},null,null,null,null,null,null,"㎡",{"$f":"IF('報告書第二面別紙(床面積表)'!AK41:AQ41<>\"\",'報告書第二面別紙(床面積表)'!AK41:AQ41,\"\")","v":0},null,null,null,null,null,null,"㎡"]
[{"$f":"IF('報告書第二面別紙(床面積表)'!A42:C42<>\"\",'報告書第二面別紙(床面積表)'!A42:C42,\"\")","v":""},null,null,"階",{"$f":"IF('報告書第二面別紙(床面積表)'!E42:L42<>\"\",'報告書第二面別紙(床面積表)'!E42:L42,\"\")","v":""},null,null,null,null,null,null,null,{"$f":"IF('報告書第二面別紙(床面積表)'!M42:S42<>\"\",'報告書第二面別紙(床面積表)'!M42:S42,\"\")","v":""},null,null,null,null,null,null,"㎡",{"$f":"IF('報告書第二面別紙(床面積表)'!U42:AB42<>\"\",'報告書第二面別紙(床面積表)'!U42:AB42,\"\")","v":""},null,null,null,null,null,null,null,{"$f":"IF('報告書第二面別紙(床面積表)'!AC42:AI42<>\"\",'報告書第二面別紙(床面積表)'!AC42:AI42,\"\")","v":""},null,null,null,null,null,null,"㎡",{"$f":"IF('報告書第二面別紙(床面積表)'!AK42:AQ42<>\"\",'報告書第二面別紙(床面積表)'!AK42:AQ42,\"\")","v":0},null,null,null,null,null,null,"㎡"]
[{"$f":"IF('報告書第二面別紙(床面積表)'!A43:C43<>\"\",'報告書第二面別紙(床面積表)'!A43:C43,\"\")","v":""},null,null,"階",{"$f":"IF('報告書第二面別紙(床面積表)'!E43:L43<>\"\",'報告書第二面別紙(床面積表)'!E43:L43,\"\")","v":""},null,null,null,null,null,null,null,{"$f":"IF('報告書第二面別紙(床面積表)'!M43:S43<>\"\",'報告書第二面別紙(床面積表)'!M43:S43,\"\")","v":""},null,null,null,null,null,null,"㎡",{"$f":"IF('報告書第二面別紙(床面積表)'!U43:AB43<>\"\",'報告書第二面別紙(床面積表)'!U43:AB43,\"\")","v":""},null,null,null,null,null,null,null,{"$f":"IF('報告書第二面別紙(床面積表)'!AC43:AI43<>\"\",'報告書第二面別紙(床面積表)'!AC43:AI43,\"\")","v":""},null,null,null,null,null,null,"㎡",{"$f":"IF('報告書第二面別紙(床面積表)'!AK43:AQ43<>\"\",'報告書第二面別紙(床面積表)'!AK43:AQ43,\"\")","v":0},null,null,null,null,null,null,"㎡"]
[{"$f":"IF('報告書第二面別紙(床面積表)'!A44:C44<>\"\",'報告書第二面別紙(床面積表)'!A44:C44,\"\")","v":""},null,null,"階",{"$f":"IF('報告書第二面別紙(床面積表)'!E44:L44<>\"\",'報告書第二面別紙(床面積表)'!E44:L44,\"\")","v":""},null,null,null,null,null,null,null,{"$f":"IF('報告書第二面別紙(床面積表)'!M44:S44<>\"\",'報告書第二面別紙(床面積表)'!M44:S44,\"\")","v":""},null,null,null,null,null,null,"㎡",{"$f":"IF('報告書第二面別紙(床面積表)'!U44:AB44<>\"\",'報告書第二面別紙(床面積表)'!U44:AB44,\"\")","v":""},null,null,null,null,null,null,null,{"$f":"IF('報告書第二面別紙(床面積表)'!AC44:AI44<>\"\",'報告書第二面別紙(床面積表)'!AC44:AI44,\"\")","v":""},null,null,null,null,null,null,"㎡",{"$f":"IF('報告書第二面別紙(床面積表)'!AK44:AQ44<>\"\",'報告書第二面別紙(床面積表)'!AK44:AQ44,\"\")","v":0},null,null,null,null,null,null,"㎡"]
[{"$f":"IF('報告書第二面別紙(床面積表)'!A45:C45<>\"\",'報告書第二面別紙(床面積表)'!A45:C45,\"\")","v":""},null,null,"階",{"$f":"IF('報告書第二面別紙(床面積表)'!E45:L45<>\"\",'報告書第二面別紙(床面積表)'!E45:L45,\"\")","v":""},null,null,null,null,null,null,null,{"$f":"IF('報告書第二面別紙(床面積表)'!M45:S45<>\"\",'報告書第二面別紙(床面積表)'!M45:S45,\"\")","v":""},null,null,null,null,null,null,"㎡",{"$f":"IF('報告書第二面別紙(床面積表)'!U45:AB45<>\"\",'報告書第二面別紙(床面積表)'!U45:AB45,\"\")","v":""},null,null,null,null,null,null,null,{"$f":"IF('報告書第二面別紙(床面積表)'!AC45:AI45<>\"\",'報告書第二面別紙(床面積表)'!AC45:AI45,\"\")","v":""},null,null,null,null,null,null,"㎡",{"$f":"IF('報告書第二面別紙(床面積表)'!AK45:AQ45<>\"\",'報告書第二面別紙(床面積表)'!AK45:AQ45,\"\")","v":0},null,null,null,null,null,null,"㎡"]
[{"$f":"IF('報告書第二面別紙(床面積表)'!A46:C46<>\"\",'報告書第二面別紙(床面積表)'!A46:C46,\"\")","v":""},null,null,"階",{"$f":"IF('報告書第二面別紙(床面積表)'!E46:L46<>\"\",'報告書第二面別紙(床面積表)'!E46:L46,\"\")","v":""},null,null,null,null,null,null,null,{"$f":"IF('報告書第二面別紙(床面積表)'!M46:S46<>\"\",'報告書第二面別紙(床面積表)'!M46:S46,\"\")","v":""},null,null,null,null,null,null,"㎡",{"$f":"IF('報告書第二面別紙(床面積表)'!U46:AB46<>\"\",'報告書第二面別紙(床面積表)'!U46:AB46,\"\")","v":""},null,null,null,null,null,null,null,{"$f":"IF('報告書第二面別紙(床面積表)'!AC46:AI46<>\"\",'報告書第二面別紙(床面積表)'!AC46:AI46,\"\")","v":""},null,null,null,null,null,null,"㎡",{"$f":"IF('報告書第二面別紙(床面積表)'!AK46:AQ46<>\"\",'報告書第二面別紙(床面積表)'!AK46:AQ46,\"\")","v":0},null,null,null,null,null,null,"㎡"]
[{"$f":"IF('報告書第二面別紙(床面積表)'!A47:C47<>\"\",'報告書第二面別紙(床面積表)'!A47:C47,\"\")","v":""},null,null,"階",{"$f":"IF('報告書第二面別紙(床面積表)'!E47:L47<>\"\",'報告書第二面別紙(床面積表)'!E47:L47,\"\")","v":""},null,null,null,null,null,null,null,{"$f":"IF('報告書第二面別紙(床面積表)'!M47:S47<>\"\",'報告書第二面別紙(床面積表)'!M47:S47,\"\")","v":""},null,null,null,null,null,null,"㎡",{"$f":"IF('報告書第二面別紙(床面積表)'!U47:AB47<>\"\",'報告書第二面別紙(床面積表)'!U47:AB47,\"\")","v":""},null,null,null,null,null,null,null,{"$f":"IF('報告書第二面別紙(床面積表)'!AC47:AI47<>\"\",'報告書第二面別紙(床面積表)'!AC47:AI47,\"\")","v":""},null,null,null,null,null,null,"㎡",{"$f":"IF('報告書第二面別紙(床面積表)'!AK47:AQ47<>\"\",'報告書第二面別紙(床面積表)'!AK47:AQ47,\"\")","v":0},null,null,null,null,null,null,"㎡"]
[{"$f":"IF('報告書第二面別紙(床面積表)'!A48:C48<>\"\",'報告書第二面別紙(床面積表)'!A48:C48,\"\")","v":""},null,null,"階",{"$f":"IF('報告書第二面別紙(床面積表)'!E48:L48<>\"\",'報告書第二面別紙(床面積表)'!E48:L48,\"\")","v":""},null,null,null,null,null,null,null,{"$f":"IF('報告書第二面別紙(床面積表)'!M48:S48<>\"\",'報告書第二面別紙(床面積表)'!M48:S48,\"\")","v":""},null,null,null,null,null,null,"㎡",{"$f":"IF('報告書第二面別紙(床面積表)'!U48:AB48<>\"\",'報告書第二面別紙(床面積表)'!U48:AB48,\"\")","v":""},null,null,null,null,null,null,null,{"$f":"IF('報告書第二面別紙(床面積表)'!AC48:AI48<>\"\",'報告書第二面別紙(床面積表)'!AC48:AI48,\"\")","v":""},null,null,null,null,null,null,"㎡",{"$f":"IF('報告書第二面別紙(床面積表)'!AK48:AQ48<>\"\",'報告書第二面別紙(床面積表)'!AK48:AQ48,\"\")","v":0},null,null,null,null,null,null,"㎡"]
[{"$f":"IF('報告書第二面別紙(床面積表)'!A49:C49<>\"\",'報告書第二面別紙(床面積表)'!A49:C49,\"\")","v":""},null,null,"階",{"$f":"IF('報告書第二面別紙(床面積表)'!E49:L49<>\"\",'報告書第二面別紙(床面積表)'!E49:L49,\"\")","v":""},null,null,null,null,null,null,null,{"$f":"IF('報告書第二面別紙(床面積表)'!M49:S49<>\"\",'報告書第二面別紙(床面積表)'!M49:S49,\"\")","v":""},null,null,null,null,null,null,"㎡",{"$f":"IF('報告書第二面別紙(床面積表)'!U49:AB49<>\"\",'報告書第二面別紙(床面積表)'!U49:AB49,\"\")","v":""},null,null,null,null,null,null,null,{"$f":"IF('報告書第二面別紙(床面積表)'!AC49:AI49<>\"\",'報告書第二面別紙(床面積表)'!AC49:AI49,\"\")","v":""},null,null,null,null,null,null,"㎡",{"$f":"IF('報告書第二面別紙(床面積表)'!AK49:AQ49<>\"\",'報告書第二面別紙(床面積表)'!AK49:AQ49,\"\")","v":0},null,null,null,null,null,null,"㎡"]
[{"$f":"IF('報告書第二面別紙(床面積表)'!A50:C50<>\"\",'報告書第二面別紙(床面積表)'!A50:C50,\"\")","v":""},null,null,"階",{"$f":"IF('報告書第二面別紙(床面積表)'!E50:L50<>\"\",'報告書第二面別紙(床面積表)'!E50:L50,\"\")","v":""},null,null,null,null,null,null,null,{"$f":"IF('報告書第二面別紙(床面積表)'!M50:S50<>\"\",'報告書第二面別紙(床面積表)'!M50:S50,\"\")","v":""},null,null,null,null,null,null,"㎡",{"$f":"IF('報告書第二面別紙(床面積表)'!U50:AB50<>\"\",'報告書第二面別紙(床面積表)'!U50:AB50,\"\")","v":""},null,null,null,null,null,null,null,{"$f":"IF('報告書第二面別紙(床面積表)'!AC50:AI50<>\"\",'報告書第二面別紙(床面積表)'!AC50:AI50,\"\")","v":""},null,null,null,null,null,null,"㎡",{"$f":"IF('報告書第二面別紙(床面積表)'!AK50:AQ50<>\"\",'報告書第二面別紙(床面積表)'!AK50:AQ50,\"\")","v":0},null,null,null,null,null,null,"㎡"]
[{"$f":"IF('報告書第二面別紙(床面積表)'!A51:C51<>\"\",'報告書第二面別紙(床面積表)'!A51:C51,\"\")","v":""},null,null,"階",{"$f":"IF('報告書第二面別紙(床面積表)'!E51:L51<>\"\",'報告書第二面別紙(床面積表)'!E51:L51,\"\")","v":""},null,null,null,null,null,null,null,{"$f":"IF('報告書第二面別紙(床面積表)'!M51:S51<>\"\",'報告書第二面別紙(床面積表)'!M51:S51,\"\")","v":""},null,null,null,null,null,null,"㎡",{"$f":"IF('報告書第二面別紙(床面積表)'!U51:AB51<>\"\",'報告書第二面別紙(床面積表)'!U51:AB51,\"\")","v":""},null,null,null,null,null,null,null,{"$f":"IF('報告書第二面別紙(床面積表)'!AC51:AI51<>\"\",'報告書第二面別紙(床面積表)'!AC51:AI51,\"\")","v":""},null,null,null,null,null,null,"㎡",{"$f":"IF('報告書第二面別紙(床面積表)'!AK51:AQ51<>\"\",'報告書第二面別紙(床面積表)'!AK51:AQ51,\"\")","v":0},null,null,null,null,null,null,"㎡"]
[{"$f":"IF('報告書第二面別紙(床面積表)'!A52:C52<>\"\",'報告書第二面別紙(床面積表)'!A52:C52,\"\")","v":""},null,null,"階",{"$f":"IF('報告書第二面別紙(床面積表)'!E52:L52<>\"\",'報告書第二面別紙(床面積表)'!E52:L52,\"\")","v":""},null,null,null,null,null,null,null,{"$f":"IF('報告書第二面別紙(床面積表)'!M52:S52<>\"\",'報告書第二面別紙(床面積表)'!M52:S52,\"\")","v":""},null,null,null,null,null,null,"㎡",{"$f":"IF('報告書第二面別紙(床面積表)'!U52:AB52<>\"\",'報告書第二面別紙(床面積表)'!U52:AB52,\"\")","v":""},null,null,null,null,null,null,null,{"$f":"IF('報告書第二面別紙(床面積表)'!AC52:AI52<>\"\",'報告書第二面別紙(床面積表)'!AC52:AI52,\"\")","v":""},null,null,null,null,null,null,"㎡",{"$f":"IF('報告書第二面別紙(床面積表)'!AK52:AQ52<>\"\",'報告書第二面別紙(床面積表)'!AK52:AQ52,\"\")","v":0},null,null,null,null,null,null,"㎡"]
[{"$f":"IF('報告書第二面別紙(床面積表)'!A53:C53<>\"\",'報告書第二面別紙(床面積表)'!A53:C53,\"\")","v":""},null,null,"階",{"$f":"IF('報告書第二面別紙(床面積表)'!E53:L53<>\"\",'報告書第二面別紙(床面積表)'!E53:L53,\"\")","v":""},null,null,null,null,null,null,null,{"$f":"IF('報告書第二面別紙(床面積表)'!M53:S53<>\"\",'報告書第二面別紙(床面積表)'!M53:S53,\"\")","v":""},null,null,null,null,null,null,"㎡",{"$f":"IF('報告書第二面別紙(床面積表)'!U53:AB53<>\"\",'報告書第二面別紙(床面積表)'!U53:AB53,\"\")","v":""},null,null,null,null,null,null,null,{"$f":"IF('報告書第二面別紙(床面積表)'!AC53:AI53<>\"\",'報告書第二面別紙(床面積表)'!AC53:AI53,\"\")","v":""},null,null,null,null,null,null,"㎡",{"$f":"IF('報告書第二面別紙(床面積表)'!AK53:AQ53<>\"\",'報告書第二面別紙(床面積表)'!AK53:AQ53,\"\")","v":0},null,null,null,null,null,null,"㎡"]
[{"$f":"IF('報告書第二面別紙(床面積表)'!A54:C54<>\"\",'報告書第二面別紙(床面積表)'!A54:C54,\"\")","v":""},null,null,"階",{"$f":"IF('報告書第二面別紙(床面積表)'!E54:L54<>\"\",'報告書第二面別紙(床面積表)'!E54:L54,\"\")","v":""},null,null,null,null,null,null,null,{"$f":"IF('報告書第二面別紙(床面積表)'!M54:S54<>\"\",'報告書第二面別紙(床面積表)'!M54:S54,\"\")","v":""},null,null,null,null,null,null,"㎡",{"$f":"IF('報告書第二面別紙(床面積表)'!U54:AB54<>\"\",'報告書第二面別紙(床面積表)'!U54:AB54,\"\")","v":""},null,null,null,null,null,null,null,{"$f":"IF('報告書第二面別紙(床面積表)'!AC54:AI54<>\"\",'報告書第二面別紙(床面積表)'!AC54:AI54,\"\")","v":""},null,null,null,null,null,null,"㎡",{"$f":"IF('報告書第二面別紙(床面積表)'!AK54:AQ54<>\"\",'報告書第二面別紙(床面積表)'!AK54:AQ54,\"\")","v":0},null,null,null,null,null,null,"㎡"]
[{"$f":"IF('報告書第二面別紙(床面積表)'!A55:C55<>\"\",'報告書第二面別紙(床面積表)'!A55:C55,\"\")","v":""},null,null,"階",{"$f":"IF('報告書第二面別紙(床面積表)'!E55:L55<>\"\",'報告書第二面別紙(床面積表)'!E55:L55,\"\")","v":""},null,null,null,null,null,null,null,{"$f":"IF('報告書第二面別紙(床面積表)'!M55:S55<>\"\",'報告書第二面別紙(床面積表)'!M55:S55,\"\")","v":""},null,null,null,null,null,null,"㎡",{"$f":"IF('報告書第二面別紙(床面積表)'!U55:AB55<>\"\",'報告書第二面別紙(床面積表)'!U55:AB55,\"\")","v":""},null,null,null,null,null,null,null,{"$f":"IF('報告書第二面別紙(床面積表)'!AC55:AI55<>\"\",'報告書第二面別紙(床面積表)'!AC55:AI55,\"\")","v":""},null,null,null,null,null,null,"㎡",{"$f":"IF('報告書第二面別紙(床面積表)'!AK55:AQ55<>\"\",'報告書第二面別紙(床面積表)'!AK55:AQ55,\"\")","v":0},null,null,null,null,null,null,"㎡"]
[{"$f":"IF('報告書第二面別紙(床面積表)'!A56:C56<>\"\",'報告書第二面別紙(床面積表)'!A56:C56,\"\")","v":""},null,null,"階",{"$f":"IF('報告書第二面別紙(床面積表)'!E56:L56<>\"\",'報告書第二面別紙(床面積表)'!E56:L56,\"\")","v":""},null,null,null,null,null,null,null,{"$f":"IF('報告書第二面別紙(床面積表)'!M56:S56<>\"\",'報告書第二面別紙(床面積表)'!M56:S56,\"\")","v":""},null,null,null,null,null,null,"㎡",{"$f":"IF('報告書第二面別紙(床面積表)'!U56:AB56<>\"\",'報告書第二面別紙(床面積表)'!U56:AB56,\"\")","v":""},null,null,null,null,null,null,null,{"$f":"IF('報告書第二面別紙(床面積表)'!AC56:AI56<>\"\",'報告書第二面別紙(床面積表)'!AC56:AI56,\"\")","v":""},null,null,null,null,null,null,"㎡",{"$f":"IF('報告書第二面別紙(床面積表)'!AK56:AQ56<>\"\",'報告書第二面別紙(床面積表)'!AK56:AQ56,\"\")","v":0},null,null,null,null,null,null,"㎡"]
[{"$f":"IF('報告書第二面別紙(床面積表)'!A57:C57<>\"\",'報告書第二面別紙(床面積表)'!A57:C57,\"\")","v":""},null,null,"階",{"$f":"IF('報告書第二面別紙(床面積表)'!E57:L57<>\"\",'報告書第二面別紙(床面積表)'!E57:L57,\"\")","v":""},null,null,null,null,null,null,null,{"$f":"IF('報告書第二面別紙(床面積表)'!M57:S57<>\"\",'報告書第二面別紙(床面積表)'!M57:S57,\"\")","v":""},null,null,null,null,null,null,"㎡",{"$f":"IF('報告書第二面別紙(床面積表)'!U57:AB57<>\"\",'報告書第二面別紙(床面積表)'!U57:AB57,\"\")","v":""},null,null,null,null,null,null,null,{"$f":"IF('報告書第二面別紙(床面積表)'!AC57:AI57<>\"\",'報告書第二面別紙(床面積表)'!AC57:AI57,\"\")","v":""},null,null,null,null,null,null,"㎡",{"$f":"IF('報告書第二面別紙(床面積表)'!AK57:AQ57<>\"\",'報告書第二面別紙(床面積表)'!AK57:AQ57,\"\")","v":0},null,null,null,null,null,null,"㎡"]
[{"$f":"IF('報告書第二面別紙(床面積表)'!A58:C58<>\"\",'報告書第二面別紙(床面積表)'!A58:C58,\"\")","v":""},null,null,"階",{"$f":"IF('報告書第二面別紙(床面積表)'!E58:L58<>\"\",'報告書第二面別紙(床面積表)'!E58:L58,\"\")","v":""},null,null,null,null,null,null,null,{"$f":"IF('報告書第二面別紙(床面積表)'!M58:S58<>\"\",'報告書第二面別紙(床面積表)'!M58:S58,\"\")","v":""},null,null,null,null,null,null,"㎡",{"$f":"IF('報告書第二面別紙(床面積表)'!U58:AB58<>\"\",'報告書第二面別紙(床面積表)'!U58:AB58,\"\")","v":""},null,null,null,null,null,null,null,{"$f":"IF('報告書第二面別紙(床面積表)'!AC58:AI58<>\"\",'報告書第二面別紙(床面積表)'!AC58:AI58,\"\")","v":""},null,null,null,null,null,null,"㎡",{"$f":"IF('報告書第二面別紙(床面積表)'!AK58:AQ58<>\"\",'報告書第二面別紙(床面積表)'!AK58:AQ58,\"\")","v":0},null,null,null,null,null,null,"㎡"]
[{"$f":"IF('報告書第二面別紙(床面積表)'!A59:C59<>\"\",'報告書第二面別紙(床面積表)'!A59:C59,\"\")","v":""},null,null,"階",{"$f":"IF('報告書第二面別紙(床面積表)'!E59:L59<>\"\",'報告書第二面別紙(床面積表)'!E59:L59,\"\")","v":""},null,null,null,null,null,null,null,{"$f":"IF('報告書第二面別紙(床面積表)'!M59:S59<>\"\",'報告書第二面別紙(床面積表)'!M59:S59,\"\")","v":""},null,null,null,null,null,null,"㎡",{"$f":"IF('報告書第二面別紙(床面積表)'!U59:AB59<>\"\",'報告書第二面別紙(床面積表)'!U59:AB59,\"\")","v":""},null,null,null,null,null,null,null,{"$f":"IF('報告書第二面別紙(床面積表)'!AC59:AI59<>\"\",'報告書第二面別紙(床面積表)'!AC59:AI59,\"\")","v":""},null,null,null,null,null,null,"㎡",{"$f":"IF('報告書第二面別紙(床面積表)'!AK59:AQ59<>\"\",'報告書第二面別紙(床面積表)'!AK59:AQ59,\"\")","v":0},null,null,null,null,null,null,"㎡"]
["合計",null,null,null,null,null,null,null,null,null,null,null,{"$f":"IF('報告書第二面別紙(床面積表)'!M60:S60<>\"\",'報告書第二面別紙(床面積表)'!M60:S60,\"\")","v":0},null,null,null,null,null,null,"㎡",null,null,null,null,null,null,null,null,{"$f":"IF('報告書第二面別紙(床面積表)'!AC60:AI60<>\"\",'報告書第二面別紙(床面積表)'!AC60:AI60,\"\")","v":0},null,null,null,null,null,null,"㎡",{"$f":"IF('報告書第二面別紙(床面積表)'!AK60:AQ60<>\"\",'報告書第二面別紙(床面積表)'!AK60:AQ60,\"\")","v":0},null,null,null,null,null,null,"㎡"]
[]
[]
["1.この用紙は、第二面【3.階別用途別床面積】欄の【ｲ.階別用途別】欄が不足した場合にご利用ください。"]
["2.用途はなるべく具体的に記入してください。"]
["3.上詰めで上の階から順に記入してください。"]

{"sheet":"市町村.txt","index":17,"n_rows":75,"n_cols":6,"rows_kept":75,"cut":false,"hidden":true,"merged":[]}
["市区町村","市区町村名","宛先","特定行政庁","市町村No","駐在"]
["このセルをクリック","　","　",0,0,"　"]
["あ　上尾市","上尾市","上尾市長",8,19,"　"]
["　　朝霞市","朝霞市","川越建築安全センター所長",1,27,"　"]
["い　北足立郡伊奈町","北足立郡伊奈町","越谷建築安全センター所長",1,41,"　"]
["　　入間市","入間市","川越建築安全センター所長",1,25,"　"]
["お　秩父郡小鹿野町","秩父郡小鹿野町","熊谷建築安全センター所長",1,62,"(秩父駐在)"]
["　　比企郡小川町","比企郡小川町","川越建築安全センター所長",1,52,"　"]
["　　桶川市","桶川市","越谷建築安全センター所長",1,31,"　"]
["　　入間郡越生町","入間郡越生町","川越建築安全センター所長",1,46,"　"]
["か　春日部市","春日部市","春日部市長",10,14,"　"]
["　　加須市","加須市","熊谷建築安全センター所長",1,10,"　"]
["　　児玉郡神川町","児玉郡神川町","熊谷建築安全センター所長",1,69,"　"]
["　　児玉郡上里町","児玉郡上里町","熊谷建築安全センター所長",1,71,"　"]
["　　川口市","川口市","川口市長",2,3,"　"]
["　　川越市","川越市","川越市長",5,1,"　"]
["　　比企郡川島町","比企郡川島町","川越建築安全センター所長",1,55,"　"]
["き　北本市","北本市","越谷建築安全センター所長",1,33,"　"]
["　　行田市","行田市","熊谷建築安全センター所長",1,6,"　"]
["く　久喜市","久喜市","越谷建築安全センター所長",1,32,"　"]
["　　熊谷市","熊谷市","熊谷市長",13,2,"　"]
["こ　鴻巣市","鴻巣市","越谷建築安全センター所長",1,17,"　"]
["　　越谷市","越谷市","越谷市長",7,22,"　"]
["さ　さいたま市岩槻区","さいたま市岩槻区","さいたま市長",3,13,"　"]
["　　さいたま市浦和区","さいたま市浦和区","さいたま市長",3,4,"　"]
["　　さいたま市大宮区","さいたま市大宮区","さいたま市長",3,5,"　"]
["　　さいたま市北区","さいたま市北区","さいたま市長",3,5,"　"]
["　　さいたま市桜区","さいたま市桜区","さいたま市長",3,4,"　"]
["　　さいたま市中央区","さいたま市中央区","さいたま市長",3,20,"　"]
["　　さいたま市西区","さいたま市西区","さいたま市長",3,5,"　"]
["　　さいたま市緑区","さいたま市緑区","さいたま市長",3,4,"　"]
["　　さいたま市南区","さいたま市南区","さいたま市長",3,4,"　"]
["　　さいたま市見沼区","さいたま市見沼区","さいたま市長",3,5,"　"]
["　　坂戸市","坂戸市","川越建築安全センター所長",1,39,"　"]
["　　幸手市","幸手市","越谷建築安全センター所長",1,40,"　"]
["　　狭山市","狭山市","狭山市長",11,15,"　"]
["し　志木市","志木市","川越建築安全センター所長",1,28,"　"]
["　　南埼玉郡白岡町","南埼玉郡白岡町","越谷建築安全センター所長",1,85,"　"]
["す　北葛飾郡杉戸町","北葛飾郡杉戸町","越谷建築安全センター所長",1,89,"　"]
["そ　草加市","草加市","草加市長",9,21,"　"]
["ち　秩父市","秩父市","熊谷建築安全センター所長",1,7,"(秩父駐在)"]
["つ　鶴ヶ島市","鶴ヶ島市","川越建築安全センター所長",1,47,"　"]
["と　比企郡ときがわ町","比企郡ときがわ町","川越建築安全センター所長",1,53,"　"]
["　　所沢市","所沢市","所沢市長",6,8,"　"]
["　　戸田市","戸田市","越谷建築安全センター所長",1,24,"　"]
["な　秩父郡長瀞町","秩父郡長瀞町","熊谷建築安全センター所長",1,60,"(秩父駐在)"]
["　　比企郡滑川町","比企郡滑川町","川越建築安全センター所長",1,50,"　"]
["に　新座市","新座市","新座市長",12,30,"　"]
["は　蓮田市","蓮田市","越谷建築安全センター所長",1,38,"　"]
["　　鳩ヶ谷市","鳩ヶ谷市","越谷建築安全センター所長",1,26,"　"]
["　　比企郡鳩山町","比企郡鳩山町","川越建築安全センター所長",1,57,"　"]
["　　羽生市","羽生市","熊谷建築安全センター所長",1,16,"　"]
["　　飯能市","飯能市","川越建築安全センター所長",1,9,"　"]
["ひ　秩父郡東秩父村","秩父郡東秩父村","川越建築安全センター所長",1,66,"　"]
["　　東松山市","東松山市","川越建築安全センター所長",1,12,"　"]
["　　日高市","日高市","川越建築安全センター所長",1,48,"　"]
["ふ　深谷市","深谷市","熊谷建築安全センター所長",1,18,"　"]
["　　富士見市","富士見市","川越建築安全センター所長",1,35,"　"]
["　　ふじみ野市","ふじみ野市","川越建築安全センター所長",1,36,"　"]
["ほ　本庄市","本庄市","熊谷建築安全センター所長",1,11,"　"]
["ま　北葛飾郡松伏町","北葛飾郡松伏町","越谷建築安全センター所長",1,90,"　"]
["み　三郷市","三郷市","越谷建築安全センター所長",1,37,"　"]
["　　児玉郡美里町","児玉郡美里町","熊谷建築安全センター所長",1,67,"　"]
["　　秩父郡皆野町","秩父郡皆野町","熊谷建築安全センター所長",1,59,"(秩父駐在)"]
["　　南埼玉郡宮代町","南埼玉郡宮代町","越谷建築安全センター所長",1,84,"　"]
["　　入間郡三芳町","入間郡三芳町","川越建築安全センター所長",1,44,"　"]
["も　入間郡毛呂山町","入間郡毛呂山町","川越建築安全センター所長",1,45,"　"]
["や　八潮市","八潮市","越谷建築安全センター所長",1,34,"　"]
["よ　秩父郡横瀬町","秩父郡横瀬町","熊谷建築安全センター所長",1,58,"(秩父駐在)"]
["　　吉川市","吉川市","越谷建築安全センター所長",1,91,"　"]
["　　比企郡吉見町","比企郡吉見町","川越建築安全センター所長",1,56,"　"]
["　　大里郡寄居町","大里郡寄居町","熊谷建築安全センター所長",1,78,"　"]
["ら　比企郡嵐山町","比企郡嵐山町","川越建築安全センター所長",1,51,"　"]
["わ　和光市","和光市","川越建築安全センター所長",1,29,"　"]
["　　蕨市","蕨市","越谷建築安全センター所長",1,23,"　"]